Workbook

Sheet CAPA
C1: Ver. | R1: DF | S1: Sudeste/Centro Oeste
C2: 0.93 | D2: 0.93 | M2: =C23 -> 153 | N2: =C22 -> 6600
C3: Macro Ver.
C4: 75.53 | D4: 75.5
B6: EPB | C6: =VLOOKUP(B6,TabEmpresas[#Data],5,FALSE) -> NÃO SUPRIDA | L6: CodigoSamp | M6: Empresa | N6: Nome Completo | O6: IdSgtAg | P6: CodigoSamp | Q6: Supridora/suprida | R6: Financeiro 243 (TUSD) | S6: Databse Fin. 243 | U6: Sim
B7: =VLOOKUP(B6,TabEmpresas[#Data],2,FALSE) -> EPB - Energisa Paraíba - Distribuidora de Energia | C7: Reajuste | G7: Últ. Atualização | L7: 396 | M7: AES SUL | N7: AES-SUL - AES SUL Distribuidora Gaúcha de Energia S/A. | O7: 101 | P7: 396 | Q7: NÃO SUPRIDA | U7: Não
B8: CÓDIGO DA EMPRESA | C8: ="D" & TEXT(C23-100,"00") -> D53 | F8: Info iniciais | G8: 2020-08-10T14:17:22 | L8: 7019 | M8: AME | N8: Amazonas Distribuidora de Energia S/A | O8: 102 | P8: 7019 | Q8: NÃO SUPRIDA
B9: Data do Reajuste/Revisão Anterior | C9: 43705 | F9: Energia do ano anterior (CM compra, MWh Mercado, R$ Mercado) | L9: 383 | M9: AMPLA | N9: AMPLA - Ampla Energia e Serviços S/A | O9: 103 | P9: 383 | Q9: NÃO SUPRIDA
B10: Data de Reajuste/Revisão em Processamento | C10: 44071 | F10: Perda de RB /Perdas Regulatórias /TUSDgONS-RB | H10: 44022 | L10: 391 | M10: BANDEIRANTE | N10: BANDEIRANTE - Bandeirante Energia S/A. | O10: 104 | P10: 391 | Q10: NÃO SUPRIDA
F11: Financeiros ano anterior (CVA 5º dia útil, RTE restante) | L11: 370 | M11: BOAVISTA | N11: Boa Vista - Boa Vista Energia S/A | O11: 105 | P11: 370 | Q11: NÃO SUPRIDA
F12: Encargos ano anterior (não RTE) | L12: 386 | M12: BRAGANTINA | N12: BRAGANTINA- Empresa Elétrica Bragantina S/A. | O12: 142 | P12: 386 | Q12: NÃO SUPRIDA
F13: Dados da Revisão, Fator X e DecFec | L13: 5216 | M13: CAIUA | N13: CAIUÁ-D - Caiuá Distribuição de Energia S/A | O13: 106 | P13: 5216 | Q13: NÃO SUPRIDA
F14: Previsão de Subsidios dos Processos Anteriores | L14: 31 | M14: CEA | N14: CEA - Companhia de Eletricidade do Amapá | O14: 107 | P14: 31 | Q14: NÃO SUPRIDA
B15: Período de Referencia final | C15: =DATE(YEAR($C$10),MONTH($C$10)-1,1) -> 44013 | F15: Conexão ano anterior | L15: 44 | M15: CEAL | N15: CEAL - Companhia Energética de Alagoas | O15: 108 | P15: 44 | Q15: NÃO SUPRIDA
B16: Período de Referencia inicial | C16: =DATE(YEAR($C$10)-1,MONTH($C$10),1) -> 43678 | F16: Energia (CCEAR, Bil., Itaipu) | G16: 2020-08-11T17:47:07 | L16: 5160 | M16: CEB | N16: CEB-DIS - CEB Distribuição S/A | O16: 109 | P16: 5160 | Q16: NÃO SUPRIDA
B17: Índice IGPM na data Revisão/Reajuste | C17: =VLOOKUP(C15,Índices!$B$7:$F$500,2,FALSE) -> 810.083 | F17: CCEAR | L17: 5707 | M17: CEEE | N17: CEEE-D - Companhia Estadual de Distribuição de Energia Elétrica | O17: 110 | P17: 5707 | Q17: NÃO SUPRIDA
B18: Índice IPCA na data Revisão/Reajuste | C18: =VLOOKUP(C15,Índices!$B$7:$F$500,3,FALSE) -> 5344.63 | F18: Bilateral | L18: 5697 | M18: CELESC | N18: CELESC-DIS - Celesc Distribuição S.A. | O18: 111 | P18: 5697 | Q18: NÃO SUPRIDA
B19: IGPM para o período de Referência | C19: =VLOOKUP(DATE(YEAR($C$10),MONTH($C$10)-1,1),Índices!$B$7:$F$500,2,FALSE)/VLOOKUP(DATE(YEAR($C$9),MONTH($C$9)-1,1),Índices!$B$7:$F$500,2,FALSE)-1 -> 0.09271918915 | F19: Itaipu (Energia, Transporte, MUST) | L19: 6072 | M19: CELG | N19: CELG-D - Celg Distribuição S.A. | O19: 112 | P19: 6072 | Q19: NÃO SUPRIDA
B20: IPCA para o período de Referência | C20: =VLOOKUP(DATE(YEAR(C10),MONTH(C10)-1,1),Índices!$B$7:$F$500,3,FALSE)/VLOOKUP(DATE(YEAR($C$9),MONTH($C$9)-1,1),Índices!$B$7:$F$500,3,FALSE)-1 -> 0.02305624998 | F20: Cotas Lei/Angra | L20: 371 | M20: CELPA | N20: CELPA - Centrais Elétricas do Pará S/A. | O20: 113 | P20: 371 | Q20: NÃO SUPRIDA
B21: Dados Gerenciais | F21: Encargos DRP | G21: 2020-07-30T14:44:34 | L21: 43 | M21: CELPE | N21: CELPE - Companhia Energética de Pernambuco | O21: 114 | P21: 43 | Q21: NÃO SUPRIDA
B22: IdAgente | C22: =VLOOKUP(B6,TabEmpresas[#Data],4,FALSE) -> 6600 | F22: Indicadores Econômicos / Dólar | G22: 2020-08-07T12:10:22 | L22: 32 | M22: CELTINS | N22: CELTINS - Companhia de Energia Elétrica do Estado do Tocantins | O22: 115 | P22: 32 | Q22: NÃO SUPRIDA
B23: ID Concessão | C23: =VLOOKUP(B6,TabEmpresas[#Data],3,FALSE) -> 153 | F23: Tudo de Mercado | G23: 2020-07-29T13:54:18 | L23: 37 | M23: CEMAR | N23: CEMAR - Companhia Energética do Maranhão | O23: 116 | P23: 37 | Q23: NÃO SUPRIDA
F24: Rede Básica e Conexão | G24: 2020-08-10T17:22:45 | L24: 405 | M24: CEMAT | N24: CEMAT - Centrais Elétricas Matogrossenses S/A. | O24: 117 | P24: 405 | Q24: NÃO SUPRIDA
B25: Quadro para vínculos | F25: Histórico de Tarifas B1 Residencial | G25: 2020-07-16T15:38:04 | L25: 4950 | M25: CEMIG | N25: CEMIG-D - CEMIG Distribuição S/A | O25: 118 | P25: 4950 | Q25: NÃO SUPRIDA
B26: Descrição | C26: valor | F26: CVA | G26: 2020-08-14T15:03:30 | L26: 38 | M26: CEPISA | N26: CEPISA - Companhia Energética do Piauí | O26: 119 | P26: 38 | Q26: NÃO SUPRIDA
B27: (Exemplo) Efeito Consumidor Geral | C27: =LnkTxtEfeito -> 0.04278521104 | L27: 369 | M27: CERON | N27: CERON - Centrais Elétricas de Rondônia S/A. | O27: 120 | P27: 369 | Q27: NÃO SUPRIDA
B28: Contrato de concessão | C28: CC 19/2001 | L28: 28 | M28: CERR | N28: CERR - Companhia Energética de Roraima | O28: 121 | P28: 28 | Q28: NÃO SUPRIDA
C29: 48500.007125/2019-74 | E29: pendências - 14/08/2020 ANA | L29: 103 | M29: CHESP | N29: CHESP - Companhia Hidroelétrica São Patrício | O29: 123 | P29: 103 | Q29: SUPRIDA
B30: Período de Referencia | C30: =TEXT(C16,"mmmm/aaaa")& " a "&TEXT(C15,"mmmm/aaaa") -> agosto/2019 a julho/2020 | G30: o que foi atualizado | L30: 75 | M30: CNEE | N30: CNEE - Companhia Nacional de Energia Elétrica | O30: 127 | P30: 75 | Q30: NÃO SUPRIDA
B31: Neutralidade Total | C31: =SUM(Financeiros!D44:D50) -> 3590298.436 | G31: Indicadores | L31: 82 | M31: COCEL | N31: COCEL - Companhia Campolarguense de Energia | O31: 128 | P31: 82 | Q31: SUPRIDA
B32: CVA Saldo a Compensar | C32: =SUM(Financeiros!D27:D43) -> 6672892.956 | G32: risco hidrológico | L32: 47 | M32: COELBA | N32: COELBA - Companhia de Eletricidade do Estado da Bahia | O32: 129 | P32: 47 | Q32: NÃO SUPRIDA
B33: Reversão CDE | C33: =SUM(Financeiros!D79:D80) -> -114171.1535 | G33: conexão | L33: 39 | M33: COELCE | N33: COELCE - Companhia Energética do Ceará | O33: 130 | P33: 39 | Q33: NÃO SUPRIDA
B34: Diretora Relator | C34: Elisa Bastos Silva | G34: perdas na rede básica | L34: 2904 | M34: COOPERALIANÇA | N34: COOPERALIANÇA - Cooperativa Aliança | O34: 131 | P34: 2904 | Q34: SUPRIDA
G35: CCEARs | L35: 2866 | M35: COPEL | N35: COPEL-DIS - Copel Distribuição S/A | O35: 132 | P35: 2866 | Q35: NÃO SUPRIDA
G36: DIC FIC | L36: 40 | M36: COSERN | N36: COSERN - Companhia Energética do Rio Grande do Norte | O36: 133 | P36: 40 | Q36: NÃO SUPRIDA
G37: Garantias | L37: 69 | M37: CPFL Jaguari | N37: CPFL Jaguari - Companhia Jaguari de Energia | O37: 124 | P37: 69 | Q37: NÃO SUPRIDA
G38: conta covid | L38: 71 | M38: CPFL Leste Paulista | N38: =TabEmpresas[[#This Row],[Empresa]]&" - Companhia Leste Paulista de Energia " -> CPFL Leste Paulista - Companhia Leste Paulista de Energia | O38: 134 | P38: 71 | Q38: NÃO SUPRIDA
L39: 70 | M39: CPFL Mococa | N39: =TabEmpresas[[#This Row],[Empresa]]&" - Companhia Luz e Força de Mococa " -> CPFL Mococa - Companhia Luz e Força de Mococa | O39: 125 | P39: 70 | Q39: NÃO SUPRIDA
L40: 72 | M40: CPFL Santa Cruz | N40: =TabEmpresas[[#This Row],[Empresa]]&" - Companhia Luz e Força Santa Cruz " -> CPFL Santa Cruz - Companhia Luz e Força Santa Cruz | O40: 126 | P40: 72 | Q40: NÃO SUPRIDA
L41: 73 | M41: CPFL Sul Paulista | N41: =TabEmpresas[[#This Row],[Empresa]]&" - Companhia Sul Paulista de Energia " -> CPFL Sul Paulista - Companhia Sul Paulista de Energia | O41: 137 | P41: 73 | Q41: NÃO SUPRIDA
L42: 63 | M42: CPFL Paulista | N42: CPFL-Paulista - Companhia Paulista de Força e Luz | O42: 136 | P42: 63 | Q42: NÃO SUPRIDA
L43: 2937 | M43: CPFL Piratininga | N43: CPFL- Piratininga - Companhia Piratininga de Força e Luz | O43: 135 | P43: 2937 | Q43: NÃO SUPRIDA
L44: 95 | M44: DEMEI | N44: DEMEI - Departamento Municipal de Energia de Ijuí | O44: 138 | P44: 95 | Q44: SUPRIDA
L45: 51 | M45: DMED | N45: =TabEmpresas[[#This Row],[Empresa]]&" - DME Distribuição S.A" -> DMED - DME Distribuição S.A | O45: 139 | P45: 51 | Q45: NÃO SUPRIDA
L46: 6611 | M46: EBO | N46: EBO - Energisa Borborema – Distribuidora de Energia S.A. | O46: 140 | P46: 6611 | Q46: NÃO SUPRIDA
B47: Deslocar mercado | C47: Não | L47: 5217 | M47: EDEVP | N47: EDEVP - Empresa de Distribuição de Energia Vale Paranapanema S/A | O47: 141 | P47: 5217 | Q47: NÃO SUPRIDA
B48: Data de processamento em simulação | C48: 43811 | L48: 385 | M48: ELEKTRO | N48: ELEKTRO - Elektro Eletricidade e Serviços S/A. | O48: 145 | P48: 385 | Q48: NÃO SUPRIDA
L49: 26 | M49: ELETROACRE | N49: ELETROACRE - Companhia de Eletricidade do Acre | O49: 146 | P49: 26 | Q49: NÃO SUPRIDA
L50: 398 | M50: ELETROCAR | N50: ELETROCAR - Centrais Elétricas de Carazinho S/A. | O50: 147 | P50: 398 | Q50: SUPRIDA
L51: 390 | M51: ELETROPAULO | N51: ELETROPAULO - Eletropaulo Metropolitana Eletricidade de São Paulo S/A | O51: 148 | P51: 390 | Q51: NÃO SUPRIDA
L52: 6585 | M52: EMG | N52: EMG - Energisa Minas Gerais - Distribuidora de Energia S.A. | O52: 150 | P52: 6585 | Q52: NÃO SUPRIDA
L53: 404 | M53: ENERSUL | N53: ENERSUL - Empresa Energética de Mato Grosso do Sul S/A. | O53: 151 | P53: 404 | Q53: NÃO SUPRIDA
L54: 6612 | M54: ENF | N54: ENF - Energisa Nova Friburgo - Distribuidora de Energia S.A. | O54: 152 | P54: 6612 | Q54: SUPRIDA
L55: 6600 | M55: EPB | N55: EPB - Energisa Paraíba - Distribuidora de Energia | O55: 153 | P55: 6600 | Q55: NÃO SUPRIDA
L56: 380 | M56: ESCELSA | N56: ESCELSA - Espírito Santo Centrais Elétricas S/A. | O56: 154 | P56: 380 | Q56: NÃO SUPRIDA
L57: 6587 | M57: ESE | N57: ESE - Energisa Sergipe - Distribuidora de Energia S.A. | O57: 155 | P57: 6587 | Q57: NÃO SUPRIDA
L58: 83 | M58: FORCEL | N58: FORCEL - Força e Luz Coronel Vivida Ltda | O58: 156 | P58: 83 | Q58: SUPRIDA
L59: 399 | M59: HIDROPAN | N59: HIDROPAN - Hidroelétrica Panambi S/A. | O59: 157 | P59: 399 | Q59: SUPRIDA
L60: 87 | M60: IENERGIA | N60: IENERGIA - Iguaçu Distribuidora de Energia Elétrica Ltda | O60: 158 | P60: 87 | Q60: NÃO SUPRIDA
L61: 213 | M61: JARI | N61: JARI - Jari Celulose S/A | O61: 159 | P61: 213 | Q61: NÃO SUPRIDA
L62: 88 | M62: JOÃO CESA | N62: JOÃO CESA - Empresa Força e Luz João Cesa Ltda | O62: 143 | P62: 88 | Q62: SUPRIDA
L63: 382 | M63: LIGHT | N63: LIGHT - Light Serviços de Eletricidade S/A. | O63: 160 | P63: 382 | Q63: NÃO SUPRIDA
L64: 401 | M64: MUX Energia | N64: MUX Energia - Muxfeldt Marin & Cia. Ltda | O64: 161 | P64: 401 | Q64: SUPRIDA
L65: 84 | M65: OESTE | N65: CFLO - Companhia Força e Luz do Oeste | O65: 122 | P65: 84 | Q65: SUPRIDA
L66: 397 | M66: RGE | N66: RGE - Rio Grande Energia S/A. | O66: 162 | P66: 397 | Q66: NÃO SUPRIDA
L67: 381 | M67: SANTA MARIA | N67: SANTA MARIA - Empresa Luz e Força Santa Maria S/A. | O67: 149 | P67: 381 | Q67: SUPRIDA
L68: 46 | M68: SULGIPE | N68: SULGIPE - Companhia Sul Sergipana de Eletricidade | O68: 163 | P68: 46 | Q68: SUPRIDA
L69: 400 | M69: UHENPAL | N69: UHENPAL - Usina Hidroelétrica Nova Palma Ltda. | O69: 164 | P69: 400 | Q69: SUPRIDA
L70: 86 | M70: URUSSANGA | N70: URUSSANGA - Empresa Força e Luz Urussanga Ltda | O70: 144 | P70: 86 | Q70: SUPRIDA
L71: 1000040 | M71: ENERGISA Sul Sudeste | N71: ENERGISA SUL SUDESTE | O71: 165 | P71: 1000040 | Q71: NÃO SUPRIDA
L72: 1000041 | M72: NOVA SANTA CRUZ | N72: NOVA SANTA CRUZ | O72: 166 | P72: 1000041 | Q72: NÃO SUPRIDA
L73: 1000042 | M73: RGE SUL | N73: RGE SUL | O73: 167 | P73: 1000042 | Q73: NÃO SUPRIDA

Sheet SPARTA ADMIN (hidden)
A1: ABA RESERVADA AO DESENVOLVEDORES DO SPARTA Sabemos que você ia aparecer por aqui. Saciou sua curiosidade? Melhor não fuçar mais, ou poderá prejudicar seriamente sua análise. Então, oculte essa aba e volte a trabalhar!! | AD1: Matrix Alternativa
AD2: Matrix Oficial
A4: O que deseja?? | H4: Versão
A5: Matrix Oficial | H5: 75.1
A6: Endereço da Matrix Alternativa | H6: 20.02.20
A7: \\corporativo\SGT\Gestão da Informação\Sistemas\SPARTA\Matrix\dev
A8: Nome da Matrix Alternativa
A9: SPARTAMatrix.xlsm
A10: Estado do Direcionamento

Sheet Entrada
A1: Entrada de parâmetros para cálculo tarifário
B4: Energia | D4: Últ. Atulização | F4: Parâmetros para Revisão
D6: 44028 | F6: CAPEX - Ativos de Distribuição | J6: Custo Operacional Real do(s) último(s) ano(s) | P6: Outras Receitas
B7: Montante de Geração Própria (MWh) | D7: 44028 | F7: (1) Ativo Imobilizado em Serviço (Valor Novo de Reposição) | H7: 44028 | J7: Ano do Custo Operacional | P7: Tipo de Receita | Q7: ='VPB e Fator X'!G163 -> 2020-05-01 | R7: ='VPB e Fator X'!H163 -> 2020-04-01 | S7: ='VPB e Fator X'!I163 -> 2020-03-01 | T7: ='VPB e Fator X'!J163 -> 2020-02-01 | U7: ='VPB e Fator X'!K163 -> 2020-01-01 | V7: ='VPB e Fator X'!L163 -> 2019-12-01 | W7: ='VPB e Fator X'!M163 -> 2019-11-01 | X7: ='VPB e Fator X'!N163 -> 2019-10-01 | Y7: ='VPB e Fator X'!O163 -> 2019-09-01 | Z7: ='VPB e Fator X'!P163 -> 2019-08-01 | AA7: ='VPB e Fator X'!Q163 -> 2019-07-01 | AB7: ='VPB e Fator X'!R163 -> 2019-06-01 | AC7: ='VPB e Fator X'!S163 -> 2019-05-01 | AD7: ='VPB e Fator X'!T163 -> 2019-04-01 | AE7: ='VPB e Fator X'!U163 -> 2019-03-01 | AF7: ='VPB e Fator X'!V163 -> 2019-02-01 | AG7: ='VPB e Fator X'!W163 -> 2019-01-01 | AH7: ='VPB e Fator X'!X163 -> 2018-12-01 | AI7: ='VPB e Fator X'!Y163 -> 2018-11-01 | AJ7: ='VPB e Fator X'!Z163 -> 2018-10-01 | AK7: ='VPB e Fator X'!AA163 -> 2018-09-01 | AL7: ='VPB e Fator X'!AB163 -> 2018-08-01 | AM7: ='VPB e Fator X'!AC163 -> 2018-07-01 | AN7: ='VPB e Fator X'!AD163 -> 2018-06-01 | AO7: ='VPB e Fator X'!AE163 -> 2018-05-01 | AP7: ='VPB e Fator X'!AF163 -> 2018-04-01 | AQ7: ='VPB e Fator X'!AG163 -> 2018-03-01 | AR7: ='VPB e Fator X'!AH163 -> 2018-02-01 | AS7: ='VPB e Fator X'!AI163 -> 2018-01-01 | AT7: ='VPB e Fator X'!AJ163 -> 2017-12-01 | AU7: ='VPB e Fator X'!AK163 -> 2017-11-01 | AV7: ='VPB e Fator X'!AL163 -> 2017-10-01 | AW7: ='VPB e Fator X'!AM163 -> 2017-09-01 | AX7: ='VPB e Fator X'!AN163 -> 2017-08-01 | AY7: ='VPB e Fator X'!AO163 -> 2017-07-01 | AZ7: ='VPB e Fator X'!AP163 -> 2017-06-01 | BA7: ='VPB e Fator X'!AQ163 -> 42856 | BB7: ='VPB e Fator X'!AR163 -> 42826
B8: Custo médio da Geração Própria | D8: 44028 | F8: (2) Índice de Aproveitamento Integral | H8: 44028 | J8: CONTA PESSOAL | P8: Serviços Cobráveis
D9: 44028 | F9: (3) Obrigações Especiais Bruta | H9: 44028 | J9: BMP - 610530501; 610550501; 610532501; 610552501 | K9: Remuneração | P9: Arrecadação de convênios ou valores pela fatura
D10: 44028 | F10: (4) Bens Totalmente Depreciados | H10: 44028 | J10: BMP - 610530502; 610550502; 610532502; 610552502 | K10: Encargos | P10: Arrecadação de faturas de terceiros por estrutura própria
F11: (5) Base de Remuneração Bruta = (1)-(2)-(3)-(4) | H11: 44028 | J11: BMP - 610530503; 610550503; 610532503; 610552503 | K11: Previdência Privada - Corrente | P11: Veiculação de publicidade
F12: (6) Depreciação Acumulada | H12: 44028 | J12: BMP - 610530508; 610550508; 610532508; 610552508 | K12: Outros Benefícios | P12: Aluguel ou cessão onerosa de imóveis e espaços físicos
F13: (7) AIS Líquido (Valor de Mercado em Uso) | H13: 44028 | J13: BMP - 610530506; 610550506; 610532506; 610552506 | K13: Despesas Rescisórias | P13: Compartilhamento de infraestrutura
C14: =C12*Índices!D392/Índices!D380 -> 0 | D14: ReF...IPCA | F14: (8) Índice de Aproveitamento Depreciado | H14: 44028 | J14: BMP - 610530507; 610550507; 610532507; 610552507 | K14: Participação nos Lucros e Resultados - PLR | P14: Serviços de avaliação técnica e aferição de medidores.
C15: =C12*Índices!C393/Índices!C381 -> 0 | D15: REF...IGPM | E15: (Dado para REH) | F15: (9) Valor da Base de Remuneração (VBR) | H15: 44028 | J15: BMP - 610530599; 610550599; 610532599; 610552599 | K15: Outros | P15: Operacionalização de serviço de créditos tributários
F16: (10) Almoxarifado em Operação | H16: 44028 | J16: BMP - 610530510; 610550510; 610532510; 610552510 | K16: (-) Créditos de Tributos Recuperáveis | P16: Elaboração de projeto, construção, operação, manutenção ou reforma de:
F17: (11) Ativo Diferido | H17: 44028 | J17: BMP - 6105306; 6105506; 6105326; 6105526 | K17: Administradores | P17: (1) redes de distribuição de energia elétrica destinadas à regularização fundiária de interesse específico e ao atendimento dos empreendimentos de múltiplas unidades consumidoras;
F18: (12) Obrigações Especiais Líquida | H18: 44028 | K18: Subtotal | P18: (2) redes de energia elétrica destinadas ao acesso dos sistemas de distribuição ou transmissão;
F19: (13) Terrenos e Servidões | H19: 44028 | J19: CONTA MATERIAIS | P19: (3) subestações de energia;
F20: (14) Base de Rem. Líquida Total = (1)-(6)-(8)+(10)+(11)-(12)+(13) | H20: 44028 | J20: BMP - 610530701; 610550701; 610532701; 610552701 | K20: Materiais | P20: (4) instalações elétricas internas de unidades consumidoras;
F21: (15) Saldo RGR PLPT | H21: 44028 | J21: BMP - 610530799; 610550799; 610532799; 610552799 | K21: Outros | P21: (5) banco de capacitores:
F22: (16) Saldo RGR Demais Investimentos | H22: 44028 | J22: BMP - 610530710; 610550710; 610532710; 610552710 | K22: (-) Créditos de Tributos Recuperáveis | P22: (6) padrões de entrada de unidades consumidoras atendidas em baixa tensão;
F23: (17) Taxa de Depreciação | H23: 44028 | K23: Subtotal | P23: (7) sistemas de medição de energia elétrica;
F24: (18) Quota de Reintegração Regulatória = (5) * (17) | H24: 44028 | J24: CONTA TERCEIROS | P24: (8) geradores, incluindo-se unidades de microgeração e minigeração distribuída;
J25: RIT - RP 800 - Célula F20 | K25: Manut. e Conserv. Bens e Instalações vinculadas ao Serviço Concedido | P25: (9) sistemas de iluminação pública.
F26: Gasto do Conselho de Consumidores | J26: RIT - RP 800 - Célula F21 | K26: Auditoria e Consultoria | P26: Eficientização do consumo de energia elétrica e instalação de cogeração qualificada, desde que não enquadráveis nos projetos de Pesquisa e Desenvolvimento (P&D) ou de Eficiência Energética estabelecidos em lei
F27: =Indexador!D132 -> Despesa 2019 | J27: RIT - RP 800 - Célula F22 | K27: Serviços Jurídicos | P27: Serviços de comunicação de dados
F28: =Indexador!E132 -> Despesa 2018 | J28: RIT - RP 800 - Célula F23 | K28: Serviços de Informática | P28: Serviços de consultoria
F29: =Indexador!F132 -> Despesa 2017 | J29: RIT - RP 800 - Célula F26 | K29: Viagens (Passagens Aéreas, etc) | P29: Receita proveniente da comercialização de resultados de projetos de P&D
F30: =Indexador!G132 -> Despesa 2016 | J30: RIT - RP 800 - Célula F27 | K30: Transportes (inclui Fretes)
J31: RIT - RP 800 - Célula F28 | K31: Propaganda e Publicidade (exceto Publicações Oficiais) | P31: Ultrapassagem de demanda e Excedente de reativos
F32: Perdas Regulatórias | J32: RIT - RP 800 - Célula F29 | K32: Publicações Oficiais | P32: Tipo de Receita | Q32: ='[20]VPB e Fator X'!G191 -> 2019-01-01 | R32: ='[20]VPB e Fator X'!H191 -> 2018-12-01 | S32: ='[20]VPB e Fator X'!I191 -> 2018-11-01 | T32: ='[20]VPB e Fator X'!J191 -> 2018-10-01 | U32: ='[20]VPB e Fator X'!K191 -> 2018-09-01 | V32: ='[20]VPB e Fator X'!L191 -> 2018-08-01 | W32: ='[20]VPB e Fator X'!M191 -> 2018-07-01 | X32: ='[20]VPB e Fator X'!N191 -> 2018-06-01 | Y32: ='[20]VPB e Fator X'!O191 -> 2018-05-01 | Z32: ='[20]VPB e Fator X'!P191 -> 2018-04-01 | AA32: ='[20]VPB e Fator X'!Q191 -> 2018-03-01 | AB32: ='[20]VPB e Fator X'!R191 -> 2018-02-01 | AC32: ='[20]VPB e Fator X'!S191 -> 2018-01-01 | AD32: ='[20]VPB e Fator X'!T191 -> 2017-12-01 | AE32: ='[20]VPB e Fator X'!U191 -> 2017-11-01 | AF32: ='[20]VPB e Fator X'!V191 -> 2017-10-01 | AG32: ='[20]VPB e Fator X'!W191 -> 2017-09-01 | AH32: ='[20]VPB e Fator X'!X191 -> 2017-08-01 | AI32: ='[20]VPB e Fator X'!Y191 -> 2017-07-01 | AJ32: ='[20]VPB e Fator X'!Z191 -> 2017-06-01 | AK32: ='[20]VPB e Fator X'!AA191 -> 2017-05-01 | AL32: ='[20]VPB e Fator X'!AB191 -> 2017-04-01 | AM32: ='[20]VPB e Fator X'!AC191 -> 2017-03-01 | AN32: ='[20]VPB e Fator X'!AD191 -> 2017-02-01 | AO32: ='[20]VPB e Fator X'!AE191 -> 2017-01-01 | AP32: ='[20]VPB e Fator X'!AF191 -> 2016-12-01 | AQ32: ='[20]VPB e Fator X'!AG191 -> 2016-11-01 | AR32: ='[20]VPB e Fator X'!AH191 -> 2016-10-01 | AS32: ='[20]VPB e Fator X'!AI191 -> 2016-09-01 | AT32: ='[20]VPB e Fator X'!AJ191 -> 2016-08-01 | AU32: ='[20]VPB e Fator X'!AK191 -> 2016-07-01 | AV32: ='[20]VPB e Fator X'!AL191 -> 2016-06-01 | AW32: ='[20]VPB e Fator X'!AM191 -> 2016-05-01 | AX32: ='[20]VPB e Fator X'!AN191 -> 2016-04-01 | AY32: ='[20]VPB e Fator X'!AO191 -> 2016-03-01 | AZ32: ='[20]VPB e Fator X'!AP191 -> 2016-02-01 | BA32: ='[20]VPB e Fator X'!AQ191 -> 2016-01-01 | BB32: ='[20]VPB e Fator X'!AR191 -> 2015-12-01 | BC32: ='[20]VPB e Fator X'!AS191 -> 2015-11-01 | BD32: ='[20]VPB e Fator X'!AT191 -> 2015-10-01 | BE32: ='[20]VPB e Fator X'!AU191 -> 2015-09-01 | BF32: ='[20]VPB e Fator X'!AV191 -> 2015-08-01 | BG32: ='[20]VPB e Fator X'!AW191 -> 2015-07-01 | BH32: ='[20]VPB e Fator X'!AX191 -> 2015-06-01 | BI32: ='[20]VPB e Fator X'!AY191 -> 2015-05-01 | BJ32: ='[20]VPB e Fator X'!AZ191 -> 2015-04-01 | BK32: ='[20]VPB e Fator X'!BA191 -> 2015-03-01 | BL32: ='[20]VPB e Fator X'!BB191 -> 2015-02-01
F33: Perdas Não Técnicas | J33: RIT - RP 800 - Célula F30 | K33: Serviço de Engenharia e Supervisão de Obras | P33: Ultrapassagem de demanda | Q33: =Q62 -> 0 | R33: 0 | S33: 0 | T33: 0 | U33: 0 | V33: 0 | W33: 0 | X33: 0 | Y33: 0 | Z33: 0 | AA33: 0 | AB33: 0 | AC33: 0 | AD33: 0 | AE33: 0 | AF33: 0 | AG33: 0 | AH33: 0 | AI33: 0 | AJ33: 0 | AK33: 0 | AL33: 0 | AM33: 0 | AN33: 0 | AO33: 0 | AP33: 0 | AQ33: =AQ63 -> 0 | AR33: 0 | AS33: 0 | AT33: 0 | AU33: 0 | AV33: 0 | AW33: 0 | AX33: 0 | AY33: 0 | AZ33: 0 | BA33: 0 | BB33: 0 | BC33: 0 | BD33: 0 | BE33: 0 | BF33: 0 | BG33: 0 | BH33: 0 | BI33: 0 | BJ33: 0 | BK33: 0 | BL33: 0
F34: Perdas Técnicas | J34: RIT - RP 800 - Célula F31 | K34: Gestão Comercial | P34: Excedente de reativos | Q34: =Q63 -> 0 | R34: 0 | S34: 0 | T34: 0 | U34: 0 | V34: 0 | W34: 0 | X34: 0 | Y34: 0 | Z34: 0 | AA34: 0 | AB34: 0 | AC34: 0 | AD34: 0 | AE34: 0 | AF34: 0 | AG34: 0 | AH34: 0 | AI34: 0 | AJ34: 0 | AK34: 0 | AL34: 0 | AM34: 0 | AN34: 0 | AO34: 0 | AP34: 0 | AQ34: =AQ64 -> 0 | AR34: 0 | AS34: 0 | AT34: 0 | AU34: 0 | AV34: 0 | AW34: 0 | AX34: 0 | AY34: 0 | AZ34: 0 | BA34: 0 | BB34: 0 | BC34: 0 | BD34: 0 | BE34: 0 | BF34: 0 | BG34: 0 | BH34: 0 | BI34: 0 | BJ34: 0 | BK34: 0 | BL34: 0
J35: RIT - RP 800 - Célula F32 | K35: Outros Serviços Terceirizados
F36: Dados da Revisão Anterior - Componente Pd | J36: RIT - RP 800 - Célula F33 | K36: (-) Créditos de Tributos Recuperáveis | P36: Receitas Irrecuperáveis | Q36: Meses
F37: Data Base Ativos e Consumidores | J37: RIT - RP 800 - Célula F34 | K37: Transferências da Administração Central | P37: Faturamento Total | Q37: 49 | R37: 50 | S37: 51 | T37: 52 | U37: 53 | V37: 54 | W37: 55 | X37: 56 | Y37: 57 | Z37: 58 | AA37: 59 | AB37: 60
F38: Mercado AT (MWh) | K38: Subtotal | P38: 1.Residencial
F39: Mercado MT (MWh) | J39: CONTA SEGUROS | P39: 2.Industrial
F40: Mercado BT (MWh) | J40: BMP - 610531001; 610551001; 610533001; 610553001 | K40: Seguros | P40: 3.Comercial
F41: Número de unidades consumidoras | J41: BMP - 610531099; 610551099; 610533099; 610553099 | K41: Outros | P41: 4.Rural
J42: BMP - 610531010; 610551010; 610533010; 610553010 | K42: (-) Créditos de Tributos Recuperáveis | P42: 5.Poder Público
F43: OPEX | K43: Subtotal | P43: 6.Iluminação Pública
F44: Extensão de redes subterrâneas (Km) | J44: CONTA TRIBUTOS | P44: 7.Serviço Público
F45: Extensão de rede de distribuição aérea (Km) | J45: BMP - 6105316; 6105516; 6105336; 6105536 | K45: Tributos
F46: Extensão de rede de alta tensão (Km) | K46: (+) Créditos de Tributos Recuperáveis | P46: Receitas Irrecuperáveis | Q46: Meses
F47: ="% PNT / BT Real de "&IF(MONTH(LnkTxtDRPData)>6,YEAR(LnkTxtDRPData)-1,YEAR(LnkTxtDRPData)-2) & " (Medido)" -> % PNT / BT Real de 2019 (Medido) | J47: CONTA OUTROS | P47: Faturamento não recebido até dez do ano anterior | Q47: 49 | R47: 50 | S47: 51 | T47: 52 | U47: 53 | V47: 54 | W47: 55 | X47: 56 | Y47: 57 | Z47: 58 | AA47: 59 | AB47: 60
F48: ="% PNT / BT Real de "&IF(MONTH(LnkTxtDRPData)>6,YEAR(LnkTxtDRPData)-1,YEAR(LnkTxtDRPData)-2)-1 & " (Medido)" -> % PNT / BT Real de 2018 (Medido) | J48: BMP - 610531901; 610551901; 610533901; 610553901 | K48: Indenização por Perdas e Danos | P48: 1.Residencial
F49: ="% PNT / BT Real de "&IF(MONTH(LnkTxtDRPData)>6,YEAR(LnkTxtDRPData)-1,YEAR(LnkTxtDRPData)-2)-2 & " (Medido)" -> % PNT / BT Real de 2017 (Medido) | J49: BMP - 610531902; 610551902; 610533902; 610553902 | K49: Consumo Próprio de Energia | P49: 2.Industrial
F50: ="DEC Apurado "&IF(MONTH(LnkTxtDRPData)>3,YEAR(LnkTxtDRPData)-1,YEAR(LnkTxtDRPData)-2) -> DEC Apurado 2019 | J50: BMP - 610531905 | K50: Despesas com Conselho de Consumidores | P50: 3.Comercial
F51: ="DEC Apurado "&IF(MONTH(LnkTxtDRPData)>3,YEAR(LnkTxtDRPData)-1,YEAR(LnkTxtDRPData)-2)-1 -> DEC Apurado 2018 | J51: BMP - 610531903; 610551903; 610533903; 610553903 | K51: Taxa de Arrecadação | P51: 4.Rural
F52: ="DEC Apurado "&IF(MONTH(LnkTxtDRPData)>3,YEAR(LnkTxtDRPData)-1,YEAR(LnkTxtDRPData)-2)-2 -> DEC Apurado 2017 | J52: BMP - 610531904; 610551904; 610533904; 610553904 | K52: Taxas Bancárias | P52: 5.Poder Público
F53: Meta de % PNT / BT (Medido) | J53: BMP - 610531910; 610551910; 610533910; 610553910 | K53: (-) Créditos de Tributos Recuperáveis | P53: 6.Iluminação Pública
F54: DEC 8 anos (Limite V8) | K54: Subtotal | P54: 7.Serviço Público
J55: Demais
K56: Condenações Trabalhistas | P56: Previsão CCEE | Q56: =DATE(YEAR(LnkTxtDRPData),MONTH(LnkTxtDRPData),DAY(1)) -> 2020-08-01 | R56: =DATE(YEAR(Q56),MONTH(Q56)+1,DAY(1)) -> 2020-09-01 | S56: =DATE(YEAR(R56),MONTH(R56)+1,DAY(1)) -> 2020-10-01 | T56: 2020-11-01 | U56: 2020-12-01 | V56: 2021-01-01 | W56: 2021-02-01 | X56: 2021-03-01 | Y56: 2021-04-01 | Z56: 2021-05-01 | AA56: 2021-06-01 | AB56: 2021-07-01
F57: Dados da última Revisão Tarifária | K57: Gastos com CCEE | P57: GSF
F58: Custos Operacionais (CO3) | J58: BMP - 611511401 | K58: Perdas na Alienação e Desativação | P58: PLD
F59: Receitas Irrecuperáveis - Encargos Setoriais (Vi) | J59: BMP - 611112103 | K59: Ganhos na Alienação de Materiais
F60: Demais Receitas Irrecuperáveis (Vse)
F61: Remuneração do Capital (RC)
F62: Quota de Reintegração Regulatória (QRR)
F63: Custo anual das instalações móveis e imóveis (CAIMI)
F64: Ajuste em função dos investimentos realizados (valor negativo)
F65: Índice de Produtividade da Parcela B
F66: Outras Receitas (OR) (inserir o valor positivo)
F67: Componente T - Última Revisão

Sheet Resultado
B2: Resultado | F2: Parâmetros a serem considerados para os Reajustes subsequentes
B4: RA1 | D4: =D39+D44 -> 2063689451 | F4: FATOR X | K4: Última versão enviada: | L4: 17
B5: RA0 | D5: =Mercado!D24 -> 1885236916 | F5: Componente T do Fator X | G5: ='VPB e Fator X'!C36 ->  | K5: Data de envio | L5: 2020-08-17T16:06:03
B6: Índice de Reposição/Reajuste (Anexo II) | D6: =D4/D5-1 -> 0.09465788237 | F6: Componente Pd do Fator X | G6: ='VPB e Fator X'!C33 -> 0.006855664908
B7: Componentes Financeiros | D7: =Financeiros!E8 -> -0.001570928596 | E7: -0.0003 | K7: Efeito Consumidor
B8: Índice de Reposição/Reajuste com Financeiros (Anexo I) | D8: =D6+D7 -> 0.09308695377 | F8: PERDAS | K8: Efeito Grupo A - Alta tensão | L8: 0.06604201213
F9: Perdas Não Técnicas | G9: =Entrada!G33 -> 0 | K9: Efeito Grupo B - Baixa tensão | L9: 0.03609061751
C10: DRA | D10: DRP | F10: Perdas Técnicas | G10: =Entrada!G34 -> 0 | K10: Efeito tarifário médio AT+BT | L10: 0.04278521104
B11: TOTAL (Parcela A + Parcela B) | C11: =C44+C39 -> 1885236916 | D11: =D44+D39 -> 2063689451 | K11: Tarifa B1 - Residencial (R$) | L11: 562.1088145
K13: Subvenção da CDE para descontos tarifários (Valores anuais)
D14: =D4+Financeiros!D8 -> 2060727878 | K14: Subsídio Carga Fonte Incentivada | L14: 16723296.1
K15: Subsídio Geração Fonte Incentivada | L15: 11854482.56
B16: Parcela A | F16: Formação da Parcela B e Reposicionamento (Resumo) | K16: Subsídio Distribuição | L16: 0
K17: Subsídio Água, Esgoto e Saneamento | L17: 8492580.864
C18: DRA | D18: DRP | K18: Subsídio Rural | L18: 22557862.33
B19: ENCARGOS | C19: =SUM(C20:C28) -> 151430075.4 | D19: =SUM(D20:D28) -> 163907121.1 | E19: 163924485.4 | K19: Subsídio Irrigante/Aquicultor | L19: 23022248.11
B20: Reserva Global de Reversão – RGR | C20: 0 | D20: =Encargos!C16 -> 0 | E20: 0
B21: Conta de Consumo de Combustíveis – CCC | C21: 0 | D21: =Encargos!C9 -> 0 | E21: 0 | K21: Versão de Mercado
B22: Taxa de Fisc. de Serviços de E.E. – TFSEE | C22: =Mercado!I66 -> 2935034.3 | D22: =Encargos!C17 -> 3160245.593 | E22: 3160245.593 | K22: Status de Sincronização de BDL | L22: Trabalha na pasta de rede
B23: Conta de Desenvolvimento Energético – CDE | C23: =Mercado!H66+Mercado!AA66+Mercado!AB66 -> 59000675.26 | D23: =Encargos!C10 -> 71818541.71 | E23: 71818541.71 | K23: Última Sincronização
B24: Compensação financeira - CFURH | C24: =Mercado!J66 -> 0 | D24: =Encargos!C11 -> 0 | E24: 0
B25: Encargos Serv. Sist. - ESS e Energ. Reserv. - EER | C25: =Mercado!F66 -> 35882220.35 | D25: =Encargos!C12 -> 39636910.27 | E25: 39636910.27
B26: PROINFA | C26: =Mercado!G66 -> 34307004.01 | D26: =Encargos!C13 -> 29514592.22 | E26: 29514592.22
B27: P&D e Eficiência Energética | C27: =Mercado!D66 -> 19219699.33 | D27: =Encargos!C15 -> 19690859.38 | E27: 19708223.7
B28: Contribuição ONS | C28: =Mercado!E66 -> 85442.14213 | D28: =Encargos!C14 -> 85971.89286 | E28: 85971.89286
B29: TRANSPORTE | C29: =SUM(C30:C37) -> 154228944.1 | D29: =SUM(D30:D37) -> 210296167.1 | E29: 210296167.1
B30: Rede Básica | C30: ='RB e Conexão'!D6 -> 103257632.3 | D30: ='RB e Conexão'!E6 -> 139981258.1 | E30: 139981258.1
B31: Rede Básica Fronteira | C31: ='RB e Conexão'!D7 -> 33344072.7 | D31: ='RB e Conexão'!E7 -> 47534551.1 | E31: 47534551.1
B32: Rede Básica ONS (A2) | C32: =VLOOKUP("TUSDg ONS DRA",TUSDG[],2,FALSE) -> 0 | D32: =VLOOKUP("TUSDg ONS DRP",TUSDG[],2,FALSE) -> 0 | E32: 0
B33: Rede Básica Export. (A2) | C33: 0 | D33: =VLOOKUP("TUSDg Export DRP",TUSDG[],2,FALSE) -> 0 | E33: 0
B34: MUST Itaipu | C34: ='RB e Conexão'!D8 -> 0 | D34: ='RB e Conexão'!E8 -> 0 | E34: 0
B35: Transporte de Itaipu | C35: =SUMPRODUCT(itaiputransporte[Potência],itaiputransporte[Tarifa DRA]) -> 0 | D35: =SUMPRODUCT(itaiputransporte[Potência],itaiputransporte[Tarifa DRP]) -> 0 | E35: 0
B36: Conexão | C36: =IF(YEAR(CAPA!C10)=2013,Entrada!C46,BD!C40) -> 8225663.849 | D36: ='RB e Conexão'!E9 -> 12433267.69 | E36: 12433267.69 | K36: atualizado
B37: Uso do sistema de distribuição e CCD | C37: =CUSD!C14 -> 9401575.197 | D37: =CUSD!D14+CUSD!E14 -> 10347090.22 | E37: 10347090.22
B38: ENERGIA | C38: =Energia!C15 -> 816274936.6 | D38: =Energia!D15 -> 869057775 | E38: 868836887.1
B39: VPA (ENCARGO + TRANSPORTE + ENERGIA) | C39: =C38+C29+C19 -> 1121933956 | D39: =D19+D29+D38 -> 1243261063 | E39: 1243057540
B41: Parcela B
C43: VPB0 | D43: VPB1
B44: ="Parcela B "&IF(CAPA!C7="Revisão","(menos Outras Receitas)",) -> Parcela B | C44: ='VPB1'!C10 -> 763302960.4 | D44: ='VPB1'!C12 -> 820428387.5 | J44: =D44/C44-1 -> 0.07483978194

Sheet BD
B1: Banco de Dados | M1: Anexo II | N1: =Resultado!$D$6 -> 0.09465788237
B2: =CAPA!B6 -> EPB | M2: Anexo I | N2: =Resultado!$D$8 -> 0.09308695377
B5: Informações do ano anterior | G5: Dados de abertura (Neutralidade e CVA saldo a compensar) | L5: Dados de Energia | S5: Dados para Revisão
B7: Encargos | G7: Encargo | H7: Valor | I7: Norma | L7: Cotas | M7: Valor da "Cota" | N7: Ano | O7: Custo Médio da Cota | S7: item | T7: Descrição | U7: Detalhe | V7: Valor
B8: CDE Energia: Conta ACR | C8: 8005212.81 | D8: ok | G8: CCC | L8: Angra | M8: 0.01085206939 | N8: 2020 | O8: 269.75
B9: CDE Energia: Decreto | C9: 0 | G9: CDE | H9: 71818541.71 | I9: ReH 2.664/2019
B10: TFSEE | C10: 2908521.166 | D10: ok | G10: CFURH
B11: CDE | C11: 52637903.6 | D11: ok | G11: ESS/EER | H11: 39636910.27 | I11: DSP 1.191/2020 | L11: Ano | M11: Cota Itaipu
G12: PROINFA | H12: 29514592.22 | I12: ReH 2.653/2019
B13: ESS/ERR | C13: 36680794.06 | D13: ok | G13: ONS | H13: 85971.89286 | I13: Contribuição 2020
B14: PROINFA | C14: 35425110.01 | D14: ok | G14: TFSEE
B15: P&D | C15: 19220303.68 | D15: ok | G15: EER | H15: 38549540.8 | I15: DSP 1.191/2020
B16: ONS | C16: 85971.89286 | D16: ok | G16: TFSEE Fator de Carga | H16: 0.8856760026
B17: Energia
B18: Pmix | C18: 182.7169179 | D18: ok
B19: PN2019 | C19: 0.04994003207 | D19: ok
B20: PN2020 | C20: 0.04938087549 | D20: ReH 2291/2017
B21: PT2017 | C21: 0.09874 | D21: ReH 2291/2017 | E21: 9,87% lembrar | G21: Informações de Postergação
B22: Perda RB total | C22: 0.0226192179 | L22: Mês | M22: Potência | N22: Tarifa | O22: Perdas | P22: Energia
G23: Tipo | H23: Valor
B24: CVA RB | C24: 5440183.959 | D24: ok | G24: Data Postergada | H24: 44071
B25: CVA CCC | C25: 0 | G25: Data Anterior | H25: 44071
B26: CVA CDE | C26: 9081428.089 | D26: ok | G26: Diferença de Dias | H26: 0
B27: CVA CFURH | G27: MesesAdin | H27: 0
B28: CVA ESS/ERR | C28: -46596688.81 | D28: ok | G28: Reversão Subvenção CDE
B29: CVA PROINFA | C29: 3357112.977 | D29: ok | G29: Data 4CRT | H29: 42975
B30: CVA TRANS. ITAIPU | C30: 0
B31: CVA ENERGIA | C31: 168624375.8 | D31: ok
B32: CVA CDE E | C32: -5872822.438 | D32: ok
G35: Nome | H35: Valor
G36: TUSDg Export DRP | H36: 0 | L36: Mês | M36: Potência | N36: Tarifa DRA | O36: Tarifa DRP | P36: Colunas1
G37: TUSDg ONS DRP | H37: 0
G38: TUSDg ONS DRA | H38: 0
B39: Rede Básica
B40: conexão | C40: 8225663.849
G42: Fator X | H42: Valor | I42: Coluna1
G43: fatorx_t | H43: 0.003902591629 | I43: REH 2.291/2017 | J43: ok
B44: Mercado | G44: fatorx_pd | H44: 0.01264880401 | I44: REH 2.291/2017 | J44: ok
B45: mercado (MWh) | C45: 4572863.475
C46: 1891757361 | G46: DecFec Processo Anterior | H46: Valor
G47: DEC A-2 | H47: 0
B48: 2020 | C48: 91817.51851 | G48: DEC A-1 | H48: 0
B49: Detalhamento de Encargos ESS e CDE | G49: FEC A-2 | H49: 0
G50: FEC A-1 | H50: 0 | L50: Dado | M50: Valor | N50: Início | O50: Fim
L51: Potência Max | M51: 11215 | N51: 43466 | O51: 43830
G52: Dados de dólar | H52: Valor | I52: 2019 | L52: Potência Max | M52: 11215 | N52: 43831 | O52: 44196
G53: Dólar médio | H53: 5.276913636 | I53: 3.83
G54: Data Inicial | H54: 44026
G55: Data Final | H55: 44055
G56: Último Dado Diponível | H56: 44049 | L56: Dados de perda | M56: Valor | O56: Agente | P56: Ressarcimento P&D
B57: Subsídios Concedidos (sem ajuste) | L57: Perdas RB | M57: 106339.784
B58: Mês de Início | C58: Carga Fonte | D58: Geração | E58: Distribuição | F58: Água, Esgoto e Saneamento | G58: Rural | H58: Irrigante/Aquicultor | L58: Perdas DITs | M58: 15537.5911
B59: 2019-08-01 | C59: 1111839.512 | D59: 881102.1425 | E59: 0 | F59: 882487.2317 | G59: 2325830.47 | H59: 1799423.663
O60: DthEfetivaPagamento | P60: VlrGarantiaFinanceira
P61: 39835.28
O62: 42979 | P62: 39835.28
O63: 43009 | P63: 39835.28
O64: 43040 | P64: 39848.43
B65: Data | C65: Tipo | D65: Valor | E65: Valor IGPM | F65: Valor IPCA | G65: EixoRef | O65: 43070 | P65: 39848.43
B66: =DATE(YEAR(CAPA!C10),MONTH(CAPA!C10),1) -> 2020-08-01 | C66: =IF(CAPA!C7="Revisão",1,0) -> 0 | D66: =Resultado!L11 -> 562.1088145 | E66: =VLOOKUP(EDATE(TabB1[[#This Row],[Data]],-1),Índices!B70:F689,2,FALSE)/VLOOKUP(EDATE($B$69,-1),Índices!B70:F689,2,FALSE)*$E$69 -> 802.7585606 | F66: =VLOOKUP(EDATE(TabB1[[#This Row],[Data]],-1),Índices!B70:F689,3,FALSE)/VLOOKUP(EDATE($B$69,-1),Índices!B70:F689,3,FALSE)*$F$69 -> 700.5290526 | G66: =150+1 -> 151 | H66: conferido ANA 21/07 | O66: 43101 | P66: 39848.43
B67: 2019-08-01 | C67: Reajuste | D67: 545.3994898 | E67: 734.6432448 | F67: 684.7439172 | G67: 151 | O67: 43132 | P67: 39848.42
B68: 2018-08-01 | C68: 0 | D68: 571.77 | E68: 690.5 | F68: 663.37 | G68: 151 | O68: 43160 | P68: 39844.37
B69: 2017-08-01 | C69: Revisão | D69: 494.6 | E69: 637.9453309 | F69: 634.8936525 | G69: 151 | O69: 43221 | P69: 39625.8
B70: 2017-04-01 | C70: RTE | D70: 434.87 | E70: 660.173519 | F70: 631.986485 | G70: 151 | O70: 43252 | P70: 79340.49
B71: 2016-08-01 | C71: 0 | D71: 440.26 | E71: 648.7220036 | F71: 618.1322199 | G71: 151 | O71: 43282 | P71: 39959.98
B72: 2015-08-01 | C72: 0 | D72: 418.17 | E72: 581.1237758 | F72: 568.471823 | G72: 151 | O72: 43344 | P72: 39960.01
B73: 2015-03-01 | C73: -1 | D73: 379.56 | E73: 558.9045063 | F73: 545.3023013 | G73: 151 | O73: 43374 | P73: 39960.01
B74: 2014-08-01 | C74: 0 | D74: 367.87 | E74: 543.2453816 | F74: 518.8756511 | G74: 151 | O74: 43405 | P74: 39960.01
B75: 2013-08-01 | C75: Revisão | D75: 304.45 | E75: 515.8017794 | F75: 487.196963 | G75: 151 | P75: 44047
B76: 2013-01-01 | C76: -1 | D76: 317.82 | E76: 505.6385099 | F76: 472.1800931 | G76: 151 | O76: 57 | P76: 43997
B77: 2012-08-01 | C77: 0 | D77: 387.65 | E77: 490.4163978 | F77: 458.4490352 | G77: 151 | O77: 58 | P77: 43952
B78: 2011-08-01 | C78: 0 | D78: 375.54 | E78: 459.7323617 | F78: 435.7946248 | G78: 151 | O78: 43525 | P78: 40718.7
B79: 2010-08-01 | C79: 0 | D79: 348.86 | E79: 424.2788427 | F79: 407.7702122 | G79: 151 | O79: 43556 | P79: 40718.7
B80: 2009-08-01 | C80: 0 | D80: 335.61 | E80: 335.61 | F80: 335.61 | G80: 151 | O80: 43586 | P80: 41550.2
O81: 43617 | P81: 41550.2
O82: 43647 | P82: 41550.2
O83: 43678 | P83: 43485.74
B84: Tabela de Resumo de Montante DRP ano anterior/ Montante Apurado pelo Mercado | O84: 43709 | P84: 43485.74
B85: detalhe_grupo | C85: GrupoTarifa | D85: tipoBase | E85: tipofatura | F85: ValorCTAnterior_Sum | G85: ValorAnt_Sum | L85: Prcesso Anterior | O85: 43739 | P85: 43485.74
D86: Base | E86: Econômico | F86: 0 | G86: 0 | L86: MWh | M86: R$ | O86: 43770 | P86: 43485.74
B87: CCC | C87: ENCARGO | D87: Base | E87: Econômico | F87: 0 | G87: 0 | I87: BILATERAL | K87: valor | L87: 438963.6 | M87: 126981647.1 | P87: 43485.76
B88: CDE | C88: ENCARGO | D88: Base | E88: Econômico | F88: 52637903.6 | G88: 51169743.09 | I88: CCEAR-DISP | J88: Alternativa | K88: valor | L88: 91422.42261 | M88: 20901479.63 | P88: 43485.76
B89: CDE | C89: ENCARGO | D89: Base | E89: RTE 2015 | F89: 0 | G89: 0 | I89: CCEAR-DISP | J89: Existente | K89: valor | L89: 41850.613 | M89: 14731779.56 | P89: 42433.82
B90: CDE Energia | C90: ENCARGO | D90: Base | E90: Econômico | F90: 0 | G90: 7830932.165 | I90: CCEAR-DISP | J90: Nova | K90: valor | L90: 1010275.08 | M90: 230755055.9 | P90: 42433.82
B91: CDE Energia | C91: ENCARGO | D91: Base | E91: RTE 2015 | F91: 0 | G91: 0 | I91: CCEAR-QTD | K91: valor | L91: 375368.9731 | M91: 48195659.37 | P91: 42433.82
B92: CDE Energia: Conta ACR | C92: ENCARGO | D92: Base | E92: Econômico | F92: 8005212.81 | G92: 0 | I92: CCEAR-QTD | J92: Alternativa | K92: valor | L92: 6305.616355 | M92: 1518948.831 | P92: 42433.82
B93: CDE Energia: Decreto | C93: ENCARGO | D93: Base | E93: Econômico | F93: 0 | G93: 0 | I93: CCEAR-QTD | J93: Existente | K93: valor | L93: 228351.8115 | M93: 57474957.52 | P93: 42433.82
B94: CFURH | C94: ENCARGO | D94: Base | E94: Econômico | F94: 0 | G94: 0 | I94: CCEAR-QTD | J94: Madeira | K94: valor | L94: 270770.9547 | M94: 39005124.67
B95: ESS/ERR | C95: ENCARGO | D95: Base | E95: Econômico | F95: 36680794.06 | G95: 35882220.35 | I95: CCEAR-QTD | J95: Nova | K95: valor | L95: 501840.6602 | M95: 98396501.87
B96: ONS | C96: ENCARGO | D96: Base | E96: Econômico | F96: 85971.89286 | G96: 85442.14213 | I96: CCEN | K96: valor | L96: 148562.7455 | M96: 36764822.63
B97: P&D | C97: ENCARGO | D97: Base | E97: Econômico | F97: 19220303.68 | G97: 19219699.33 | I97: CCGF | K97: valor | L97: =2384611.01800626/2 -> 1192305.509 | M97: =256059616.869386/2 -> 128029808.4
B98: P&D | C98: ENCARGO | D98: Base | E98: RTE 2015 | F98: 0 | G98: 0 | I98: PROINFA | K98: valor | L98: 90892.47849
B99: PROINFA | C99: ENCARGO | D99: Base | E99: Econômico | F99: 35425110.01 | G99: 34307004.01 | I99: SOBRA/EXPOSIÇÃO | K99: valor | L99: 218282.4222 | M99: 36952015.32
B100: RGR | C100: ENCARGO | D100: Base | E100: Econômico | F100: 0 | G100: 0
B101: TFSEE | C101: ENCARGO | D101: Base | E101: Econômico | F101: 2908521.166 | G101: 2935034.3
C102: ENERGIA | D102: Base | E102: Econômico | F102: 834625041.2 | G102: 820877516.7
C103: ENERGIA | D103: Base | E103: RTE 2015 | F103: 0 | G103: 0
B104: CDE Energia: Conta ACR | C104: ENERGIA | D104: Base | E104: Econômico | F104: 0 | G104: 0
C105: Parcela B | D105: Base | E105: Econômico | F105: 753127323.2 | G105: 763781265.2 | V105: Empresa | W105: AT | X105: MT | Y105: BT
B106: CONEXÃO D | C106: TRANSPORTE TERCEIROS | D106: Base | E106: Econômico | F106: 155216.76 | G106: 0 | V106: 167 | W106: 0.02134 | X106: 0.35825 | Y106: 0.62041
B107: CONEXÃO T | C107: TRANSPORTE TERCEIROS | D107: Base | E107: Econômico | F107: 8225663.849 | G107: 8236885.93 | V107: 102 | W107: 0.064 | X107: 0.32003 | Y107: 0.61596
B108: EUSD | C108: TRANSPORTE TERCEIROS | D108: Base | E108: Econômico | F108: 9351803.295 | G108: 9591035.289 | V108: 103 | W108: 0.02996 | X108: 0.27106 | Y108: 0.69898
B109: EUSD | C109: TRANSPORTE TERCEIROS | D109: Base | E109: RTE 2015 | F109: 0 | G109: 0 | V109: 104 | W109: 0.07171 | X109: 0.2909 | Y109: 0.63739
B110: EUST - CI | C110: TRANSPORTE TERCEIROS | D110: Base | E110: Econômico | F110: 1e-06 | G110: 9.782291053e-07 | S110: Nível | T110: Mercado Faturado A-6 | V110: 105 | W110: 0.00823 | X110: 0.24677 | Y110: 0.745
B111: EUST - FR | C111: TRANSPORTE TERCEIROS | D111: Base | E111: Econômico | F111: 32321636.8 | G111: 32323601.52 | I111: Agente | J111: idagente | K111: indexador | L111: database | M111: RAP do ciclo | N111: Colunas1 | O111: RAP atualizada | S111: BT | T111: 2639977.516 | V111: 165 | W111: 0.00795 | X111: 0.22554 | Y111: 0.76651
B112: EUST - ITAIPU | C112: TRANSPORTE TERCEIROS | D112: Base | E112: Econômico | F112: 0 | G112: 0 | O112: =M112*VLOOKUP(CAPA!C15,Índices!$B$6:$F$626,IF(BD!K112="IPCA",3,2),FALSE)/VLOOKUP(L112,Índices!$B$6:$F$626,IF(BD!K112="IPCA",3,2),FALSE) ->  | S112: AT | T112: 768527.08 | V112: 108 | W112: 0.06098 | X112: 0.1711 | Y112: 0.76792
B113: EUST - RB | C113: TRANSPORTE TERCEIROS | D113: Base | E113: Econômico | F113: 98986858.56 | G113: 98982354.77 | O113: =M113*VLOOKUP(CAPA!C16,Índices!$B$6:$F$626,IF(BD!K113="IPCA",3,2),FALSE)/VLOOKUP(L113,Índices!$B$6:$F$626,IF(BD!K113="IPCA",3,2),FALSE) ->  | S113: MT | T113: 904644.927 | V113: 109 | W113: 0.01034 | X113: 0.24366 | Y113: 0.746
B114: TRANSPORTE ITAIPU | C114: TRANSPORTE TERCEIROS | D114: Base | E114: Econômico | F114: 0 | G114: 0 | O114: =M114*VLOOKUP(CAPA!C17,Índices!$B$6:$F$626,IF(BD!K114="IPCA",3,2),FALSE)/VLOOKUP(L114,Índices!$B$6:$F$626,IF(BD!K114="IPCA",3,2),FALSE) ->  | V114: 110 | W114: 0.01165 | X114: 0.24322 | Y114: 0.74513
B115: TUSDg EXPORTADORAS (A2) | C115: TRANSPORTE TERCEIROS | D115: Base | E115: Econômico | F115: 0 | G115: 0 | O115: =M115*VLOOKUP(CAPA!C18,Índices!$B$6:$F$626,IF(BD!K115="IPCA",3,2),FALSE)/VLOOKUP(L115,Índices!$B$6:$F$626,IF(BD!K115="IPCA",3,2),FALSE) ->  | V115: 111 | W115: 0.03791 | X115: 0.37961 | Y115: 0.58248
B116: TUSDg ONS (A2) | C116: TRANSPORTE TERCEIROS | D116: Base | E116: Econômico | F116: 0 | G116: 0 | O116: =M116*VLOOKUP(CAPA!C19,Índices!$B$6:$F$626,IF(BD!K116="IPCA",3,2),FALSE)/VLOOKUP(L116,Índices!$B$6:$F$626,IF(BD!K116="IPCA",3,2),FALSE) ->  | V116: 112 | W116: 0.02273 | X116: 0.26361 | Y116: 0.71367
B117: TUSDg T (A2) | C117: TRANSPORTE TERCEIROS | D117: Base | E117: Econômico | F117: 0 | G117: 0 | O117: =M117*VLOOKUP(CAPA!C20,Índices!$B$6:$F$626,IF(BD!K117="IPCA",3,2),FALSE)/VLOOKUP(L117,Índices!$B$6:$F$626,IF(BD!K117="IPCA",3,2),FALSE) ->  | V117: 113 | W117: 0.01263 | X117: 0.23345 | Y117: 0.75392
B118: CVA/APURAÇÃO/ENCARGO - outros | C118: Financeiro | D118: Financeiros não RTE | E118: Financeiro | F118: -39692552.94 | G118: -39120013.74 | O118: =M118*VLOOKUP(CAPA!C21,Índices!$B$6:$F$626,IF(BD!K118="IPCA",3,2),FALSE)/VLOOKUP(L118,Índices!$B$6:$F$626,IF(BD!K118="IPCA",3,2),FALSE) ->  | V118: 114 | W118: 0.01726 | X118: 0.23794 | Y118: 0.7448
B119: CVA/APURAÇÃO/ENERGIA - outros | C119: Financeiro | D119: Financeiros não RTE | E119: Financeiro | F119: 167198844.6 | G119: 164787110.3 | O119: =M119*VLOOKUP(CAPA!C22,Índices!$B$6:$F$626,IF(BD!K119="IPCA",3,2),FALSE)/VLOOKUP(L119,Índices!$B$6:$F$626,IF(BD!K119="IPCA",3,2),FALSE) ->  | V119: 115 | W119: 0.00993 | X119: 0.23087 | Y119: 0.7592
B120: CVA/APURAÇÃO/TRANSPORTE TERCEIROS - outros | C120: Financeiro | D120: Financeiros não RTE | E120: Financeiro | F120: 5394193.266 | G120: 5316385.545 | O120: =M120*VLOOKUP(CAPA!C23,Índices!$B$6:$F$626,IF(BD!K120="IPCA",3,2),FALSE)/VLOOKUP(L120,Índices!$B$6:$F$626,IF(BD!K120="IPCA",3,2),FALSE) ->  | V120: 116 | W120: 0.00806 | X120: 0.16835 | Y120: 0.82359
B121: CVA/SALDO A COMPENSAR/ENCARGO - outros | C121: Financeiro | D121: Financeiros não RTE | E121: Financeiro | F121: 1306771.271 | G121: 1287921.947 | O121: =M121*VLOOKUP(CAPA!C24,Índices!$B$6:$F$626,IF(BD!K121="IPCA",3,2),FALSE)/VLOOKUP(L121,Índices!$B$6:$F$626,IF(BD!K121="IPCA",3,2),FALSE) ->  | V121: 117 | W121: 0.03028 | X121: 0.29131 | Y121: 0.67841
B122: CVA/SALDO A COMPENSAR/ENERGIA - outros | C122: Financeiro | D122: Financeiros não RTE | E122: Financeiro | F122: -4917246.71 | G122: -4846318.632 | O122: =M122*VLOOKUP(CAPA!C25,Índices!$B$6:$F$626,IF(BD!K122="IPCA",3,2),FALSE)/VLOOKUP(L122,Índices!$B$6:$F$626,IF(BD!K122="IPCA",3,2),FALSE) ->  | V122: 118 | W122: 0.04215 | X122: 0.2081 | Y122: 0.74975
B123: CVA/SALDO A COMPENSAR/TRANSPORTE TERCEIROS - outros | C123: Financeiro | D123: Financeiros não RTE | E123: Financeiro | F123: -305633.2119 | G123: -301224.6521 | O123: =M123*VLOOKUP(CAPA!C26,Índices!$B$6:$F$626,IF(BD!K123="IPCA",3,2),FALSE)/VLOOKUP(L123,Índices!$B$6:$F$626,IF(BD!K123="IPCA",3,2),FALSE) ->  | V123: 119 | W123: 0.01807 | X123: 0.11713 | Y123: 0.8648
B124: DCF/APURAÇÃO/ENCARGO - Saldo a Compensar Financeiros ano anterior | C124: Financeiro | D124: Financeiros não RTE | E124: Financeiro | F124: 9258499.771 | G124: 9124951.948 | O124: =M124*VLOOKUP(CAPA!C27,Índices!$B$6:$F$626,IF(BD!K124="IPCA",3,2),FALSE)/VLOOKUP(L124,Índices!$B$6:$F$626,IF(BD!K124="IPCA",3,2),FALSE) ->  | V124: 120 | W124: - | X124: 0.17688 | Y124: 0.82312
B125: DCF/APURAÇÃO/ENERGIA - Efeito de Acordo Bilateral com geradores | C125: Financeiro | D125: Financeiros não RTE | E125: Financeiro | F125: 14242594.91 | G125: 14037154.76 | O125: =M125*VLOOKUP(CAPA!C28,Índices!$B$6:$F$626,IF(BD!K125="IPCA",3,2),FALSE)/VLOOKUP(L125,Índices!$B$6:$F$626,IF(BD!K125="IPCA",3,2),FALSE) ->  | V125: 123 | W125: - | X125: 0.13612 | Y125: 0.86388
B126: DCF/APURAÇÃO/ENERGIA - Garantias financeiras na contratação regulada de energia (CCEAR) | C126: Financeiro | D126: Financeiros não RTE | E126: Financeiro | F126: 443889.0514 | G126: 437486.2412 | O126: =M126*VLOOKUP(CAPA!C29,Índices!$B$6:$F$626,IF(BD!K126="IPCA",3,2),FALSE)/VLOOKUP(L126,Índices!$B$6:$F$626,IF(BD!K126="IPCA",3,2),FALSE) ->  | V126: 166 | W126: 0.04257 | X126: 0.29652 | Y126: 0.66092
B127: DCF/APURAÇÃO/ENERGIA - Previsão de Risco Hidrológico | C127: Financeiro | D127: Financeiros não RTE | E127: Financeiro | F127: 55007124.97 | G127: 54213683.05 | O127: =M127*VLOOKUP(CAPA!C30,Índices!$B$6:$F$626,IF(BD!K127="IPCA",3,2),FALSE)/VLOOKUP(L127,Índices!$B$6:$F$626,IF(BD!K127="IPCA",3,2),FALSE) ->  | V127: 128 | W127: - | X127: 0.40427 | Y127: 0.59573
B128: DCF/APURAÇÃO/ENERGIA - SOBRECONTRATAÇÃO | C128: Financeiro | D128: Financeiros não RTE | E128: Financeiro | F128: -27776935.62 | G128: -27376271.43 | O128: =M128*VLOOKUP(CAPA!C31,Índices!$B$6:$F$626,IF(BD!K128="IPCA",3,2),FALSE)/VLOOKUP(L128,Índices!$B$6:$F$626,IF(BD!K128="IPCA",3,2),FALSE) ->  | V128: 129 | W128: 0.02905 | X128: 0.24895 | Y128: 0.722
B129: DCF/APURAÇÃO/ENERGIA - Saldo a Compensar Financeiros ano anterior | C129: Financeiro | D129: Financeiros não RTE | E129: Financeiro | F129: -21236404.74 | G129: -20930083.44 | O129: =M129*VLOOKUP(CAPA!C32,Índices!$B$6:$F$626,IF(BD!K129="IPCA",3,2),FALSE)/VLOOKUP(L129,Índices!$B$6:$F$626,IF(BD!K129="IPCA",3,2),FALSE) ->  | V129: 130 | W129: 0.0175 | X129: 0.14397 | Y129: 0.83853
B130: DCF/APURAÇÃO/TRANSPORTE TERCEIROS - Concatenação dos CUSDs | C130: Financeiro | D130: Financeiros não RTE | E130: Financeiro | F130: -128015.5593 | G130: -126169.0183 | O130: =M130*VLOOKUP(CAPA!C33,Índices!$B$6:$F$626,IF(BD!K130="IPCA",3,2),FALSE)/VLOOKUP(L130,Índices!$B$6:$F$626,IF(BD!K130="IPCA",3,2),FALSE) ->  | V130: 131 | W130: - | X130: 0.30099 | Y130: 0.69901
B131: DCF/APURAÇÃO/TRANSPORTE TERCEIROS - Repasse de compensação DIC/FIC | C131: Financeiro | D131: Financeiros não RTE | E131: Financeiro | F131: -50390.71705 | G131: -49663.86381 | O131: =M131*VLOOKUP(CAPA!C34,Índices!$B$6:$F$626,IF(BD!K131="IPCA",3,2),FALSE)/VLOOKUP(L131,Índices!$B$6:$F$626,IF(BD!K131="IPCA",3,2),FALSE) ->  | V131: 132 | W131: 0.02757 | X131: 0.26424 | Y131: 0.70819
B132: DCF/REVERSÃO/ENERGIA - Previsão de Risco Hidrológico | C132: Financeiro | D132: Financeiros não RTE | E132: Financeiro | F132: -46844203.2 | G132: -46168506.11 | O132: =M132*VLOOKUP(CAPA!C35,Índices!$B$6:$F$626,IF(BD!K132="IPCA",3,2),FALSE)/VLOOKUP(L132,Índices!$B$6:$F$626,IF(BD!K132="IPCA",3,2),FALSE) ->  | V132: 133 | W132: 0.01856 | X132: 0.19536 | Y132: 0.78608
B133: NEUTRALIDADE/APURAÇÃO/ENCARGO - outros | C133: Financeiro | D133: Financeiros não RTE | E133: Financeiro | F133: -4335557.787 | G133: -4273020.193 | V133: 135 | W133: 0.04788 | X133: 0.27054 | Y133: 0.68158
B134: NEUTRALIDADE/CDE Energia: Conta ACR/ENCARGO - outros | C134: Financeiro | D134: Financeiros não RTE | E134: Financeiro | F134: -4208741.65 | G134: -4148033.295 | V134: 136 | W134: 0.06732 | X134: 0.35547 | Y134: 0.57721
V135: 138 | W135: - | X135: 0.07651 | Y135: 0.92349
V136: 139 | W136: - | X136: 0.35483 | Y136: 0.64517
V137: 140 | W137: 0.01004 | X137: 0.21058 | Y137: 0.77938
V138: 143 | W138: - | X138: 0.20409 | Y138: 0.79591
V139: 144 | W139: - | X139: 0.48131 | Y139: 0.51869
V140: 145 | W140: 0.03725 | X140: 0.29306 | Y140: 0.66969
V141: 146 | W141: - | X141: 0.14124 | Y141: 0.85876
V142: 147 | W142: - | X142: 0.20977 | Y142: 0.79023
V143: 148 | W143: 0.03455 | X143: 0.23757 | Y143: 0.72788
V144: 149 | W144: - | X144: 0.17399 | Y144: 0.82601
V145: 150 | W145: 0.03635 | X145: 0.17413 | Y145: 0.78952
V146: 151 | W146: 0.02735 | X146: 0.28351 | Y146: 0.68915
V147: 152 | W147: 0.00215 | X147: 0.1412 | Y147: 0.85665
V148: 153 | W148: 0.03606 | X148: 0.17601 | Y148: 0.78793
V149: 154 | W149: 0.12913 | X149: 0.26626 | Y149: 0.60462
V150: 155 | W150: 0.04008 | X150: 0.23225 | Y150: 0.72768
V151: 156 | W151: - | X151: 0.35985 | Y151: 0.64015
V152: 157 | W152: - | X152: 0.15963 | Y152: 0.84037
V153: 158 | W153: - | X153: 0.33049 | Y153: 0.66951
V154: 160 | W154: 0.1013 | X154: 0.22818 | Y154: 0.67051
V155: 161 | W155: - | X155: 0.28355 | Y155: 0.71645
V156: 163 | W156: 0.03507 | X156: 0.1664 | Y156: 0.79853
V157: 164 | W157: - | X157: 0.12897 | Y157: 0.87103
B441: Transmissora | C441: Indice de atualização | D441: ENCARGO DE CONEXÃO repassável | E441: Instalações com Estabelecimento de RAP que entraram em operação | F441: PA para repasse a tarifa | G441: PA Qualidade DIT | H441: ENCARGO DE CONEXÃO ou PA não rapassável a tarifa (REN 67/2004 ou 68/2004) | I441: PA Empreendimento Autorizado sem estabelecimento prévio de RAP | J441: Estimativa | K441: Estimativa Total do Encargo de Conexão
B442: CHESF | C442: IPCA | D442: 1540054.36 | E442: 0 | F442: 0 | G442: 0 | H442: 138691.42 | I442: 0 | J442: 017/2009
B443: CHESF | C443: IPCA | D443: 8499239.221 | E443: 0 | F443: 2317252.4 | G443: 0 | H443: 0 | I443: 0 | J443: 061/2001
B452: Empresa | C452: idsgtag | D452: dtConv | E452: VlrMontante | F452: VlrTarOutros | G452: VlrTarB4a | H452: VlrTarB4b
G707: 1.4
A709: NumBar | B709: Nome Conexão | C709: Tensão | D709: Posto Tarifário | E709: Tarifas Fronteiras - DRA | F709: Tarifa Fronteira - DRP | G709: Tarifas RB - DRA | H709: Tarifa RB - DRP | I709: M01 | J709: M02 | K709: M03 | L709: M04 | M709: M05 | N709: M06 | O709: M07 | P709: M08 | Q709: M09 | R709: M10 | S709: M11 | T709: M12
A710: 5249 | B710: PILOES - 138 kV (A) | C710: 138 | D710: Ponta | E710: 4120 | F710: 6117 | G710: 7230 | H710: 12643 | I710: 65.693 | J710: 65.693 | K710: 65.693 | L710: 65.693 | M710: 65.693 | N710: 67.204 | O710: 67.204 | P710: 67.204 | Q710: 67.204 | R710: 67.204 | S710: 67.204 | T710: 67.204
A711: 5226 | B711: C.GRANDE II - 69 kV (A) | C711: 69 | D711: Ponta | E711: 4329 | F711: 6380 | G711: 1667 | H711: 2200 | I711: 83.34 | J711: 83.34 | K711: 83.34 | L711: 83.34 | M711: 83.34 | N711: 83.34 | O711: 83.34 | P711: 83.34 | Q711: 83.34 | R711: 83.34 | S711: 83.34 | T711: 80.777
A712: 5623 | B712: COREMAS - 69 kV (A) | C712: 69 | D712: Ponta | E712: 4279 | F712: 6358 | G712: 1057 | H712: 1292 | I712: 139.005 | J712: 139.005 | K712: 139.005 | L712: 139.005 | M712: 139.005 | N712: 149.714 | O712: 149.714 | P712: 149.714 | Q712: 149.714 | R712: 149.714 | S712: 149.714 | T712: 149.714
A713: 5203 | B713: GOIANINHA - 69 kV (A) | C713: 69 | D713: Ponta | E713: 5134 | F713: 7016 | G713: 1611 | H713: 2264 | I713: 62.8 | J713: 62.8 | K713: 62.8 | L713: 62.8 | M713: 62.8 | N713: 65.548 | O713: 65.548 | P713: 65.548 | Q713: 65.548 | R713: 65.548 | S713: 65.548 | T713: 65.548
A714: 5213 | B714: MUSSURE II - 69 kV (A) | C714: 69 | D714: Ponta | E714: 5477 | F714: 7207 | G714: 676 | H714: 953 | I714: 261.83 | J714: 261.83 | K714: 261.83 | L714: 261.83 | M714: 261.83 | N714: 267.198 | O714: 267.198 | P714: 267.198 | Q714: 267.198 | R714: 267.198 | S714: 267.198 | T714: 267.198
A715: 5253 | B715: SANTA CRUZ II - 69 kV (A) | C715: 69 | D715: Ponta | E715: 4018 | F715: 5999 | G715: 7230 | H715: 12643 | I715: 12.664 | J715: 12.664 | K715: 12.664 | L715: 12.664 | M715: 12.664 | N715: 13.095 | O715: 13.095 | P715: 13.095 | Q715: 13.095 | R715: 13.095 | S715: 13.095 | T715: 13.095
A716: 5273 | B716: SANTA RITA II - 69 kV (A) | C716: 69 | D716: Ponta | E716: 5574 | F716: 7092 | G716: 1098 | H716: 874 | I716: 171.016 | J716: 171.016 | K716: 171.016 | L716: 171.016 | M716: 171.016 | N716: 200.11 | O716: 200.11 | P716: 200.11 | Q716: 200.11 | R716: 200.11 | S716: 200.11 | T716: 200.11
A717: 5249 | B717: PILOES - 138 kV (A) | C717: 138 | D717: Fora Ponta | E717: 4007 | F717: 6021 | G717: 7230 | H717: 12643 | I717: 67.569 | J717: 67.569 | K717: 67.569 | L717: 67.569 | M717: 67.569 | N717: 69.123 | O717: 69.123 | P717: 69.123 | Q717: 69.123 | R717: 69.123 | S717: 69.123 | T717: 69.123
A718: 5226 | B718: C.GRANDE II - 69 kV (A) | C718: 69 | D718: Fora Ponta | E718: 4233 | F718: 6310 | G718: 1667 | H718: 2200 | I718: 86.139 | J718: 86.139 | K718: 86.139 | L718: 86.139 | M718: 86.139 | N718: 86.139 | O718: 86.139 | P718: 86.139 | Q718: 86.139 | R718: 86.139 | S718: 86.139 | T718: 84.141
A719: 5623 | B719: COREMAS - 69 kV (A) | C719: 69 | D719: Fora Ponta | E719: 4238 | F719: 6330 | G719: 1057 | H719: 1292 | I719: 153 | J719: 153 | K719: 153 | L719: 153 | M719: 153 | N719: 162.255 | O719: 162.255 | P719: 162.255 | Q719: 162.255 | R719: 162.255 | S719: 162.255 | T719: 162.255
A720: 5203 | B720: GOIANINHA - 69 kV (A) | C720: 69 | D720: Fora Ponta | E720: 5202 | F720: 7067 | G720: 1611 | H720: 2264 | I720: 70.326 | J720: 70.326 | K720: 70.326 | L720: 70.326 | M720: 70.326 | N720: 73.282 | O720: 73.282 | P720: 73.282 | Q720: 73.282 | R720: 73.282 | S720: 73.282 | T720: 73.282
A721: 5213 | B721: MUSSURE II - 69 kV (A) | C721: 69 | D721: Fora Ponta | E721: 5635 | F721: 7316 | G721: 676 | H721: 953 | I721: 276.878 | J721: 276.878 | K721: 276.878 | L721: 276.878 | M721: 276.878 | N721: 282.554 | O721: 282.554 | P721: 282.554 | Q721: 282.554 | R721: 282.554 | S721: 282.554 | T721: 282.554
A722: 5253 | B722: SANTA CRUZ II - 69 kV (A) | C722: 69 | D722: Fora Ponta | E722: 3897 | F722: 5891 | G722: 7230 | H722: 12643 | I722: 12.192 | J722: 12.192 | K722: 12.192 | L722: 12.192 | M722: 12.192 | N722: 12.6 | O722: 12.6 | P722: 12.6 | Q722: 12.6 | R722: 12.6 | S722: 12.6 | T722: 12.6
A723: 5273 | B723: SANTA RITA II - 69 kV (A) | C723: 69 | D723: Fora Ponta | E723: 5732 | F723: 7152 | G723: 1098 | H723: 874 | I723: 183.521 | J723: 183.521 | K723: 183.521 | L723: 183.521 | M723: 183.521 | N723: 214.596 | O723: 214.596 | P723: 214.596 | Q723: 214.596 | R723: 214.596 | S723: 214.596 | T723: 214.596

Sheet Votos e NTs
B2: Tabelas | D2: Gráficos
B4: Consumidores | D4: Análise de Impacto da RTA na Tarfia | K4: Composição da Receita | O4: Composição da Receita com Tributos | S4: Composição da Receita com detalhamento de Encargos | X4: Evolução da Tarifa B1 Residencial
B5: Mercado
B6: Encargos
B7: Custo do Transporte de Energia
B8: Perdas
B9: Energia Requerida
B10: Energia na DRA
B11: Contratos
B12: Fator X
B13: Parcela B
B14: CVA em Processamento
B15: Financeiros
B16: Subsídios
B17: Efeito Médio AT + BT
B18: Avaliação RTA
B19: Variação do Custo de Energia
E21: Impacto da RTA na Tarifa | H21: Valores (R$) | K21: Composição da Receita | L21: Valores (R$) | O21: Composição da Receita com Tributos | T21: Composição da Receita com detalhamento de Encargos
B22: Dados dos Gráficos | E22: Encargos Setoriais | H22: =BP248 -> 0.006618340333 | K22: Custo de Distribuição | L22: =Resultado!D44 -> 820428387.5 | O22: Custo de Distribuição | Q22: =L22/$Q$30 -> 0.2762609723 | T22: Custo de Distribuição | V22: =Resultado!D44 -> 820428387.5
E23: Custos de Transmissão | H23: =BP258 -> 0.02974037073 | K23: Custo de Energia | L23: =Resultado!D38 -> 869057775 | O23: Custo de Energia | Q23: =L23/$Q$30 -> 0.2926358346 | T23: Custo de Energia | V23: =Resultado!D38 -> 869057775
E24: Custos de Aquisição de Energia | H24: =BP267 -> 0.0279981975 | K24: Custo de Transmissão | L24: =Resultado!D29 -> 210296167.1 | O24: Custo de Transmissão | Q24: =L24/$Q$30 -> 0.07081254681 | T24: Custo de Transmissão | V24: =Resultado!D29 -> 210296167.1
E25: Distribuição | H25: =BP268 -> 0.03030168587 | K25: Encargos Setoriais | L25: =Resultado!D19 -> 163907121.1 | O25: Encargos Setoriais | Q25: =L25/$Q$30 -> 0.05519206955 | T25: PROINFA | V25: =Resultado!D26 -> 29514592.22
E26: Componentes Financeiros | H26: =SUM(BP272:BP286) -> 0.03748700808 | O26: ICMS | Q26: =Mercado!G9 -> 0.2452140179 | T26: CDE | V26: =Resultado!D23 -> 71818541.71
E27: CONTA-COVID | H27: =BP315 -> -0.03905793668 | O27: PIS/COFINS | Q27: =Mercado!G10 -> 0.05988455888 | T27: ESS/EER | V27: =Resultado!D25 -> 39636910.27
E28: Efeito da Retirada dos Financeiros Anteriores | H28: =BP323 -> -0.05030245479 | O28: Imposto por dentro | Q28: =LnkTxtPisCofins+LnkTxtICMS -> 0.3050985768 | T28: Outros | V28: =Resultado!D27+Resultado!D28+Resultado!D24+Resultado!D22 -> 22937076.87 | X28: Ano | Y28: Tipo | Z28: Tipo Ano | AA28: B1 - Residencial | AB28: IGPM | AC28: IPCA | AD28: Data
E29: Efeito Médio Consumidor | H29: =BP324 -> 0.04278521104 | O29: Imposto Total por Fora | Q29: =(Q26+Q27)/(1-Q26-Q27) -> 0.4390530321 | X29: Ano | Y29: Tipo | Z29: Tipo Ano | AA29: B1 - Residencial | AB29: IGPM | AC29: IPCA | AD29: Data
O30: Receita com Impostos | Q30: =SUM(V22:V28)/(1-Q26-Q27) -> 2969758561
X31: =YEAR(BD!B80) -> 2009 | Y31: =BD!C80 -> 0 | Z31: =CONCATENATE(IF(Y31=0,"Reajuste",IF(Y31=1,"Revisão","RTE"))," ",X31) -> Reajuste 2009 | AA31: =BD!D80 -> 335.61 | AB31: 335.61 | AC31: 335.61 | AD31: =DATE(YEAR(BD!B80),(MONTH(BD!B80))-1,1) -> 2009-07-01
X32: =YEAR(BD!B79) -> 2010 | Y32: =BD!C79 -> 0 | Z32: Reajuste 2010 | AA32: =BD!D79 -> 348.86 | AB32: =AB31*VLOOKUP(AD32,Índices!$B$147:$D$495,2,0)/VLOOKUP(AD31,Índices!$B$147:$D$495,2,0) -> 355.040847 | AC32: =AC31*VLOOKUP(AD32,Índices!$B$147:$D$495,3,0)/VLOOKUP(AD31,Índices!$B$147:$D$495,3,0) -> 351.0498519 | AD32: =DATE(YEAR(BD!B79),(MONTH(BD!B79))-1,1) -> 2010-07-01
X33: =YEAR(BD!B78) -> 2011 | Y33: =BD!C78 -> 0 | Z33: Reajuste 2011 | AA33: =BD!D78 -> 375.54 | AB33: =AB32*VLOOKUP(AD33,Índices!$B$147:$D$495,2,0)/VLOOKUP(AD32,Índices!$B$147:$D$495,2,0) -> 384.7087119 | AC33: =AC32*VLOOKUP(AD33,Índices!$B$147:$D$495,3,0)/VLOOKUP(AD32,Índices!$B$147:$D$495,3,0) -> 375.1761015 | AD33: =DATE(YEAR(BD!B78),(MONTH(BD!B78))-1,1) -> 2011-07-01
X34: =YEAR(BD!B77) -> 2012 | Y34: =BD!C77 -> 0 | Z34: Reajuste 2012 | AA34: =BD!D77 -> 387.65 | AB34: =AB33*VLOOKUP(AD34,Índices!$B$147:$D$495,2,0)/VLOOKUP(AD33,Índices!$B$147:$D$495,2,0) -> 410.3854252 | AC34: =AC33*VLOOKUP(AD34,Índices!$B$147:$D$495,3,0)/VLOOKUP(AD33,Índices!$B$147:$D$495,3,0) -> 394.6793099 | AD34: =DATE(YEAR(BD!B77),(MONTH(BD!B77))-1,1) -> 2012-07-01
X35: =YEAR(BD!B76) -> 2013 | Y35: =BD!C76 -> -1 | Z35: RTE 2013 | AA35: =BD!D76 -> 317.82 | AB35: =AB34*VLOOKUP(AD35,Índices!$B$147:$D$495,2,0)/VLOOKUP(AD34,Índices!$B$147:$D$495,2,0) -> 423.1234433 | AC35: =AC34*VLOOKUP(AD35,Índices!$B$147:$D$495,3,0)/VLOOKUP(AD34,Índices!$B$147:$D$495,3,0) -> 406.5003936 | AD35: =DATE(YEAR(BD!B76),(MONTH(BD!B76))-1,1) -> 2012-12-01
X36: =YEAR(BD!B75) -> 2013 | Y36: =BD!C75 -> Revisão | Z36: RTE 2013 | AA36: =BD!D75 -> 304.45 | AB36: =AB35*VLOOKUP(AD36,Índices!$B$147:$D$495,2,0)/VLOOKUP(AD35,Índices!$B$147:$D$495,2,0) -> 431.6281704 | AC36: =AC35*VLOOKUP(AD36,Índices!$B$147:$D$495,3,0)/VLOOKUP(AD35,Índices!$B$147:$D$495,3,0) -> 419.4284344 | AD36: =DATE(YEAR(BD!B75),(MONTH(BD!B75))-1,1) -> 2013-07-01
X37: =YEAR(BD!B74) -> 2014 | Y37: =BD!C74 -> 0 | Z37: Reajuste 2014 | AA37: =BD!D74 -> 367.87 | AB37: =AB36*VLOOKUP(AD37,Índices!$B$147:$D$495,2,0)/VLOOKUP(AD36,Índices!$B$147:$D$495,2,0) -> 454.5932556 | AC37: =AC36*VLOOKUP(AD37,Índices!$B$147:$D$495,3,0)/VLOOKUP(AD36,Índices!$B$147:$D$495,3,0) -> 446.700654 | AD37: =DATE(YEAR(BD!B74),(MONTH(BD!B74))-1,1) -> 2014-07-01
X38: =YEAR(BD!B73) -> 2015 | Y38: =BD!C73 -> -1 | Z38: RTE 2015 | AA38: =BD!D73 -> 379.56 | AB38: =AB37*VLOOKUP(AD38,Índices!$B$147:$D$495,2,0)/VLOOKUP(AD37,Índices!$B$147:$D$495,2,0) -> 467.6969703 | AC38: =AC37*VLOOKUP(AD38,Índices!$B$147:$D$495,3,0)/VLOOKUP(AD37,Índices!$B$147:$D$495,3,0) -> 469.4513881 | AD38: =DATE(YEAR(BD!B73),(MONTH(BD!B73))-1,1) -> 2015-02-01
X39: =YEAR(BD!B72) -> 2015 | Y39: =BD!C72 -> 0 | Z39: Reajuste 2015 | AA39: =BD!D72 -> 418.17 | AB39: =AB38*VLOOKUP(AD39,Índices!$B$147:$D$495,2,0)/VLOOKUP(AD38,Índices!$B$147:$D$495,2,0) -> 486.2902808 | AC39: =AC38*VLOOKUP(AD39,Índices!$B$147:$D$495,3,0)/VLOOKUP(AD38,Índices!$B$147:$D$495,3,0) -> 489.3980563 | AD39: =DATE(YEAR(BD!B72),(MONTH(BD!B72))-1,1) -> 2015-07-01
X40: =YEAR(BD!B71) -> 2016 | Y40: =BD!C71 -> 0 | Z40: Reajuste 2016 | AA40: =BD!D71 -> 440.26 | AB40: =AB39*VLOOKUP(AD40,Índices!$B$147:$D$495,2,0)/VLOOKUP(AD39,Índices!$B$147:$D$495,2,0) -> 542.8571648 | AC40: =AC39*VLOOKUP(AD40,Índices!$B$147:$D$495,3,0)/VLOOKUP(AD39,Índices!$B$147:$D$495,3,0) -> 532.1507501 | AD40: =DATE(YEAR(BD!B71),(MONTH(BD!B71))-1,1) -> 2016-07-01
X41: =YEAR(BD!B70) -> 2017 | Y41: =BD!C70 -> RTE | Z41: RTE 2017 | AA41: =BD!D70 -> 434.87 | AB41: =AB40*VLOOKUP(AD41,Índices!$B$147:$D$495,2,0)/VLOOKUP(AD40,Índices!$B$147:$D$495,2,0) -> 552.4399092 | AC41: =AC40*VLOOKUP(AD41,Índices!$B$147:$D$495,3,0)/VLOOKUP(AD40,Índices!$B$147:$D$495,3,0) -> 544.0779031 | AD41: =DATE(YEAR(BD!B70),(MONTH(BD!B70))-1,1) -> 2017-03-01
X42: =YEAR(BD!B69) -> 2017 | Y42: =BD!C69 -> Revisão | Z42: RTE 2017 | AA42: =BD!D69 -> 494.6 | AB42: =AB41*VLOOKUP(AD42,Índices!$B$147:$D$495,2,0)/VLOOKUP(AD41,Índices!$B$147:$D$495,2,0) -> 533.8391355 | AC42: =AC41*VLOOKUP(AD42,Índices!$B$147:$D$495,3,0)/VLOOKUP(AD41,Índices!$B$147:$D$495,3,0) -> 546.5806869 | AD42: =DATE(YEAR(BD!B69),(MONTH(BD!B69))-1,1) -> 2017-07-01
X43: =YEAR(BD!B68) -> 2018 | Y43: =BD!C68 -> 0 | Z43: Reajuste 2018 | AA43: =BD!D68 -> 571.77 | AB43: =AB42*VLOOKUP(AD43,Índices!$B$147:$D$495,2,0)/VLOOKUP(AD42,Índices!$B$147:$D$495,2,0) -> 577.8172654 | AC43: =AC42*VLOOKUP(AD43,Índices!$B$147:$D$495,3,0)/VLOOKUP(AD42,Índices!$B$147:$D$495,3,0) -> 571.0939766 | AD43: 2018-07-01
X44: =YEAR(BD!B67) -> 2019 | Y44: =BD!C67 -> Reajuste | Z44: Reajuste 2019 | AA44: =BD!D67 -> 545.3994898 | AB44: =AB43*VLOOKUP(AD44,Índices!$B$147:$D$495,2,0)/VLOOKUP(AD43,Índices!$B$147:$D$495,2,0) -> 614.7567715 | AC44: =AC43*VLOOKUP(AD44,Índices!$B$147:$D$495,3,0)/VLOOKUP(AD43,Índices!$B$147:$D$495,3,0) -> 589.4947414 | AD44: 2019-07-01
X45: =YEAR(BD!B66) -> 2020 | Y45: =BD!C66 -> 0 | Z45: =CONCATENATE(IF(Y45=0,"Reajuste",IF(Y45=1,"Revisão","RTE"))," ",X45) -> Reajuste 2020 | AA45: =BD!D66 -> 562.1088145 | AB45: =AB44*VLOOKUP(AD45,Índices!$B$147:$D$495,2,0)/VLOOKUP(AD44,Índices!$B$147:$D$495,2,0) -> 671.7565209 | AC45: =AC44*VLOOKUP(AD45,Índices!$B$147:$D$495,3,0)/VLOOKUP(AD44,Índices!$B$147:$D$495,3,0) -> 603.0862795 | AD45: =DATE(YEAR(BD!B66),(MONTH(BD!B66))-1,1) -> 2020-07-01
B46: TabCons | E46: Voltar | AA46: =AA45/AA31-1 -> 0.6748869656 | AB46: =AB45/AB31-1 -> 1.001598644 | AC46: 0.7969854281
B47: Classe de Consumo | C47: Nº de Unidades Consumidoras1 | D47: Consumo de Energia (MWh) | E47: Participação no Consumo (%)
B48: Residencial | C48: =Mercado!F41 -> 1201128 | D48: =Mercado!G41 -> 141624.222 | E48: =D48/$D$56 -> 0.4379632293
B49: Industrial | C49: =Mercado!F42 -> 3955 | D49: =Mercado!G42 -> 52010.343 | E49: 0.1608384318
B50: Comercial | C50: =Mercado!F43 -> 94458 | D50: =Mercado!G43 -> 41793.087 | E50: 0.1292422658
B51: Rural | C51: =Mercado!F44 -> 136246 | D51: =Mercado!G44 -> 20275.55 | E51: 0.06270075293
B52: Iluminação Pública | C52: =Mercado!F45 -> 757 | D52: =Mercado!G45 -> 20206.263 | E52: 0.06248648762
B53: Poder Público | C53: =Mercado!F46 -> 16827 | D53: =Mercado!G46 -> 14631.554 | E53: 0.04524708096
B54: Serviço Público | C54: =Mercado!F47 -> 1001 | D54: =Mercado!G47 -> 17497.644 | E54: 0.05411026844
B55: Demais classes | C55: =Mercado!F48 -> 297 | D55: =Mercado!G48 -> 15331.457 | E55: 0.04741148316
B56: Total | C56: =SUM(C48:C55) -> 1454669 | D56: =SUM(D48:D55) -> 323370.12 | E56: =SUM(E48:E55) -> 1
B57: Nota: dados do último mês informado pela empresa
G58: TabMercado | I58: Voltar
G59: Subgrupos | H59: Mercado (MWh) | I59: Receita (R$) | J59: Colunas1
G60: Fornecimento | H60: =SUM(H61:H67) -> 3708326.721 | I60: =SUM(I61:I67) -> 1771626446 | J60: =IF(ABS(H60)+ABS(I60)>0,1,0) -> 1
G61: A1 (230 kV ou mais) | H61: =Mercado!C10 -> 0 | I61: =Mercado!D10 -> 0 | J61: 0
G62: A2 (88 a 138 kV) | H62: =Mercado!C11 -> 0 | I62: =Mercado!D11 -> 0 | J62: 0
G63: A3 (69 kV) | H63: =Mercado!C12 -> 90882.197 | I63: =Mercado!D12 -> 26008790.61 | J63: 1
G64: A3a (30 kV a 44 kV) | H64: =Mercado!C13 -> 0 | I64: =Mercado!D13 -> 0 | J64: 0
G65: A4 (2,3 kV a 25 kV) | H65: =Mercado!C14 -> 646378.796 | I65: =Mercado!D14 -> 280494778.6 | J65: 1
G66: As | H66: =Mercado!C15 -> 0 | I66: =Mercado!D15 -> 0 | J66: 0
G67: BT (menor que 2,3 kV) | H67: =Mercado!C16 -> 2971065.728 | I67: =Mercado!D16 -> 1465122877 | J67: 1
G68: Suprimento | H68: =Mercado!C17 -> 0 | I68: =Mercado!D17 -> 0 | J68: 0
G69: Livres A1 | H69: =Mercado!C18 -> 0 | I69: =Mercado!D18 -> 0 | J69: 0
G70: Demais Livres | H70: =Mercado!C19 -> 623465.419 | I70: =Mercado!D19 -> 73666226.08 | J70: 1
G71: Distribuição | H71: =Mercado!C20 -> 192373.335 | I71: =Mercado!D20 -> 15830800.71 | J71: 1
G72: Geração | H72: =Mercado!C21 -> 0 | I72: =Mercado!D21 -> 24113443.79 | J72: 1
G73: Total | H73: =SUM(H61:H72) -> 4524165.475 | I73: =SUM(I61:I72) -> 1885236916
K75: TabEnc | N75: Voltar
K76: Encargos Setoriais | L76: DRA (R$) | M76: DRP (R$) | N76: Dispositivo Legal | O76: Colunas1
K77: Taxa de Fisc. de Serviços de E.E. – TFSEE | L77: =Resultado!C22 -> 2935034.3 | M77: =Resultado!D22 -> 3160245.593 | N77: =Encargos!D17 -> Conforme módulo 5.5 do PRORET | O77: =IF(ABS(L77)+ABS(M77)>0,1,0) -> 1
K78: Conta de Desenvolvimento Energético – CDE | L78: =Resultado!C23 -> 59000675.26 | M78: =Resultado!D23 -> 71818541.71 | N78: =Encargos!D10 -> ReH 2.664/2019 | O78: 1
K79: Compensação financeira - CFURH | L79: =Resultado!C24 -> 0 | M79: =Resultado!D24 -> 0 | N79: =Encargos!D11 -> 0 | O79: 0
K80: Encargos Serv. Sist. - ESS e Energ. Reserv. - EER | L80: =Resultado!C25 -> 35882220.35 | M80: =Resultado!D25 -> 39636910.27 | N80: =Encargos!D12 -> DSP 1.191/2020 | O80: 1
K81: PROINFA | L81: =Resultado!C26 -> 34307004.01 | M81: =Resultado!D26 -> 29514592.22 | N81: =Encargos!$D$13 -> ReH 2.653/2019 | O81: 1
K82: P&D e Eficiência Energética | L82: =Resultado!C27 -> 19219699.33 | M82: =Resultado!D27 -> 19690859.38 | N82: Res. Normativa nº 316/2008 | O82: 1
K83: Contribuição ONS | L83: =Resultado!C28 -> 85442.14213 | M83: =Resultado!D28 -> 85971.89286 | N83: =Encargos!$D$14 -> Contribuição 2020 | O83: 1
K84: Total de Encargos Tarifários | L84: =SUM(L77:L83) -> 151430075.4 | M84: =SUM(M77:M83) -> 163907121.1
P86: TabTrans | R86: Voltar
P87: Componente | Q87: DRA (R$) | R87: DRP (R$) | S87: Colunas1
P88: Rede Básica | Q88: =Resultado!C30 -> 103257632.3 | R88: =Resultado!D30 -> 139981258.1 | S88: =IF(ABS(Q88)+ABS(R88)>0,1,0) -> 1
P89: Rede Básica Fronteira | Q89: =Resultado!C31 -> 33344072.7 | R89: =Resultado!D31 -> 47534551.1 | S89: 1
P90: Rede Básica ONS (A2) | Q90: =Resultado!C32 -> 0 | R90: =Resultado!D32 -> 0 | S90: 0
P91: Rede Básica Export. (A2) | Q91: =Resultado!C33 -> 0 | R91: =Resultado!D33 -> 0 | S91: 0
P92: MUST Itaipu | Q92: =Resultado!C34 -> 0 | R92: =Resultado!D34 -> 0 | S92: 0
P93: Transporte de Itaipu | Q93: =Resultado!C35 -> 0 | R93: =Resultado!D35 -> 0 | S93: 0
P94: Conexão | Q94: =Resultado!C36 -> 8225663.849 | R94: =Resultado!D36 -> 12433267.69 | S94: 1
P95: Uso do sistema de distribuição | Q95: =Resultado!C37 -> 9401575.197 | R95: =Resultado!D37 -> 10347090.22 | S95: 1
P96: Total dos Custos de Transporte | Q96: =SUM(Q88:Q95) -> 154228944.1 | R96: =SUM(R88:R95) -> 210296167.1
T98: TabPerdas | V98: Voltar
T99: Perdas | U99: DRA | V99: DRP | W99: Referência
T100: Não Técnica (s/ Baixa Tensão) | U100: =Energia!H13 -> 0.04994003207 | V100: =Energia!I13 -> 0.04938087549 | W100: REH 2.291/2017
T101: Técnica (s/ merc. injetado) | U101: =Energia!H14 -> 0.09874 | V101: =Energia!I14 -> 0.09874 | W101: =W100 -> REH 2.291/2017
T102: Rede Básica (s/ merc. Injetado) | U102: =Energia!H15 -> 0.0226192179 | V102: =Energia!I15 -> 0.02426569697 | W102: CCEE (últimos 12 meses)
T103: Mercado Baixa Tensão (MWh) | U103: =Mercado!$C$16 -> 2971065.728 | V103: =Mercado!$C$16 -> 2971065.728 | W103: SAMP
Y105: TabEnergia | AA105: Voltar
Y106: Descrição | Z106: DRA (MWh) | AA106: DRP (MWh)
Y107: Mercado Total | Z107: =AA107 -> 3708326.721 | AA107: =Z108+Z109 -> 3708326.721 | AB107: Colunas1
Y108: Fornecimento | Z108: =Energia!H5 -> 3708326.721 | AA108: =Z108 -> 3708326.721 | AB108: =IF(Z108<>0,1,0) -> 1
Y109: Suprimento | Z109: =Energia!C8 -> 0 | AA109: =Z109 -> 0 | AB109: =IF(Z109<>0,1,0) -> 0
Y110: Consumidores Livres | Z110: =Energia!H7 -> 815838.754 | AA110: =Z110 -> 815838.754 | AB110: =IF(Z110<>0,1,0) -> 1
Y111: Consumidores Rede B. | Z111: =Energia!H8 -> 0 | AA111: =Z111 -> 0 | AB111: =IF(Z111<>0,1,0) -> 0
Y112: Perdas Totais | Z112: =Z113+Z114 -> 759102.7094 | AA112: =AA113+AA114 -> 780322.1366
Y113: Perdas Rede Básica | Z113: =SUM(Energia!H18:H19) -> 98814.64964 | AA113: =SUM(Energia!I18:I19) -> 106339.784
Y114: Perdas na Distribuição | Z114: =SUM(Z115:Z116) -> 660288.0598 | AA114: =SUM(AA115:AA116) -> 673982.3526
Y115: Perda Não Técnica | Z115: =Energia!H16 -> 148375.1177 | AA115: =Energia!I16 -> 146713.8268
Y116: Perda Técnica | Z116: =Energia!H17 -> 511912.942 | AA116: =Energia!I17 -> 527268.5259
Y117: Energia Requerida | Z117: =Z107+Z112 -> 4467429.43 | AA117: =AA107+AA112 -> 4488648.858
AC119: TabEDRA | AE119: Voltar
AC120: Energia Requerida (MWh) | AD120: Tarifa Média (R$/MWh) | AE120: Energia Requerida (R$)
AC121: ='Votos e NTs'!Z117 -> 4467429.43 | AD121: =Energia!C14 -> 182.7169179 | AE121: =AD121*AC121 -> 816274936.6
AG123: TabContratos | AK123: Voltar
AG124: Contratos | AH124: Montante Contratado (MWh) | AI124: Montante Considerado (MWh) | AJ124: Tarifa (R$/MWh) | AK124: Despesa (R$) | AL124: Colunas1
AG125: AMBIENTE REGULADO - CCEAR | AH125: =SUM(AH126:AH130) -> 2313573.558 | AI125: =SUM(AI126:AI130) -> 2527459.869 | AJ125: =IFERROR(AK125/AI125,0) -> 205.1878598 | AK125: =SUM(AK126:AK130) -> 518604081.1 | AL125: =IF(AI125=0,0,1) -> 1
AG126: Existente - CCEAR-DSP | AH126: =SUMPRODUCT((Energia!$J$49:$J$140),(Energia!$T$49:$T$140=18)*(INT(Energia!$S$49:$S$140/10000)=2)) -> 0 | AI126: =SUMPRODUCT((Energia!$K$49:$K$140),(Energia!$T$49:$T$140=18)*(INT(Energia!$S$49:$S$140/10000)=2)) -> 0 | AJ126: 0 | AK126: =IFERROR(SUMPRODUCT((Energia!$U$49:$U$140),(Energia!$T$49:$T$140=18)*(INT(Energia!$S$49:$S$140/10000)=2))*AI126/AH126,0) -> 0 | AL126: 0
AG127: Existente - CCEAR-QTD | AH127: =SUMPRODUCT((Energia!$J$49:$J$140),(Energia!$T$49:$T$140=1)*(INT(Energia!$S$49:$S$140/10000)=2)) -> 28134.45 | AI127: =SUMPRODUCT((Energia!$K$49:$K$140),(Energia!$T$49:$T$140=1)*(INT(Energia!$S$49:$S$140/10000)=2)) -> 30735.43656 | AJ127: 188.8394547 | AK127: =IFERROR(SUMPRODUCT((Energia!$U$49:$U$140),(Energia!$T$49:$T$140=1)*(INT(Energia!$S$49:$S$140/10000)=2))*AI127/AH127,0) -> 5804063.08 | AL127: 1
AG128: Nova e Alternativa- CCEAR-DSP | AH128: =SUMPRODUCT((Energia!$J$49:$J$140),(Energia!$T$49:$T$140=18)*(INT(Energia!$S$49:$S$140/10000)=1))+SUMPRODUCT((Energia!$J$49:$J$140),(Energia!$T$49:$T$140=18)*(INT(Energia!$S$49:$S$140/10000)=3)) -> 1131435.629 | AI128: =SUMPRODUCT((Energia!$K$49:$K$140),(Energia!$T$49:$T$140=18)*(INT(Energia!$S$49:$S$140/10000)=1))+SUMPRODUCT((Energia!$K$49:$K$140),(Energia!$T$49:$T$140=18)*(INT(Energia!$S$49:$S$140/10000)=3)) -> 1236035.11 | AJ128: 243.8941725 | AK128: =(SUMPRODUCT((Energia!$U$49:$U$140),(Energia!$T$49:$T$140=18)*(INT(Energia!$S$49:$S$140/10000)=1))+SUMPRODUCT((Energia!$U$49:$U$140),(Energia!$T$49:$T$140=18)*(INT(Energia!$S$49:$S$140/10000)=3)))*AI128/AH128 -> 301461760.4 | AL128: 1
AG129: Nova e Alternativa- CCEAR-QTD | AH129: =SUMPRODUCT((Energia!$J$49:$J$140),(Energia!$T$49:$T$140=1)*(INT(Energia!$S$49:$S$140/10000)=1))+SUMPRODUCT((Energia!$J$49:$J$140),(Energia!$T$49:$T$140=1)*(INT(Energia!$S$49:$S$140/10000)=3)) -> 509628.9602 | AI129: =SUMPRODUCT((Energia!$K$49:$K$140),(Energia!$T$49:$T$140=1)*(INT(Energia!$S$49:$S$140/10000)=1))+SUMPRODUCT((Energia!$K$49:$K$140),(Energia!$T$49:$T$140=1)*(INT(Energia!$S$49:$S$140/10000)=3)) -> 556743.3724 | AJ129: =IFERROR(AK129/AI129,0) -> 202.9102218 | AK129: =(SUMPRODUCT((Energia!$U$49:$U$140),(Energia!$T$49:$T$140=1)*(INT(Energia!$S$49:$S$140/10000)=1))+SUMPRODUCT((Energia!$U$49:$U$140),(Energia!$T$49:$T$140=1)*(INT(Energia!$S$49:$S$140/10000)=3)))*AI129/AH129 -> 112968921.2 | AL129: 1
AG130: Madeira e Belo Monte | AH130: =SUMPRODUCT((Energia!$J$49:$J$140)*(INT(Energia!$S$49:$S$140/10000)=5)) -> 644374.5182 | AI130: =SUMPRODUCT((Energia!$K$49:$K$140)*(INT(Energia!$S$49:$S$140/10000)=5)) -> 703945.9496 | AJ130: =IFERROR(AK130/AI130,0) -> 139.7398999 | AK130: =(SUMPRODUCT((Energia!U49:U140)*(INT(Energia!S49:S140/10000)=5)))*AI130/AH130 -> 98369336.52 | AL130: 1
AG131: =Energia!B20 -> Energia Base | AH131: =SUM(AH132:AH135) -> 1364029.814 | AI131: =SUM(AI132:AI135) -> 1481643.881 | AJ131: 124.6899275 | AK131: =SUM(AK132:AK135) -> 184746068 | AL131: 1
AG132: =Energia!B21 -> Geração Própria | AH132: =Energia!H33 -> 0 | AI132: =Energia!C21 -> 0 | AJ132: =Energia!D21 -> 0 | AK132: =AJ132*AI132 -> 0 | AL132: 0
AG133: =Energia!B22 -> Cota Angra I/Angra II | AH133: =Energia!H34 -> 150388.513 | AI133: =Energia!C22 -> 164291.6994 | AJ133: =Energia!D22 -> 269.75 | AK133: =AJ133*AI133 -> 44317685.9 | AL133: 1
AG134: =Energia!B23 -> Cotas Lei n º 12783/2013 | AH134: =Energia!H35 -> 1121823.782 | AI134: =Energia!C23 -> 1225534.663 | AJ134: =Energia!D23 -> 114.5854021 | AK134: =AJ134*AI134 -> 140428382.1 | AL134: 1
AG135: =Energia!B25 -> PROINFA | AH135: =Energia!C25 -> 91817.51851 | AI135: =Energia!C25 -> 91817.51851 | AJ135: =Energia!D25 -> 0 | AK135: =AJ135*AI135 -> 0 | AL135: 1
AG136: =Energia!B26 -> Bilateral | AH136: =SUM(Energia!H145:H191) -> 438963.6 | AI136: =SUM(Energia!M145:M191) -> 479545.1085 | AJ136: =Energia!D26 -> 345.5516967 | AK136: =AJ136*AI136 -> 165707625.9 | AL136: 1
AG137: Total | AH137: =AH125+AH131+AH136 -> 4116566.972 | AI137: =AI125+AI131+AI136 -> 4488648.858 | AJ137: =AK137/AI137 -> 193.6123325 | AK137: =AK125+AK131+AK136 -> 869057775
AM139: TabFatorX | AN139: Voltar
AG140: Contratos | AH140: Montante Contratado (MWh) | AI140: Montante Considerado (MWh) | AJ140: Tarifa (R$/MWh) | AK140: Despesa (R$) | AM140: Componentes | AN140: Valor
AG141: AMBIENTE REGULADO - CCEAR | AH141: 7887041.74 | AI141: 5304578.851 | AJ141: 216.7459202 | AK141: 1149745824 | AM141: Componente Pd do Fator X | AN141: ='VPB1'!F40 -> 0.01264880401
AG142: Existente - CCEAR-DSP | AH142: 0 | AI142: 0 | AJ142: 0 | AK142: 0 | AM142: Componente T do Fator X | AN142: ='VPB1'!F41 -> 0.003902591629
AG143: Existente - CCEAR-QTD | AH143: 0 | AI143: 0 | AJ143: 0 | AK143: 0 | AM143: Componente Q do Fator X | AN143: ='VPB1'!F42 -> 0.001328011567
AG144: Nova e Alternativa- CCEAR-DSP | AH144: 4129682.578 | AI144: 3761425.977 | AJ144: 248.7589599 | AK144: 935688414 | AM144: Fator X | AN144: ='VPB1'!F43 -> 0.01787940721
AG145: Nova e Alternativa- CCEAR-QTD | AH145: 2063126.29 | AI145: 0 | AJ145: 0 | AK145: 0
AG146: Madeira e Belo Monte | AH146: 1694232.872 | AI146: 1543152.874 | AJ146: 138.7143255 | AK146: 214057410.1 | AP146: TabParcelaB | AQ146: Voltar
AG147: Energia Base | AH147: 3158788.619 | AI147: 2892631.132 | AJ147: 141.7336968 | AK147: 409983304 | AP147: Descrição | AQ147: Valores | AR147: Referência
AG148: Geração Própria | AH148: 333334.02 | AI148: 303609.5919 | AJ148: 306.55 | AK148: 93071520.39 | AP148: (1) Parcela B - DRA (R$) | AQ148: =Resultado!C44 -> 763302960.4 | AR148: PB0 = RV - PA0
AG149: Cota Angra I/Angra II | AH149: 306872.36 | AI149: 279507.6002 | AJ149: 269.75 | AK149: 75397175.15 | AP149: (2) IGP-M | AQ149: ='VPB1'!F38 -> 0.09271918915 | AR149: SGT/ANEEL
AG150: Cotas Lei n º 12783/2013 | AH150: 2344522.03 | AI150: 2135453.731 | AJ150: 113.0975609 | AK150: 241514608.4 | AP150: (3) Fator X | AQ150: =LnkTxtFatorX -> 0.01787940721
AG151: Itaipu (tirando as perdas) | AH151: 0 | AI151: 0 | AJ151: 0 | AK151: 0 | AP151: (3.1) Componente Pd do Fator X | AQ151: =+LnkTxtPD -> 0.006855664908 | AR151: REH 2.588/2019
AG152: PROINFA | AH152: 174060.2091 | AI152: 174060.2091 | AJ152: 0 | AK152: 0 | AP152: (3.2) Componente T do Fator X | AQ152: =LnkTxtFatorT -> 0.003902591629 | AR152: REH 2.588/2019
AG153: Total | AH153: 11045830.36 | AI153: 8197209.983 | AJ153: 190.2756098 | AK153: 1559729128 | AP153: (3.3) Componente Q do Fator X | AQ153: =LnkTxtFatorQ -> 0.001328011567 | AR153: PRORET 2.5 A
AP154: Parcela B - DRP (R$) = [(1)*((2)-(3))] | AQ154: =Resultado!D44 -> 820428387.5
AT156: TabCVA | AW156: Voltar
AT157: Descrição | AU157: Delta (R$) | AV157: 5° Dia Útil Anterior (R$) | AW157: 12 Meses Subseqüentes (R$) | AX157: Colunas1
AT158: ="CVA "&CVA!B9 -> CVA CCC | AU158: =CVA!C9 -> 0 | AV158: =CVA!D9 -> 0 | AW158: =CVA!E9 -> 0 | AX158: =IF(AU158<>0,1,0) -> 0
AT159: ="CVA "&CVA!B10 -> CVA CDE | AU159: =CVA!C10 -> 14678858.3 | AV159: =CVA!D10 -> 14912391.94 | AW159: =CVA!E10 -> 15084929.88 | AX159: 1
AT160: ="CVA "&CVA!B11 -> CVA CDE Energia | AU160: =CVA!C11 -> -9588782.858 | AV160: =CVA!D11 -> -9805576.224 | AW160: =CVA!E11 -> -9919027.771 | AX160: 1
AT161: ="CVA "&CVA!B12 -> CVA Rede Básica | AU161: =CVA!C12 -> 7622889.947 | AV161: =CVA!D12 -> 7891825.996 | AW161: =CVA!E12 -> 7983135.252 | AX161: 1
AT162: ="CVA "&CVA!B13 -> CVA Compra Energia | AU162: =CVA!C13 -> 51436183.79 | AV162: =CVA!D13 -> 52686635.1 | AW162: =CVA!E13 -> 53296225.01 | AX162: 1
AT163: ="CVA "&CVA!B14 -> CVA CFURH | AU163: =CVA!C14 -> 0 | AV163: =CVA!D14 -> 0 | AW163: =CVA!E14 -> 0 | AX163: 0
AT164: ="CVA "&CVA!B15 -> CVA Transporte Itaipu | AU164: =CVA!C15 -> 0 | AV164: =CVA!D15 -> 0 | AW164: =CVA!E15 -> 0 | AX164: 0
AT165: ="CVA "&CVA!B16 -> CVA Proinfa | AU165: =CVA!C16 -> -3876791.256 | AV165: =CVA!D16 -> -3921857.503 | AW165: =CVA!E16 -> -3967233.807 | AX165: 1
AT166: ="CVA "&CVA!B17 -> CVA ESS/ERR | AU166: =CVA!C17 -> -38266328.85 | AV166: =CVA!D17 -> -38792789.42 | AW166: =CVA!E17 -> -39241626.08 | AX166: 1
AT167: Total | AU167: =SUM(AU158:AU166) -> 22006029.08 | AV167: =SUM(AV158:AV166) -> 22970629.88 | AW167: =SUM(AW158:AW166) -> 23236402.49
AY169: TabFin | BA169: Voltar
AY170: Componentes Financeiros | AZ170: Valor (R$) | BA170: Participação | BB170: Colunas1
AY171: CVA em processamento - Energia | AZ171: =SUMIFS(Financeiros[Valor],Financeiros[idDet1],19,Financeiros[id_Grupo_TARIFA],2,Financeiros[idDet2],60)-Financeiros!D124-Financeiros!D125-Financeiros!D126-Financeiros!D127-Financeiros!D128 -> 53296225.01 | BA171: =AZ171/Financeiros!$D$6 -> 0.02827030626 | BB171: =IF(AZ171<>0,1,0) -> 1
AY172: CVA em processamento -Transporte | AZ172: =SUMIFS(Financeiros[Valor],Financeiros[idDet1],19,Financeiros[id_Grupo_TARIFA],1,Financeiros[idDet2],60, Financeiros[idDet3],999) -> 7983135.252 | BA172: =AZ172/Financeiros!$D$6 -> 0.004234552794 | BB172: 1
AY173: CVA em processamento - Encargos Setoriais | AZ173: =SUMIFS(Financeiros[Valor],Financeiros[idDet1],19,Financeiros[id_Grupo_TARIFA],3,Financeiros[idDet2],60)-Financeiros!D120-Financeiros!D121-Financeiros!D129-Financeiros!D130 -> -38042957.77 | BA173: =AZ173/Financeiros!$D$6 -> -0.02017940421 | BB173: 1 | BC173: modifiquei as fórmulas da tabela de financeiros para incluir a conta covid em uma única linha. Ana.
AY174: Saldo a Compensar CVA-Ano Anterior + Ajustes | AZ174: =SUMIFS(Financeiros[Valor],Financeiros[idDet1],19,Financeiros[idDet2],64, Financeiros[idDet3],999) -> 6672892.956 | BA174: =AZ174/Financeiros!$D$6 -> 0.003539551394 | BB174: =IF(AZ174<>0,1,0) -> 1
AY175: Neutralidade de Parcela A - Encargos Setoriais | AZ175: =SUMIFS(Financeiros[Valor],Financeiros[idDet1],20,Financeiros[id_Grupo_TARIFA],3,Financeiros[idDet2],60, Financeiros[idDet3],999) -> 3590298.436 | BA175: =AZ175/Financeiros!$D$6 -> 0.001904428247 | BB175: =IF(AZ175<>0,1,0) -> 1
AY176: Sobrecontratação/exposição de energia | AZ176: =SUMIFS(Financeiros[Valor],Financeiros[idDet1],22,Financeiros[id_Grupo_TARIFA],2,Financeiros[idDet2],60, Financeiros[idDet3],106)+SUMIFS(Financeiros[Valor],Financeiros[idDet1],22,Financeiros[id_Grupo_TARIFA],2,Financeiros[idDet2],60, Financeiros[idDet3],101) -> 8168577.361 | BA176: =AZ176/Financeiros!$D$6 -> 0.004332918207 | BB176: 1
AY177: Garantias financeiras na contratação regulada de energia (CCEAR) | AZ177: =SUMIFS(Financeiros[Valor],Financeiros[idDet1],22,Financeiros[id_Grupo_TARIFA],2,Financeiros[idDet2],60, Financeiros[idDet3],102) -> 525532.5484 | BA177: =AZ177/Financeiros!$D$6 -> 0.0002787620716 | BB177: 1
AY178: Previsão de Risco Hidrológico | AZ178: =SUM(Financeiros!D70:D74) -> 68525627.75 | BA178: =AZ178/Financeiros!$D$6 -> 0.0363485497 | BB178: 1
AY179: Ajuste ref. equilíbrio econômico-financeiro TUSDg | AZ179: =SUMIFS(Financeiros[Valor],Financeiros[idDet1],22,Financeiros[id_Grupo_TARIFA],4,Financeiros[idDet2],60, Financeiros[idDet3],137) -> 0 | BA179: =AZ179/Financeiros!$D$6 -> 0 | BB179: 0
AY180: Repasse de ultrapassagem de Supridas/Permissionárias de Energia | AZ180: =SUMIFS(Financeiros[Valor],Financeiros[idDet1],22,Financeiros[id_Grupo_TARIFA],2,Financeiros[idDet2],60, Financeiros[idDet3],187) -> 0 | BA180: =AZ180/Financeiros!$D$6 -> 0 | BB180: 0
AY181: Ajuste CUSD | AZ181: =SUMIFS(Financeiros[Valor],Financeiros[idDet1],22,Financeiros[id_Grupo_TARIFA],1,Financeiros[idDet2],60, Financeiros[idDet3],119) -> 277572.3037 | BA181: =AZ181/Financeiros!$D$6 -> 0.0001472347063 | BB181: 1
AY182: Repasse de compensação DIC/FIC | AZ182: =SUMIFS(Financeiros[Valor],Financeiros[idDet1],22,Financeiros[id_Grupo_TARIFA],1,Financeiros[idDet2],60, Financeiros[idDet3],178) -> -114171.1535 | BA182: =AZ182/Financeiros!$D$6 -> -6.05606396e-05 | BB182: 1
AY183: Compensação ref. acordos bilaterais de CCEAR | AZ183: =SUMIFS(Financeiros[Valor],Financeiros[idDet1],22,Financeiros[id_Grupo_TARIFA],2,Financeiros[idDet2],60, Financeiros[idDet3],230) -> 14751243.61 | BA183: =AZ183/Financeiros!$D$6 -> 0.007824609991 | BB183: 1
AY184: Conselho de Consumidores | AZ184: =SUMIFS(Financeiros[Valor],Financeiros[idDet1],22,Financeiros[id_Grupo_TARIFA],4,Financeiros[idDet2],60, Financeiros[idDet3],188) -> 0 | BA184: =AZ184/Financeiros!$D$6 -> 0 | BB184: 0
AY185: Reversão do Risco Hidrológico | AZ185: =SUMIFS(Financeiros[Valor],Financeiros[idDet1],22,Financeiros[id_Grupo_TARIFA],2,Financeiros[idDet2],62, Financeiros[idDet3],220) -> -54962084.77 | BA185: =AZ185/Financeiros!$D$6 -> -0.02915394044 | BB185: 1
AY186: Ressarcimento de P&D | AZ186: =SUMIFS(Financeiros[Valor],Financeiros[idDet1],22,Financeiros[id_Grupo_TARIFA],3,Financeiros[idDet2],60, Financeiros[idDet3],231) -> 0 | BA186: =AZ186/Financeiros!$D$6 -> 0 | BB186: 0
BA187: =AZ187/Financeiros!$D$6 -> 0 | BB187: 0
BA188: =AZ188/Financeiros!$D$6 -> 0 | BB188: 0
BA189: =AZ189/Financeiros!$D$6 -> 0 | BB189: 0
BA190: =AZ190/Financeiros!$D$6 -> 0 | BB190: 0
BA191: =AZ191/Financeiros!$D$6 -> 0 | BB191: 0
BA192: =AZ192/Financeiros!$D$6 -> 0 | BB192: 0
BA193: =AZ193/Financeiros!$D$6 -> 0 | BB193: 0
BA194: =AZ194/Financeiros!$D$6 -> 0 | BB194: 0
BA195: =AZ195/Financeiros!$D$6 -> 0 | BB195: 0
BA196: =AZ196/Financeiros!$D$6 -> 0 | BB196: =IF(AZ196<>0,1,0) -> 0
BA197: =AZ197/Financeiros!$D$6 -> 0 | BB197: 0
BA198: =AZ198/Financeiros!$D$6 -> 0 | BB198: 0
BA199: =AZ199/Financeiros!$D$6 -> 0 | BB199: 0
BA200: =AZ200/Financeiros!$D$6 -> 0 | BB200: 0
BA201: =AZ201/Financeiros!$D$6 -> 0 | BB201: 0
BA202: =AZ202/Financeiros!$D$6 -> 0 | BB202: 0
BA203: =AZ203/Financeiros!$D$6 -> 0 | BB203: 0
AY204: =Financeiros!C99 -> 0 | AZ204: =Financeiros!D99 -> 0 | BA204: =AZ204/Financeiros!$D$6 -> 0 | BB204: =IF(AZ204<>0,1,0) -> 0
AY205: =Financeiros!C100 -> 0 | AZ205: =Financeiros!D100 -> 0 | BA205: =AZ205/Financeiros!$D$6 -> 0 | BB205: =IF(AZ205<>0,1,0) -> 0
AY206: =Financeiros!C101 -> 0 | AZ206: =Financeiros!D101 -> 0 | BA206: =AZ206/Financeiros!$D$6 -> 0 | BB206: =IF(AZ206<>0,1,0) -> 0
AY207: =Financeiros!C102 -> 0 | AZ207: =Financeiros!D102 -> 0 | BA207: =AZ207/Financeiros!$D$6 -> 0 | BB207: =IF(AZ207<>0,1,0) -> 0
AY208: =Financeiros!C103 -> 0 | AZ208: =Financeiros!D103 -> 0 | BA208: =AZ208/Financeiros!$D$6 -> 0 | BB208: 0
BA209: =AZ209/Financeiros!$D$6 -> 0 | BB209: 0
BA210: =AZ210/Financeiros!$D$6 -> 0 | BB210: 0
BA211: =AZ211/Financeiros!$D$6 -> 0 | BB211: 0
BA212: =AZ212/Financeiros!$D$6 -> 0 | BB212: 0
... 163 more rows

Sheet Apresentação
B2: Contratros | C2: Montantes (GWh) | F2: Preço (MWh) | I2: Impacto Revisão
C3: Processo Anterior | D3: Processo Atual | E3: Variação | F3: Processo Anterior | G3: Processo Atual | H3: Variação
B4: CCEAR | C4: =('Votos e NTs'!BT329+'Votos e NTs'!BT330+'Votos e NTs'!BT331+'Votos e NTs'!BT332)/1000 -> 2255.415177 | D4: =('Votos e NTs'!BU329+'Votos e NTs'!BU330+'Votos e NTs'!BU331+'Votos e NTs'!BU332)/1000 -> 1669.19904 | E4: =(D4-C4)/C4 -> -0.2599149564 | F4: =SUM('Votos e NTs'!BZ329:BZ332)/SUM('Votos e NTs'!BT329:BT332) -> 209.2627502 | G4: =SUM('Votos e NTs'!CA329:CA332)/SUM('Votos e NTs'!BU329:BU332) -> 230.4532695 | H4: =(G4-F4)/F4 -> 0.1012627394 | I4: =SUM('Votos e NTs'!CC370:CC373) -> 0.01275041663
B5: Madeira/Belo Monte | C5: ='Votos e NTs'!BT333/1000 -> 270.7709547 | D5: ='Votos e NTs'!BU333/1000 -> 644.3745182 | E5: =(D5-C5)/C5 -> 1.379777103 | F5: ='Votos e NTs'!BW333 -> 144.0521001 | G5: ='Votos e NTs'!BX333 -> 139.7398999 | H5: =(G5-F5)/F5 -> -0.02993500407 | I5: ='Votos e NTs'!CC374 -> -0.009951608185
B6: Cota Angra I e II | C6: ='Votos e NTs'!BT334/1000 -> 148.5627455 | D6: ='Votos e NTs'!BU334/1000 -> 150.388513 | E6: 0.01228953813 | F6: ='Votos e NTs'!BW334 -> 247.47 | G6: ='Votos e NTs'!BX334 -> 269.75 | H6: 0.09003111488 | I6: ='Votos e NTs'!CC375 -> 0.002107484017
B7: Bilateral | C7: ='Votos e NTs'!BT338/1000 -> 438.9636 | D7: ='Votos e NTs'!BU338/1000 -> 438.9636 | E7: 0 | F7: ='Votos e NTs'!BW338 -> 289.276029 | G7: ='Votos e NTs'!BX338 -> 345.5516967 | H7: 0.1945396856 | I7: ='Votos e NTs'!CC379 -> 0.01469336609
B8: Cotas Lei 12.783/2013 | C8: ='Votos e NTs'!BT335/1000 -> 1192.305509 | D8: ='Votos e NTs'!BU335/1000 -> 1121.823782 | E8: -0.05911381446 | F8: ='Votos e NTs'!BW335 -> 107.380036 | G8: ='Votos e NTs'!BX335 -> 114.5854021 | H8: 0.06710154339 | I8: ='Votos e NTs'!CC376 -> 0.008451338671
B9: Proinfa | C9: ='Votos e NTs'!BT341/1000 -> 90.89247849 | D9: ='Votos e NTs'!BU341/1000 -> 91.81751851 | E9: 0.01017729998 | I9: ='Votos e NTs'!CC382 -> -5.279972367e-05
B10: Sobra / Exposição | C10: ='Votos e NTs'!BT342/1000 -> 70.51896579 | D10: ='Votos e NTs'!BU342/1000 -> 372.0818861
B11: Total | C11: =SUM(C4:C10) -> 4467.42943 | D11: =SUM(D4:D10) -> 4488.648858 | E11: =(D11-C11)/C11 -> 0.004749806926 | F11: =Energia!C14 -> 182.7169179 | G11: =Energia!D14 -> 193.6123325 | H11: =(G11-F11)/F11 -> 0.05963002596 | I11: =SUM(I4:I9) -> 0.0279981975
B15: Contratros | C15: Montantes (GWh) | F15: Preço (MWh) | I15: Impacto Revisão
C16: Processo Anterior | D16: Processo Atual | E16: Variação | F16: Processo Anterior | G16: Processo Atual | H16: Variação
B17: ='Votos e NTs'!BS329 -> Existente - CCEAR-DSP | C17: ='Votos e NTs'!BT329/1000 -> 41.850613 | D17: ='Votos e NTs'!BU329/1000 -> 0 | E17: =(D17-C17)/C17 -> -1 | F17: ='Votos e NTs'!BW329 -> 352.0086924 | G17: ='Votos e NTs'!BX329 -> 0 | H17: =(G17-F17)/F17 -> -1 | I17: ='Votos e NTs'!CA350 -> -0.004128136063
B18: ='Votos e NTs'!BS330 -> Existente - CCEAR-QTD | C18: ='Votos e NTs'!BT330/1000 -> 228.3518115 | D18: ='Votos e NTs'!BU330/1000 -> 28.13445 | E18: =(D18-C18)/C18 -> -0.8767934013 | F18: ='Votos e NTs'!BW330 -> 251.6947737 | G18: ='Votos e NTs'!BX330 -> 188.8394547 | H18: =(G18-F18)/F18 -> -0.2497283439 | I18: ='Votos e NTs'!CA351 -> -0.009007970048
B19: ='Votos e NTs'!BS331 -> Nova e Alternativa- CCEAR-DSP | C19: ='Votos e NTs'!BT331/1000 -> 1101.697503 | D19: ='Votos e NTs'!BU331/1000 -> 1131.435629 | E19: 0.02699300539 | F19: ='Votos e NTs'!BW331 -> 228.426165 | G19: ='Votos e NTs'!BX331 -> 243.8941725 | H19: 0.06771556811 | I19: ='Votos e NTs'!CA352 -> 0.01160580411
B20: ='Votos e NTs'!BS332 -> Nova e Alternativa- CCEAR-QTD | C20: ='Votos e NTs'!BT332/1000 -> 883.5152497 | D20: ='Votos e NTs'!BU332/1000 -> 509.6289602 | E20: -0.4231803465 | F20: ='Votos e NTs'!BW332 -> 167.6384308 | G20: ='Votos e NTs'!BX332 -> 202.9102218 | H20: 0.2104039675 | I20: ='Votos e NTs'!CA353 -> 0.01427845181
B21: Madeira/Belo Monte | C21: =C5 -> 270.7709547 | D21: =D5 -> 644.3745182 | E21: =E5 -> 1.379777103 | F21: 144.0521001 | G21: 139.7398999 | H21: -0.02993500407 | I21: -0.009951608185
B22: Cota Angra I e II | C22: =C6 -> 148.5627455 | D22: 150.388513 | E22: 0.01228953813 | F22: 247.47 | G22: 269.75 | H22: 0.09003111488 | I22: 0.002107484017
B23: Itaipu | C23: 438.9636 | D23: 438.9636 | E23: 0 | F23: 289.276029 | G23: 345.5516967 | H23: 0.1945396856 | I23: 0.01469336609
B24: Cotas Lei 12.783/2013 | C24: 1192.305509 | D24: 1121.823782 | E24: -0.05911381446 | F24: 107.380036 | G24: 114.5854021 | H24: 0.06710154339 | I24: 0.008451338671
B25: Proinfa | C25: 90.89247849 | D25: 91.81751851 | E25: 0.01017729998 | I25: -5.279972367e-05
B26: Sobra / Exposição | C26: 70.51896579 | D26: 372.0818861
B27: Total | C27: 4467.42943 | D27: 4488.648858 | E27: 0.004749806926 | F27: 182.7169179 | G27: 193.6123325 | H27: 0.05963002596 | I27: =I11 -> 0.0279981975
I28: =SUM(I17:I25) -> 0.02799593068
K34: Encargos Setoriais | L34: Processo Anterior (mil R$) | M34: Processo Atual (mil R$) | N34: Impacto Revisão
K35: TSFEE | L35: ='Votos e NTs'!BM249/1000 -> 2935.0343 | M35: ='Votos e NTs'!BN249/1000 -> 3160.245593 | N35: ='Votos e NTs'!BP249 -> 0.0001194613713
K36: CDE(Uso) | L36: ='Votos e NTs'!BM250/1000 -> 51169.74309 | M36: ='Votos e NTs'!BN250/1000 -> 71818.54171 | N36: ='Votos e NTs'!BP250 -> 0.0109529756
K37: CDE(conta-ACR) | L37: ='Votos e NTs'!BM252/1000 -> 7830.932165 | M37: ='Votos e NTs'!BN252/1000 -> 1e-08 | N37: ='Votos e NTs'!BP252 -> -0.004153849845
K38: ESS/EER | L38: ='Votos e NTs'!BM254/1000 -> 35882.22035 | M38: ='Votos e NTs'!BN254/1000 -> 39636.91027 | N38: ='Votos e NTs'!BP253 -> 0
K39: PROINFA | L39: ='Votos e NTs'!BM255/1000 -> 34307.00401 | M39: ='Votos e NTs'!BN255/1000 -> 29514.59222 | N39: ='Votos e NTs'!BP254 -> 0.001991642602
K40: P&D | L40: ='Votos e NTs'!BM256/1000 -> 19219.69933 | M40: ='Votos e NTs'!BN256/1000 -> 19690.85938 | N40: ='Votos e NTs'!BP255 -> -0.002542093149
K41: ONS | L41: ='Votos e NTs'!BM257/1000 -> 85.44214213 | M41: ='Votos e NTs'!BN257/1000 -> 85.97189286 | N41: ='Votos e NTs'!BP256 -> 0.0002499227522
K42: Total | L42: ='Votos e NTs'!BM248/1000 -> 151430.0754 | M42: ='Votos e NTs'!BN248/1000 -> 163907.1211 | N42: =LnkTxtAvalEfeitoEncargos -> 0.006618340333
L43: ='Votos e NTs'!BM248/1000 -> 151430.0754 | M43: =SUM(M35:M41) -> 163907.1211 | N43: =SUM(N35:N41) -> 0.006618059331
P44: Financeiros | Q44: Valor (mil R$) | R44: Impacto Revisão
P45: CVA em processamento - Energia | Q45: ='Votos e NTs'!AZ171/1000 -> 53296.22501 | R45: =LnkTxtCVAEnergia -> 0.02827030626
P46: CVA em processamento -Transporte | Q46: ='Votos e NTs'!AZ172/1000 -> 7983.135252 | R46: =LnkTxtCVATransmissao -> 0.004234552794
P47: CVA em processamento - Encargos Setoriais | Q47: ='Votos e NTs'!AZ173/1000 -> -38042.95777 | R47: =LnkTxtCVAEncargos -> -0.02017940421
P48: CVA Saldo a Compensar | Q48: ='Votos e NTs'!AZ174/1000 -> 6672.892956 | R48: =LnkTxtCVACompensar -> 0.003539551394
P49: Neutralidade de Parcela A | Q49: ='Votos e NTs'!AZ175/1000 -> 3590.298436 | R49: =LnkTxtNeutralidade -> 0.001904428247
P50: Sobrecontratação/exposição de energia | Q50: ='Votos e NTs'!AZ176/1000 -> 8168.577361 | R50: ='Votos e NTs'!BA176 -> 0.004332918207
P51: Previsão de Risco Hidrológico | Q51: ='Votos e NTs'!AZ178/1000 -> 68525.62775 | R51: ='Votos e NTs'!BA178 -> 0.0363485497
P52: Reversão do Risco Hidrológico | Q52: ='Votos e NTs'!AZ185/1000 -> -54962.08477 | R52: ='Votos e NTs'!BA185 -> -0.02915394044
P53: Acordos Bilaterais | Q53: ='Votos e NTs'!AZ183/1000 -> 14751.24361 | R53: ='Votos e NTs'!BA183 -> 0.007824609991
P54: Outros | Q54: =('Votos e NTs'!AZ179+'Votos e NTs'!AZ181+'Votos e NTs'!AZ177)/1000 -> 803.1048521 | R54: =('Votos e NTs'!BA179+'Votos e NTs'!BA181+'Votos e NTs'!BA177) -> 0.0004259967779
P55: Total | Q55: =Financeiros!D8/1000 -> -2961.572583 | R55: =Financeiros!E8 -> -0.001570928596
Q56: =SUM(Q45:Q54) -> 70786.06268 | R56: =SUM(R45:R54) -> 0.03754756872
T57: Custos de transporte | U57: Processo anterior (mil R$) | V57: Processo atual (mil R$) | W57: Impacto Revisão
T58: Rede Básica | U58: ='Votos e NTs'!BM259/1000 -> 103257.6323 | V58: ='Votos e NTs'!BN259/1000 -> 139981.2581 | W58: ='Votos e NTs'!BP259 -> 0.01947972783
T59: Rede Básica Fronteira | U59: ='Votos e NTs'!BM260/1000 -> 33344.0727 | V59: ='Votos e NTs'!BN260/1000 -> 47534.5511 | W59: ='Votos e NTs'!BP260 -> 0.007527215825
T60: Rede Básica ONS (A2) | U60: ='Votos e NTs'!BM261/1000 -> 0 | V60: ='Votos e NTs'!BN261/1000 -> 0 | W60: ='Votos e NTs'!BP261 -> 0
T61: Rede Básica Export. (A2) | U61: ='Votos e NTs'!BM262/1000 -> 0 | V61: ='Votos e NTs'!BN262/1000 -> 0 | W61: ='Votos e NTs'!BP261 -> 0
T62: MUST Itaipu | U62: ='Votos e NTs'!BM263/1000 -> 0 | V62: ='Votos e NTs'!BN263/1000 -> 0 | W62: ='Votos e NTs'!BP263 -> 0
T63: Transporte de Itaipu | U63: ='Votos e NTs'!BM264/1000 -> 0 | V63: ='Votos e NTs'!BN264/1000 -> 0 | W63: ='Votos e NTs'!BP264 -> 0
T64: Conexão | U64: ='Votos e NTs'!BM265/1000 -> 8225.663849 | V64: ='Votos e NTs'!BN265/1000 -> 12433.26769 | W64: ='Votos e NTs'!BP265 -> 0.002231886857
T65: Uso do sistema de distribuição | U65: ='Votos e NTs'!BM266/1000 -> 9401.575197 | V65: ='Votos e NTs'!BN266/1000 -> 10347.09022 | W65: ='Votos e NTs'!BP266 -> 0.0005015402208
T66: Custos de Transmissão | U66: ='Votos e NTs'!BM258/1000 -> 154228.9441 | V66: ='Votos e NTs'!BN258/1000 -> 210296.1671 | W66: =LnkTxtAvalEfeitoTrans -> 0.02974037073
U67: =SUM(U58:U65) -> 154228.9441 | V67: 210296.1671 | W67: =SUM(W58:W65) -> 0.02974037073
Y68: Subgrupo | Z68: Efeito
Y69: Grupo A | Z69: ='Votos e NTs'!BJ240 -> 0.06604201213
Y70: Grupo B | Z70: ='Votos e NTs'!BJ241 -> 0.03609061751
Y71: Grupo A + B | Z71: ='Votos e NTs'!BJ242 -> 0.04278521104
AB73: ='Votos e NTs'!AP147 -> Descrição | AC73: ='Votos e NTs'!AQ147&" (mil R$)" -> Valores (mil R$) | AD73: ='Votos e NTs'!AR147 -> Referência
AB74: ='Votos e NTs'!AP148 -> (1) Parcela B - DRA (R$) | AC74: ='Votos e NTs'!AQ148/1000 -> 763302.9604 | AD74: ='Votos e NTs'!AR148 -> PB0 = RV - PA0
AB75: ='Votos e NTs'!AP149 -> (2) IGP-M | AC75: ='Votos e NTs'!AQ149 -> 0.09271918915 | AD75: ='Votos e NTs'!AR149 -> SGT/ANEEL
AB76: ='Votos e NTs'!AP150 -> (3) Fator X | AC76: ='Votos e NTs'!AQ150 -> 0.01787940721
AB77: ='Votos e NTs'!AP151 -> (3.1) Componente Pd do Fator X | AC77: ='Votos e NTs'!AQ151 -> 0.006855664908 | AD77: ='Votos e NTs'!AR151 -> REH 2.588/2019
AB78: ='Votos e NTs'!AP152 -> (3.2) Componente T do Fator X | AC78: ='Votos e NTs'!AQ152 -> 0.003902591629 | AD78: ='Votos e NTs'!AR152 -> REH 2.588/2019
AB79: ='Votos e NTs'!AP153 -> (3.3) Componente Q do Fator X | AC79: ='Votos e NTs'!AQ153 -> 0.001328011567 | AD79: ='Votos e NTs'!AR153 -> PRORET 2.5 A
AB80: ='Votos e NTs'!AP154 -> Parcela B - DRP (R$) = [(1)*((2)-(3))] | AC80: ='Votos e NTs'!AQ154/1000 -> 820428.3875
AF82: Indicador | AG82: Variação
AF83: IGP-M | AG83: ='Votos e NTs'!AH28 -> 0
AF84: IPCA | AG84: ='Votos e NTs'!AH29 -> 0
AF85: B1 Residentical | AG85: ='Votos e NTs'!AH27 -> 0

Sheet Mercado
B2: DADOS DE MERCADO DE ENERGIA E RECEITA VERIFICADA | G2: Anexo II | H2: =Resultado!$D$6 -> 0.09465788237
G3: Anexo I | H3: =Resultado!$D$8 -> 0.09308695377
M5: TipoMercado | R5: AnoMes
B6: Dados de Mercado | M6: Regular | R6: =DATE(YEAR(R8),MONTH(R8)-1,1) -> 43678
R7: AnoMes
B8: Descrição | C8: MERCADO (MWh) | D8: RECEITA (R$) | F8: DESCRIÇÃO | G8: POR DENTRO | J8: Critérios | L8: Para º de consumidores | R8: =DATE(YEAR(R10),MONTH(R10)-1,1) -> 43709
B9: FORNECIMENTO | C9: =SUM(C10:C16) -> 3708326.721 | D9: =SUM(D10:D16) -> 1771626446 | F9: ICMS | G9: =SUM(INDIRECT("DADOS_MercadoBase[ICMS]"))/SUM(INDIRECT("DADOS_MercadoBase[ICMS]"),INDIRECT("DADOS_MercadoBase[PisPasep]"),INDIRECT("DADOS_MercadoBase[Cofins]"),INDIRECT("DADOS_MercadoBase[FinTotAj]")) -> 0.2452140179 | J9: Subgrupo | K9: OPÇÃO | M9: AnoMes | N9: Subgrupo | O9: OPÇÃO | R9: AnoMes
B10: A1 | C10: =DSUM(Mercado_Receita!A:AAA,"TUSD_E",J9:K10) -> 0 | D10: =DSUM(Mercado_Receita!A:AAA,"total",J9:K10) -> 0 | F10: PIS/COFINS | G10: =SUM( INDIRECT("DADOS_MercadoBase[Cofins]"), INDIRECT("DADOS_MercadoBase[PisPasep]"))/SUM( INDIRECT("DADOS_MercadoBase[ICMS]"), INDIRECT("DADOS_MercadoBase[PisPasep]"), INDIRECT("DADOS_MercadoBase[Cofins]"), INDIRECT("DADOS_MercadoBase[FinTotAj]")) -> 0.05988455888 | J10: A1 | K10: Cativo | M10: =DMAX(MercadoBase,"AnoMes",M5:M6) -> 43983 | N10: A1 | O10: Suprimento | R10: =DATE(YEAR(R12),MONTH(R12)-1,1) -> 43739
B11: A2 | C11: =DSUM(Mercado_Receita!A:AAA,"TUSD_E",J11:K12) -> 0 | D11: =DSUM(Mercado_Receita!A:AAA,"total",J11:K12) -> 0 | J11: Subgrupo | K11: OPÇÃO | M11: AnoMes | N11: Subgrupo | O11: OPÇÃO | P11: Subgrupo | R11: AnoMes
B12: A3 | C12: =DSUM(Mercado_Receita!A:AAA,"TUSD_E",J13:K14) -> 90882.197 | D12: =DSUM(Mercado_Receita!A:AAA,"total",J13:K14) -> 26008790.61 | F12: MWh Ano Anterior | G12: =BD!C45 -> 4572863.475 | J12: A2 | K12: Cativo | M12: =$M$10 -> 43983 | N12: A2 | O12: Livre | P12: A1 | R12: =DATE(YEAR(R14),MONTH(R14)-1,1) -> 43770
B13: A3a | C13: =DSUM(Mercado_Receita!A:AAA,"TUSD_E",J15:K16) -> 0 | D13: =DSUM(Mercado_Receita!A:AAA,"total",J15:K16) -> 0 | F13: Variação | G13: =C24/G12-1 -> -0.01064934483 | J13: Subgrupo | K13: OPÇÃO | M13: AnoMes | N13: Subgrupo | O13: OPÇÃO | R13: AnoMes
B14: A4 | C14: =DSUM(Mercado_Receita!A:AAA,"TUSD_E",J17:K18) -> 646378.796 | D14: =DSUM(Mercado_Receita!A:AAA,"total",J17:K18) -> 280494778.6 | F14: R$ Ano Anterior | G14: =BD!C46 -> 1891757361 | J14: ="=A3" -> =A3 | K14: Cativo | M14: =$M$10 -> 43983 | N14: ="=A3" -> =A3 | O14: Distribuição | R14: =DATE(YEAR(R16),MONTH(R16)-1,1) -> 43800
B15: As | C15: =DSUM(Mercado_Receita!A:AAA,"TUSD_E",J19:K20) -> 0 | D15: =DSUM(Mercado_Receita!A:AAA,"total",J19:K20) -> 0 | F15: Variação | G15: =D24/G14-1 -> -0.003446765683 | J15: Subgrupo | K15: OPÇÃO | M15: AnoMes | N15: Subgrupo | O15: OPÇÃO | R15: AnoMes
B16: BT | C16: =DSUM(Mercado_Receita!A:AAA,"TUSD_E",J21:K22) -> 2971065.728 | D16: =DSUM(Mercado_Receita!A:AAA,"total",J21:K22) -> 1465122877 | J16: ="=A3a" -> =A3a | K16: Cativo | M16: =$M$10 -> 43983 | N16: ="=A3a" -> =A3a | O16: Geração | R16: =DATE(YEAR(R18),MONTH(R18)-1,1) -> 43831
B17: SUPRIMENTO (Mercado TE) | C17: =DSUM(Mercado_Receita!A:AAA,"TE_E",O9:P10) -> 0 | D17: =DSUM(Mercado_Receita!A:AAA,"total",O9:P10) -> 0 | F17: Itens RTE (Anualizado) | J17: Subgrupo | K17: OPÇÃO | M17: AnoMes | N17: Subgrupo | O17: OPÇÃO | R17: AnoMes
B18: LIVRES A1 | C18: =DSUM(Mercado_Receita!A:AAA,"TUSD_E",O11:P12) -> 0 | D18: =DSUM(Mercado_Receita!A:AAA,"total",O11:P12) -> 0 | F18: Energia | J18: A4 | K18: Cativo | M18: =$M$10 -> 43983 | N18: A4 | O18: Livre | R18: =DATE(YEAR(R20),MONTH(R20)-1,1) -> 43862
B19: DEMAIS LIVRES | C19: =DSUM(Mercado_Receita!A:AAA,"TUSD_E",O19:P20)+DSUM(Mercado_Receita!A:AAA,"TUSD_E",O17:P18)-C18 -> 623465.419 | D19: =DSUM(Mercado_Receita!A:AAA,"total",O19:P20)+DSUM(Mercado_Receita!A:AAA,"TOTAL",O17:P18)-D18 -> 73666226.08 | F19: CDE Uso | J19: Subgrupo | K19: OPÇÃO | M19: AnoMes | N19: Subgrupo | O19: OPÇÃO | R19: AnoMes
B20: DISTRIBUIÇÃO | C20: =DSUM(Mercado_Receita!A:AAA,"TUSD_E",O13:P14) -> 192373.335 | D20: =DSUM(Mercado_Receita!A:AAA,"total",O13:P14) -> 15830800.71 | F20: CDE Energia | J20: AS | K20: Cativo | M20: =$M$10 -> 43983 | N20: AS | O20: erc | R20: =DATE(YEAR(R22),MONTH(R22)-1,1) -> 43891
B21: GERADOR | D21: =DSUM(Mercado_Receita!A:AAA,"total",O15:P16) -> 24113443.79 | F21: CUSD | J21: Subgrupo | K21: OPÇÃO | M21: AnoMes | N21: Subgrupo | R21: AnoMes
B22: CDE Baixa Renda | F22: P&D | J22: ="=B*" -> =B* | K22: Cativo | M22: =$M$10 -> 43983 | N22: ="=B*" -> =B* | R22: =DATE(YEAR(R24),MONTH(R24)-1,1) -> 43922
B23: AJUSTE ECONÔMICO - BOLHA | J23: Subclasse | K23: OPÇÃO | R23: AnoMes
B24: TOTAL | C24: =SUM(C10:C23) -> 4524165.475 | D24: =SUM(D10:D23) -> 1885236916 | J24: ="=Residencial baixa renda*" -> =Residencial baixa renda* | K24: Cativo | R24: =DATE(YEAR(R26),MONTH(R26)-1,1) -> 43952
B25: ENERGIA DESTINADA APE/PIE | F25: 1 | J25: Classe | L25: AnoMes | R25: AnoMes
B26: MERCADO TOTAL BAIXA RENDA | C26: =DSUM(Mercado_Receita!A:AAA,"TUSD_E",J23:K24) -> 494542.856 | J26: Residencial | L26: =$M$10 -> 43983 | R26: =DATE(YEAR(R28),MONTH(R28)-1,1) -> 43983
J27: Classe | L27: AnoMes | R27: AnoMes
J28: Industrial | L28: 43983 | R28: =B65 -> 44013
B29: DESCRIÇÃO - Tipo | C29: RECEITA (R$) | D29: % Total | J29: Classe | L29: AnoMes
B30: Residencial | C30: =DSUM(Mercado_Receita!A:AAA,"total",J25:K26) -> 938455616.8 | D30: =IFERROR(C30/$C$38,0) -> 0.4977918736 | J30: Comercial | L30: 43983
B31: Industrial | C31: =DSUM(Mercado_Receita!A:AAA,"total",J27:K28) -> 146456873.7 | D31: =IFERROR(C31/$C$38,0) -> 0.07768619023 | J31: Classe | L31: AnoMes
B32: Comercial | C32: =DSUM(Mercado_Receita!A:AAA,"total",J29:K30) -> 323331818.1 | D32: 0.1715072601 | J32: Rural | L32: 43983
B33: Rural | C33: =DSUM(Mercado_Receita!A:AAA,"total",J31:K32) -> 152219405 | D33: 0.08074285181 | J33: Classe | L33: AnoMes
B34: Iluminação Pública | C34: =DSUM(Mercado_Receita!A:AAA,"total",J33:K34) -> 72890107.13 | D34: 0.0386636324 | J34: Iluminação Pública | L34: 43983
B35: Poder Público | C35: =DSUM(Mercado_Receita!A:AAA,"total",J35:K36) -> 123384682.5 | D35: 0.06544783918 | J35: Classe | L35: AnoMes
B36: Serviço Público | C36: =DSUM(Mercado_Receita!A:AAA,"total",J37:K38) -> 86434732.23 | D36: 0.04584820691 | J36: Poder Público | L36: 43983
B37: Demais | C37: =D24-SUM(C30:C36) -> 42063680.99 | D37: 0.02231214582 | J37: Classe | L37: AnoMes
B38: TOTAL | C38: =SUM(C30:C37) -> 1885236916 | D38: =SUM(D30:D37) -> 1 | J38: Serviço público | L38: 43983
J39: Classe | L39: AnoMes
B40: nº de consumidores | E40: Classe | F40: nº de consumidores | G40: MWh mensal | J40: * | L40: 43983
B41: A1 | C41: =DSUM(Mercado_Receita!A:AAA,"UC",L9:N10) -> 0 | E41: Residencial | F41: =DSUM(Mercado_Receita!$A:$AAA,"UC",$J$25:$L$26) -> 1201128 | G41: =DSUM(Mercado_Receita!$A:$AAA,"TUSD_E",$J$25:$L$26) -> 141624.222
B42: A2 | C42: =DSUM(Mercado_Receita!A:AAA,"UC",L11:N12) -> 0 | E42: Industrial | F42: =DSUM(Mercado_Receita!$A:$AAA,"UC",$J$27:$L$28) -> 3955 | G42: =DSUM(Mercado_Receita!$A:$AAA,"TUSD_E",$J$27:$L$28) -> 52010.343
B43: A3 | C43: =DSUM(Mercado_Receita!A:AAA,"UC",L13:N14) -> 25 | E43: Comercial | F43: =DSUM(Mercado_Receita!$A:$AAA,"UC",$J$29:$L$30) -> 94458 | G43: =DSUM(Mercado_Receita!$A:$AAA,"TUSD_E",$J$29:$L$30) -> 41793.087
B44: A3a | C44: =DSUM(Mercado_Receita!A:AAA,"UC",L15:N16) -> 0 | E44: Rural | F44: =DSUM(Mercado_Receita!$A:$AAA,"UC",$J$31:$L$32) -> 136246 | G44: =DSUM(Mercado_Receita!$A:$AAA,"TUSD_E",$J$31:$L$32) -> 20275.55
B45: A4 | C45: =DSUM(Mercado_Receita!A:AAA,"UC",L17:N18) -> 1867 | E45: Iluminação Pública | F45: =DSUM(Mercado_Receita!$A:$AAA,"UC",$J$33:$L$34) -> 757 | G45: =DSUM(Mercado_Receita!$A:$AAA,"TUSD_E",$J$33:$L$34) -> 20206.263
B46: As | C46: =DSUM(Mercado_Receita!A:AAA,"UC",L19:N20) -> 0 | E46: Poder Público | F46: =DSUM(Mercado_Receita!$A:$AAA,"UC",$J$35:$L$36) -> 16827 | G46: =DSUM(Mercado_Receita!$A:$AAA,"TUSD_E",$J$35:$L$36) -> 14631.554
B47: BT | C47: =DSUM(Mercado_Receita!A:AAA,"UC",L21:N22) -> 1452777 | E47: Serviço Público | F47: =DSUM(Mercado_Receita!$A:$AAA,"UC",$J$37:$L$38) -> 1001 | G47: =DSUM(Mercado_Receita!$A:$AAA,"TUSD_E",$J$37:$L$38) -> 17497.644
E48: Demais | F48: =DSUM(Mercado_Receita!A:AAA,"UC",$J$39:$L$40)-SUM(F$41:F$47) -> 297 | G48: =DSUM(Mercado_Receita!B:AAB,"TUSD_E",$J$39:$L$40)-SUM(G$41:G$47) -> 15331.457
E49: ="Fonte: SAMP - "&TEXT(L26,"mmmm/aa") -> Fonte: SAMP - junho/20
B52: Arrecadação dos Encargos
B53: Competência | D53: PeD | E53: ONS | F53: ESSERR | G53: PROINFA | H53: CDE | I53: TFSEE | J53: CFURH | K53: CVA_Energia | L53: CVA_RB | M53: CVA_CDE | N53: CVA_CFURH | O53: CVA_TranItaipu | P53: CVA_ESSERR | Q53: CVA_PROINFA | R53: Fator Selic | S53: RTE_Energia | T53: RTE_CDE_USO | U53: RTE_CDE_E | V53: RTE_CUSD | W53: RTE_PeD | X53: CVA_CDE_E | Y53: CVA_CCC | Z53: DISTRIBUICAO | AA53: cDE_E_ACR | AB53: CDE_E_Dec
B54: =DATE(YEAR(B55),MONTH(B55)-1,1) -> 43678 | D54: =DSUM(MercadoBase,D$53,INDIRECT("r"&5+2*(ROW()-54)&":r"&6+2*(ROW()-54))) -> 1455512.518 | E54: 6798.825362 | F54: 2738891.306 | G54: 2753314.76 | H54: 4072206.513 | I54: 223798.1965 | J54: 0 | K54: 12552651.69 | L54: 419353.2686 | M54: 696623.7474 | N54: 0 | O54: 0 | P54: -3449880.424 | Q54: 258716.1437 | R54: =VLOOKUP(CAPA!$C$15,Índices!B:F,5,FALSE)/VLOOKUP(DATE(YEAR(B54),MONTH(B54),1),Índices!B:F,5,FALSE) -> 1.036944216 | S54: =DSUM(MercadoBase,S$53,INDIRECT("r"&5+2*(ROW()-54)&":r"&6+2*(ROW()-54))) -> 0 | T54: 0 | U54: 0 | V54: 0 | W54: 0 | X54: -434806.3282 | Y54: 0 | Z54: =DSUM(MercadoBase,Z$53,INDIRECT("r"&5+2*(ROW()-54)&":r"&6+2*(ROW()-54))) -> 57989450.74 | AA54: =DSUM(MercadoBase,AA$53,INDIRECT("r"&5+2*(ROW()-54)&":r"&6+2*(ROW()-54))) -> 597735.3634 | AB54: 0
B55: 43709 | D55: 1511189.99 | E55: 6942.037426 | F55: 2850582.765 | G55: 2814178.542 | H55: 4171996.284 | I55: 231479.8323 | J55: 0 | K55: 13048639.35 | L55: 431831.6734 | M55: 713694.5722 | N55: 0 | O55: 0 | P55: -3590565.882 | Q55: 264435.2293 | R55: =VLOOKUP(CAPA!$C$15,Índices!B:F,5,FALSE)/VLOOKUP(DATE(YEAR(B55),MONTH(B55),1),Índices!B:F,5,FALSE) -> 1.032157482 | S55: 0 | T55: 0 | U55: 0 | V55: 0 | W55: 0 | X55: -452537.6463 | Y55: 0 | Z55: 60013482.93 | AA55: 622110.8961 | AB55: 0
B56: 43739 | D56: 1616137.863 | E56: 7405.589711 | F56: 3028846.819 | G56: 3033618.24 | H56: 4495227.443 | I56: 247980.342 | J56: 0 | K56: 13884434.35 | L56: 451994.864 | M56: 768989.0423 | N56: 0 | O56: 0 | P56: -3815105.524 | Q56: 285054.954 | R56: =VLOOKUP(CAPA!$C$15,Índices!B:F,5,FALSE)/VLOOKUP(DATE(YEAR(B56),MONTH(B56),1),Índices!B:F,5,FALSE) -> 1.027234317 | S56: 0 | T56: 0 | U56: 0 | V56: 0 | W56: 0 | X56: -480837.5423 | Y56: 0 | Z56: 63867887.33 | AA56: 661015.2255 | AB56: 0
B57: 43770 | D57: 1665372.298 | E57: 7542.575132 | F57: 3136072.744 | G57: 3089547.4 | H57: 4586988.338 | I57: 254845.0698 | J57: 0 | K57: 14349060.83 | L57: 460360.5722 | M57: 784686.3845 | N57: 0 | O57: 0 | P57: -3950166.239 | Q57: 290310.3563 | R57: =VLOOKUP(CAPA!$C$15,Índices!B:F,5,FALSE)/VLOOKUP(DATE(YEAR(B57),MONTH(B57),1),Índices!B:F,5,FALSE) -> 1.023341673 | S57: 0 | T57: 0 | U57: 0 | V57: 0 | W57: 0 | X57: -497859.9449 | Y57: 0 | Z57: 65390927.91 | AA57: 684416.2005 | AB57: 0
B58: 43800 | D58: 1748761.411 | E58: 7678.341596 | F58: 3288232.073 | G58: 3140485.954 | H58: 4687716.874 | I58: 265909.6913 | J58: 0 | K58: 15038741.18 | L58: 479669.2522 | M58: 801917.8019 | N58: 0 | O58: 0 | P58: -4141824.626 | Q58: 295096.8145 | R58: =VLOOKUP(CAPA!$C$15,Índices!B:F,5,FALSE)/VLOOKUP(DATE(YEAR(B58),MONTH(B58),1),Índices!B:F,5,FALSE) -> 1.019521486 | S58: 0 | T58: 0 | U58: 0 | V58: 0 | W58: 0 | X58: -522015.6457 | Y58: 0 | Z58: 68644718.55 | AA58: 717623.4371 | AB58: 0
B59: 43831 | D59: 1748808.729 | E59: 7779.939912 | F59: 3277485.488 | G59: 3189056.476 | H59: 4746137.672 | I59: 267074.8483 | J59: 0 | K59: 15008539.89 | L59: 478977.1805 | M59: 811911.724 | N59: 0 | O59: 0 | P59: -4128288.335 | Q59: 299660.7599 | R59: =VLOOKUP(CAPA!$C$15,Índices!B:F,5,FALSE)/VLOOKUP(DATE(YEAR(B59),MONTH(B59),1),Índices!B:F,5,FALSE) -> 1.015696036 | S59: 0 | T59: 0 | U59: 0 | V59: 0 | W59: 0 | X59: -520309.5967 | Y59: 0 | Z59: 68698869.55 | AA59: 715278.1037 | AB59: 0
B60: 43862 | D60: 1721071.812 | E60: 7684.877955 | F60: 3229031.217 | G60: 3147794.615 | H60: 4683706.47 | I60: 262848.3965 | J60: 0 | K60: 14789788.04 | L60: 473647.2846 | M60: 801231.7505 | N60: 0 | O60: 0 | P60: -4067255.813 | Q60: 295783.5754 | R60: =VLOOKUP(CAPA!$C$15,Índices!B:F,5,FALSE)/VLOOKUP(DATE(YEAR(B60),MONTH(B60),1),Índices!B:F,5,FALSE) -> 1.012721383 | S60: 0 | T60: 0 | U60: 0 | V60: 0 | W60: 0 | X60: -512617.3514 | Y60: 0 | Z60: 67690562.24 | AA60: 704703.4484 | AB60: 0
B61: 43891 | D61: 1726730.822 | E61: 7531.836358 | F61: 3193908.116 | G61: 3046265.814 | H61: 4558019.349 | I61: 263137.9053 | J61: 0 | K61: 14661115.24 | L61: 478410.5747 | M61: 779730.7207 | N61: 0 | O61: 0 | P61: -4023015.102 | Q61: 286243.3876 | R61: =VLOOKUP(CAPA!$C$15,Índices!B:F,5,FALSE)/VLOOKUP(DATE(YEAR(B61),MONTH(B61),1),Índices!B:F,5,FALSE) -> 1.009306203 | S61: 0 | T61: 0 | U61: 0 | V61: 0 | W61: 0 | X61: -507041.4651 | Y61: 0 | Z61: 68719905.66 | AA61: 697038.1864 | AB61: 0
B62: 43922 | D62: 1626563.239 | E62: 6846.917436 | F62: 2999673.558 | G62: 2675287.899 | H62: 4036717.549 | I62: 246131.4016 | J62: 0 | K62: 13755797.19 | L62: 457342.0905 | M62: 690552.7254 | N62: 0 | O62: 0 | P62: -3778359.172 | Q62: 251384.3235 | R62: =VLOOKUP(CAPA!$C$15,Índices!B:F,5,FALSE)/VLOOKUP(DATE(YEAR(B62),MONTH(B62),1),Índices!B:F,5,FALSE) -> 1.006438608 | S62: 0 | T62: 0 | U62: 0 | V62: 0 | W62: 0 | X62: -476206.2089 | Y62: 0 | Z62: 65422462.79 | AA62: 654648.4559 | AB62: 0
B63: 43952 | D63: 1605027.652 | E63: 6830.10733 | F63: 2958429.329 | G63: 2654331.373 | H63: 3996651.33 | I63: 243624.3208 | J63: 0 | K63: =DSUM(MercadoBase,K$53,INDIRECT("r"&5+2*(ROW()-54)&":r"&6+2*(ROW()-54)))*IF(VLOOKUP("MesesAdin",TabPostergacao[#All],2,FALSE)>2,0,1) -> 13578150.61 | L63: =DSUM(MercadoBase,L$53,INDIRECT("r"&5+2*(ROW()-54)&":r"&6+2*(ROW()-54)))*IF(VLOOKUP("MesesAdin",TabPostergacao[#All],2,FALSE)>2,0,1) -> 452068.7039 | M63: =DSUM(MercadoBase,M$53,INDIRECT("r"&5+2*(ROW()-54)&":r"&6+2*(ROW()-54)))*IF(VLOOKUP("MesesAdin",TabPostergacao[#All],2,FALSE)>2,0,1) -> 683698.6822 | N63: =DSUM(MercadoBase,N$53,INDIRECT("r"&5+2*(ROW()-54)&":r"&6+2*(ROW()-54)))*IF(VLOOKUP("MesesAdin",TabPostergacao[#All],2,FALSE)>2,0,1) -> 0 | O63: =DSUM(MercadoBase,O$53,INDIRECT("r"&5+2*(ROW()-54)&":r"&6+2*(ROW()-54)))*IF(VLOOKUP("MesesAdin",TabPostergacao[#All],2,FALSE)>2,0,1) -> 0 | P63: =DSUM(MercadoBase,P$53,INDIRECT("r"&5+2*(ROW()-54)&":r"&6+2*(ROW()-54)))*IF(VLOOKUP("MesesAdin",TabPostergacao[#All],2,FALSE)>2,0,1) -> -3726408.349 | Q63: =DSUM(MercadoBase,Q$53,INDIRECT("r"&5+2*(ROW()-54)&":r"&6+2*(ROW()-54)))*IF(VLOOKUP("MesesAdin",TabPostergacao[#All],2,FALSE)>2,0,1) -> 249415.1365 | R63: =VLOOKUP(CAPA!$C$15,Índices!B:F,5,FALSE)/VLOOKUP(DATE(YEAR(B63),MONTH(B63),1),Índices!B:F,5,FALSE) -> 1.004070913 | S63: 0 | T63: 0 | U63: 0 | V63: 0 | W63: 0 | X63: -469658.5771 | Y63: 0 | Z63: 64473714.29 | AA63: 645647.3195 | AB63: 0
B64: 43983 | D64: 1397261.497 | E64: 6200.546957 | F64: 2590533.47 | G64: 2381561.47 | H64: 3567187.635 | I64: 214102.1477 | J64: 0 | K64: =DSUM(MercadoBase,K$53,INDIRECT("r"&5+2*(ROW()-54)&":r"&6+2*(ROW()-54)))*IF(VLOOKUP("MesesAdin",TabPostergacao[#All],2,FALSE)>1,0,1) -> 11888955.42 | L64: =DSUM(MercadoBase,L$53,INDIRECT("r"&5+2*(ROW()-54)&":r"&6+2*(ROW()-54)))*IF(VLOOKUP("MesesAdin",TabPostergacao[#All],2,FALSE)>1,0,1) -> 405283.0461 | M64: =DSUM(MercadoBase,M$53,INDIRECT("r"&5+2*(ROW()-54)&":r"&6+2*(ROW()-54)))*IF(VLOOKUP("MesesAdin",TabPostergacao[#All],2,FALSE)>1,0,1) -> 610231.2371 | N64: =DSUM(MercadoBase,N$53,INDIRECT("r"&5+2*(ROW()-54)&":r"&6+2*(ROW()-54)))*IF(VLOOKUP("MesesAdin",TabPostergacao[#All],2,FALSE)>1,0,1) -> 0 | O64: =DSUM(MercadoBase,O$53,INDIRECT("r"&5+2*(ROW()-54)&":r"&6+2*(ROW()-54)))*IF(VLOOKUP("MesesAdin",TabPostergacao[#All],2,FALSE)>1,0,1) -> 0 | P64: =DSUM(MercadoBase,P$53,INDIRECT("r"&5+2*(ROW()-54)&":r"&6+2*(ROW()-54)))*IF(VLOOKUP("MesesAdin",TabPostergacao[#All],2,FALSE)>1,0,1) -> -3263010.36 | Q64: =DSUM(MercadoBase,Q$53,INDIRECT("r"&5+2*(ROW()-54)&":r"&6+2*(ROW()-54)))*IF(VLOOKUP("MesesAdin",TabPostergacao[#All],2,FALSE)>1,0,1) -> 223784.2212 | R64: =VLOOKUP(CAPA!$C$15,Índices!B:F,5,FALSE)/VLOOKUP(DATE(YEAR(B64),MONTH(B64),1),Índices!B:F,5,FALSE) -> 1.001943464 | S64: 0 | T64: 0 | U64: 0 | V64: 0 | W64: 0 | X64: -411254.1244 | Y64: 0 | Z64: 56441574.34 | AA64: 565357.7642 | AB64: 0
B65: =DATE(YEAR(CAPA!C10),MONTH(CAPA!C10)-1,1) -> 44013 | D65: 1397261.497 | E65: 6200.546957 | F65: 2590533.47 | G65: 2381561.47 | H65: 3567187.635 | I65: 214102.1477 | J65: 0 | K65: =DSUM(MercadoBase,K$53,INDIRECT("r"&5+2*(ROW()-54)&":r"&6+2*(ROW()-54)))*IF(VLOOKUP("MesesAdin",TabPostergacao[#All],2,FALSE)>0,0,1) -> 11888955.42 | L65: =DSUM(MercadoBase,L$53,INDIRECT("r"&5+2*(ROW()-54)&":r"&6+2*(ROW()-54)))*IF(VLOOKUP("MesesAdin",TabPostergacao[#All],2,FALSE)>0,0,1) -> 405283.0461 | M65: =DSUM(MercadoBase,M$53,INDIRECT("r"&5+2*(ROW()-54)&":r"&6+2*(ROW()-54)))*IF(VLOOKUP("MesesAdin",TabPostergacao[#All],2,FALSE)>0,0,1) -> 610231.2371 | N65: =DSUM(MercadoBase,N$53,INDIRECT("r"&5+2*(ROW()-54)&":r"&6+2*(ROW()-54)))*IF(VLOOKUP("MesesAdin",TabPostergacao[#All],2,FALSE)>0,0,1) -> 0 | O65: =DSUM(MercadoBase,O$53,INDIRECT("r"&5+2*(ROW()-54)&":r"&6+2*(ROW()-54)))*IF(VLOOKUP("MesesAdin",TabPostergacao[#All],2,FALSE)>0,0,1) -> 0 | P65: =DSUM(MercadoBase,P$53,INDIRECT("r"&5+2*(ROW()-54)&":r"&6+2*(ROW()-54)))*IF(VLOOKUP("MesesAdin",TabPostergacao[#All],2,FALSE)>0,0,1) -> -3263010.36 | Q65: =DSUM(MercadoBase,Q$53,INDIRECT("r"&5+2*(ROW()-54)&":r"&6+2*(ROW()-54)))*IF(VLOOKUP("MesesAdin",TabPostergacao[#All],2,FALSE)>0,0,1) -> 223784.2212 | R65: =VLOOKUP(CAPA!$C$15,Índices!B:F,5,FALSE)/VLOOKUP(DATE(YEAR(B65),MONTH(B65),1),Índices!B:F,5,FALSE) -> 1 | S65: 0 | T65: 0 | U65: 0 | V65: 0 | W65: 0 | X65: -411254.1244 | Y65: 0 | Z65: 56441574.34 | AA65: 565357.7642 | AB65: 0
B66: Total Bruto | D66: =SUM(D54:D65) -> 19219699.33 | E66: 85442.14213 | F66: 35882220.35 | G66: 34307004.01 | H66: 51169743.09 | I66: 2935034.3 | J66: 0 | K66: 164444829.2 | L66: 5394221.557 | M66: 8753499.625 | N66: 0 | O66: 0 | P66: -45196890.19 | Q66: 3223669.123 | S66: =SUM(S54:S65) -> 0 | T66: 0 | U66: 0 | V66: 0 | W66: 0 | X66: -5696398.555 | Y66: 0 | Z66: 763795130.7 | AA66: 7830932.165 | AB66: 0
B67: Total Atualizado pelo SELIC | D67: =SUMPRODUCT(D54:D65,$R$54:$R$65) -> 19524228.91 | E67: 86818.10221 | F67: 36453591.31 | G67: 34866368.82 | H67: 52001042.28 | I67: 2981616.438 | J67: 0 | K67: 167061941.1 | L67: 5479588.377 | M67: 8895708.218 | N67: 0 | O67: 0 | P67: -45916583.4 | Q67: 3276230.024 | R67: 12.38337478 | S67: 0 | T67: 0 | U67: 0 | V67: 0 | W67: 0 | X67: -5787105.225 | Y67: 0 | Z67: 775845494.3 | AA67: 7955628.106 | AB67: 0
B71: =B53 -> Competência | C71: 0 | D71: PeD | E71: ONS | F71: ESSERR | G71: PROINFA | H71: CDE | I71: TFSEE | J71: CFURH | K71: CVA_Energia | L71: CVA_RB | M71: CVA_CDE | N71: CVA_CFURH | O71: CVA_TranItaipu | P71: CVA_ESSERR | Q71: CVA_PROINFA | R71: Fator Selic | S71: RTE_Energia | T71: RTE_CDE_USO | U71: RTE_CDE_E | V71: RTE_CUSD | W71: RTE_PeD | X71: CVA_CDE_E | Y71: CVA_CCC | Z71: DISTRIBUICAO | AA71: cDE_E_ACR | AB71: CDE_E_Dec | AC71: Fator Selic
AC72: =IFERROR(VLOOKUP(CAPA!$C$15,Índices!B:F,5,FALSE)/VLOOKUP(DATE(YEAR(B72),MONTH(B72),1),Índices!B:F,5,FALSE),0) -> 0
AC73: =IFERROR(VLOOKUP(CAPA!$C$15,Índices!B:F,5,FALSE)/VLOOKUP(DATE(YEAR(B73),MONTH(B73),1),Índices!B:F,5,FALSE),0) -> 0
AC74: =IFERROR(VLOOKUP(CAPA!$C$15,Índices!B:F,5,FALSE)/VLOOKUP(DATE(YEAR(B74),MONTH(B74),1),Índices!B:F,5,FALSE),0) -> 0
B75: Total Bruto | D75: =SUM(D72:D74) -> 0 | E75: 0 | F75: 0 | G75: 0 | H75: 0 | I75: 0 | J75: 0 | K75: 0 | L75: 0 | M75: 0 | N75: 0 | O75: 0 | P75: 0 | Q75: 0 | R75: 0 | S75: 0 | T75: 0 | U75: 0 | V75: 0 | W75: 0 | X75: 0 | Y75: 0 | Z75: 0 | AA75: 0 | AB75: 0
B76: Total Atualizado pelo SELIC | D76: =SUMPRODUCT(D72:D74,$AC$72:$AC$74) -> 0 | E76: 0 | F76: 0 | G76: 0 | H76: 0 | I76: 0 | J76: 0 | K76: 0 | L76: 0 | M76: 0 | N76: 0 | O76: 0 | P76: 0 | Q76: 0 | S76: =SUMPRODUCT(S72:S74,$AC$72:$AC$74) -> 0 | T76: 0 | U76: 0 | V76: 0 | W76: 0 | X76: 0 | Y76: 0 | Z76: 0 | AA76: 0 | AB76: 0

Sheet Mercado_Receita
A1: Código | B1: TipoMercado | C1: Modalidade | D1: Subgrupo | E1: Classe | F1: Subclasse | G1: Detalhe | H1: Agente | I1: Posto | J1: OPÇÃO | K1: AnoMes | L1: D | M1: Daj | N1: TUSD_E | O1: TUSD_Eaj | P1: TE_E | Q1: TE_Eaj | R1: TUSD/KW | S1: TUSD/MWh | T1: TE | U1: ReceitaD | V1: ReceitaE | W1: Total | X1: Total com Tar de aplicação | Y1: CCC | Z1: CDE | AA1: CFURH | AB1: Conexao_D | AC1: Conexao_T | AD1: CUSD | AE1: DISTRIBUICAO | AF1: EnergiaRevenda | AG1: ESSERR | AH1: ITAIPU | AI1: ONS | AJ1: OUTROS | AK1: PeD | AL1: PROINFA | AM1: RGR | AN1: TFSEE | AO1: TUST_FR | AP1: TUST_RB | AQ1: TUSDG_ONS | AR1: TUSDG_T | AS1: TUST_CI | AT1: TUST_ITAIPU | AU1: CVA_CCC | AV1: CVA_CDE | AW1: CVA_PROINFA | AX1: CVA_TranItaipu | AY1: CVA_ESSERR | AZ1: CVA_CFURH | BA1: CVA_CDE_E | BB1: CVA_Energia | BC1: CVA_RB | BD1: perdasnt | BE1: perdasrb_d | BF1: perdasrb_c | BG1: perdastec | BH1: RI | BI1: PisPasep | BJ1: Cofins | BK1: ICMS | BL1: UC | BM1: total_dummy | BN1: Subs_CarFI | BO1: Subs_GerFI | BP1: Subs_Dist | BQ1: Subs_AguaEsgoto | BR1: Subs_Rural | BS1: Subs_Irrigante | BT1: Subs_BaixaRenda | BU1: CDE_E | BV1: DespesaEnergia | BW1: RTE_CUSD | BX1: RTE_Energia | BY1: RTE_CDE_USO | BZ1: RTE_CDE_E | CA1: RTE_PeD | CB1: Dif_Subs_Car | CC1: Dif_Subs_Ger | CD1: Dif_Subs_D | CE1: Dif_Subs_Agua | CF1: Dif_Subs_Ru | CG1: Dif_Subs_Irr | CH1: dif_subs_baixa | CI1: FinTotAj | CJ1: FinAj | CK1: RTE_CDE_E_Dec | CL1: RTE_CDE_E_ACR | CM1: CDE_E_Dec | CN1: CDE_E_ACR | CO1: FinPostTUSD | CP1: FinPostTE | CQ1: FinPostQtddias | CR1: FinCT_Geral | CS1: finCT_TUST_FR | CT1: finCT_TUST_RB | CU1: FINCT_TUSDG_ONS | CV1: FINCT_TUSDG_T | CW1: FINCT_TUST_CI | CX1: FINCT_TUST_ITAIPU | CY1: FinCT_Itaipu | CZ1: FinCT_CUSD | DA1: FinCT_Conexao_D | DB1: FinCT_Conexao_T | DC1: FinCT_EnergiaRevenda | DD1: FINCT_perdasrb_c | DE1: FINCT_perdasrb_d | DF1: FinCT_perdasnt | DG1: FinCT_perdastec | DH1: FinCT_CCC | DI1: FinCT_CDE | DJ1: FinCT_CDE_E | DK1: FinCT_CFURH | DL1: FinCT_ONS | DM1: FinCT_ESSERR | DN1: FinCT_Ped | DO1: finCT_PROINFA | DP1: finCT_TFSEE | DQ1: FINCT_Liminar | DR1: FinCT_Posterg | DS1: FINCT_RGR | DT1: Tipo_ato | DU1: DIST_D | DV1: DIST_E | DW1: FIN_RI | DX1: FINCT_RI | DY1: idsreag | DZ1: FinCTAn3En | EA1: An3En | EB1: CVA_An3En | EC1: Fin_An3En | ED1: FIN_CFURH | EE1: TEAngra | EF1: TUSDAngra | EG1: teCheia | EH1: tusdcheia | EI1: AngraIII_TE | EJ1: AngraIII_TUSD | EK1: AngraIII_Desc_TE | EL1: AngraIII_Desc_TUSD
A2: 1 | B2: Regular | C2: Convencional | D2: B1 | E2: Residencial | F2: Residencial | G2: Não se aplica | H2: Não se aplica | I2: Não se aplica | J2: CATIVO | K2: 2019-08-01 | L2: 0 | M2: 0 | N2: 96153.544 | O2: 96153.544 | P2: 96153.544 | Q2: 96153.544 | S2: 309.24 | T2: 207.95 | V2: 49729651.42 | W2: 49729651.42 | X2: 52442142.9 | Y2: 0 | Z2: 1392046.684 | AA2: 0 | AB2: 0 | AC2: 157967.9405 | AD2: 179763.5844 | AE2: 20601707.85 | AF2: 18207507.17 | AG2: 960259.463 | AH2: 0 | AI2: 1708.592078 | AJ2: 0 | AK2: 551482.0697 | AL2: 888588.8091 | AM2: 0 | AN2: 78809.24041 | AO2: 648750.8774 | AP2: 1977895.538 | AQ2: 0 | AR2: 0 | AS2: 2.617880795e-08 | AT2: 0 | AU2: 0 | AV2: 238134.4793 | AW2: 83496.54507 | AX2: 0 | AY2: -1209533.331 | AZ2: 0 | BA2: -152443.7608 | BB2: 4423362.481 | BC2: 107903.4404 | BD2: 709985.0419 | BE2: 66619.70527 | BF2: 410381.7804 | BG2: 2686096.042 | BH2: 0 | BI2: 922490 | BJ2: 4263892.25 | BK2: 22610795.32 | BL2: 805444 | BU2: 209566.9287 | BV2: 22080589.74 | CI2: 52442140.72 | CJ2: 2712489.265 | CM2: 0 | CN2: 209566.9287 | CO2: 897112.5655 | CP2: 1815378.911 | CQ2: 31 | CR2: -777963.333 | CS2: 1.164153218e-10 | CT2: -6106.977986 | CU2: 0 | CV2: 0 | CW2: 0 | CX2: 0 | CY2: 0 | CZ2: -3373.396871 | DA2: 0 | DB2: 0 | DC2: -678042 | DD2: -15282.49203 | DE2: -2480.897455 | DF2: -26439.62588 | DG2: -100029.3953 | DH2: 0 | DI2: -49691.52933 | DJ2: -107528.4277 | DK2: 0 | DL2: -116.3902135 | DM2: 248448.5267 | DN2: 0 | DO2: -33706.80443 | DP2: -3613.922594 | DQ2: 0 | DR2: 0 | DS2: 0 | DV2: 20601707.85 | DW2: 0 | DX2: 0 | DY2: 153 | DZ2: 0 | EA2: 0 | EB2: 0 | ED2: 0 | EE2: -38.91135728 | EG2: -38.91135728 | EI2: 0 | EJ2: 0 | EK2: 0 | EL2: 0
A3: 2 | B3: Refaturamento - Regular | C3: Convencional | D3: B1 | E3: Residencial | F3: Residencial | G3: Não se aplica | H3: Não se aplica | I3: Não se aplica | J3: CATIVO | K3: 2019-08-01 | L3: 0 | M3: 0 | N3: -191.208 | O3: -191.208 | P3: -191.208 | Q3: -191.208 | S3: 309.24 | T3: 207.95 | V3: -98890.86552 | W3: -98890.86552 | X3: -104284.8432 | Y3: 0 | Z3: -2768.181508 | AA3: 0 | AB3: 0 | AC3: -314.1302204 | AD3: -357.4723719 | AE3: -40967.92683 | AF3: -36206.8925 | AG3: -1909.542631 | AH3: 0 | AI3: -3.397654007 | AJ3: 0 | AK3: -1096.660395 | AL3: -1767.020558 | AM3: 0 | AN3: -156.7176478 | AO3: -1290.086175 | AP3: -3933.18264 | AQ3: 0 | AR3: 0 | AS3: -5.205837769e-11 | AT3: 0 | AU3: 0 | AV3: -473.5469503 | AW3: -166.0386786 | AX3: 0 | AY3: 2405.241029 | AZ3: 0 | BA3: 303.1450055 | BB3: -8796.163491 | BC3: -214.573485 | BD3: -1411.854564 | BE3: -132.4779106 | BF3: -816.0726709 | BG3: -5341.488526 | BH3: 0 | BI3: -1535.61 | BJ3: -7075.2 | BK3: -40145.63 | BL3: -221 | BU3: -416.738392 | BV3: -43908.78617 | CI3: -104285.934 | CJ3: -5395.09848 | CM3: 0 | CN3: -416.738392 | CO3: -1783.97064 | CP3: -3610.00704 | CQ3: 31 | CR3: 1547.034116 | CS3: -2.273736754e-13 | CT3: 12.14414985 | CU3: 0 | CV3: 0 | CW3: 0 | CX3: 0 | CY3: 0 | CZ3: 6.708233956 | DA3: 0 | DB3: 0 | DC3: 1348.333606 | DD3: 30.39029675 | DE3: 4.933436885 | DF3: 52.57703226 | DG3: 198.9153995 | DH3: 0 | DI3: 98.8150571 | DJ3: 213.8277462 | DK3: 0 | DL3: 0.2314500228 | DM3: -494.0571499 | DN3: 0 | DO3: 67.02832152 | DP3: 7.186536061 | DQ3: 0 | DR3: 0 | DS3: 0 | DV3: -40967.92683 | DW3: 0 | DX3: 0 | DY3: 153 | DZ3: 0 | EA3: 0 | EB3: 0 | ED3: 0 | EE3: -38.91135728 | EG3: -38.91135728 | EI3: 0 | EJ3: 0 | EK3: 0 | EL3: 0
A4: 3 | B4: Sistema de Compensação | C4: Convencional | D4: B1 | E4: Residencial | F4: Residencial | G4: Não se aplica | H4: Não se aplica | I4: Não se aplica | J4: CATIVO | K4: 2019-08-01 | L4: 0 | M4: 0 | N4: 284.871 | O4: 284.871 | P4: 284.871 | Q4: 284.871 | S4: 309.24 | T4: 207.95 | V4: 147332.4325 | W4: 147332.4325 | X4: 155368.6434 | Y4: 0 | Z4: 4124.171762 | AA4: 0 | AB4: 0 | AC4: 468.0065166 | AD4: 532.5797668 | AE4: 61036.01463 | AF4: 53942.79357 | AG4: 2844.929704 | AH4: 0 | AI4: 5.061990578 | AJ4: 0 | AK4: 1633.858121 | AL4: 2632.593372 | AM4: 0 | AN4: 233.4855918 | AO4: 1922.033276 | AP4: 5859.847244 | AQ4: 0 | AR4: 0 | AS4: 7.755910899e-11 | AT4: 0 | AU4: 0 | AV4: 705.5133325 | AW4: 247.372518 | AX4: 0 | AY4: -3583.445343 | AZ4: 0 | BA4: -451.6402078 | BB4: 13104.95319 | BC4: 319.6820387 | BD4: 2103.449758 | BE4: 197.3720497 | BF4: 1215.82485 | BG4: 7958.01001 | BH4: 0 | BI4: 2749.98 | BJ4: 12702.12 | BK4: 68443.57 | BL4: 2001 | BU4: 620.8771728 | BV4: 65417.45024 | CI4: 155368.098 | CJ4: 8035.63551 | CM4: 0 | CN4: 620.8771728 | CO4: 2657.84643 | CP4: 5378.36448 | CQ4: 31 | CR4: -2304.846846 | CS4: 2.273736754e-13 | CT4: -18.09294648 | CU4: 0 | CV4: 0 | CW4: 0 | CX4: 0 | CY4: 0 | CZ4: -9.994253981 | DA4: 0 | DB4: 0 | DC4: -2008.813139 | DD4: -45.27694565 | DE4: -7.350074782 | DF4: -78.33182585 | DG4: -296.3538596 | DH4: 0 | DI4: -147.2194894 | DJ4: -318.5710006 | DK4: 0 | DL4: -0.3448255274 | DM4: 736.0704278 | DN4: 0 | DO4: -99.8620611 | DP4: -10.70685178 | DQ4: 0 | DR4: 0 | DS4: 0 | DV4: 61036.01463 | DW4: 0 | DX4: 0 | DY4: 153 | DZ4: 0 | EA4: 0 | EB4: 0 | ED4: 0 | EE4: -38.91135728 | EG4: -38.91135728 | EI4: 0 | EJ4: 0 | EK4: 0 | EL4: 0
A5: 4 | B5: Sistema de Compensação | C5: Convencional | D5: B1 | E5: Residencial | F5: Residencial | G5: Não se aplica | H5: Não se aplica | I5: Não se aplica | J5: CATIVO | K5: 2019-08-01 | L5: 0 | M5: 0 | N5: -0.03 | O5: -0.03 | P5: -0.03 | Q5: -0.03 | S5: 309.24 | T5: 207.95 | V5: -15.5157 | W5: -15.5157 | X5: -16.362 | Y5: 0 | Z5: -0.4343199303 | AA5: 0 | AB5: 0 | AC5: -0.04928615232 | AD5: -0.05608641456 | AE5: -6.427753049 | AF5: -5.680760088 | AG5: -0.2996018939 | AH5: 0 | AI5: -0.0005330824034 | AJ5: 0 | AK5: -0.1720629464 | AL5: -0.2772405797 | AM5: 0 | AN5: -0.02458856028 | AO5: -0.2024109098 | AP5: -0.6171053471 | AQ5: 0 | AR5: 0 | AS5: -8.167813746e-15 | AT5: 0 | AU5: 0 | AV5: -0.07429819103 | AW5: -0.02605100393 | AX5: 0 | AY5: 0.3773755851 | AZ5: 0 | BA5: 0.04756260284 | BB5: -1.380093431 | BC5: -0.0336659792 | BD5: -0.2215160292 | BE5: -0.02078541336 | BF5: -0.1280395178 | BG5: -0.8380645987 | BH5: 0 | BI5: -0.27 | BJ5: -1.26 | BK5: -6.35 | BL5: -1 | BU5: -0.06538508723 | BV5: -6.889165647 | CI5: -16.362 | CJ5: -0.8763 | CM5: 0 | CN5: -0.06538508723 | CO5: -0.2799 | CP5: -0.5664 | CQ5: 31 | CR5: 0.2427253227 | CS5: -5.551115123e-17 | CT5: 0.001905383119 | CU5: 0 | CV5: 0 | CW5: 0 | CX5: 0 | CY5: 0 | CZ5: 0.001052503131 | DA5: 0 | DB5: 0 | DC5: 0.2115497688 | DD5: 0.004768152496 | DE5: 0.0007740424383 | DF5: 0.008249189197 | DG5: 0.03120926941 | DH5: 0 | DI5: 0.01550380587 | DJ5: 0.03354897487 | DK5: 0 | DL5: 3.631386073e-05 | DM5: -0.07751618393 | DN5: 0 | DO5: 0.01051655603 | DP5: 0.001127547393 | DQ5: 0 | DR5: 0 | DS5: 0 | DV5: -6.427753049 | DW5: 0 | DX5: 0 | DY5: 153 | DZ5: 0 | EA5: 0 | EB5: 0 | ED5: 0 | EE5: -38.91135728 | EG5: -38.91135728 | EI5: 0 | EJ5: 0 | EK5: 0 | EL5: 0
A6: 5 | B6: Regular | C6: Convencional | D6: B1 | E6: Residencial | F6: Residencial baixa renda – faixa 01 | G6: Não se aplica | H6: Não se aplica | I6: Não se aplica | J6: CATIVO | K6: 2019-08-01 | L6: 0 | M6: 0 | N6: 11289.6 | O6: 11289.6 | P6: 11289.6 | Q6: 11289.6 | S6: 285.51 | T6: 207.95 | V6: 5570966.016 | W6: 5570966.016 | X6: 5861447.424 | Y6: 0 | Z6: 0 | AA6: 0 | AB6: 0 | AC6: 18547.36484 | AD6: 21106.43953 | AE6: 2418892.027 | AF6: 2137783.636 | AG6: 112746.1847 | AH6: 0 | AI6: 200.6095701 | AJ6: 0 | AK6: 64602.65664 | AL6: 0 | AM6: 0 | AN6: 9253.167003 | AO6: 76171.27358 | AP6: 232229.0842 | AQ6: 0 | AR6: 0 | AS6: 3.073711669e-09 | AT6: 0 | AU6: 0 | AV6: 0 | AW6: 0 | AX6: 0 | AY6: -142013.9802 | AZ6: 0 | BA6: -17898.7587 | BB6: 519356.7599 | BC6: 12669.18129 | BD6: 83360.9121 | BE6: 7821.966756 | BF6: 48183.83136 | BG6: 315380.4698 | BH6: 0 | BI6: 34116.29 | BJ6: 159307.36 | BK6: 333654.52 | BL6: 43540 | BT6: 3809901.312 | BU6: 24605.71603 | BV6: 2592530.816 | CI6: 2051546.112 | CJ6: 101719.266 | CM6: 0 | CN6: 24605.71603 | CO6: 77333.76 | CP6: 213147.648 | CQ6: 31 | CR6: -81550.41083 | CS6: 0 | CT6: -717.0337754 | CU6: 0 | CV6: 0 | CW6: 0 | CX6: 0 | CY6: 0 | CZ6: -396.0779783 | DA6: 0 | DB6: 0 | DC6: -79610.40898 | DD6: -1794.351147 | DE6: -291.2876504 | DF6: -3104.334878 | DG6: -11744.67227 | DH6: 0 | DI6: 0 | DJ6: -12625.15022 | DK6: 0 | DL6: -13.66563207 | DM6: 29170.89034 | DN6: 0 | DO6: 0 | DP6: -424.3186348 | DQ6: 0 | DR6: 0 | DS6: 0 | DV6: 2418892.027 | DW6: 0 | DX6: 0 | DY6: 153 | DZ6: 0 | EA6: 0 | EB6: 0 | ED6: 0 | EE6: -38.91135728 | EG6: -38.91135728 | EI6: 0 | EJ6: 0 | EK6: 0 | EL6: 0
A7: 6 | B7: Refaturamento - Regular | C7: Convencional | D7: B1 | E7: Residencial | F7: Residencial baixa renda – faixa 01 | G7: Não se aplica | H7: Não se aplica | I7: Não se aplica | J7: CATIVO | K7: 2019-08-01 | L7: 0 | M7: 0 | N7: 5.156 | O7: 5.156 | P7: 5.156 | Q7: 5.156 | S7: 285.51 | T7: 207.95 | V7: 2544.27976 | W7: 2544.27976 | X7: 2676.94364 | Y7: 0 | Z7: 0 | AA7: 0 | AB7: 0 | AC7: 8.470646712 | AD7: 9.639385117 | AE7: 1104.716491 | AF7: 976.3333005 | AG7: 51.49157884 | AH7: 0 | AI7: 0.09161909574 | AJ7: 0 | AK7: 29.50426035 | AL7: 0 | AM7: 0 | AN7: 4.225953893 | AO7: 34.78768836 | AP7: 106.059839 | AQ7: 0 | AR7: 0 | AS7: 1.403774922e-12 | AT7: 0 | AU7: 0 | AV7: 0 | AW7: 0 | AX7: 0 | AY7: -64.85828388 | AZ7: 0 | BA7: -8.174426008 | BB7: 237.1920576 | BC7: 5.786059626 | BD7: 38.07122155 | BE7: 3.57231971 | BF7: 22.00572513 | BG7: 144.035369 | BH7: 0 | BI7: 56.8 | BJ7: 261.88 | BK7: 1204.95 | BL7: 61 | BT7: 1739.99532 | BU7: 11.23751699 | BV7: 1184.017936 | CI7: 937.6752 | CJ7: 47.15244 | CM7: 0 | CN7: 11.23751699 | CO7: 35.3186 | CP7: 97.34528 | CQ7: 31 | CR7: -37.24435925 | CS7: 7.105427358e-15 | CT7: -0.3274718454 | CU7: 0 | CV7: 0 | CW7: 0 | CX7: 0 | CY7: 0 | CZ7: -0.1808902048 | DA7: 0 | DB7: 0 | DC7: -36.35835359 | DD7: -0.8194864756 | DE7: -0.1330320937 | DF7: -1.41776065 | DG7: -5.363833103 | DH7: 0 | DI7: 0 | DJ7: -5.76595048 | DK7: 0 | DL7: -0.006241142198 | DM7: 13.32244815 | DN7: 0 | DO7: 0 | DP7: -0.1937878119 | DQ7: 0 | DR7: 0 | DS7: 0 | DV7: 1104.716491 | DW7: 0 | DX7: 0 | DY7: 153 | DZ7: 0 | EA7: 0 | EB7: 0 | ED7: 0 | EE7: -38.91135728 | EG7: -38.91135728 | EI7: 0 | EJ7: 0 | EK7: 0 | EL7: 0
A8: 7 | B8: Sistema de Compensação | C8: Convencional | D8: B1 | E8: Residencial | F8: Residencial baixa renda – faixa 01 | G8: Não se aplica | H8: Não se aplica | I8: Não se aplica | J8: CATIVO | K8: 2019-08-01 | L8: 0 | M8: 0 | N8: 1.5 | O8: 1.5 | P8: 1.5 | Q8: 1.5 | S8: 285.51 | T8: 207.95 | V8: 740.19 | W8: 740.19 | X8: 778.785 | Y8: 0 | Z8: 0 | AA8: 0 | AB8: 0 | AC8: 2.464307616 | AD8: 2.804320728 | AE8: 321.3876524 | AF8: 284.0380044 | AG8: 14.9800947 | AH8: 0 | AI8: 0.02665412017 | AJ8: 0 | AK8: 8.583473724 | AL8: 0 | AM8: 0 | AN8: 1.229428014 | AO8: 10.12054549 | AP8: 30.85526735 | AQ8: 0 | AR8: 0 | AS8: 4.083906873e-13 | AT8: 0 | AU8: 0 | AV8: 0 | AW8: 0 | AX8: 0 | AY8: -18.86877925 | AZ8: 0 | BA8: -2.378130142 | BB8: 69.00467154 | BC8: 1.68329896 | BD8: 11.07580146 | BE8: 1.039270668 | BF8: 6.401975892 | BG8: 41.90322994 | BH8: 0 | BI8: 4.5 | BJ8: 20.91 | BK8: 69.63 | BL8: 3 | BT8: 506.205 | BU8: 3.269254361 | BV8: 344.4582824 | CI8: 272.58 | CJ8: 13.485 | CM8: 0 | CN8: 3.269254361 | CO8: 10.275 | CP8: 28.32 | CQ8: 31 | CR8: -10.83524804 | CS8: 1.776356839e-15 | CT8: -0.09526915596 | CU8: 0 | CV8: 0 | CW8: 0 | CX8: 0 | CY8: 0 | CZ8: -0.05262515655 | DA8: 0 | DB8: 0 | DC8: -10.57748844 | DD8: -0.2384076248 | DE8: -0.03870212192 | DF8: -0.4124594598 | DG8: -1.560463471 | DH8: 0 | DI8: 0 | DJ8: -1.677448743 | DK8: 0 | DL8: -0.001815693037 | DM8: 3.875809197 | DN8: 0 | DO8: 0 | DP8: -0.05637736963 | DQ8: 0 | DR8: 0 | DS8: 0 | DV8: 321.3876524 | DW8: 0 | DX8: 0 | DY8: 153 | DZ8: 0 | EA8: 0 | EB8: 0 | ED8: 0 | EE8: -38.91135728 | EG8: -38.91135728 | EI8: 0 | EJ8: 0 | EK8: 0 | EL8: 0
A9: 8 | B9: Regular | C9: Convencional | D9: B1 | E9: Residencial | F9: Residencial baixa renda – faixa 02 | G9: Não se aplica | H9: Não se aplica | I9: Não se aplica | J9: CATIVO | K9: 2019-08-01 | L9: 0 | M9: 0 | N9: 16520.409 | O9: 16520.409 | P9: 16520.409 | Q9: 16520.409 | S9: 285.51 | T9: 207.95 | V9: 8152161.025 | W9: 8152161.025 | X9: 8577231.149 | Y9: 0 | Z9: 0 | AA9: 0 | AB9: 0 | AC9: 27140.91314 | AD9: 30885.6836 | AE9: 3539636.977 | AF9: 3128282.67 | AG9: 164984.8608 | AH9: 0 | AI9: 293.5579779 | AJ9: 0 | AK9: 94534.99771 | AL9: 0 | AM9: 0 | AN9: 13540.43575 | AO9: 111463.7005 | AP9: 339827.7577 | AQ9: 0 | AR9: 0 | AS9: 4.497854124e-09 | AT9: 0 | AU9: 0 | AV9: 0 | AW9: 0 | AX9: 0 | AY9: -207813.3004 | AZ9: 0 | BA9: -26191.7884 | BB9: 759990.2645 | BC9: 18539.19153 | BD9: 121984.5134 | BE9: 11446.11767 | BF9: 70508.8401 | BG9: 461505.6646 | BH9: 0 | BI9: 128555.97 | BJ9: 598346.55 | BK9: 1531875.18 | BL9: 206516 | BT9: 3430793.337 | BU9: 36006.27945 | BV9: 3793727.806 | CI9: 5146438.123 | CJ9: 255240.6006 | CM9: 0 | CN9: 36006.27945 | CO9: 113164.8017 | CP9: 311905.3219 | CQ9: 31 | CR9: -119335.1528 | CS9: 2.910383046e-11 | CT9: -1049.256948 | CU9: 0 | CV9: 0 | CW9: 0 | CX9: 0 | CY9: 0 | CZ9: -579.5927399 | DA9: 0 | DB9: 0 | DC9: -116496.2901 | DD9: -2625.727647 | DE9: -426.2499221 | DF9: -4542.665982 | DG9: -17186.32984 | DH9: 0 | DI9: 0 | DJ9: -18474.75954 | DK9: 0 | DL9: -19.99732772 | DM9: 42686.63542 | DN9: 0 | DO9: 0 | DP9: -620.9181364 | DQ9: 0 | DR9: 0 | DS9: 0 | DV9: 3539636.977 | DW9: 0 | DX9: 0 | DY9: 153 | DZ9: 0 | EA9: 0 | EB9: 0 | ED9: 0 | EE9: -38.91135728 | EG9: -38.91135728 | EI9: 0 | EJ9: 0 | EK9: 0 | EL9: 0
A10: 9 | B10: Refaturamento - Regular | C10: Convencional | D10: B1 | E10: Residencial | F10: Residencial baixa renda – faixa 02 | G10: Não se aplica | H10: Não se aplica | I10: Não se aplica | J10: CATIVO | K10: 2019-08-01 | L10: 0 | M10: 0 | N10: -4.711 | O10: -4.711 | P10: -4.711 | Q10: -4.711 | S10: 285.51 | T10: 207.95 | V10: -2324.69006 | W10: -2324.69006 | X10: -2445.90409 | Y10: 0 | Z10: 0 | AA10: 0 | AB10: 0 | AC10: -7.739568786 | AD10: -8.807436634 | AE10: -1009.371487 | AF10: -892.0686925 | AG10: -47.04748408 | AH10: 0 | AI10: -0.08371170675 | AJ10: 0 | AK10: -26.95782981 | AL10: 0 | AM10: 0 | AN10: -3.861223582 | AO10: -31.78525987 | AP10: -96.90610967 | AQ10: 0 | AR10: 0 | AS10: -1.282619019e-12 | AT10: 0 | AU10: 0 | AV10: 0 | AW10: 0 | AX10: 0 | AY10: 59.26054604 | AZ10: 0 | BA10: 7.468914066 | BB10: -216.7206718 | BC10: -5.286680934 | BD10: -34.78540045 | BE10: -3.264002745 | BF10: -20.10647229 | BG10: -131.6040775 | BH10: 0 | BI10: -27.47 | BJ10: -127.67 | BK10: -576.22 | BL10: -17 | BT10: -978.33337 | BU10: -10.2676382 | BV10: -1081.828646 | CI10: -1467.2592 | CJ10: -72.50343 | CM10: 0 | CN10: -10.2676382 | CO10: -32.27035 | CP10: -88.94368 | CQ10: 31 | CR10: 34.02990234 | CS10: -1.065814104e-14 | CT10: 0.2992086625 | CU10: 0 | CV10: 0 | CW10: 0 | CX10: 0 | CY10: 0 | CZ10: 0.165278075 | DA10: 0 | DB10: 0 | DC10: 33.22036536 | DD10: 0.7487588803 | DE10: 0.1215504642 | DF10: 1.295397677 | DG10: 4.900895607 | DH10: 0 | DI10: 0 | DJ10: 5.268307353 | DK10: 0 | DL10: 0.005702486597 | DM10: -12.17262475 | DN10: 0 | DO10: 0 | DP10: 0.1770625255 | DQ10: 0 | DR10: 0 | DS10: 0 | DV10: -1009.371487 | DW10: 0 | DX10: 0 | DY10: 153 | DZ10: 0 | EA10: 0 | EB10: 0 | ED10: 0 | EE10: -38.91135728 | EG10: -38.91135728 | EI10: 0 | EJ10: 0 | EK10: 0 | EL10: 0
A11: 10 | B11: Sistema de Compensação | C11: Convencional | D11: B1 | E11: Residencial | F11: Residencial baixa renda – faixa 02 | G11: Não se aplica | H11: Não se aplica | I11: Não se aplica | J11: CATIVO | K11: 2019-08-01 | L11: 0 | M11: 0 | N11: 1.298 | O11: 1.298 | P11: 1.298 | Q11: 1.298 | S11: 285.51 | T11: 207.95 | V11: 640.51108 | W11: 640.51108 | X11: 673.90862 | Y11: 0 | Z11: 0 | AA11: 0 | AB11: 0 | AC11: 2.132447524 | AD11: 2.426672203 | AE11: 278.1074486 | AF11: 245.7875532 | AG11: 12.96277528 | AH11: 0 | AI11: 0.02306469866 | AJ11: 0 | AK11: 7.42756593 | AL11: 0 | AM11: 0 | AN11: 1.063865041 | AO11: 8.757645364 | AP11: 26.70009135 | AQ11: 0 | AR11: 0 | AS11: 3.533940747e-13 | AT11: 0 | AU11: 0 | AV11: 0 | AW11: 0 | AX11: 0 | AY11: -16.32778365 | AZ11: 0 | BA11: -2.057875283 | BB11: 59.71204244 | BC11: 1.4566147 | BD11: 9.584260195 | BE11: 0.8993155514 | BF11: 5.539843139 | BG11: 36.26026164 | BH11: 0 | BI11: 8.85 | BJ11: 41.07 | BK11: 125.78 | BL11: 18 | BT11: 269.55566 | BU11: 2.828994774 | BV11: 298.0712337 | CI11: 404.976 | CJ11: 20.64714 | CM11: 0 | CN11: 2.828994774 | CO11: 8.8913 | CP11: 24.50624 | CQ11: 31 | CR11: -9.376101302 | CS11: 1.776356839e-15 | CT11: -0.08243957629 | CU11: 0 | CV11: 0 | CW11: 0 | CX11: 0 | CY11: 0 | CZ11: -0.04553830213 | DA11: 0 | DB11: 0 | DC11: -9.153053329 | DD11: -0.2063020647 | DE11: -0.03349023616 | DF11: -0.3569149192 | DG11: -1.350321057 | DH11: 0 | DI11: 0 | DJ11: -1.451552313 | DK11: 0 | DL11: -0.001571179708 | DM11: 3.353866891 | DN11: 0 | DO11: 0 | DP11: -0.04878521718 | DQ11: 0 | DR11: 0 | DS11: 0 | DV11: 278.1074486 | DW11: 0 | DX11: 0 | DY11: 153 | DZ11: 0 | EA11: 0 | EB11: 0 | ED11: 0 | EE11: -38.91135728 | EG11: -38.91135728 | EI11: 0 | EJ11: 0 | EK11: 0 | EL11: 0
A12: 11 | B12: Regular | C12: Convencional | D12: B1 | E12: Residencial | F12: Residencial baixa renda – faixa 03 | G12: Não se aplica | H12: Não se aplica | I12: Não se aplica | J12: CATIVO | K12: 2019-08-01 | L12: 0 | M12: 0 | N12: 6001.103 | O12: 6001.103 | P12: 6001.103 | Q12: 6001.103 | S12: 285.51 | T12: 207.95 | V12: 2961304.286 | W12: 2961304.286 | X12: 3115712.667 | Y12: 0 | Z12: 0 | AA12: 0 | AB12: 0 | AC12: 9859.042551 | AD12: 11219.34502 | AE12: 1285786.937 | AF12: 1136360.88 | AG12: 59931.39415 | AH12: 0 | AI12: 106.6360804 | AJ12: 0 | AK12: 34340.20661 | AL12: 0 | AM12: 0 | AN12: 4918.616095 | AO12: 40489.62394 | AP12: 123443.7583 | AQ12: 0 | AR12: 0 | AS12: 1.633863052e-09 | AT12: 0 | AU12: 0 | AV12: 0 | AW12: 0 | AX12: 0 | AY12: -75488.99185 | AZ12: 0 | BA12: -9514.269286 | BB12: 276069.4276 | BC12: 6734.433626 | BD12: 44311.35024 | BE12: 4157.846883 | BF12: 25612.61116 | BG12: 167643.7326 | BH12: 0 | BI12: 107622.47 | BJ12: 494365.16 | BK12: 2670868.34 | BL12: 112930 | BT12: 311577.2678 | BU12: 13079.42144 | BV12: 1378086.421 | CI12: 2804133.997 | CJ12: 138984.1137 | CM12: 0 | CN12: 13079.42144 | CO12: 41107.55555 | CP12: 113300.8246 | CQ12: 31 | CR12: -43348.95967 | CS12: 1.455191523e-11 | CT12: -381.1466784 | CU12: 0 | CV12: 0 | CW12: 0 | CX12: 0 | CY12: 0 | CZ12: -210.5393232 | DA12: 0 | DB12: 0 | DC12: -42317.73173 | DD12: -953.8058082 | DE12: -154.8369466 | DF12: -1650.141135 | DG12: -6243.001343 | DH12: 0 | DI12: 0 | DJ12: -6711.028457 | DK12: 0 | DL12: -7.264107286 | DM12: 15506.0868 | DN12: 0 | DO12: 0 | DP12: -225.5509347 | DQ12: 0 | DR12: 0 | DS12: 0 | DV12: 1285786.937 | DW12: 0 | DX12: 0 | DY12: 153 | DZ12: 0 | EA12: 0 | EB12: 0 | ED12: 0 | EE12: -38.91135728 | EG12: -38.91135728 | EI12: 0 | EJ12: 0 | EK12: 0 | EL12: 0
A13: 12 | B13: Refaturamento - Regular | C13: Convencional | D13: B1 | E13: Residencial | F13: Residencial baixa renda – faixa 03 | G13: Não se aplica | H13: Não se aplica | I13: Não se aplica | J13: CATIVO | K13: 2019-08-01 | L13: 0 | M13: 0 | N13: -4.848 | O13: -4.848 | P13: -4.848 | Q13: -4.848 | S13: 285.51 | T13: 207.95 | V13: -2392.29408 | W13: -2392.29408 | X13: -2517.03312 | Y13: 0 | Z13: 0 | AA13: 0 | AB13: 0 | AC13: -7.964642215 | AD13: -9.063564594 | AE13: -1038.724893 | AF13: -918.0108303 | AG13: -48.41566606 | AH13: 0 | AI13: -0.0861461164 | AJ13: 0 | AK13: -27.74178708 | AL13: 0 | AM13: 0 | AN13: -3.973511341 | AO13: -32.70960302 | AP13: -99.72422409 | AQ13: 0 | AR13: 0 | AS13: -1.319918701e-12 | AT13: 0 | AU13: 0 | AV13: 0 | AW13: 0 | AX13: 0 | AY13: 60.98389454 | AZ13: 0 | BA13: 7.686116619 | BB13: -223.0230984 | BC13: -5.440422239 | BD13: -35.79699031 | BE13: -3.358922799 | BF13: -20.69118608 | BG13: -135.4312392 | BH13: 0 | BI13: -52.34 | BJ13: -240.94 | BK13: -1318.3 | BL13: -29 | BT13: -251.70816 | BU13: -10.5662301 | BV13: -1113.289169 | CI13: -2266.2595 | CJ13: -113.24422 | CM13: 0 | CN13: -10.5662301 | CO13: -33.2088 | CP13: -91.53024 | CQ13: 31 | CR13: 35.01952166 | CS13: -7.105427358e-15 | CT13: 0.3079099121 | CU13: 0 | CV13: 0 | CW13: 0 | CX13: 0 | CY13: 0 | CZ13: 0.170084506 | DA13: 0 | DB13: 0 | DC13: 34.18644263 | DD13: 0.7705334433 | DE13: 0.125085258 | DF13: 1.333068974 | DG13: 5.043417937 | DH13: 0 | DI13: 0 | DJ13: 5.421514338 | DK13: 0 | DL13: 0.005868319894 | DM13: -12.52661532 | DN13: 0 | DO13: 0 | DP13: 0.1822116586 | DQ13: 0 | DR13: 0 | DS13: 0 | DV13: -1038.724893 | DW13: 0 | DX13: 0 | DY13: 153 | DZ13: 0 | EA13: 0 | EB13: 0 | ED13: 0 | EE13: -38.91135728 | EG13: -38.91135728 | EI13: 0 | EJ13: 0 | EK13: 0 | EL13: 0
A14: 13 | B14: Sistema de Compensação | C14: Convencional | D14: B1 | E14: Residencial | F14: Residencial baixa renda – faixa 03 | G14: Não se aplica | H14: Não se aplica | I14: Não se aplica | J14: CATIVO | K14: 2019-08-01 | L14: 0 | M14: 0 | N14: 0.96 | O14: 0.96 | P14: 0.96 | Q14: 0.96 | S14: 285.51 | T14: 207.95 | V14: 473.7216 | W14: 473.7216 | X14: 498.4224 | Y14: 0 | Z14: 0 | AA14: 0 | AB14: 0 | AC14: 1.577156874 | AD14: 1.794765266 | AE14: 205.6880976 | AF14: 181.7843228 | AG14: 9.587260606 | AH14: 0 | AI14: 0.01705863691 | AJ14: 0 | AK14: 5.493423184 | AL14: 0 | AM14: 0 | AN14: 0.7868339288 | AO14: 6.477149114 | AP14: 19.74737111 | AQ14: 0 | AR14: 0 | AS14: 2.613700399e-13 | AT14: 0 | AU14: 0 | AV14: 0 | AW14: 0 | AX14: 0 | AY14: -12.07601872 | AZ14: 0 | BA14: -1.522003291 | BB14: 44.16298979 | BC14: 1.077311334 | BD14: 7.088512933 | BE14: 0.6651332276 | BF14: 4.097264571 | BG14: 26.81806716 | BH14: 0 | BI14: 9.31 | BJ14: 43.11 | BK14: 233.09 | BL14: 16 | BT14: 49.8432 | BU14: 2.092322791 | BV14: 220.4533007 | CI14: 448.5792 | CJ14: 22.2036 | CM14: 0 | CN14: 2.092322791 | CO14: 6.576 | CP14: 18.1248 | CQ14: 31 | CR14: -6.934558744 | CS14: 1.776356839e-15 | CT14: -0.06097225981 | CU14: 0 | CV14: 0 | CW14: 0 | CX14: 0 | CY14: 0 | CZ14: -0.03368010019 | DA14: 0 | DB14: 0 | DC14: -6.769592601 | DD14: -0.1525808799 | DE14: -0.02476935803 | DF14: -0.2639740543 | DG14: -0.9986966212 | DH14: 0 | DI14: 0 | DJ14: -1.073567196 | DK14: 0 | DL14: -0.001162043543 | DM14: 2.480517886 | DN14: 0 | DO14: 0 | DP14: -0.03608151656 | DQ14: 0 | DR14: 0 | DS14: 0 | DV14: 205.6880976 | DW14: 0 | DX14: 0 | DY14: 153 | DZ14: 0 | EA14: 0 | EB14: 0 | ED14: 0 | EE14: -38.91135728 | EG14: -38.91135728 | EI14: 0 | EJ14: 0 | EK14: 0 | EL14: 0
A15: 14 | B15: Regular | C15: Convencional | D15: B1 | E15: Residencial | F15: Residencial baixa renda – faixa 04 | G15: Não se aplica | H15: Não se aplica | I15: Não se aplica | J15: CATIVO | K15: 2019-08-01 | L15: 0 | M15: 0 | N15: 1096.576 | O15: 1096.576 | P15: 1096.576 | Q15: 1096.576 | S15: 285.51 | T15: 207.95 | V15: 541116.393 | W15: 541116.393 | X15: 569331.2934 | Y15: 0 | Z15: 0 | AA15: 0 | AB15: 0 | AC15: 1801.533726 | AD15: 2050.100538 | AE15: 234950.6576 | AF15: 207646.1725 | AG15: 10951.20821 | AH15: 0 | AI15: 19.48551232 | AJ15: 0 | AK15: 6274.954189 | AL15: 0 | AM15: 0 | AN15: 898.7741691 | AO15: 7398.631528 | AP15: 22556.76377 | AQ15: 0 | AR15: 0 | AS15: 2.985542842e-10 | AT15: 0 | AU15: 0 | AV15: 0 | AW15: 0 | AX15: 0 | AY15: -13794.03365 | AZ15: 0 | BA15: -1738.533626 | BB15: 50445.91113 | BC15: 1230.576827 | BD15: 8096.97204 | BE15: 759.7595147 | BF15: 4680.168744 | BG15: 30633.38418 | BH15: 0 | BI15: 18758.02 | BJ15: 86193.4 | BK15: 466184.27 | BL15: 13341 | BU15: 2389.99058 | BV15: 251816.457 | CI15: 569333.3702 | CJ15: 28216.94724 | CM15: 0 | CN15: 2389.99058 | CO15: 7511.5456 | CP15: 20703.35488 | CQ15: 31 | CR15: -7921.115301 | CS15: 1.818989404e-12 | CT15: -69.64657998 | CU15: 0 | CV15: 0 | CW15: 0 | CX15: 0 | CY15: 0 | CZ15: -38.47165578 | DA15: 0 | DB15: 0 | DC15: -7732.679975 | DD15: -174.288053 | DE15: -28.29321203 | DF15: -301.5287631 | DG15: -1140.777861 | DH15: 0 | DI15: 0 | DJ15: -1226.300022 | DK15: 0 | DL15: -1.327363605 | DM15: 2833.412897 | DN15: 0 | DO15: 0 | DP15: -41.21471365 | DQ15: 0 | DR15: 0 | DS15: 0 | DV15: 234950.6576 | DW15: 0 | DX15: 0 | DY15: 153 | DZ15: 0 | EA15: 0 | EB15: 0 | ED15: 0 | EE15: -38.91135728 | EG15: -38.91135728 | EI15: 0 | EJ15: 0 | EK15: 0 | EL15: 0
A16: 15 | B16: Refaturamento - Regular | C16: Convencional | D16: B1 | E16: Residencial | F16: Residencial baixa renda – faixa 04 | G16: Não se aplica | H16: Não se aplica | I16: Não se aplica | J16: CATIVO | K16: 2019-08-01 | L16: 0 | M16: 0 | N16: -17.738 | O16: -17.738 | P16: -17.738 | Q16: -17.738 | S16: 285.51 | T16: 207.95 | V16: -8752.99348 | W16: -8752.99348 | X16: -9209.39222 | Y16: 0 | Z16: 0 | AA16: 0 | AB16: 0 | AC16: -29.14125899 | AD16: -33.16202738 | AE16: -3800.516119 | AF16: -3358.844082 | AG16: -177.1446132 | AH16: 0 | AI16: -0.3151938557 | AJ16: 0 | AK16: -101.5024379 | AL16: 0 | AM16: 0 | AN16: -14.53839607 | AO16: -119.6788239 | AP16: -364.8738215 | AQ16: 0 | AR16: 0 | AS16: -4.829356007e-12 | AT16: 0 | AU16: 0 | AV16: 0 | AW16: 0 | AX16: 0 | AY16: 223.1296043 | AZ16: 0 | BA16: 28.12218164 | BB16: -816.0032425 | BC16: -19.9055713 | BD16: -130.9750442 | BE16: -12.28972207 | BF16: -75.70549892 | BG16: -495.5196617 | BH16: 0 | BI16: -170.01 | BJ16: -782.56 | BK16: -4355.5 | BL16: -28 | BU16: -38.66002257 | BV16: -4073.334009 | CI16: -9210.4306 | CJ16: -457.46712 | CM16: 0 | CN16: -38.66002257 | CO16: -121.5053 | CP16: -334.89344 | CQ16: 31 | CR16: 128.1304198 | CS16: -2.842170943e-14 | CT16: 1.126589526 | CU16: 0 | CV16: 0 | CW16: 0 | CX16: 0 | CY16: 0 | CZ16: 0.6223100179 | DA16: 0 | DB16: 0 | DC16: 125.0823266 | DD16: 2.819249632 | DE16: 0.4576654924 | DF16: 4.877470599 | DG16: 18.45300069 | DH16: 0 | DI16: 0 | DJ16: 19.83639054 | DK16: 0 | DL16: 0.02147117539 | DM16: -45.83273569 | DN16: 0 | DO16: 0 | DP16: 0.6666811883 | DQ16: 0 | DR16: 0 | DS16: 0 | DV16: -3800.516119 | DW16: 0 | DX16: 0 | DY16: 153 | DZ16: 0 | EA16: 0 | EB16: 0 | ED16: 0 | EE16: -38.91135728 | EG16: -38.91135728 | EI16: 0 | EJ16: 0 | EK16: 0 | EL16: 0
A17: 16 | B17: Sistema de Compensação | C17: Convencional | D17: B1 | E17: Residencial | F17: Residencial baixa renda – faixa 04 | G17: Não se aplica | H17: Não se aplica | I17: Não se aplica | J17: CATIVO | K17: 2019-08-01 | L17: 0 | M17: 0 | N17: 1.362 | O17: 1.362 | P17: 1.362 | Q17: 1.362 | S17: 285.51 | T17: 207.95 | V17: 672.09252 | W17: 672.09252 | X17: 707.13678 | Y17: 0 | Z17: 0 | AA17: 0 | AB17: 0 | AC17: 2.237591315 | AD17: 2.546323221 | AE17: 291.8199884 | AF17: 257.906508 | AG17: 13.60192598 | AH17: 0 | AI17: 0.02420194112 | AJ17: 0 | AK17: 7.793794142 | AL17: 0 | AM17: 0 | AN17: 1.116320637 | AO17: 9.189455305 | AP17: 28.01658276 | AQ17: 0 | AR17: 0 | AS17: 3.708187441e-13 | AT17: 0 | AU17: 0 | AV17: 0 | AW17: 0 | AX17: 0 | AY17: -17.13285156 | AZ17: 0 | BA17: -2.159342169 | BB17: 62.65624176 | BC17: 1.528435456 | BD17: 10.05682772 | BE17: 0.9436577666 | BF17: 5.81299411 | BG17: 38.04813278 | BH17: 0 | BI17: 7.24 | BJ17: 33.38 | BK17: 180.61 | BL17: 13 | BU17: 2.96848296 | BV17: 312.7681204 | CI17: 706.0984 | CJ17: 33.97588 | CM17: 0 | CN17: 2.96848296 | CO17: 9.3297 | CP17: 25.71456 | CQ17: 31 | CR17: -9.838405218 | CS17: 1.776356839e-15 | CT17: -0.08650439361 | CU17: 0 | CV17: 0 | CW17: 0 | CX17: 0 | CY17: 0 | CZ17: -0.04778364215 | DA17: 0 | DB17: 0 | DC17: -9.604359502 | DD17: -0.2164741233 | DE17: -0.0351415267 | DF17: -0.3745131895 | DG17: -1.416900831 | DH17: 0 | DI17: 0 | DJ17: -1.523123459 | DK17: 0 | DL17: -0.001648649277 | DM17: 3.519234751 | DN17: 0 | DO17: 0 | DP17: -0.05119065162 | DQ17: 0 | DR17: 0 | DS17: 0 | DV17: 291.8199884 | DW17: 0 | DX17: 0 | DY17: 153 | DZ17: 0 | EA17: 0 | EB17: 0 | ED17: 0 | EE17: -38.91135728 | EG17: -38.91135728 | EI17: 0 | EJ17: 0 | EK17: 0 | EL17: 0
A18: 17 | B18: Regular | C18: Branca | D18: B1 | E18: Residencial | F18: Residencial | G18: Não se aplica | H18: Não se aplica | I18: Ponta | J18: CATIVO | K18: 2019-08-01 | L18: 0 | M18: 0 | N18: 5.798 | O18: 5.798 | P18: 5.798 | Q18: 5.798 | S18: 829.7 | T18: 325.85 | V18: 6699.8789 | W18: 6699.8789 | X18: 6987.40172 | Y18: 0 | Z18: 83.93956519 | AA18: 0 | AB18: 0 | AC18: 29.52886972 | AD18: 33.6028666 | AE18: 3851.037576 | AF18: 1781.500655 | AG18: 57.90305937 | AH18: 0 | AI18: 0.1030270592 | AJ18: 0 | AK18: 66.72793687 | AL18: 53.58136269 | AM18: 0 | AN18: 4.752149083 | AO18: 121.2707171 | AP18: 369.7250943 | AQ18: 0 | AR18: 0 | AS18: 1.578566137e-12 | AT18: 0 | AU18: 0 | AV18: 14.35936372 | AW18: 5.034790692 | AX18: 0 | AY18: -72.9341214 | AZ18: 0 | BA18: -9.192265709 | BB18: 403.6701603 | BC18: 20.17025854 | BD18: 42.81166457 | BE18: 4.017127556 | BF18: 24.74577082 | BG18: 161.9699514 | BH18: 0 | BI18: 0 | BJ18: 0 | BK18: 0 | BL18: 0 | BU18: 12.63675786 | BV18: 2015.045169 | CI18: 6989.812 | CJ18: 289.9031 | CM18: 0 | CN18: 12.63675786 | CO18: 66.56104 | CP18: 220.96178 | CQ18: 31 | CR18: -73.56822533 | CS18: -2.131628207e-13 | CT18: -1.141568383 | CU18: 0 | CV18: 0 | CW18: 0 | CX18: 0 | CY18: 0 | CZ18: -0.6305826925 | DA18: 0 | DB18: 0 | DC18: -66.34253969 | DD18: -0.921524939 | DE18: -0.1495966019 | DF18: -1.594293299 | DG18: -6.031711469 | DH18: 0 | DI18: -2.996368881 | DJ18: -6.483898542 | DK18: 0 | DL18: -0.007018258817 | DM18: 14.98129448 | DN18: 0 | DO18: -2.032499729 | DP18: -0.2179173261 | DQ18: 0 | DR18: 0 | DS18: 0 | DV18: 3851.037576 | DW18: 0 | DX18: 0 | DY18: 153 | DZ18: 0 | EA18: 0 | EB18: 0 | ED18: 0 | EE18: -38.91135728 | EG18: -38.91135728 | EI18: 0 | EJ18: 0 | EK18: 0 | EL18: 0
A19: 18 | B19: Refaturamento - Regular | C19: Branca | D19: B1 | E19: Residencial | F19: Residencial | G19: Não se aplica | H19: Não se aplica | I19: Ponta | J19: CATIVO | K19: 2019-08-01 | L19: 0 | M19: 0 | N19: -0.098 | O19: -0.098 | P19: -0.098 | Q19: -0.098 | S19: 829.7 | T19: 325.85 | V19: -113.2439 | W19: -113.2439 | X19: -118.10372 | Y19: 0 | Z19: -1.418778439 | AA19: 0 | AB19: 0 | AC19: -0.4991081809 | AD19: -0.5679684248 | AE19: -65.09170101 | AF19: -30.11160127 | AG19: -0.9786995202 | AH19: 0 | AI19: -0.001741402518 | AJ19: 0 | AK19: -1.127860954 | AL19: -0.9056525602 | AM19: 0 | AN19: -0.08032263024 | AO19: -2.049763759 | AP19: -6.249234089 | AQ19: 0 | AR19: 0 | AS19: -2.66815249e-14 | AT19: 0 | AU19: 0 | AV19: -0.242707424 | AW19: -0.08509994616 | AX19: 0 | AY19: 1.232760245 | AZ19: 0 | BA19: 0.1553711693 | BB19: -6.822986496 | BC19: -0.3409253771 | BD19: -0.7236190286 | BE19: -0.06789901698 | BF19: -0.418262425 | BG19: -2.737677689 | BH19: 0 | BI19: 0 | BJ19: 0 | BK19: 0 | BL19: 0 | BU19: -0.2135912849 | BV19: -34.05905943 | CI19: -120.514 | CJ19: -7.3001 | CM19: 0 | CN19: -0.2135912849 | CO19: -1.12504 | CP19: -3.73478 | CQ19: 31 | CR19: 1.24347811 | CS19: 3.552713679e-15 | CT19: 0.01929522276 | CU19: 0 | CV19: 0 | CW19: 0 | CX19: 0 | CY19: 0 | CZ19: 0.01065834837 | DA19: 0 | DB19: 0 | DC19: 1.121346825 | DD19: 0.01557596482 | DE19: 0.002528538632 | DF19: 0.02694735138 | DG19: 0.1019502801 | DH19: 0 | DI19: 0.05064576585 | DJ19: 0.1095933179 | DK19: 0 | DL19: 0.0001186252784 | DM19: -0.2532195342 | DN19: 0 | DO19: 0.03435408303 | DP19: 0.003683321482 | DQ19: 0 | DR19: 0 | DS19: 0 | DV19: -65.09170101 | DW19: 0 | DX19: 0 | DY19: 153 | DZ19: 0 | EA19: 0 | EB19: 0 | ED19: 0 | EE19: -38.91135728 | EG19: -38.91135728 | EI19: 0 | EJ19: 0 | EK19: 0 | EL19: 0
A20: 19 | B20: Sistema de Compensação | C20: Branca | D20: B1 | E20: Residencial | F20: Residencial | G20: Não se aplica | H20: Não se aplica | I20: Ponta | J20: CATIVO | K20: 2019-08-01 | L20: 0 | M20: 0 | N20: 0.105 | O20: 0.105 | P20: 0.105 | Q20: 0.105 | S20: 829.7 | T20: 325.85 | V20: 121.33275 | W20: 121.33275 | X20: 126.5397 | Y20: 0 | Z20: 1.520119756 | AA20: 0 | AB20: 0 | AC20: 0.5347587653 | AD20: 0.608537598 | AE20: 69.74110823 | AF20: 32.26242994 | AG20: 1.048606629 | AH20: 0 | AI20: 0.001865788412 | AJ20: 0 | AK20: 1.208422451 | AL20: 0.9703420288 | AM20: 0 | AN20: 0.08605996097 | AO20: 2.196175456 | AP20: 6.695607952 | AQ20: 0 | AR20: 0 | AS20: 2.858734811e-14 | AT20: 0 | AU20: 0 | AV20: 0.2600436686 | AW20: 0.09117851374 | AX20: 0 | AY20: -1.320814548 | AZ20: 0 | BA20: -0.1664691099 | BB20: 7.310342675 | BC20: 0.3652771898 | BD20: 0.7753061021 | BE20: 0.07274894676 | BF20: 0.4481383125 | BG20: 2.933226095 | BH20: 0 | BI20: 0 | BJ20: 0 | BK20: 0 | BL20: 0 | BU20: 0.2288478053 | BV20: 36.49184939 | CI20: 132.5654 | CJ20: 11.20265 | CM20: 0 | CN20: 0.2288478053 | CO20: 1.2054 | CP20: 4.00155 | CQ20: 31 | CR20: -1.332297975 | CS20: -3.996802889e-15 | CT20: -0.02067345296 | CU20: 0 | CV20: 0 | CW20: 0 | CX20: 0 | CY20: 0 | CZ20: -0.01141965897 | DA20: 0 | DB20: 0 | DC20: -1.201443026 | DD20: -0.01668853374 | DE20: -0.002709148534 | DF20: -0.02887216219 | DG20: -0.1092324429 | DH20: 0 | DI20: -0.05426332055 | DJ20: -0.117421412 | DK20: 0 | DL20: -0.0001270985126 | DM20: 0.2713066438 | DN20: 0 | DO20: -0.03680794611 | DP20: -0.003946415874 | DQ20: 0 | DR20: 0 | DS20: 0 | DV20: 69.74110823 | DW20: 0 | DX20: 0 | DY20: 153 | DZ20: 0 | EA20: 0 | EB20: 0 | ED20: 0 | EE20: -38.91135728 | EG20: -38.91135728 | EI20: 0 | EJ20: 0 | EK20: 0 | EL20: 0
A21: 20 | B21: Regular | C21: Branca | D21: B1 | E21: Residencial | F21: Residencial | G21: Não se aplica | H21: Não se aplica | I21: Fora ponta | J21: CATIVO | K21: 2019-08-01 | L21: 0 | M21: 0 | N21: 67.152 | O21: 67.152 | P21: 67.152 | Q21: 67.152 | S21: 215.06 | T21: 197.23 | V21: 27686.09808 | W21: 27686.09808 | X21: 29437.42224 | Y21: 0 | Z21: 972.181732 | AA21: 0 | AB21: 0 | AC21: 68.40279595 | AD21: 77.84036729 | AE21: 8920.487103 | AF21: 11996.05036 | AG21: 670.6288794 | AH21: 0 | AI21: 1.193251652 | AJ21: 0 | AK21: 314.9920368 | AL21: 620.5753135 | AM21: 0 | AN21: 55.03903332 | AO21: 280.9130271 | AP21: 856.4241784 | AQ21: 0 | AR21: 0 | AS21: 1.828283429e-11 | AT21: 0 | AU21: 0 | AV21: 166.3090708 | AW21: 58.31256719 | AX21: 0 | AY21: -844.7175096 | AZ21: 0 | BA21: -106.4641302 | BB21: 2945.01238 | BC21: 46.72216126 | BD21: 495.8414797 | BE21: 46.52606927 | BF21: 286.6036567 | BG21: 1875.923798 | BH21: 0 | BI21: 0 | BJ21: 0 | BK21: 0 | BL21: 0 | BU21: 146.3579793 | BV21: 14700.94536 | CI21: 29436.5455 | CJ21: 1750.41742 | CM21: 0 | CN21: 146.3579793 | CO21: 601.0104 | CP21: 1150.31376 | CQ21: 31 | CR21: -513.9967143 | CS21: -5.684341886e-14 | CT21: -2.644307297 | CU21: 0 | CV21: 0 | CW21: 0 | CX21: 0 | CY21: 0 | CZ21: -1.460732174 | DA21: 0 | DB21: 0 | DC21: -446.7292476 | DD21: -10.67303255 | DE21: -1.732616594 | DF21: -18.4649851 | DG21: -69.85882865 | DH21: 0 | DI21: -34.70371906 | DJ21: -75.09602534 | DK21: 0 | DL21: -0.08128494586 | DM21: 173.5122261 | DN21: 0 | DO21: -23.54025902 | DP21: -2.523902084 | DQ21: 0 | DR21: 0 | DS21: 0 | DV21: 8920.487103 | DW21: 0 | DX21: 0 | DY21: 153 | DZ21: 0 | EA21: 0 | EB21: 0 | ED21: 0 | EE21: -38.91135728 | EG21: -38.91135728 | EI21: 0 | EJ21: 0 | EK21: 0 | EL21: 0
A22: 21 | B22: Refaturamento - Regular | C22: Branca | D22: B1 | E22: Residencial | F22: Residencial | G22: Não se aplica | H22: Não se aplica | I22: Fora ponta | J22: CATIVO | K22: 2019-08-01 | L22: 0 | M22: 0 | N22: 0.388 | O22: 0.388 | P22: 0.388 | Q22: 0.388 | S22: 215.06 | T22: 197.23 | V22: 159.96852 | W22: 159.96852 | X22: 170.08756 | Y22: 0 | Z22: 5.617204432 | AA22: 0 | AB22: 0 | AC22: 0.3952270197 | AD22: 0.4497567088 | AE22: 51.54200912 | AF22: 69.31241869 | AG22: 3.874851161 | AH22: 0 | AI22: 0.006894532418 | AJ22: 0 | AK22: 1.820004025 | AL22: 3.58564483 | AM22: 0 | AN22: 0.3180120462 | AO22: 1.623097667 | AP22: 4.948364624 | AQ22: 0 | AR22: 0 | AS22: 1.056370578e-13 | AT22: 0 | AU22: 0 | AV22: 0.9609232706 | AW22: 0.3369263174 | AX22: 0 | AY22: -4.880724233 | AZ22: 0 | BA22: -0.6151429967 | BB22: 17.01609488 | BC22: 0.2699576865 | BD22: 2.864940644 | BE22: 0.2688246795 | BF22: 1.655977764 | BG22: 10.83896881 | BH22: 0 | BI22: 0 | BJ22: 0 | BK22: 0 | BL22: 0 | BU22: 0.8456471281 | BV22: 84.94113059 | CI22: 170.9643 | CJ22: 10.96578 | CM22: 0 | CN22: 0.8456471281 | CO22: 3.4726 | CP22: 6.64644 | CQ22: 31 | CR22: -2.969840439 | CS22: -6.661338148e-16 | CT22: -0.01527863997 | CU22: 0 | CV22: 0 | CW22: 0 | CX22: 0 | CY22: 0 | CZ22: -0.008440017924 | DA22: 0 | DB22: 0 | DC22: -2.581173279 | DD22: -0.06166810561 | DE22: -0.01001094887 | DF22: -0.1066895136 | DG22: -0.4036398844 | DH22: 0 | DI22: -0.2005158893 | DJ22: -0.4339000749 | DK22: 0 | DL22: -0.0004696592655 | DM22: 1.002542646 | DN22: 0 | DO22: -0.1360141247 | DP22: -0.01458294628 | DQ22: 0 | DR22: 0 | DS22: 0 | DV22: 51.54200912 | DW22: 0 | DX22: 0 | DY22: 153 | DZ22: 0 | EA22: 0 | EB22: 0 | ED22: 0 | EE22: -38.91135728 | EG22: -38.91135728 | EI22: 0 | EJ22: 0 | EK22: 0 | EL22: 0
A23: 22 | B23: Sistema de Compensação | C23: Branca | D23: B1 | E23: Residencial | F23: Residencial | G23: Não se aplica | H23: Não se aplica | I23: Fora ponta | J23: CATIVO | K23: 2019-08-01 | L23: 0 | M23: 0 | N23: 1.237 | O23: 1.237 | P23: 1.237 | Q23: 1.237 | S23: 215.06 | T23: 197.23 | V23: 510.00273 | W23: 510.00273 | X23: 542.26369 | Y23: 0 | Z23: 17.90845846 | AA23: 0 | AB23: 0 | AC23: 1.260040782 | AD23: 1.433889301 | AE23: 164.3233641 | AF23: 220.9779946 | AG23: 12.35358476 | AH23: 0 | AI23: 0.02198076444 | AJ23: 0 | AK23: 5.802435513 | AL23: 11.43155323 | AM23: 0 | AN23: 1.013868302 | AO23: 5.174669622 | AP23: 15.77610062 | AQ23: 0 | AR23: 0 | AS23: 3.367861868e-13 | AT23: 0 | AU23: 0 | AV23: 3.063562077 | AW23: 1.074169729 | AX23: 0 | AY23: -15.56045329 | AZ23: 0 | BA23: -1.961164657 | BB23: 54.24976642 | BC23: 0.8606640677 | BD23: 9.133844269 | BE23: 0.8570518776 | BF23: 5.279496119 | BG23: 34.55619695 | BH23: 0 | BI23: 0 | BJ23: 0 | BK23: 0 | BL23: 0 | BU23: 2.696045097 | BV23: 270.8045839 | CI23: 543.5788 | CJ23: 33.54607 | CM23: 0 | CN23: 2.696045097 | CO23: 11.07115 | CP23: 21.18981 | CQ23: 31 | CR23: -9.468279955 | CS23: -1.776356839e-15 | CT23: -0.04871050939 | CU23: 0 | CV23: 0 | CW23: 0 | CX23: 0 | CY23: 0 | CZ23: -0.02690799529 | DA23: 0 | DB23: 0 | DC23: -8.229152955 | DD23: -0.1966068212 | DE23: -0.03191634987 | DF23: -0.3401415679 | DG23: -1.286862209 | DH23: 0 | DI23: -0.6392735954 | DJ23: -1.383336064 | DK23: 0 | DL23: -0.001497341524 | DM23: 3.196250651 | DN23: 0 | DO23: -0.4336326603 | DP23: -0.04649253749 | DQ23: 0 | DR23: 0 | DS23: 0 | DV23: 164.3233641 | DW23: 0 | DX23: 0 | DY23: 153 | DZ23: 0 | EA23: 0 | EB23: 0 | ED23: 0 | EE23: -38.91135728 | EG23: -38.91135728 | EI23: 0 | EJ23: 0 | EK23: 0 | EL23: 0
A24: 23 | B24: Regular | C24: Branca | D24: B1 | E24: Residencial | F24: Residencial | G24: Não se aplica | H24: Não se aplica | I24: Não se aplica | J24: CATIVO | K24: 2019-08-01 | L24: 0 | M24: 0 | N24: 0 | O24: 0 | P24: 0 | Q24: 0 | AA24: 0 | AZ24: 0 | BI24: 707.38 | BJ24: 3261.69 | BK24: 17626.91 | BL24: 184 | CJ24: -0.03 | CO24: 0 | CP24: 0 | CQ24: 31 | DK24: 0 | DY24: 153 | ED24: 0 | EE24: -38.91135728 | EG24: -38.91135728 | EI24: 0 | EJ24: 0 | EK24: 0 | EL24: 0
A25: 24 | B25: Refaturamento - Regular | C25: Branca | D25: B1 | E25: Residencial | F25: Residencial | G25: Não se aplica | H25: Não se aplica | I25: Não se aplica | J25: CATIVO | K25: 2019-08-01 | L25: 0 | M25: 0 | N25: 0 | O25: 0 | P25: 0 | Q25: 0 | AA25: 0 | AZ25: 0 | BI25: -1.92 | BJ25: -8.81 | BK25: -56.2 | BL25: 1 | CJ25: -0.03 | CO25: 0 | CP25: 0 | CQ25: 31 | DK25: 0 | DY25: 153 | ED25: 0 | EE25: -38.91135728 | EG25: -38.91135728 | EI25: 0 | EJ25: 0 | EK25: 0 | EL25: 0
A26: 25 | B26: Sistema de Compensação | C26: Branca | D26: B1 | E26: Residencial | F26: Residencial | G26: Não se aplica | H26: Não se aplica | I26: Não se aplica | J26: CATIVO | K26: 2019-08-01 | L26: 0 | M26: 0 | N26: 0 | O26: 0 | P26: 0 | Q26: 0 | AA26: 0 | AZ26: 0 | BI26: 13.03 | BJ26: 60.03 | BK26: 324.45 | BL26: 1 | CJ26: -0.03 | CO26: 0 | CP26: 0 | CQ26: 31 | DK26: 0 | DY26: 153 | ED26: 0 | EE26: -38.91135728 | EG26: -38.91135728 | EI26: 0 | EJ26: 0 | EK26: 0 | EL26: 0
A27: 33 | B27: Regular | C27: Azul | D27: A3 | E27: Industrial | F27: Não se aplica | G27: Não se aplica | H27: Não se aplica | I27: Ponta | J27: CATIVO | K27: 2019-08-01 | L27: 2273 | M27: 2273 | N27: 16.976 | O27: 16.976 | P27: 16.976 | Q27: 16.976 | R27: 19.33 | S27: 29.56 | T27: 325.85 | U27: 43937.09 | V27: 6033.44016 | W27: 49970.53016 | X27: 51312.66248 | Y27: 0 | Z27: 194.1560653 | AA27: 0 | AB27: 0 | AC27: 1044.963878 | AD27: 952.2834956 | AE27: 25176.19183 | AF27: 5216.066768 | AG27: 169.534725 | AH27: 0 | AI27: 0.3016535627 | AJ27: 0 | AK27: 40.25945467 | AL27: 156.8812027 | AM27: 0 | AN27: 1.915534682 | AO27: 4146.725565 | AP27: 12628.23044 | AQ27: 0 | AR27: 0 | AS27: 4.621893538e-12 | AT27: 0 | AU27: 0 | AV27: 33.21386706 | AW27: 14.74139475 | AX27: 0 | AY27: -213.5442644 | AZ27: 0 | BA27: -26.91409153 | BB27: 1088.469796 | BC27: 689.1203382 | BD27: 35.38079196 | BE27: 2.650898459 | BF27: 72.45329517 | BG27: 106.8838091 | BH27: 0 | BI27: 0 | BJ27: 0 | BK27: 0 | BL27: 0 | BU27: 36.99924136 | BV27: 5433.435562 | CI27: 51314.2504 | CJ27: 1343.69024 | CM27: 0 | CN27: 36.99924136 | CO27: 695.17696 | CP27: 646.95536 | CQ27: 31 | CR27: -247.3114037 | CS27: 2.091837814e-11 | CT27: -38.99110131 | CU27: 0 | CV27: 0 | CW27: 0 | CX27: 0 | CY27: 0 | CZ27: -17.87030547 | DA27: 0 | DB27: 0 | DC27: -194.2447316 | DD27: -2.698138559 | DE27: -0.09871864807 | DF27: -1.317569875 | DG27: -3.980320369 | DH27: 0 | DI27: -6.93073869 | DJ27: -18.98424658 | DK27: 0 | DL27: -0.02054880333 | DM27: 43.86382461 | DN27: 0 | DO27: -5.950968506 | DP27: -0.08783987803 | DQ27: 0 | DR27: 0 | DS27: 0 | DU27: 25176.19183 | DV27: 0 | DW27: 0 | DX27: 0 | DY27: 153 | DZ27: 0 | EA27: 0 | EB27: 0 | ED27: 0 | EE27: -38.91135728 | EG27: -38.91135728 | EI27: 0 | EJ27: 0 | EK27: 0 | EL27: 0
A28: 34 | B28: Regular | C28: Azul | D28: A3 | E28: Industrial | F28: Não se aplica | G28: Não se aplica | H28: Não se aplica | I28: Fora ponta | J28: CATIVO | K28: 2019-08-01 | L28: 6438 | M28: 6438 | N28: 854.678 | O28: 854.678 | P28: 854.678 | Q28: 854.678 | R28: 7.83 | S28: 29.56 | T28: 197.23 | U28: 50409.54 | V28: 193832.4236 | W28: 244241.9636 | X28: 263384.9036 | Y28: 0 | Z28: 9775.030487 | AA28: 0 | AB28: 0 | AC28: 2308.371802 | AD28: 1078.126363 | AE28: 7130.627298 | AF28: 152679.8953 | AG28: 8535.43825 | AH28: 0 | AI28: 15.18712675 | AJ28: 0 | AK28: 2026.912712 | AL28: 7898.380804 | AM28: 0 | AN28: 96.43999473 | AO28: 9768.515644 | AP28: 30127.97876 | AQ28: 0 | AR28: 0 | AS28: 2.326950239e-10 | AT28: 0 | AU28: 0 | AV28: 1672.193772 | AW28: 742.1739978 | AX28: 0 | AY28: -10751.15368 | AZ28: 0 | BA28: -1355.023676 | BB28: 32778.40405 | BC28: 1638.960228 | BD28: 1781.290322 | BE28: 133.4628059 | BF28: 3647.751968 | BG28: 5381.19935 | BH28: 0 | BI28: 0 | BJ28: 0 | BK28: 0 | BL28: 0 | BU28: 1862.773186 | BV28: 163623.5998 | CI28: 263385.3984 | CJ28: 19143.40478 | CM28: 0 | CN28: 1862.773186 | CO28: 4502.30588 | CP28: 14640.63414 | CQ28: 31 | CR28: -5607.957352 | CS28: 3.819877747e-11 | CT28: -93.02356951 | CU28: 0 | CV28: 0 | CW28: 0 | CX28: 0 | CY28: 0 | CZ28: -20.23184013 | DA28: 0 | DB28: 0 | DC28: -5685.752619 | DD28: -135.841168 | DE28: -4.970114084 | DF28: -66.33470695 | DG28: -200.3942185 | DH28: 0 | DI28: -348.9367273 | DJ28: -955.7856913 | DK28: 0 | DL28: -1.034555262 | DM28: 2208.379235 | DN28: 0 | DO28: -299.6089692 | DP28: -4.42240877 | DQ28: 0 | DR28: 0 | DS28: 0 | DU28: 7130.627298 | DV28: 0 | DW28: 0 | DX28: 0 | DY28: 153 | DZ28: 0 | EA28: 0 | EB28: 0 | ED28: 0 | EE28: -38.91135728 | EG28: -38.91135728 | EI28: 0 | EJ28: 0 | EK28: 0 | EL28: 0
A29: 35 | B29: Regular | C29: Azul | D29: A3 | E29: Industrial | F29: Não se aplica | G29: Não se aplica | H29: Não se aplica | I29: Não se aplica | J29: CATIVO | K29: 2019-08-01 | L29: 0 | M29: 0 | N29: 0 | O29: 0 | P29: 0 | Q29: 0 | AA29: 0 | AZ29: 0 | BI29: 5691.26 | BJ29: 26215.54 | BK29: 115350.92 | BL29: 4 | CJ29: -0.03 | CO29: 0 | CP29: 0 | CQ29: 31 | DK29: 0 | DY29: 153 | ED29: 0 | EE29: -38.91135728 | EG29: -38.91135728 | EI29: 0 | EJ29: 0 | EK29: 0 | EL29: 0
A30: 36 | B30: Regular | C30: Azul | D30: A4 | E30: Industrial | F30: Não se aplica | G30: Não se aplica | H30: Não se aplica | I30: Ponta | J30: CATIVO | K30: 2019-08-01 | L30: 1184 | M30: 1184 | N30: 43.509 | O30: 43.509 | P30: 43.509 | Q30: 43.509 | R30: 59.69 | S30: 42.81 | T30: 325.85 | U30: 70672.96 | V30: 16040.02794 | W30: 86712.98794 | X30: 88939.32489 | Y30: 0 | Z30: 579.5026593 | AA30: 0 | AB30: 0 | AC30: 553.9340096 | AD30: 772.5591619 | AE30: 60533.7899 | AF30: 13368.62918 | AG30: 434.5126268 | AH30: 0 | AI30: 0.7731294097 | AJ30: 0 | AK30: 113.9306852 | AL30: 402.0820127 | AM30: 0 | AN30: 22.91049526 | AO30: 2146.978219 | AP30: 6665.723872 | AQ30: 0 | AR30: 0 | AS30: 1.184578028e-11 | AT30: 0 | AU30: 0 | AV30: 99.13429313 | AW30: 37.78177099 | AX30: 0 | AY30: -547.307811 | AZ30: 0 | BA30: -68.9800429 | BB30: 2883.045286 | BC30: 362.028505 | BD30: 239.6805008 | BE30: 14.46307389 | BF30: 185.6957127 | BG30: 583.1488652 | BH30: 0 | BI30: 0 | BJ30: 0 | BK30: 0 | BL30: 0 | BU30: 94.82799201 | BV30: 14391.61733 | CI30: 88939.7371 | CJ30: 2226.71916 | CM30: 0 | CN30: 94.82799201 | CO30: 568.20896 | CP30: 1658.12799 | CQ30: 31 | CR30: -544.2943939 | CS30: -2.728484105e-12 | CT30: -20.58118246 | CU30: 0 | CV30: 0 | CW30: 0 | CX30: 0 | CY30: 0 | CZ30: -14.49764516 | DA30: 0 | DB30: 0 | DC30: -497.8436632 | DD30: -6.915251565 | DE30: -0.5386004494 | DF30: -8.925628566 | DG30: -21.71628544 | DH30: 0 | DI30: -20.68635608 | DJ30: -48.65607825 | DK30: 0 | DL30: -0.05266599222 | DM30: 112.4217216 | DN30: 0 | DO30: -15.25216121 | DP30: -1.050597062 | DQ30: 0 | DR30: 0 | DS30: 0 | DU30: 60533.7899 | DV30: 0 | DW30: 0 | DX30: 0 | DY30: 153 | DZ30: 0 | EA30: 0 | EB30: 0 | ED30: 0 | EE30: -38.91135728 | EG30: -38.91135728 | EI30: 0 | EJ30: 0 | EK30: 0 | EL30: 0
A31: 37 | B31: Regular | C31: Azul | D31: A4 | E31: Industrial | F31: Não se aplica | G31: Não se aplica | H31: Não se aplica | I31: Fora ponta | J31: CATIVO | K31: 2019-08-01 | L31: 1638 | M31: 1638 | N31: 394.536 | O31: 394.536 | P31: 394.536 | Q31: 394.536 | R31: 19.7 | S31: 42.81 | T31: 197.23 | U31: 32268.6 | V31: 94704.42144 | W31: 126973.0214 | X31: 136270.819 | Y31: 0 | Z31: 5254.882006 | AA31: 0 | AB31: 0 | AC31: 588.720166 | AD31: 406.6867637 | AE31: 21106.84159 | AF31: 70480.01139 | AG31: 3940.124427 | AH31: 0 | AI31: 7.010673304 | AJ31: 0 | AK31: 1033.113995 | AL31: 3646.046311 | AM31: 0 | AN31: 207.7504691 | AO31: 2488.447768 | AP31: 7683.469241 | AQ31: 0 | AR31: 0 | AS31: 1.074165521e-10 | AT31: 0 | AU31: 0 | AV31: 898.9415403 | AW31: 342.6019628 | AX31: 0 | AY31: -4962.941794 | AZ31: 0 | BA31: -625.5053025 | BB31: 15977.44428 | BC31: 417.8654708 | BD31: 2173.402884 | BE31: 131.1499533 | BF31: 1683.873307 | BG31: 5287.945498 | BH31: 0 | BI31: 0 | BJ31: 0 | BK31: 0 | BL31: 0 | BU31: 859.8923591 | BV31: 79756.38303 | CI31: 136271.8694 | CJ31: 9298.81796 | CM31: 0 | CN31: 859.8923591 | CO31: 2539.39584 | CP31: 6758.40168 | CQ31: 31 | CR31: -2759.128913 | CS31: 1.818989404e-12 | CT31: -23.72358732 | CU31: 0 | CV31: 0 | CW31: 0 | CX31: 0 | CY31: 0 | CZ31: -7.631778488 | DA31: 0 | DB31: 0 | DC31: -2624.654075 | DD31: -62.7069271 | DE31: -4.883984162 | DF31: -80.93685885 | DG31: -196.9214735 | DH31: 0 | DI31: -187.5821596 | DJ31: -441.2092783 | DK31: 0 | DL31: -0.4775708453 | DM31: 1019.430838 | DN31: 0 | DO31: -138.3053317 | DP31: -9.526726945 | DQ31: 0 | DR31: 0 | DS31: 0 | DU31: 21106.84159 | DV31: 0 | DW31: 0 | DX31: 0 | DY31: 153 | DZ31: 0 | EA31: 0 | EB31: 0 | ED31: 0 | EE31: -38.91135728 | EG31: -38.91135728 | EI31: 0 | EJ31: 0 | EK31: 0 | EL31: 0
A32: 38 | B32: Regular | C32: Azul | D32: A4 | E32: Industrial | F32: Não se aplica | G32: Não se aplica | H32: Não se aplica | I32: Não se aplica | J32: CATIVO | K32: 2019-08-01 | L32: 0 | M32: 0 | N32: 0 | O32: 0 | P32: 0 | Q32: 0 | AA32: 0 | AZ32: 0 | BI32: 4010.14 | BJ32: 18471.81 | BK32: 86260.46 | BL32: 14 | CJ32: -0.03 | CO32: 0 | CP32: 0 | CQ32: 31 | DK32: 0 | DY32: 153 | ED32: 0 | EE32: -38.91135728 | EG32: -38.91135728 | EI32: 0 | EJ32: 0 | EK32: 0 | EL32: 0
A33: 39 | B33: Regular | C33: Verde | D33: A4 | E33: Industrial | F33: Não se aplica | G33: Não se aplica | H33: Não se aplica | I33: Ponta | J33: CATIVO | K33: 2019-08-01 | L33: 0 | M33: 0 | N33: 358.248 | O33: 358.248 | P33: 358.248 | Q33: 358.248 | S33: 1494.48 | T33: 325.85 | V33: 652129.5818 | W33: 652129.5818 | X33: 670106.4665 | Y33: 0 | Z33: 4771.556889 | AA33: 0 | AB33: 0 | AC33: 4030.557963 | AD33: 5621.951869 | AE33: 440499.4296 | AF33: 110075.7238 | AG33: 3577.725977 | AH33: 0 | AI33: 6.365856829 | AJ33: 0 | AK33: 6711.721037 | AL33: 3310.696106 | AM33: 0 | AN33: 188.6423293 | AO33: 15623.48922 | AP33: 48506.18337 | AQ33: 0 | AR33: 0 | AS33: 9.753676463e-11 | AT33: 0 | AU33: 0 | AV33: 816.2601357 | AW33: 311.0906685 | AX33: 0 | AY33: -4506.468286 | AZ33: 0 | BA33: -567.9735781 | BB33: 23738.65654 | BC33: 2634.46662 | BD33: 1973.501116 | BE33: 119.0872531 | BF33: 1528.996706 | BG33: 4801.579321 | BH33: 0 | BI33: 0 | BJ33: 0 | BK33: 0 | BL33: 0 | BU33: 780.8025576 | BV33: 118498.8882 | CI33: 670110.2075 | CJ33: 17980.59566 | CM33: 0 | CN33: 780.8025576 | CO33: 4324.05336 | CP33: 13652.83128 | CQ33: 31 | CR33: -4448.089678 | CS33: 2.000888344e-11 | CT33: -149.7683717 | CU33: 0 | CV33: 0 | CW33: 0 | CX33: 0 | CY33: 0 | CZ33: -105.5000928 | DA33: 0 | DB33: 0 | DC33: -4099.186298 | DD33: -56.93936984 | DE33: -4.434772893 | DF33: -73.49257814 | DG33: -178.8093458 | DH33: 0 | DI33: -170.3290283 | DJ33: -400.6284383 | DK33: 0 | DL33: -0.4336455993 | DM33: 925.667262 | DN33: 0 | DO33: -125.5845055 | DP33: -8.650492919 | DQ33: 0 | DR33: 0 | DS33: 0 | DV33: 440499.4296 | DW33: 0 | DX33: 0 | DY33: 153 | DZ33: 0 | EA33: 0 | EB33: 0 | ED33: 0 | EE33: -38.91135728 | EG33: -38.91135728 | EI33: 0 | EJ33: 0 | EK33: 0 | EL33: 0
A34: 40 | B34: Sistema de Compensação | C34: Verde | D34: A4 | E34: Industrial | F34: Não se aplica | G34: Não se aplica | H34: Não se aplica | I34: Ponta | J34: CATIVO | K34: 2019-08-01 | L34: 0 | M34: 0 | N34: 7.114 | O34: 7.114 | P34: 7.114 | Q34: 7.114 | S34: 1494.48 | T34: 325.85 | V34: 12949.82762 | W34: 12949.82762 | X34: 13306.80814 | Y34: 0 | Z34: 94.75239418 | AA34: 0 | AB34: 0 | AC34: 80.03782115 | AD34: 111.6393269 | AE34: 8747.328504 | AF34: 2185.856443 | AG34: 71.04559578 | AH34: 0 | AI34: 0.1264116073 | AJ34: 0 | AK34: 133.279693 | AL34: 65.74298279 | AM34: 0 | AN34: 3.746012625 | AO34: 310.247377 | AP34: 963.2237682 | AQ34: 0 | AR34: 0 | AS34: 1.9368609e-12 | AT34: 0 | AU34: 0 | AV34: 16.20909148 | AW34: 6.177561398 | AX34: 0 | AY34: -89.4883304 | AZ34: 0 | BA34: -11.27867855 | BB34: 471.3963585 | BC34: 52.31458525 | BD34: 39.18929607 | BE34: 2.364805159 | BF34: 30.36243767 | BG34: 95.34857218 | BH34: 0 | BI34: 0 | BJ34: 0 | BK34: 0 | BL34: 0 | BU34: 15.50498368 | BV34: 2353.121555 | CI34: 13299.3261 | CJ34: 349.46848 | CM34: 0 | CN34: 15.50498368 | CO34: 85.86598 | CP34: 271.11454 | CQ34: 31 | CR34: -88.32906246 | CS34: 3.97903932e-13 | CT34: -2.974063207 | CU34: 0 | CV34: 0 | CW34: 0 | CX34: 0 | CY34: 0 | CZ34: -2.094994698 | DA34: 0 | DB34: 0 | DC34: -81.40062562 | DD34: -1.130687895 | DE34: -0.08806462105 | DF34: -1.459397403 | DG34: -3.550751675 | DH34: 0 | DI34: -3.382351632 | DJ34: -7.95558024 | DK34: 0 | DL34: -0.008611226842 | DM34: 18.38167108 | DN34: 0 | DO34: -2.493825987 | DP34: -0.1717793446 | DQ34: 0 | DR34: 0 | DS34: 0 | DV34: 8747.328504 | DW34: 0 | DX34: 0 | DY34: 153 | DZ34: 0 | EA34: 0 | EB34: 0 | ED34: 0 | EE34: -38.91135728 | EG34: -38.91135728 | EI34: 0 | EJ34: 0 | EK34: 0 | EL34: 0
A35: 41 | B35: Regular | C35: Verde | D35: A4 | E35: Industrial | F35: Não se aplica | G35: Não se aplica | H35: Não se aplica | I35: Fora ponta | J35: CATIVO | K35: 2019-08-01 | L35: 0 | M35: 0 | N35: 11829.316 | O35: 11829.316 | P35: 11829.316 | Q35: 11829.316 | S35: 42.81 | T35: 197.23 | V35: 2839509.013 | W35: 2839509.013 | X35: 3106496.675 | Y35: 0 | Z35: 157556.3695 | AA35: 0 | AB35: 0 | AC35: 0 | AD35: 0 | AE35: 0 | AF35: 2113192.019 | AG35: 118136.1826 | AH35: 0 | AI35: 210.2000068 | AJ35: 0 | AK35: 30975.70795 | AL35: 109318.8808 | AM35: 0 | AN35: 6228.952359 | AO35: 0 | AP35: 0 | AQ35: 0 | AR35: 0 | AS35: 3.220654994e-09 | AT35: 0 | AU35: 0 | AV35: 26952.83458 | AW35: 10272.18525 | AX35: 0 | AY35: -148803.1682 | AZ35: 0 | BA35: -18754.43529 | BB35: 479049.4082 | BC35: 0 | BD35: 65164.82528 | BE35: 3932.25014 | BF35: 50487.33057 | BG35: 158547.7074 | BH35: 0 | BI35: 0 | BJ35: 0 | BK35: 0 | BL35: 0 | BU35: 25782.02862 | BV35: 2391324.132 | CI35: 3106497.725 | CJ35: 266988.6826 | CM35: 0 | CN35: 25782.02862 | CO35: 64351.47904 | CP35: 202636.1831 | CQ35: 31 | CR35: -81786.44096 | CS35: 0 | CT35: 0 | CU35: 0 | CV35: 0 | CW35: 0 | CX35: 0 | CY35: 0 | CZ35: 0 | DA35: 0 | DB35: 0 | DC35: -78694.62467 | DD35: -1880.132754 | DE35: -146.4357929 | DF35: -2426.718169 | DG35: -5904.268147 | DH35: 0 | DI35: -5624.248845 | DJ35: -13228.71417 | DK35: 0 | DL35: -14.31893779 | DM35: 30565.44783 | DN35: 0 | DO35: -4146.788817 | DP35: -285.6384803 | DQ35: 0 | DR35: 0 | DS35: 0 | DV35: 0 | DW35: 0 | DX35: 0 | DY35: 153 | DZ35: 0 | EA35: 0 | EB35: 0 | ED35: 0 | EE35: -38.91135728 | EG35: -38.91135728 | EI35: 0 | EJ35: 0 | EK35: 0 | EL35: 0
A36: 42 | B36: Sistema de Compensação | C36: Verde | D36: A4 | E36: Industrial | F36: Não se aplica | G36: Não se aplica | H36: Não se aplica | I36: Fora ponta | J36: CATIVO | K36: 2019-08-01 | L36: 0 | M36: 0 | N36: 408.205 | O36: 408.205 | P36: 408.205 | Q36: 408.205 | S36: 42.81 | T36: 197.23 | V36: 97985.5282 | W36: 97985.5282 | X36: 107198.715 | Y36: 0 | Z36: 5436.941392 | AA36: 0 | AB36: 0 | AC36: 0 | AD36: 0 | AE36: 0 | AF36: 72921.84503 | AG36: 4076.633037 | AH36: 0 | AI36: 7.253563417 | AJ36: 0 | AK36: 1068.907016 | AL36: 3772.366361 | AM36: 0 | AN36: 214.9481422 | AO36: 0 | AP36: 0 | AQ36: 0 | AR36: 0 | AS36: 1.111380803e-10 | AT36: 0 | AU36: 0 | AV36: 930.0860541 | AW36: 354.4716686 | AX36: 0 | AY36: -5134.88669 | AZ36: 0 | BA36: -647.1764097 | BB36: 16530.995 | BC36: 0 | BD36: 2248.702081 | BE36: 135.6937433 | BF36: 1742.212379 | BG36: 5471.150395 | BH36: 0 | BI36: 0 | BJ36: 0 | BK36: 0 | BL36: 0 | BU36: 889.6839844 | BV36: 82519.60363 | CI36: 107200.0281 | CJ36: 9214.4699 | CM36: 0 | CN36: 889.6839844 | CO36: 2220.6352 | CP36: 6992.55165 | CQ36: 31 | CR36: -2822.279338 | CS36: 0 | CT36: 0 | CU36: 0 | CV36: 0 | CW36: 0 | CX36: 0 | CY36: 0 | CZ36: 0 | DA36: 0 | DB36: 0 | DC36: -2715.587213 | DD36: -64.87945632 | DE36: -5.053193511 | DF36: -83.74097793 | DG36: -203.7439679 | DH36: 0 | DI36: -194.0810863 | DJ36: -456.4953095 | DK36: 0 | DL36: -0.4941166507 | DM36: 1054.749795 | DN36: 0 | DO36: -143.0970251 | DP36: -9.85678765 | DQ36: 0 | DR36: 0 | DS36: 0 | DV36: 0 | DW36: 0 | DX36: 0 | DY36: 153 | DZ36: 0 | EA36: 0 | EB36: 0 | ED36: 0 | EE36: -38.91135728 | EG36: -38.91135728 | EI36: 0 | EJ36: 0 | EK36: 0 | EL36: 0
A37: 43 | B37: Regular | C37: Verde | D37: A4 | E37: Industrial | F37: Não se aplica | G37: Não se aplica | H37: Não se aplica | I37: Não se aplica | J37: CATIVO | K37: 2019-08-01 | L37: 61169 | M37: 61169 | N37: 0 | O37: 0 | P37: 0 | Q37: 0 | R37: 19.7 | U37: 1205029.3 | W37: 1205029.3 | X37: 1219709.86 | Y37: 0 | Z37: 0 | AA37: 0 | AB37: 0 | AC37: 21984.99624 | AD37: 15187.19332 | AE37: 788207.8103 | AI37: 0 | AJ37: 0 | AK37: 0 | AL37: 0 | AM37: 0 | AN37: 0 | AO37: 92927.87638 | AP37: 286929.2613 | AQ37: 0 | AR37: 0 | AU37: 0 | AV37: 0 | AW37: 0 | AZ37: 0 | BB37: 0 | BC37: 15604.64773 | BD37: 0 | BE37: 0 | BG37: 0 | BH37: 0 | BI37: 91858.07 | BJ37: 423128.62 | BK37: 2058110.48 | BL37: 328 | BV37: 0 | CI37: 1219709.86 | CJ37: 14680.53 | CO37: 14680.56 | CP37: 0 | CQ37: 31 | CR37: -1170.925746 | CS37: 7.275957614e-11 | CT37: -885.9268089 | CU37: 0 | CV37: 0 | CZ37: -284.9989367 | DA37: 0 | DB37: 0 | DE37: 0 | DF37: 0 | DG37: 0 | DH37: 0 | DI37: 0 | DK37: 0 | DL37: 0 | DN37: 0 | DO37: 0 | DP37: 0 | DQ37: 0 | DR37: 0 | DS37: 0 | DU37: 788207.8103 | DW37: 0 | DX37: 0 | DY37: 153 | ED37: 0 | EE37: -38.91135728 | EG37: -38.91135728 | EI37: 0 | EJ37: 0 | EK37: 0 | EL37: 0
A38: 44 | B38: Sistema de Compensação | C38: Verde | D38: A4 | E38: Industrial | F38: Não se aplica | G38: Não se aplica | H38: Não se aplica | I38: Não se aplica | J38: CATIVO | K38: 2019-08-01 | L38: 3126 | M38: 3126 | N38: 0 | O38: 0 | P38: 0 | Q38: 0 | R38: 19.7 | U38: 61582.2 | W38: 61582.2 | X38: 62332.44 | Y38: 0 | Z38: 0 | AA38: 0 | AB38: 0 | AC38: 1123.528229 | AD38: 776.1311498 | AE38: 40280.82223 | AI38: 0 | AJ38: 0 | AK38: 0 | AL38: 0 | AM38: 0 | AN38: 0 | AO38: 4749.015704 | AP38: 14663.32408 | AQ38: 0 | AR38: 0 | AU38: 0 | AV38: 0 | AW38: 0 | AZ38: 0 | BB38: 0 | BC38: 797.4648728 | BD38: 0 | BE38: 0 | BG38: 0 | BH38: 0 | BI38: 3298.41 | BJ38: 15193.61 | BK38: 73428.68 | BL38: 11 | BV38: 0 | CI38: 62332.44 | CJ38: 750.21 | CO38: 750.24 | CP38: 0 | CQ38: 31 | CR38: -59.83936112 | CS38: 3.637978807e-12 | CT38: -45.27468496 | CU38: 0 | CV38: 0 | CZ38: -14.56467616 | DA38: 0 | DB38: 0 | DE38: 0 | DF38: 0 | DG38: 0 | DH38: 0 | DI38: 0 | DK38: 0 | DL38: 0 | DN38: 0 | DO38: 0 | DP38: 0 | DQ38: 0 | DR38: 0 | DS38: 0 | DU38: 40280.82223 | DW38: 0 | DX38: 0 | DY38: 153 | ED38: 0 | EE38: -38.91135728 | EG38: -38.91135728 | EI38: 0 | EJ38: 0 | EK38: 0 | EL38: 0
A39: 26 | B39: Regular | C39: Branca | D39: B1 | E39: Residencial | F39: Residencial | G39: Não se aplica | H39: Não se aplica | I39: Intermediário | J39: CATIVO | K39: 2019-08-01 | L39: 0 | M39: 0 | N39: 3.939 | O39: 3.939 | P39: 3.939 | Q39: 3.939 | S39: 522.38 | T39: 197.23 | V39: 2834.54379 | W39: 2834.54379 | X39: 2942.23605 | Y39: 0 | Z39: 57.02620685 | AA39: 0 | AB39: 0 | AC39: 12.03673113 | AD39: 13.69740562 | AE39: 1569.772531 | AF39: 703.6639619 | AG39: 39.33772867 | AH39: 0 | AI39: 0.06999371957 | AJ39: 0 | AK39: 31.90494927 | AL39: 36.40168811 | AM39: 0 | AN39: 3.228477964 | AO39: 49.43287072 | AP39: 150.7087423 | AQ39: 0 | AR39: 0 | AS39: 1.072433945e-12 | AT39: 0 | AU39: 0 | AV39: 9.755352482 | AW39: 3.420496815 | AX39: 0 | AY39: -49.54941432 | AZ39: 0 | BA39: -6.244969753 | BB39: 172.7484478 | BC39: 8.22187885 | BD39: 29.08505463 | BE39: 2.729124774 | BF39: 16.81158869 | BG39: 110.0378818 | BH39: 0 | BI39: 0 | BJ39: 0 | BK39: 0 | BL39: 0 | BU39: 8.585061953 | BV39: 862.3276118 | CI39: 2942.983 | CJ39: 108.40921 | CM39: 0 | CN39: 8.585061953 | CO39: 40.21719 | CP39: 67.47507 | CQ39: 31 | CR39: -30.63158294 | CS39: 6.394884622e-14 | CT39: -0.465330425 | CU39: 0 | CV39: 0 | CW39: 0 | CX39: 0 | CY39: 0 | CZ39: -0.2570419667 | DA39: 0 | DB39: 0 | DC39: -26.20423079 | DD39: -0.6260584227 | DE39: -0.1016317722 | DF39: -1.083118542 | DG39: -4.097777074 | DH39: 0 | DI39: -2.035649711 | DJ39: -4.4049804 | DK39: 0 | DL39: -0.004768009914 | DM39: 10.17787495 | DN39: 0 | DO39: -1.380823807 | DP39: -0.1480469726 | DQ39: 0 | DR39: 0 | DS39: 0 | DV39: 1569.772531 | DW39: 0 | DX39: 0 | DY39: 153 | DZ39: 0 | EA39: 0 | EB39: 0 | ED39: 0 | EE39: -38.91135728 | EG39: -38.91135728 | EI39: 0 | EJ39: 0 | EK39: 0 | EL39: 0
A40: 27 | B40: Refaturamento - Regular | C40: Branca | D40: B1 | E40: Residencial | F40: Residencial | G40: Não se aplica | H40: Não se aplica | I40: Intermediário | J40: CATIVO | K40: 2019-08-01 | L40: 0 | M40: 0 | N40: -0.271 | O40: -0.271 | P40: -0.271 | Q40: -0.271 | S40: 522.38 | T40: 197.23 | V40: -195.01431 | W40: -195.01431 | X40: -202.42345 | Y40: 0 | Z40: -3.923356704 | AA40: 0 | AB40: 0 | AC40: -0.8281173232 | AD40: -0.9423703793 | AE40: -107.9990748 | AF40: -48.41150893 | AG40: -2.706403775 | AH40: 0 | AI40: -0.004815511044 | AJ40: 0 | AK40: -2.19503459 | AL40: -2.50440657 | AM40: 0 | AN40: -0.2221166612 | AO40: -3.400941347 | AP40: -10.36863903 | AQ40: 0 | AR40: 0 | AS40: -7.378258417e-14 | AT40: 0 | AU40: 0 | AV40: -0.6711603256 | AW40: -0.2353274021 | AX40: 0 | AY40: 3.408959452 | AZ40: 0 | BA40: 0.4296488457 | BB40: -11.88495287 | BC40: -0.5656585855 | BD40: -2.00102813 | BE40: -0.1877615674 | BF40: -1.156623645 | BG40: -7.570516875 | BH40: 0 | BI40: 0 | BJ40: 0 | BK40: 0 | BL40: 0 | BU40: -0.590645288 | BV40: -59.32743915 | CI40: -201.6765 | CJ40: -6.69219 | CM40: 0 | CN40: -0.590645288 | CO40: -2.76691 | CP40: -4.64223 | CQ40: 31 | CR40: 2.107428022 | CS40: -4.440892099e-15 | CT40: 0.03201435521 | CU40: 0 | CV40: 0 | CW40: 0 | CX40: 0 | CY40: 0 | CZ40: 0.01768427849 | DA40: 0 | DB40: 0 | DC40: 1.80282979 | DD40: 0.04307231088 | DE40: 0.006992183359 | DF40: 0.07451767574 | DG40: 0.2819237337 | DH40: 0 | DI40: 0.1400510464 | DJ40: 0.303059073 | DK40: 0 | DL40: 0.0003280352086 | DM40: -0.7002295282 | DN40: 0 | DO40: 0.09499955614 | DP40: 0.01018551145 | DQ40: 0 | DR40: 0 | DS40: 0 | DV40: -107.9990748 | DW40: 0 | DX40: 0 | DY40: 153 | DZ40: 0 | EA40: 0 | EB40: 0 | ED40: 0 | EE40: -38.91135728 | EG40: -38.91135728 | EI40: 0 | EJ40: 0 | EK40: 0 | EL40: 0
A41: 28 | B41: Sistema de Compensação | C41: Branca | D41: B1 | E41: Residencial | F41: Residencial | G41: Não se aplica | H41: Não se aplica | I41: Intermediário | J41: CATIVO | K41: 2019-08-01 | L41: 0 | M41: 0 | N41: 0.08 | O41: 0.08 | P41: 0.08 | Q41: 0.08 | S41: 522.38 | T41: 197.23 | V41: 57.5688 | W41: 57.5688 | X41: 59.756 | Y41: 0 | Z41: 1.158186481 | AA41: 0 | AB41: 0 | AC41: 0.2444626784 | AD41: 0.2781905179 | AE41: 31.88164571 | AF41: 14.29122035 | AG41: 0.7989383838 | AH41: 0 | AI41: 0.001421553076 | AJ41: 0 | AK41: 0.6479806909 | AL41: 0.7393082124 | AM41: 0 | AN41: 0.06556949407 | AO41: 1.003967925 | AP41: 3.060852851 | AQ41: 0 | AR41: 0 | AS41: 2.178083666e-14 | AT41: 0 | AU41: 0 | AV41: 0.1981285094 | AW41: 0.0694693438 | AX41: 0 | AY41: -1.006334893 | AZ41: 0 | BA41: -0.1268336076 | BB41: 3.508473172 | BC41: 0.1669840843 | BD41: 0.5907094111 | BE41: 0.05542776896 | BF41: 0.3414387143 | BG41: 2.23483893 | BH41: 0 | BI41: 0 | BJ41: 0 | BK41: 0 | BL41: 0 | BU41: 0.1743602326 | BV41: 17.51363517 | CI41: 59.756 | CJ41: 2.1572 | CM41: 0 | CN41: 0.1743602326 | CO41: 0.8168 | CP41: 1.3704 | CQ41: 31 | CR41: -0.6221189732 | CS41: 1.110223025e-15 | CT41: -0.009450732165 | CU41: 0 | CV41: 0 | CW41: 0 | CX41: 0 | CY41: 0 | CZ41: -0.005220451215 | DA41: 0 | DB41: 0 | DC41: -0.5322006761 | DD41: -0.01271507332 | DE41: -0.002064113169 | DF41: -0.02199783786 | DG41: -0.08322471843 | DH41: 0 | DI41: -0.04134348232 | DJ41: -0.08946393297 | DK41: 0 | DL41: -9.683696195e-05 | DM41: 0.2067098238 | DN41: 0 | DO41: -0.02804414941 | DP41: -0.003006793047 | DQ41: 0 | DR41: 0 | DS41: 0 | DV41: 31.88164571 | DW41: 0 | DX41: 0 | DY41: 153 | DZ41: 0 | EA41: 0 | EB41: 0 | ED41: 0 | EE41: -38.91135728 | EG41: -38.91135728 | EI41: 0 | EJ41: 0 | EK41: 0 | EL41: 0
A42: 29 | B42: Regular | C42: Convencional | D42: B3 | E42: Industrial | F42: Não se aplica | G42: Não se aplica | H42: Não se aplica | I42: Não se aplica | J42: CATIVO | K42: 2019-08-01 | L42: 0 | M42: 0 | N42: 2791.176 | O42: 2791.176 | P42: 2791.176 | Q42: 2791.176 | S42: 309.24 | T42: 207.95 | V42: 1443568.315 | W42: 1443568.315 | X42: 1522307.39 | Y42: 0 | Z42: 40408.77886 | AA42: 0 | AB42: 0 | AC42: 4585.544183 | AD42: 5218.235142 | AE42: 598033.0015 | AF42: 528533.374 | AG42: 27874.72053 | AH42: 0 | AI42: 49.59756035 | AJ42: 0 | AK42: 16008.59889 | AL42: 25794.24174 | AM42: 0 | AN42: 2287.699977 | AO42: 18832.14912 | AP42: 57414.98781 | AQ42: 0 | AR42: 0 | AS42: 7.599268567e-10 | AT42: 0 | AU42: 0 | AV42: 6912.644255 | AW42: 2423.764564 | AX42: 0 | AY42: -35110.72253 | AZ42: 0 | BA42: -4425.186518 | BB42: 128402.7887 | BC42: 3132.255772 | BD42: 20609.67414 | BE42: 1933.858231 | BF42: 11912.69431 | BG42: 77972.85981 | BH42: 0 | BI42: 26333.93 | BJ42: 121362.05 | BK42: 607513.91 | BL42: 3407 | BU42: 6083.376208 | BV42: 640962.4605 | CI42: 1522309.572 | CJ42: 78741.22656 | CM42: 0 | CN42: 6083.376208 | CO42: 26041.67208 | CP42: 52697.40288 | CQ42: 31 | CR42: -22582.96984 | CS42: 7.275957614e-12 | CT42: -177.2753211 | CU42: 0 | CV42: 0 | CW42: 0 | CX42: 0 | CY42: 0 | CZ42: -97.9240493 | DA42: 0 | DB42: 0 | DC42: -19682.42125 | DD42: -443.6250937 | DE42: -72.01628923 | DF42: -767.4979635 | DG42: -2903.685459 | DH42: 0 | DI42: -1442.461695 | DJ42: -3121.369782 | DK42: 0 | DL42: -3.378612551 | DM42: 7212.04374 | DN42: 0 | DO42: -978.4519598 | DP42: -104.9061074 | DQ42: 0 | DR42: 0 | DS42: 0 | DV42: 598033.0015 | DW42: 0 | DX42: 0 | DY42: 153 | DZ42: 0 | EA42: 0 | EB42: 0 | ED42: 0 | EE42: -38.91135728 | EG42: -38.91135728 | EI42: 0 | EJ42: 0 | EK42: 0 | EL42: 0
A43: 30 | B43: Refaturamento - Regular | C43: Convencional | D43: B3 | E43: Industrial | F43: Não se aplica | G43: Não se aplica | H43: Não se aplica | I43: Não se aplica | J43: CATIVO | K43: 2019-08-01 | L43: 0 | M43: 0 | N43: 17.562 | O43: 17.562 | P43: 17.562 | Q43: 17.562 | S43: 309.24 | T43: 207.95 | V43: 9082.89078 | W43: 9082.89078 | X43: 9578.3148 | Y43: 0 | Z43: 254.2508872 | AA43: 0 | AB43: 0 | AC43: 28.85211357 | AD43: 32.83298709 | AE43: 3762.806635 | AF43: 3325.516956 | AG43: 175.3869487 | AH43: 0 | AI43: 0.312066439 | AJ43: 0 | AK43: 100.7256489 | AL43: 162.2966353 | AM43: 0 | AN43: 14.39414319 | AO43: 118.4913466 | AP43: 361.2534702 | AQ43: 0 | AR43: 0 | AS43: 4.781438167e-12 | AT43: 0 | AU43: 0 | AV43: 43.49416103 | AW43: 15.2502577 | AX43: 0 | AY43: -220.9156675 | AZ43: 0 | BA43: -27.8431477 | BB43: 807.9066944 | BC43: 19.70806423 | BD43: 129.6754835 | BE43: 12.16778098 | BF43: 74.95433375 | BG43: 490.6030161 | BH43: 0 | BI43: 160.98 | BJ43: 741.52 | BK43: 3710.87 | BL43: -1 | BU43: 38.27643006 | BV43: 4032.91757 | CI43: 9577.224 | CJ43: 494.30322 | CM43: 0 | CN43: 38.27643006 | CO43: 163.85346 | CP43: 331.57056 | CQ43: 31 | CR43: -142.0914039 | CS43: 4.263256415e-14 | CT43: -1.115411278 | CU43: 0 | CV43: 0 | CW43: 0 | CX43: 0 | CY43: 0 | CZ43: -0.6161353329 | DA43: 0 | DB43: 0 | DC43: -123.8412346 | DD43: -2.791276471 | DE43: -0.4531244434 | DF43: -4.829075356 | DG43: -18.26990631 | DH43: 0 | DI43: -9.075927957 | DJ43: -19.63956989 | DK43: 0 | DL43: -0.02125813407 | DM43: 45.37797407 | DN43: 0 | DO43: -6.1563919 | DP43: -0.6600662436 | DQ43: 0 | DR43: 0 | DS43: 0 | DV43: 3762.806635 | DW43: 0 | DX43: 0 | DY43: 153 | DZ43: 0 | EA43: 0 | EB43: 0 | ED43: 0 | EE43: -38.91135728 | EG43: -38.91135728 | EI43: 0 | EJ43: 0 | EK43: 0 | EL43: 0
A44: 31 | B44: Sistema de Compensação | C44: Convencional | D44: B3 | E44: Industrial | F44: Não se aplica | G44: Não se aplica | H44: Não se aplica | I44: Não se aplica | J44: CATIVO | K44: 2019-08-01 | L44: 0 | M44: 0 | N44: 64.702 | O44: 64.702 | P44: 64.702 | Q44: 64.702 | S44: 309.24 | T44: 207.95 | V44: 33463.22738 | W44: 33463.22738 | X44: 35288.4708 | Y44: 0 | Z44: 936.712271 | AA44: 0 | AB44: 0 | AC44: 106.2970876 | AD44: 120.9634398 | AE44: 13862.94926 | AF44: 12251.88464 | AG44: 646.1613914 | AH44: 0 | AI44: 1.149716589 | AJ44: 0 | AK44: 371.093892 | AL44: 597.9339995 | AM44: 0 | AN44: 53.03096757 | AO44: 436.5463562 | AP44: 1330.931672 | AQ44: 0 | AR44: 0 | AS44: 1.761579617e-11 | AT44: 0 | AU44: 0 | AV44: 160.2413852 | AW44: 56.18506853 | AX44: 0 | AY44: -813.8985035 | AZ44: 0 | BA44: -102.579851 | BB44: 2976.493505 | BC44: 72.60853955 | BD44: 477.751004 | BE44: 44.82859384 | BF44: 276.1470961 | BG44: 1807.481856 | BH44: 0 | BI44: 600.27 | BJ44: 2766.4 | BK44: 13846.4 | BL44: 87 | BU44: 141.0181971 | BV44: 14858.09319 | CI44: 35287.38 | CJ44: 1824.12262 | CM44: 0 | CN44: 141.0181971 | CO44: 603.66966 | CP44: 1221.57376 | CQ44: 31 | CR44: -523.4937942 | CS44: 1.136868377e-13 | CT44: -4.109403286 | CU44: 0 | CV44: 0 | CW44: 0 | CX44: 0 | CY44: 0 | CZ44: -2.269968586 | DA44: 0 | DB44: 0 | DC44: -456.256438 | DD44: -10.28363343 | DE44: -1.669403128 | DF44: -17.79130131 | DG44: -67.31007165 | DH44: 0 | DI44: -33.43757492 | DJ44: -72.35619239 | DK44: 0 | DL44: -0.0783193139 | DM44: 167.1817378 | DN44: 0 | DO44: -22.68140694 | DP44: -2.431819046 | DQ44: 0 | DR44: 0 | DS44: 0 | DV44: 13862.94926 | DW44: 0 | DX44: 0 | DY44: 153 | DZ44: 0 | EA44: 0 | EB44: 0 | ED44: 0 | EE44: -38.91135728 | EG44: -38.91135728 | EI44: 0 | EJ44: 0 | EK44: 0 | EL44: 0
A45: 32 | B45: Sistema de Compensação | C45: Convencional | D45: B3 | E45: Industrial | F45: Não se aplica | G45: Não se aplica | H45: Não se aplica | I45: Não se aplica | J45: CATIVO | K45: 2019-08-01 | L45: 0 | M45: 0 | N45: -0.614 | O45: -0.614 | P45: -0.614 | Q45: -0.614 | S45: 309.24 | T45: 207.95 | V45: -317.55466 | W45: -317.55466 | X45: -334.8756 | Y45: 0 | Z45: -8.88908124 | AA45: 0 | AB45: 0 | AC45: -1.008723251 | AD45: -1.147901951 | AE45: -131.5546791 | AF45: -116.2662231 | AG45: -6.131852096 | AH45: 0 | AI45: -0.01091041986 | AJ45: 0 | AK45: -3.521554971 | AL45: -5.67419053 | AM45: 0 | AN45: -0.503245867 | AO45: -4.142676621 | AP45: -12.63008944 | AQ45: 0 | AR45: 0 | AS45: -1.671679213e-13 | AT45: 0 | AU45: 0 | AV45: -1.52063631 | AW45: -0.5331772137 | AX45: 0 | AY45: 7.723620307 | AZ45: 0 | BA45: 0.9734479381 | BB45: -28.24591222 | BC45: -0.6890303743 | BD45: -4.53369473 | BE45: -0.4254081268 | BF45: -2.620542132 | BG45: -17.15238879 | BH45: 0 | BI45: -5.65 | BJ45: -26.04 | BK45: -130.35 | BL45: 0 | BU45: -1.338214785 | BV45: -140.9982569 | CI45: -332.694 | CJ45: -15.16934 | CM45: 0 | CN45: -1.338214785 | CO45: -5.72862 | CP45: -11.59232 | CQ45: 31 | CR45: 4.96777827 | CS45: -8.881784197e-16 | CT45: 0.03899684117 | CU45: 0 | CV45: 0 | CW45: 0 | CX45: 0 | CY45: 0 | CZ45: 0.02154123075 | DA45: 0 | DB45: 0 | DC45: 4.329718601 | DD45: 0.09758818775 | DE45: 0.01584206857 | DF45: 0.1688334056 | DG45: 0.638749714 | DH45: 0 | DI45: 0.3173112268 | DJ45: 0.6866356856 | DK45: 0 | DL45: 0.000743223683 | DM45: -1.586497898 | DN45: 0 | DO45: 0.2152388468 | DP45: 0.02307713663 | DQ45: 0 | DR45: 0 | DS45: 0 | DV45: -131.5546791 | DW45: 0 | DX45: 0 | DY45: 153 | DZ45: 0 | EA45: 0 | EB45: 0 | ED45: 0 | EE45: -38.91135728 | EG45: -38.91135728 | EI45: 0 | EJ45: 0 | EK45: 0 | EL45: 0
A46: 45 | B46: Regular | C46: Branca | D46: B3 | E46: Industrial | F46: Não se aplica | G46: Não se aplica | H46: Não se aplica | I46: Ponta | J46: CATIVO | K46: 2019-08-01 | L46: 0 | M46: 0 | N46: 0.442 | O46: 0.442 | P46: 0.442 | Q46: 0.442 | S46: 891.66 | T46: 325.85 | V46: 538.13942 | W46: 538.13942 | X46: 560.17312 | Y46: 0 | Z46: 6.398980306 | AA46: 0 | AB46: 0 | AC46: 2.432617082 | AD46: 2.768212202 | AE46: 317.2523607 | AF46: 135.809467 | AG46: 4.414134571 | AH46: 0 | AI46: 0.007854080744 | AJ46: 0 | AK46: 5.390670735 | AL46: 4.084677874 | AM46: 0 | AN46: 0.3622714547 | AO46: 9.990413552 | AP46: 30.45833788 | AQ46: 0 | AR46: 0 | AS46: 1.203391225e-13 | AT46: 0 | AU46: 0 | AV46: 1.094660014 | AW46: 0.3838181245 | AX46: 0 | AY46: -5.560000286 | AZ46: 0 | BA46: -0.7007556818 | BB46: 30.77306154 | BC46: 1.661647116 | BD46: 3.263669496 | BE46: 0.3062384235 | BF46: 1.886448896 | BG46: 12.34748509 | BH46: 0 | BI46: 0 | BJ46: 0 | BK46: 0 | BL46: 0 | BU46: 0.9633402852 | BV46: 153.6133089 | CI46: 557.6384 | CJ46: 19.46898 | CM46: 0 | CN46: 0.9633402852 | CO46: 5.18908 | CP46: 16.84462 | CQ46: 31 | CR46: -5.619234473 | CS46: -3.552713679e-15 | CT46: -0.09404359095 | CU46: 0 | CV46: 0 | CW46: 0 | CX46: 0 | CY46: 0 | CZ46: -0.05194755329 | DA46: 0 | DB46: 0 | DC46: -5.057503025 | DD46: -0.0702507801 | DE46: -0.01140422526 | DF46: -0.1215380542 | DG46: -0.4598165694 | DH46: 0 | DI46: -0.2284227398 | DJ46: -0.4942882297 | DK46: 0 | DL46: -0.0005350242148 | DM46: 1.142071777 | DN46: 0 | DO46: -0.1549439255 | DP46: -0.01661253158 | DQ46: 0 | DR46: 0 | DS46: 0 | DV46: 317.2523607 | DW46: 0 | DX46: 0 | DY46: 153 | DZ46: 0 | EA46: 0 | EB46: 0 | ED46: 0 | EE46: -38.91135728 | EG46: -38.91135728 | EI46: 0 | EJ46: 0 | EK46: 0 | EL46: 0
A47: 46 | B47: Regular | C47: Branca | D47: B3 | E47: Industrial | F47: Não se aplica | G47: Não se aplica | H47: Não se aplica | I47: Fora ponta | J47: CATIVO | K47: 2019-08-01 | L47: 0 | M47: 0 | N47: 11.993 | O47: 11.993 | P47: 11.993 | Q47: 11.993 | S47: 227.45 | T47: 197.23 | V47: 5093.18724 | W47: 5093.18724 | X47: 5406.56433 | Y47: 0 | Z47: 173.6266308 | AA47: 0 | AB47: 0 | AC47: 13.2006171 | AD47: 15.02224839 | AE47: 1721.632945 | AF47: 2142.43257 | AG47: 119.7708505 | AH47: 0 | AI47: 0.2131085755 | AJ47: 0 | AK47: 57.90450008 | AL47: 110.8315424 | AM47: 0 | AN47: 9.82968678 | AO47: 54.21494558 | AP47: 165.2886906 | AQ47: 0 | AR47: 0 | AS47: 3.265219675e-12 | AT47: 0 | AU47: 0 | AV47: 29.70194017 | AW47: 10.414323 | AX47: 0 | AY47: -150.8621797 | AZ47: 0 | BA47: -19.0139432 | BB47: 525.9639844 | BC47: 9.017276704 | BD47: 88.55472459 | BE47: 8.309315415 | BF47: 51.18593125 | BG47: 335.0302911 | BH47: 0 | BI47: 0 | BJ47: 0 | BK47: 0 | BL47: 0 | BU47: 26.13877837 | BV47: 2625.512833 | CI47: 5405.2119 | CJ47: 311.99466 | CM47: 0 | CN47: 26.13877837 | CO47: 107.937 | CP47: 205.44009 | CQ47: 31 | CR47: -91.85626809 | CS47: -1.421085472e-14 | CT47: -0.5103476779 | CU47: 0 | CV47: 0 | CW47: 0 | CX47: 0 | CY47: 0 | CZ47: -0.2819036229 | DA47: 0 | DB47: 0 | DC47: -79.78353386 | DD47: -1.906148429 | DE47: -0.3094363654 | DF47: -3.297750868 | DG47: -12.4764256 | DH47: 0 | DI47: -6.197904794 | DJ47: -13.41176185 | DK47: 0 | DL47: -0.01451707106 | DM47: 30.98838646 | DN47: 0 | DO47: -4.204168549 | DP47: -0.4507558626 | DQ47: 0 | DR47: 0 | DS47: 0 | DV47: 1721.632945 | DW47: 0 | DX47: 0 | DY47: 153 | DZ47: 0 | EA47: 0 | EB47: 0 | ED47: 0 | EE47: -38.91135728 | EG47: -38.91135728 | EI47: 0 | EJ47: 0 | EK47: 0 | EL47: 0
A48: 47 | B48: Regular | C48: Branca | D48: B3 | E48: Industrial | F48: Não se aplica | G48: Não se aplica | H48: Não se aplica | I48: Não se aplica | J48: CATIVO | K48: 2019-08-01 | L48: 0 | M48: 0 | N48: 0 | O48: 0 | P48: 0 | Q48: 0 | AA48: 0 | AZ48: 0 | BI48: 112.18 | BJ48: 516.81 | BK48: 2586.6 | BL48: 7 | CJ48: -0.03 | CO48: 0 | CP48: 0 | CQ48: 31 | DK48: 0 | DY48: 153 | ED48: 0 | EE48: -38.91135728 | EG48: -38.91135728 | EI48: 0 | EJ48: 0 | EK48: 0 | EL48: 0
A49: 48 | B49: Regular | C49: Branca | D49: B3 | E49: Industrial | F49: Não se aplica | G49: Não se aplica | H49: Não se aplica | I49: Intermediário | J49: CATIVO | K49: 2019-08-01 | L49: 0 | M49: 0 | N49: 0.605 | O49: 0.605 | P49: 0.605 | Q49: 0.605 | S49: 559.55 | T49: 197.23 | V49: 457.8519 | W49: 457.8519 | X49: 474.4894 | Y49: 0 | Z49: 8.758785261 | AA49: 0 | AB49: 0 | AC49: 1.997816496 | AD49: 2.273441243 | AE49: 260.5488987 | AF49: 108.0773539 | AG49: 6.041971528 | AH49: 0 | AI49: 0.01075049514 | AJ49: 0 | AK49: 5.149844424 | AL49: 5.591018356 | AM49: 0 | AN49: 0.4958692989 | AO49: 8.20479665 | AP49: 25.01444005 | AQ49: 0 | AR49: 0 | AS49: 1.647175772e-13 | AT49: 0 | AU49: 0 | AV49: 1.498346852 | AW49: 0.5253619125 | AX49: 0 | AY49: -7.610407632 | AZ49: 0 | BA49: -0.9591791573 | BB49: 26.53282836 | BC49: 1.364656433 | BD49: 4.467239922 | BE49: 0.4191725028 | BF49: 2.582130277 | BG49: 16.90096941 | BH49: 0 | BI49: 0 | BJ49: 0 | BK49: 0 | BL49: 0 | BU49: 1.318599259 | BV49: 132.446866 | CI49: 478.4108 | CJ49: 20.5289 | CM49: 0 | CN49: 1.318599259 | CO49: 6.27385 | CP49: 10.36365 | CQ49: 31 | CR49: -4.713721656 | CS49: 2.131628207e-14 | CT49: -0.07723493571 | CU49: 0 | CV49: 0 | CW49: 0 | CX49: 0 | CY49: 0 | CZ49: -0.04266280961 | DA49: 0 | DB49: 0 | DC49: -4.024767613 | DD49: -0.096157742 | DE49: -0.01560985584 | DF49: -0.1663586488 | DG49: -0.6293869332 | DH49: 0 | DI49: -0.3126600851 | DJ49: -0.6765709931 | DK49: 0 | DL49: -0.0007323295248 | DM49: 1.563243043 | DN49: 0 | DO49: -0.2120838799 | DP49: -0.02273887242 | DQ49: 0 | DR49: 0 | DS49: 0 | DV49: 260.5488987 | DW49: 0 | DX49: 0 | DY49: 153 | DZ49: 0 | EA49: 0 | EB49: 0 | ED49: 0 | EE49: -38.91135728 | EG49: -38.91135728 | EI49: 0 | EJ49: 0 | EK49: 0 | EL49: 0
A50: 49 | B50: Regular | C50: Convencional | D50: B3 | E50: Comercial | F50: Não se aplica | G50: Não se aplica | H50: Não se aplica | I50: Não se aplica | J50: CATIVO | K50: 2019-08-01 | L50: 0 | M50: 0 | N50: 34985.431 | O50: 34985.431 | P50: 34985.431 | Q50: 34985.431 | S50: 309.24 | T50: 207.95 | V50: 18094115.06 | W50: 18094115.06 | X50: 19081054.07 | Y50: 0 | Z50: 506495.6651 | AA50: 0 | AB50: 0 | AC50: 57476.57604 | AD50: 65406.91289 | AE50: 7495923.693 | AF50: 6624794.67 | AG50: 349390.0463 | AH50: 0 | AI50: 621.6705881 | AJ50: 0 | AK50: 200656.5447 | AL50: 323312.7057 | AM50: 0 | AN50: 28674.71263 | AO50: 236047.764 | AP50: 719656.5513 | AQ50: 0 | AR50: 0 | AS50: 9.525149474e-09 | AT50: 0 | AU50: 0 | AV50: 86645.14119 | AW50: 30380.18668 | AX50: 0 | AY50: -440088.2497 | AZ50: 0 | BA50: -55466.60533 | BB50: 1609438.783 | BC50: 39260.62641 | BD50: 258327.7918 | BE50: 24239.55483 | BF50: 149317.2572 | BG50: 977335.0397 | BH50: 0 | BI50: 329120.45 | BJ50: 1517709.04 | BK50: 7595926.83 | BL50: 92703 | BU50: 76250.84859 | BV50: 8034014.314 | CI50: 19081053.52 | CJ50: 986938.4331 | CM50: 0 | CN50: 76250.84859 | CO50: 326414.0712 | CP50: 660524.9373 | CQ50: 31 | CR50: -283061.6676 | CS50: 5.820766091e-11 | CT50: -2222.021655 | CU50: 0 | CV50: 0 | CW50: 0 | CX50: 0 | CY50: 0 | CZ50: -1227.409189 | DA50: 0 | DB50: 0 | DC50: -246705.3279 | DD50: -5560.529005 | DE50: -902.6736106 | DF50: -9620.047981 | DG50: -36395.65805 | DH50: 0 | DI50: -18080.24435 | DJ50: -39124.17818 | DK50: 0 | DL50: -42.34853563 | DM50: 90397.90348 | DN50: 0 | DO50: -12264.20818 | DP50: -1314.924383 | DQ50: 0 | DR50: 0 | DS50: 0 | DV50: 7495923.693 | DW50: 0 | DX50: 0 | DY50: 153 | DZ50: 0 | EA50: 0 | EB50: 0 | ED50: 0 | EE50: -38.91135728 | EG50: -38.91135728 | EI50: 0 | EJ50: 0 | EK50: 0 | EL50: 0
A51: 50 | B51: Refaturamento - Regular | C51: Convencional | D51: B3 | E51: Comercial | F51: Não se aplica | G51: Não se aplica | H51: Não se aplica | I51: Não se aplica | J51: CATIVO | K51: 2019-08-01 | L51: 0 | M51: 0 | N51: -110.789 | O51: -110.789 | P51: -110.789 | Q51: -110.789 | S51: 309.24 | T51: 207.95 | V51: -57298.96291 | W51: -57298.96291 | X51: -60424.3206 | Y51: 0 | Z51: -1603.929025 | AA51: 0 | AB51: 0 | AC51: -182.0121176 | AD51: -207.1252594 | AE51: -23737.47775 | AF51: -20978.85765 | AG51: -1106.419808 | AH51: 0 | AI51: -1.968655546 | AJ51: 0 | AK51: -635.4227258 | AL51: -1023.840219 | AM51: 0 | AN51: -90.80473348 | AO51: -747.4967429 | AP51: -2278.949477 | AQ51: 0 | AR51: 0 | AS51: -3.01634639e-11 | AT51: 0 | AU51: 0 | AV51: -274.3807429 | AW51: -96.20548913 | AX51: 0 | AY51: 1393.635456 | AZ51: 0 | BA51: 175.6471069 | BB51: -5096.639037 | BC51: -124.327339 | BD51: -818.0513119 | BE51: -76.7598387 | BF51: -472.8456714 | BG51: -3094.944628 | BH51: 0 | BI51: -945.45 | BJ51: -4355.61 | BK51: -22850.2 | BL51: -56 | BU51: -241.4649476 | BV51: -25441.4591 | CI51: -60424.866 | CJ51: -3125.93309 | CM51: 0 | CN51: -241.4649476 | CO51: -1033.66137 | CP51: -2091.69632 | CQ51: 31 | CR51: 896.3765257 | CS51: -1.136868377e-13 | CT51: 7.036516346 | CU51: 0 | CV51: 0 | CW51: 0 | CX51: 0 | CY51: 0 | CZ51: 3.886858979 | DA51: 0 | DB51: 0 | DC51: 781.2462444 | DD51: 17.60862823 | DE51: 2.858512923 | DF51: 30.46398073 | DG51: 115.2547916 | DH51: 0 | DI51: 57.25503829 | DJ51: 123.8952459 | DK51: 0 | DL51: 0.1341058772 | DM51: -286.2646834 | DN51: 0 | DO51: 38.83729087 | DP51: 4.163994936 | DQ51: 0 | DR51: 0 | DS51: 0 | DV51: -23737.47775 | DW51: 0 | DX51: 0 | DY51: 153 | DZ51: 0 | EA51: 0 | EB51: 0 | ED51: 0 | EE51: -38.91135728 | EG51: -38.91135728 | EI51: 0 | EJ51: 0 | EK51: 0 | EL51: 0
A52: 53 | B52: Regular | C52: Azul | D52: A3 | E52: Comercial | F52: Não se aplica | G52: Não se aplica | H52: Não se aplica | I52: Ponta | J52: CATIVO | K52: 2019-08-01 | L52: 5050 | M52: 5050 | N52: 259 | O52: 259 | P52: 259 | Q52: 259 | R52: 19.33 | S52: 29.56 | T52: 325.85 | U52: 97616.5 | V52: 92051.19 | W52: 189667.69 | X52: 201848.32 | Y52: 0 | Z52: 2962.206698 | AA52: 0 | AB52: 0 | AC52: 2321.631141 | AD52: 2115.720041 | AE52: 55934.78606 | AF52: 79580.66051 | AG52: 2586.563018 | AH52: 0 | AI52: 4.602278083 | AJ52: 0 | AK52: 614.2317836 | AL52: 2393.510338 | AM52: 0 | AN52: 29.22499308 | AO52: 9212.918655 | AP52: 28056.56126 | AQ52: 0 | AR52: 0 | AS52: 7.051545867e-11 | AT52: 0 | AU52: 0 | AV52: 506.7384289 | AW52: 224.9070006 | AX52: 0 | AY52: -3258.009218 | AZ52: 0 | BA52: -410.6238045 | BB52: 16606.60209 | BC52: 1531.041666 | BD52: 539.7988405 | BE52: 40.44431555 | BF52: 1105.407837 | BG52: 1630.708444 | BH52: 0 | BI52: 0 | BJ52: 0 | BK52: 0 | BL52: 0 | BU52: 564.4912531 | BV52: 82897.01995 | CI52: 201848.32 | CJ52: 12180.6 | CM52: 0 | CN52: 564.4912531 | CO52: 2310.14 | CP52: 9870.49 | CQ52: 31 | CR52: -3031.994717 | CS52: 4.547473509e-11 | CT52: -86.62783178 | CU52: 0 | CV52: 0 | CW52: 0 | CX52: 0 | CY52: 0 | CZ52: -39.70305438 | DA52: 0 | DB52: 0 | DC52: -2963.559465 | DD52: -41.16504988 | DE52: -1.506133945 | DF52: -20.10194377 | DG52: -60.72708386 | DH52: 0 | DI52: -105.741124 | DJ52: -289.639483 | DK52: 0 | DL52: -0.3135096643 | DM52: 669.2230546 | DN52: 0 | DO52: -90.79293373 | DP52: -1.340158365 | DQ52: 0 | DR52: 0 | DS52: 0 | DU52: 55934.78606 | DV52: 0 | DW52: 0 | DX52: 0 | DY52: 153 | DZ52: 0 | EA52: 0 | EB52: 0 | ED52: 0 | EE52: -38.91135728 | EG52: -38.91135728 | EI52: 0 | EJ52: 0 | EK52: 0 | EL52: 0
A53: 54 | B53: Regular | C53: Azul | D53: A3 | E53: Comercial | F53: Não se aplica | G53: Não se aplica | H53: Não se aplica | I53: Fora ponta | J53: CATIVO | K53: 2019-08-01 | L53: 5640 | M53: 5640 | N53: 1589 | O53: 1589 | P53: 1589 | Q53: 1589 | R53: 7.83 | S53: 29.56 | T53: 197.23 | U53: 44161.2 | V53: 360369.31 | W53: 404530.51 | X53: 438601.62 | Y53: 0 | Z53: 18173.53839 | AA53: 0 | AB53: 0 | AC53: 2022.245567 | AD53: 944.4909426 | AE53: 6246.775079 | AF53: 283859.3642 | AG53: 15868.91365 | AH53: 0 | AI53: 28.23559797 | AJ53: 0 | AK53: 3768.394997 | AL53: 14684.50937 | AM53: 0 | AN53: 179.2992819 | AO53: 8557.693108 | AP53: 26393.56947 | AQ53: 0 | AR53: 0 | AS53: 4.326218681e-10 | AT53: 0 | AU53: 0 | AV53: 3108.908739 | AW53: 1379.834841 | AX53: 0 | AY53: -19988.32682 | AZ53: 0 | BA53: -2519.23253 | BB53: 60940.94388 | BC53: 1435.808587 | BD53: 3311.738832 | BE53: 248.1313413 | BF53: 6781.826462 | BG53: 10004.61667 | BH53: 0 | BI53: 0 | BJ53: 0 | BK53: 0 | BL53: 0 | BU53: 3463.23012 | BV53: 304205.6775 | CI53: 438601.62 | CJ53: 34071.08 | CM53: 0 | CN53: 3463.23012 | CO53: 6851.54 | CP53: 27219.57 | CQ53: 31 | CR53: -10314.85562 | CS53: 3.274180926e-11 | CT53: -81.49315502 | CU53: 0 | CV53: 0 | CW53: 0 | CX53: 0 | CY53: 0 | CZ53: -17.72407243 | DA53: 0 | DB53: 0 | DC53: -10570.83593 | DD53: -252.5531439 | DE53: -9.240335284 | DF53: -123.3281415 | DG53: -372.5688658 | DH53: 0 | DI53: -648.7360849 | DJ53: -1776.977369 | DK53: 0 | DL53: -1.923424157 | DM53: 4105.773876 | DN53: 0 | DO53: -557.0269177 | DP53: -8.222052674 | DQ53: 0 | DR53: 0 | DS53: 0 | DU53: 6246.775079 | DV53: 0 | DW53: 0 | DX53: 0 | DY53: 153 | DZ53: 0 | EA53: 0 | EB53: 0 | ED53: 0 | EE53: -38.91135728 | EG53: -38.91135728 | EI53: 0 | EJ53: 0 | EK53: 0 | EL53: 0
A54: 55 | B54: Regular | C54: Azul | D54: A3 | E54: Comercial | F54: Não se aplica | G54: Não se aplica | H54: Não se aplica | I54: Não se aplica | J54: CATIVO | K54: 2019-08-01 | L54: 0 | M54: 0 | N54: 0 | O54: 0 | P54: 0 | Q54: 0 | AA54: 0 | AZ54: 0 | BI54: 12114.92 | BJ54: 55804.61 | BK54: 271406.88 | BL54: 1 | CJ54: -0.03 | CO54: 0 | CP54: 0 | CQ54: 31 | DK54: 0 | DY54: 153 | ED54: 0 | EE54: -38.91135728 | EG54: -38.91135728 | EI54: 0 | EJ54: 0 | EK54: 0 | EL54: 0
A55: 56 | B55: Regular | C55: Azul | D55: A4 | E55: Comercial | F55: Não se aplica | G55: Não se aplica | H55: Não se aplica | I55: Ponta | J55: CATIVO | K55: 2019-08-01 | L55: 8288 | M55: 8288 | N55: 336.834 | O55: 336.834 | P55: 336.834 | Q55: 336.834 | R55: 59.69 | S55: 42.81 | T55: 325.85 | U55: 494710.72 | V55: 124177.2224 | W55: 618887.9424 | X55: 635877.7031 | Y55: 0 | Z55: 4486.340728 | AA55: 0 | AB55: 0 | AC55: 3877.538067 | AD55: 5407.914133 | AE55: 423736.5293 | AF55: 103496.0317 | AG55: 3363.870145 | AH55: 0 | AI55: 5.985342609 | AJ55: 0 | AK55: 882.0181667 | AL55: 3112.80178 | AM55: 0 | AN55: 177.3663785 | AO55: 15028.84753 | AP55: 46660.0671 | AQ55: 0 | AR55: 0 | AS55: 9.170657917e-11 | AT55: 0 | AU55: 0 | AV55: 767.4688109 | AW55: 292.4954619 | AX55: 0 | AY55: -4237.097594 | AZ55: 0 | BA55: -534.0233922 | BB55: 22319.69652 | BC55: 2534.199535 | BD55: 1855.536597 | BE55: 111.9689037 | BF55: 1437.602098 | BG55: 4514.568592 | BH55: 0 | BI55: 0 | BJ55: 0 | BK55: 0 | BL55: 0 | BU55: 734.1306824 | BV55: 111415.7079 | CI55: 635876.0543 | CJ55: 16988.08186 | CM55: 0 | CN55: 734.1306824 | CO55: 4153.01696 | CP55: 12836.74374 | CQ55: 31 | CR55: -4187.750328 | CS55: -1.818989404e-11 | CT55: -144.0682772 | CU55: 0 | CV55: 0 | CW55: 0 | CX55: 0 | CY55: 0 | CZ55: -101.4835161 | DA55: 0 | DB55: 0 | DC55: -3854.160575 | DD55: -53.53586259 | DE55: -4.169687738 | DF55: -69.09961554 | DG55: -168.121154 | DH55: 0 | DI55: -160.147741 | DJ55: -376.68118 | DK55: 0 | DL55: -0.4077247655 | DM55: 870.33621 | DN55: 0 | DO55: -118.0777878 | DP55: -8.133416326 | DQ55: 0 | DR55: 0 | DS55: 0 | DU55: 423736.5293 | DV55: 0 | DW55: 0 | DX55: 0 | DY55: 153 | DZ55: 0 | EA55: 0 | EB55: 0 | ED55: 0 | EE55: -38.91135728 | EG55: -38.91135728 | EI55: 0 | EJ55: 0 | EK55: 0 | EL55: 0
A56: 57 | B56: Sistema de Compensação | C56: Azul | D56: A4 | E56: Comercial | F56: Não se aplica | G56: Não se aplica | H56: Não se aplica | I56: Ponta | J56: CATIVO | K56: 2019-08-01 | L56: 108 | M56: 108 | N56: 4.408 | O56: 4.408 | P56: 4.408 | Q56: 4.408 | R56: 59.69 | S56: 42.81 | T56: 325.85 | U56: 6446.52 | V56: 1625.05328 | W56: 8071.57328 | X56: 8293.78168 | Y56: 0 | Z56: 58.71078908 | AA56: 0 | AB56: 0 | AC56: 50.52776439 | AD56: 70.46992355 | AE56: 5521.663268 | AF56: 1354.407535 | AG56: 44.02150495 | AH56: 0 | AI56: 0.07832757448 | AJ56: 0 | AK56: 11.54258798 | AL56: 40.7358825 | AM56: 0 | AN56: 2.321116622 | AO56: 195.8392294 | AP56: 608.02211 | AQ56: 0 | AR56: 0 | AS56: 1.2001241e-12 | AT56: 0 | AU56: 0 | AV56: 10.0435304 | AW56: 3.827760843 | AX56: 0 | AY56: -55.44905263 | AZ56: 0 | BA56: -6.988531777 | BB56: 292.0881569 | BC56: 33.02287039 | BD56: 24.28260009 | BE56: 1.465288324 | BF56: 18.81327316 | BG56: 59.08019485 | BH56: 0 | BI56: 0 | BJ56: 0 | BK56: 0 | BL56: 0 | BU56: 9.607248817 | BV56: 1458.048891 | CI56: 8294.6061 | CJ56: 223.00282 | CM56: 0 | CN56: 9.607248817 | CO56: 54.21952 | CP56: 167.98888 | CQ56: 31 | CR56: -54.78959488 | CS56: -2.273736754e-13 | CT56: -1.877337589 | CU56: 0 | CV56: 0 | CW56: 0 | CX56: 0 | CY56: 0 | CZ56: -1.322420336 | DA56: 0 | DB56: 0 | DC56: -50.43772248 | DD56: -0.7006005401 | DE56: -0.05456688918 | DF56: -0.904276603 | DG56: -2.200128392 | DH56: 0 | DI56: -2.095783806 | DJ56: -4.929462707 | DK56: 0 | DL56: -0.005335716604 | DM56: 11.38971129 | DN56: 0 | DO56: -1.545232633 | DP56: -0.1064384806 | DQ56: 0 | DR56: 0 | DS56: 0 | DU56: 5521.663268 | DV56: 0 | DW56: 0 | DX56: 0 | DY56: 153 | DZ56: 0 | EA56: 0 | EB56: 0 | ED56: 0 | EE56: -38.91135728 | EG56: -38.91135728 | EI56: 0 | EJ56: 0 | EK56: 0 | EL56: 0
A57: 58 | B57: Regular | C57: Azul | D57: A4 | E57: Comercial | F57: Não se aplica | G57: Não se aplica | H57: Não se aplica | I57: Fora ponta | J57: CATIVO | K57: 2019-08-01 | L57: 9125 | M57: 9125 | N57: 3000.735 | O57: 3000.735 | P57: 3000.735 | Q57: 3000.735 | R57: 19.7 | S57: 42.81 | T57: 197.23 | U57: 179762.5 | V57: 720296.4294 | W57: 900058.9294 | X57: 969975.5184 | Y57: 0 | Z57: 39967.22316 | AA57: 0 | AB57: 0 | AC57: 3279.652939 | AD57: 2265.577973 | AE57: 117582.3746 | AF57: 536052.0636 | AG57: 29967.52964 | AH57: 0 | AI57: 53.32130086 | AJ57: 0 | AK57: 7857.587962 | AL57: 27730.85036 | AM57: 0 | AN57: 1580.094348 | AO57: 13862.68979 | AP57: 42803.20929 | AQ57: 0 | AR57: 0 | AS57: 8.16981486e-10 | AT57: 0 | AU57: 0 | AV57: 6837.108256 | AW57: 2605.738642 | AX57: 0 | AY57: -37746.80421 | AZ57: 0 | BA57: -4757.425568 | BB57: 121520.156 | BC57: 2327.852516 | BD57: 16530.31942 | BE57: 997.4913702 | BF57: 12807.08875 | BG57: 40218.69521 | BH57: 0 | BI57: 0 | BJ57: 0 | BK57: 0 | BL57: 0 | BU57: 6540.110657 | BV57: 606605.6584 | CI57: 969976.8314 | CJ57: 69917.872 | CM57: 0 | CN57: 6540.110657 | CO57: 18513.9984 | CP57: 51402.59055 | CQ57: 31 | CR57: -20921.38904 | CS57: 1.091393642e-11 | CT57: -132.159789 | CU57: 0 | CV57: 0 | CW57: 0 | CX57: 0 | CY57: 0 | CZ57: -42.51524951 | DA57: 0 | DB57: 0 | DC57: -19962.41495 | DD57: -476.9320693 | DE57: -37.14627364 | DF57: -615.5840409 | DG57: -1497.731913 | DH57: 0 | DI57: -1426.699596 | DJ57: -3355.719436 | DK57: 0 | DL57: -3.632275763 | DM57: 7753.51754 | DN57: 0 | DO57: -1051.913259 | DP57: -72.45773004 | DQ57: 0 | DR57: 0 | DS57: 0 | DU57: 117582.3746 | DV57: 0 | DW57: 0 | DX57: 0 | DY57: 153 | DZ57: 0 | EA57: 0 | EB57: 0 | ED57: 0 | EE57: -38.91135728 | EG57: -38.91135728 | EI57: 0 | EJ57: 0 | EK57: 0 | EL57: 0
A58: 59 | B58: Sistema de Compensação | C58: Azul | D58: A4 | E58: Comercial | F58: Não se aplica | G58: Não se aplica | H58: Não se aplica | I58: Fora ponta | J58: CATIVO | K58: 2019-08-01 | L58: 110 | M58: 110 | N58: 32.695 | O58: 32.695 | P58: 32.695 | Q58: 32.695 | R58: 19.7 | S58: 42.81 | T58: 197.23 | U58: 2167 | V58: 7848.1078 | W58: 10015.1078 | X58: 10779.43395 | Y58: 0 | Z58: 435.4694304 | AA58: 0 | AB58: 0 | AC58: 39.53554228 | AD58: 27.31107693 | AE58: 1417.431364 | AF58: 5840.643116 | AG58: 326.5161307 | AH58: 0 | AI58: 0.5809709727 | AJ58: 0 | AK58: 85.61363746 | AL58: 302.1460251 | AM58: 0 | AN58: 17.21617694 | AO58: 167.111877 | AP58: 515.9838929 | AQ58: 0 | AR58: 0 | AS58: 8.901555681e-12 | AT58: 0 | AU58: 0 | AV58: 74.49483357 | AW58: 28.39125244 | AX58: 0 | AY58: -411.2764918 | AZ58: 0 | BA58: -51.83530999 | BB58: 1324.042776 | BC58: 28.06178375 | BD58: 180.1088045 | BE58: 10.86833071 | BF58: 139.5417345 | BG58: 438.2093854 | BH58: 0 | BI58: 0 | BJ58: 0 | BK58: 0 | BL58: 0 | BU58: 71.25884756 | BV58: 6609.371371 | CI58: 10780.747 | CJ58: 765.6092 | CM58: 0 | CN58: 71.25884756 | CO58: 204.2608 | CP58: 560.06535 | CQ58: 31 | CR58: -228.1548944 | CS58: 1.136868377e-13 | CT58: -1.5931591 | CU58: 0 | CV58: 0 | CW58: 0 | CX58: 0 | CY58: 0 | CZ58: -0.5125125969 | DA58: 0 | DB58: 0 | DC58: -217.5037638 | DD58: -5.196491528 | DE58: -0.4047333125 | DF58: -6.707196809 | DG58: -16.31878353 | DH58: 0 | DI58: -15.54483928 | DJ58: -36.56279111 | DK58: 0 | DL58: -0.03957605589 | DM58: 84.47972112 | DN58: 0 | DO58: -11.46129331 | DP58: -0.7894750731 | DQ58: 0 | DR58: 0 | DS58: 0 | DU58: 1417.431364 | DV58: 0 | DW58: 0 | DX58: 0 | DY58: 153 | DZ58: 0 | EA58: 0 | EB58: 0 | ED58: 0 | EE58: -38.91135728 | EG58: -38.91135728 | EI58: 0 | EJ58: 0 | EK58: 0 | EL58: 0
A59: 60 | B59: Regular | C59: Azul | D59: A4 | E59: Comercial | F59: Não se aplica | G59: Não se aplica | H59: Não se aplica | I59: Não se aplica | J59: CATIVO | K59: 2019-08-01 | L59: 0 | M59: 0 | N59: 0 | O59: 0 | P59: 0 | Q59: 0 | AA59: 0 | AZ59: 0 | BI59: 28480.52 | BJ59: 131190.91 | BK59: 620236.6 | BL59: 103 | CJ59: -0.03 | CO59: 0 | CP59: 0 | CQ59: 31 | DK59: 0 | DY59: 153 | ED59: 0 | EE59: -38.91135728 | EG59: -38.91135728 | EI59: 0 | EJ59: 0 | EK59: 0 | EL59: 0
A60: 61 | B60: Sistema de Compensação | C60: Azul | D60: A4 | E60: Comercial | F60: Não se aplica | G60: Não se aplica | H60: Não se aplica | I60: Não se aplica | J60: CATIVO | K60: 2019-08-01 | L60: 0 | M60: 0 | N60: 0 | O60: 0 | P60: 0 | Q60: 0 | AA60: 0 | AZ60: 0 | BI60: 333.82 | BJ60: 1537.73 | BK60: 7400.05 | BL60: 2 | CJ60: -0.03 | CO60: 0 | CP60: 0 | CQ60: 31 | DK60: 0 | DY60: 153 | ED60: 0 | EE60: -38.91135728 | EG60: -38.91135728 | EI60: 0 | EJ60: 0 | EK60: 0 | EL60: 0
A61: 62 | B61: Regular | C61: Verde | D61: A4 | E61: Comercial | F61: Não se aplica | G61: Não se aplica | H61: Não se aplica | I61: Ponta | J61: CATIVO | K61: 2019-08-01 | L61: 0 | M61: 0 | N61: 825.39 | O61: 825.39 | P61: 825.39 | Q61: 825.39 | S61: 1494.48 | T61: 325.85 | V61: 1502482.179 | W61: 1502482.179 | X61: 1543900.249 | Y61: 0 | Z61: 10993.4887 | AA61: 0 | AB61: 0 | AC61: 9286.254878 | AD61: 12952.76695 | AE61: 1014894.219 | AF61: 253610.3528 | AG61: 8242.946908 | AH61: 0 | AI61: 14.66669617 | AJ61: 0 | AK61: 15463.55437 | AL61: 7627.720068 | AM61: 0 | AN61: 434.624875 | AO61: 35995.93512 | AP61: 111756.4332 | AQ61: 0 | AR61: 0 | AS61: 2.247210596e-10 | AT61: 0 | AU61: 0 | AV61: 1880.632839 | AW61: 716.741271 | AX61: 0 | AY61: -10382.73447 | AZ61: 0 | BA61: -1308.589892 | BB61: 54692.97728 | BC61: 6069.712612 | BD61: 4546.872798 | BE61: 274.3725794 | BF61: 3522.751255 | BG61: 11062.65926 | BH61: 0 | BI61: 0 | BJ61: 0 | BK61: 0 | BL61: 0 | BU61: 1798.939905 | BV61: 273017.0087 | CI61: 1543900.249 | CJ61: 41418.0402 | CM61: 0 | CN61: 1798.939905 | CO61: 9962.4573 | CP61: 31455.6129 | CQ61: 31 | CR61: -10248.23234 | CS61: 4.365574569e-11 | CT61: -345.0607297 | CU61: 0 | CV61: 0 | CW61: 0 | CX61: 0 | CY61: 0 | CZ61: -243.0682701 | DA61: 0 | DB61: 0 | DC61: -9444.371996 | DD61: -131.1861796 | DE61: -10.21755097 | DF61: -169.3241527 | DG61: -411.9700485 | DH61: 0 | DI61: -392.4317141 | DJ61: -923.0329455 | DK61: 0 | DL61: -0.9991032503 | DM61: 2132.702769 | DN61: 0 | DO61: -289.3420061 | DP61: -19.93041231 | DQ61: 0 | DR61: 0 | DS61: 0 | DV61: 1014894.219 | DW61: 0 | DX61: 0 | DY61: 153 | DZ61: 0 | EA61: 0 | EB61: 0 | ED61: 0 | EE61: -38.91135728 | EG61: -38.91135728 | EI61: 0 | EJ61: 0 | EK61: 0 | EL61: 0
A62: 63 | B62: Refaturamento - Regular | C62: Verde | D62: A4 | E62: Comercial | F62: Não se aplica | G62: Não se aplica | H62: Não se aplica | I62: Ponta | J62: CATIVO | K62: 2019-08-01 | L62: 0 | M62: 0 | N62: -0.343 | O62: -0.343 | P62: -0.343 | Q62: -0.343 | S62: 1494.48 | T62: 325.85 | V62: -624.37319 | W62: -624.37319 | X62: -641.58493 | Y62: 0 | Z62: -4.568466573 | AA62: 0 | AB62: 0 | AC62: -3.859006558 | AD62: -5.382666452 | AE62: -421.7505871 | AF62: -105.3906045 | AG62: -3.425448321 | AH62: 0 | AI62: -0.006094908813 | AJ62: 0 | AK62: -6.426052109 | AL62: -3.169783961 | AM62: 0 | AN62: -0.1806132036 | AO62: -14.95851143 | AP62: -46.44162953 | AQ62: 0 | AR62: 0 | AS62: -9.338533716e-14 | AT62: 0 | AU62: 0 | AV62: -0.7815179054 | AW62: -0.2978498115 | AX62: 0 | AY62: 4.314660856 | AZ62: 0 | BA62: 0.5437990925 | BB62: -22.72827537 | BC62: -2.522336624 | BD62: -1.889503592 | BE62: -0.1140185788 | BF62: -1.463918487 | BG62: -4.597211169 | BH62: 0 | BI62: 0 | BJ62: 0 | BK62: 0 | BL62: 0 | BU62: -0.7475694973 | BV62: -113.4552563 | CI62: -635.9734 | CJ62: -11.63021 | CM62: 0 | CN62: -0.7475694973 | CO62: -4.14001 | CP62: -13.07173 | CQ62: 31 | CR62: 4.258766998 | CS62: -1.953992523e-14 | CT62: 0.1433938263 | CU62: 0 | CV62: 0 | CW62: 0 | CX62: 0 | CY62: 0 | CZ62: 0.1010097247 | DA62: 0 | DB62: 0 | DC62: 3.924713886 | DD62: 0.05451587687 | DE62: 0.004246017012 | DF62: 0.07036453603 | DG62: 0.1711987383 | DH62: 0 | DI62: 0.163079366 | DJ62: 0.3835766126 | DK62: 0 | DL62: 0.0004151884744 | DM62: -0.8862683696 | DN62: 0 | DO62: 0.1202392906 | DP62: 0.008282304636 | DQ62: 0 | DR62: 0 | DS62: 0 | DV62: -421.7505871 | DW62: 0 | DX62: 0 | DY62: 153 | DZ62: 0 | EA62: 0 | EB62: 0 | ED62: 0 | EE62: -38.91135728 | EG62: -38.91135728 | EI62: 0 | EJ62: 0 | EK62: 0 | EL62: 0
A63: 64 | B63: Sistema de Compensação | C63: Verde | D63: A4 | E63: Comercial | F63: Não se aplica | G63: Não se aplica | H63: Não se aplica | I63: Ponta | J63: CATIVO | K63: 2019-08-01 | L63: 0 | M63: 0 | N63: 7.392 | O63: 7.392 | P63: 7.392 | Q63: 7.392 | S63: 1494.48 | T63: 325.85 | V63: 13455.87936 | W63: 13455.87936 | X63: 13826.80992 | Y63: 0 | Z63: 98.45511636 | AA63: 0 | AB63: 0 | AC63: 83.16552909 | AD63: 116.0019545 | AE63: 9089.155511 | AF63: 2271.275067 | AG63: 73.82190666 | AH63: 0 | AI63: 0.1313515042 | AJ63: 0 | AK63: 138.4879801 | AL63: 68.31207883 | AM63: 0 | AN63: 3.892398837 | AO63: 322.371185 | AP63: 1000.864506 | AQ63: 0 | AR63: 0 | AS63: 2.012549307e-12 | AT63: 0 | AU63: 0 | AV63: 16.84250833 | AW63: 6.418967367 | AX63: 0 | AY63: -92.98534416 | AZ63: 0 | BA63: -11.71942534 | BB63: 489.8175263 | BC63: 54.35892806 | BD63: 40.72073047 | BE63: 2.457216718 | BF63: 31.5489372 | BG63: 99.07459173 | BH63: 0 | BI63: 0 | BJ63: 0 | BK63: 0 | BL63: 0 | BU63: 16.11088549 | BV63: 2445.076544 | CI63: 13823.0689 | CJ63: 367.15954 | CM63: 0 | CN63: 16.11088549 | CO63: 89.22144 | CP63: 281.70912 | CQ63: 31 | CR63: -91.78077449 | CS63: 3.410605132e-13 | CT63: -3.090283277 | CU63: 0 | CV63: 0 | CW63: 0 | CX63: 0 | CY63: 0 | CZ63: -2.176862638 | DA63: 0 | DB63: 0 | DC63: -84.58158906 | DD63: -1.174872775 | DE63: -0.09150599927 | DF63: -1.516427552 | DG63: -3.689507503 | DH63: 0 | DI63: -3.514526745 | DJ63: -8.266467407 | DK63: 0 | DL63: -0.008947735284 | DM63: 19.09998772 | DN63: 0 | DO63: -2.591279406 | DP63: -0.1784921162 | DQ63: 0 | DR63: 0 | DS63: 0 | DV63: 9089.155511 | DW63: 0 | DX63: 0 | DY63: 153 | DZ63: 0 | EA63: 0 | EB63: 0 | ED63: 0 | EE63: -38.91135728 | EG63: -38.91135728 | EI63: 0 | EJ63: 0 | EK63: 0 | EL63: 0
A64: 65 | B64: Regular | C64: Verde | D64: A4 | E64: Comercial | F64: Não se aplica | G64: Não se aplica | H64: Não se aplica | I64: Fora ponta | J64: CATIVO | K64: 2019-08-01 | L64: 0 | M64: 0 | N64: 13452.016 | O64: 13452.016 | P64: 13452.016 | Q64: 13452.016 | S64: 42.81 | T64: 197.23 | V64: 3229021.921 | W64: 3229021.921 | X64: 3532633.922 | Y64: 0 | Z64: 179169.3453 | AA64: 0 | AB64: 0 | AC64: 0 | AD64: 0 | AE64: 0 | AF64: 2403071.56 | AG64: 134341.649 | AH64: 0 | AI64: 239.034434 | AJ64: 0 | AK64: 35224.83624 | AL64: 124314.8238 | AM64: 0 | AN64: 7083.416048 | AO64: 0 | AP64: 0 | AQ64: 0 | AR64: 0 | AS64: 3.66245204e-09 | AT64: 0 | AU64: 0 | AV64: 30650.1206 | AW64: 11681.28405 | AX64: 0 | AY64: -169215.4136 | AZ64: 0 | BA64: -21327.09648 | BB64: 544763.5606 | BC64: 0 | BD64: 74103.88498 | BE64: 4471.661067 | BF64: 57412.98809 | BG64: 180296.6712 | BH64: 0 | BI64: 0 | BJ64: 0 | BK64: 0 | BL64: 0 | BU64: 29318.70798 | BV64: 2719356.765 | CI64: 3532634.972 | CJ64: 303613.0216 | CM64: 0 | CN64: 29318.70798 | CO64: 73178.96704 | CP64: 230433.0341 | CQ64: 31 | CR64: -93005.58987 | CS64: 0 | CT64: 0 | CU64: 0 | CV64: 0 | CW64: 0 | CX64: 0 | CY64: 0 | CZ64: 0 | DA64: 0 | DB64: 0 | DC64: -89489.65013 | DD64: -2138.042122 | DE64: -166.5232909 | DF64: -2759.606019 | DG64: -6714.192907 | DH64: 0 | DI64: -6395.761636 | DJ64: -15043.37822 | DK64: 0 | DL64: -16.28315452 | DM64: 34758.29822 | DN64: 0 | DO64: -4715.629333 | DP64: -324.8212667 | DQ64: 0 | DR64: 0 | DS64: 0 | DV64: 0 | DW64: 0 | DX64: 0 | DY64: 153 | DZ64: 0 | EA64: 0 | EB64: 0 | ED64: 0 | EE64: -38.91135728 | EG64: -38.91135728 | EI64: 0 | EJ64: 0 | EK64: 0 | EL64: 0
A65: 66 | B65: Refaturamento - Regular | C65: Verde | D65: A4 | E65: Comercial | F65: Não se aplica | G65: Não se aplica | H65: Não se aplica | I65: Fora ponta | J65: CATIVO | K65: 2019-08-01 | L65: 0 | M65: 0 | N65: -19.115 | O65: -19.115 | P65: -19.115 | Q65: -19.115 | S65: 42.81 | T65: 197.23 | V65: -4588.3646 | W65: -4588.3646 | X65: -5019.79015 | Y65: 0 | Z65: -254.5954477 | AA65: 0 | AB65: 0 | AC65: 0 | AD65: 0 | AE65: 0 | AF65: -3414.708462 | AG65: -190.8963401 | AH65: 0 | AI65: -0.3396623381 | AJ65: 0 | AK65: -50.05366815 | AL65: -176.648456 | AM65: 0 | AN65: -10.06536847 | AO65: 0 | AP65: 0 | AQ65: 0 | AR65: 0 | AS65: -5.204258658e-12 | AT65: 0 | AU65: 0 | AV65: -43.55310426 | AW65: -16.59883133 | AX65: 0 | AY65: 240.4511436 | AZ65: 0 | BA65: 30.30530511 | BB65: -774.0962738 | BC65: 0 | BD65: -105.2998868 | BE65: -6.354125753 | BF65: -81.58251279 | BG65: -256.1973513 | BH65: 0 | BI65: 0 | BJ65: 0 | BK65: 0 | BL65: 0 | BU65: -41.66119808 | BV65: -3864.142339 | CI65: -5021.1032 | CJ65: -432.7686 | CM65: 0 | CN65: -41.66119808 | CO65: -103.9856 | CP65: -327.43995 | CQ65: 31 | CR65: 132.1587672 | CS65: 0 | CT65: 0 | CU65: 0 | CV65: 0 | CW65: 0 | CX65: 0 | CY65: 0 | CZ65: 0 | DA65: 0 | DB65: 0 | DC65: 127.1626991 | DD65: 3.038107832 | DE65: 0.2366257002 | DF65: 3.921335587 | DG65: 9.540711029 | DH65: 0 | DI65: 9.088227643 | DJ65: 21.37628849 | DK65: 0 | DL65: 0.0231379816 | DM65: -49.39072853 | DN65: 0 | DO65: 6.700798951 | DP65: 0.4615634202 | DQ65: 0 | DR65: 0 | DS65: 0 | DV65: 0 | DW65: 0 | DX65: 0 | DY65: 153 | DZ65: 0 | EA65: 0 | EB65: 0 | ED65: 0 | EE65: -38.91135728 | EG65: -38.91135728 | EI65: 0 | EJ65: 0 | EK65: 0 | EL65: 0
A66: 67 | B66: Sistema de Compensação | C66: Verde | D66: A4 | E66: Comercial | F66: Não se aplica | G66: Não se aplica | H66: Não se aplica | I66: Fora ponta | J66: CATIVO | K66: 2019-08-01 | L66: 0 | M66: 0 | N66: 40.385 | O66: 40.385 | P66: 40.385 | Q66: 40.385 | S66: 42.81 | T66: 197.23 | V66: 9694.0154 | W66: 9694.0154 | X66: 10605.50485 | Y66: 0 | Z66: 537.8936518 | AA66: 0 | AB66: 0 | AC66: 0 | AD66: 0 | AE66: 0 | AF66: 7214.386672 | AG66: 403.3140829 | AH66: 0 | AI66: 0.7176177621 | AJ66: 0 | AK66: 105.7503211 | AL66: 373.212027 | AM66: 0 | AN66: 21.26549337 | AO66: 0 | AP66: 0 | AQ66: 0 | AR66: 0 | AS66: 1.09952386e-11 | AT66: 0 | AU66: 0 | AV66: 92.0163283 | AW66: 35.06899312 | AX66: 0 | AY66: -508.0104334 | AZ66: 0 | BA66: -64.02719052 | BB66: 1635.463145 | BC66: 0 | BD66: 222.4711445 | BE66: 13.4246073 | BF66: 172.3625309 | BG66: 541.2780556 | BH66: 0 | BI66: 0 | BJ66: 0 | BK66: 0 | BL66: 0 | BU66: 88.01922492 | BV66: 8163.92301 | CI66: 10606.8179 | CJ66: 912.7725 | CM66: 0 | CN66: 88.01922492 | CO66: 219.6944 | CP66: 691.79505 | CQ66: 31 | CR66: -279.2169402 | CS66: 0 | CT66: 0 | CU66: 0 | CV66: 0 | CW66: 0 | CX66: 0 | CY66: 0 | CZ66: 0 | DA66: 0 | DB66: 0 | DC66: -268.6615538 | DD66: -6.418727951 | DE66: -0.4999282712 | DF66: -8.284757398 | DG66: -20.15702929 | DH66: 0 | DI66: -19.20105014 | DJ66: -45.16251166 | DK66: 0 | DL66: -0.04888450886 | DM66: 104.3497029 | DN66: 0 | DO66: -14.15703718 | DP66: -0.9751628943 | DQ66: 0 | DR66: 0 | DS66: 0 | DV66: 0 | DW66: 0 | DX66: 0 | DY66: 153 | DZ66: 0 | EA66: 0 | EB66: 0 | ED66: 0 | EE66: -38.91135728 | EG66: -38.91135728 | EI66: 0 | EJ66: 0 | EK66: 0 | EL66: 0
A67: 68 | B67: Regular | C67: Verde | D67: A4 | E67: Comercial | F67: Não se aplica | G67: Não se aplica | H67: Não se aplica | I67: Não se aplica | J67: CATIVO | K67: 2019-08-01 | L67: 67730 | M67: 67730 | N67: 0 | O67: 0 | P67: 0 | Q67: 0 | R67: 19.7 | U67: 1334281 | W67: 1334281 | X67: 1350536.2 | Y67: 0 | Z67: 0 | AA67: 0 | AB67: 0 | AC67: 24343.11163 | AD67: 16816.17491 | AE67: 872751.1483 | AI67: 0 | AJ67: 0 | AK67: 0 | AL67: 0 | AM67: 0 | AN67: 0 | AO67: 102895.3402 | AP67: 317705.3551 | AQ67: 0 | AR67: 0 | AU67: 0 | AV67: 0 | AW67: 0 | AZ67: 0 | BB67: 0 | BC67: 17278.40558 | BD67: 0 | BE67: 0 | BG67: 0 | BH67: 0 | BI67: 115230.14 | BJ67: 530792.02 | BK67: 2564614.36 | BL67: 669 | BV67: 0 | CI67: 1350536.2 | CJ67: 16255.17 | CO67: 16255.2 | CP67: 0 | CQ67: 31 | CR67: -1296.519491 | CS67: 8.731149137e-11 | CT67: -980.9515075 | CU67: 0 | CV67: 0 | CZ67: -315.5679835 | DA67: 0 | DB67: 0 | DE67: 0 | DF67: 0 | DG67: 0 | DH67: 0 | DI67: 0 | DK67: 0 | DL67: 0 | DN67: 0 | DO67: 0 | DP67: 0 | DQ67: 0 | DR67: 0 | DS67: 0 | DU67: 872751.1483 | DW67: 0 | DX67: 0 | DY67: 153 | ED67: 0 | EE67: -38.91135728 | EG67: -38.91135728 | EI67: 0 | EJ67: 0 | EK67: 0 | EL67: 0
A68: 69 | B68: Refaturamento - Regular | C68: Verde | D68: A4 | E68: Comercial | F68: Não se aplica | G68: Não se aplica | H68: Não se aplica | I68: Não se aplica | J68: CATIVO | K68: 2019-08-01 | L68: 991 | M68: 991 | N68: 0 | O68: 0 | P68: 0 | Q68: 0 | R68: 19.7 | U68: 19522.7 | W68: 19522.7 | X68: 19760.54 | Y68: 0 | Z68: 0 | AA68: 0 | AB68: 0 | AC68: 356.1792946 | AD68: 246.0479749 | AE68: 12769.76802 | AI68: 0 | AJ68: 0 | AK68: 0 | AL68: 0 | AM68: 0 | AN68: 0 | AO68: 1505.526092 | AP68: 4648.545798 | AQ68: 0 | AR68: 0 | AU68: 0 | AV68: 0 | AW68: 0 | AZ68: 0 | BB68: 0 | BC68: 252.8111609 | BD68: 0 | BE68: 0 | BG68: 0 | BH68: 0 | BI68: -244.68 | BJ68: -1127.09 | BK68: -5970.5 | BL68: 0 | BV68: 0 | CI68: 19760.54 | CJ68: 237.81 | CO68: 237.84 | CP68: 0 | CQ68: 31 | CR68: -18.97018774 | CS68: 9.094947018e-13 | CT68: -14.35291516 | CU68: 0 | CV68: 0 | CZ68: -4.617272577 | DA68: 0 | DB68: 0 | DE68: 0 | DF68: 0 | DG68: 0 | DH68: 0 | DI68: 0 | DK68: 0 | DL68: 0 | DN68: 0 | DO68: 0 | DP68: 0 | DQ68: 0 | DR68: 0 | DS68: 0 | DU68: 12769.76802 | DW68: 0 | DX68: 0 | DY68: 153 | ED68: 0 | EE68: -38.91135728 | EG68: -38.91135728 | EI68: 0 | EJ68: 0 | EK68: 0 | EL68: 0
A69: 70 | B69: Sistema de Compensação | C69: Verde | D69: A4 | E69: Comercial | F69: Não se aplica | G69: Não se aplica | H69: Não se aplica | I69: Não se aplica | J69: CATIVO | K69: 2019-08-01 | L69: 638 | M69: 638 | N69: 0 | O69: 0 | P69: 0 | Q69: 0 | R69: 19.7 | U69: 12568.6 | W69: 12568.6 | X69: 12721.72 | Y69: 0 | Z69: 0 | AA69: 0 | AB69: 0 | AC69: 229.3061452 | AD69: 158.4042462 | AE69: 8221.101914 | AI69: 0 | AJ69: 0 | AK69: 0 | AL69: 0 | AM69: 0 | AN69: 0 | AO69: 969.2488864 | AP69: 2992.706579 | AQ69: 0 | AR69: 0 | AU69: 0 | AV69: 0 | AW69: 0 | AZ69: 0 | BB69: 0 | BC69: 162.7583458 | BD69: 0 | BE69: 0 | BG69: 0 | BH69: 0 | BI69: 595.24 | BJ69: 2741.96 | BK69: 12971.59 | BL69: 5 | BV69: 0 | CI69: 12721.72 | CJ69: 153.09 | CO69: 153.12 | CP69: 0 | CQ69: 31 | CR69: -12.21289584 | CS69: 6.821210263e-13 | CT69: -9.240322779 | CU69: 0 | CV69: 0 | CZ69: -2.972573062 | DA69: 0 | DB69: 0 | DE69: 0 | DF69: 0 | DG69: 0 | DH69: 0 | DI69: 0 | DK69: 0 | DL69: 0 | DN69: 0 | DO69: 0 | DP69: 0 | DQ69: 0 | DR69: 0 | DS69: 0 | DU69: 8221.101914 | DW69: 0 | DX69: 0 | DY69: 153 | ED69: 0 | EE69: -38.91135728 | EG69: -38.91135728 | EI69: 0 | EJ69: 0 | EK69: 0 | EL69: 0
A70: 51 | B70: Sistema de Compensação | C70: Convencional | D70: B3 | E70: Comercial | F70: Não se aplica | G70: Não se aplica | H70: Não se aplica | I70: Não se aplica | J70: CATIVO | K70: 2019-08-01 | L70: 0 | M70: 0 | N70: 544.123 | O70: 544.123 | P70: 544.123 | Q70: 544.123 | S70: 309.24 | T70: 207.95 | V70: 281414.9744 | W70: 281414.9744 | X70: 296764.6842 | Y70: 0 | Z70: 7877.448781 | AA70: 0 | AB70: 0 | AC70: 893.9243019 | AD70: 1017.263605 | AE70: 116582.9424 | AF70: 103034.4074 | AG70: 5434.009378 | AH70: 0 | AI70: 9.668746554 | AJ70: 0 | AK70: 3120.78022 | AL70: 5028.432531 | AM70: 0 | AN70: 445.9733728 | AO70: 3671.214383 | AP70: 11192.70709 | AQ70: 0 | AR70: 0 | AS70: 1.481431773e-10 | AT70: 0 | AU70: 0 | AV70: 1347.578487 | AW70: 472.498347 | AX70: 0 | AY70: -6844.624516 | AZ70: 0 | BA70: -862.6635382 | BB70: 25031.35259 | BC70: 610.6144534 | BD70: 4017.732211 | BE70: 376.9940491 | BF70: 2322.308219 | BG70: 15200.34079 | BH70: 0 | BI70: 4629.72 | BJ70: 21340.3 | BK70: 106817.58 | BL70: 879 | BU70: 1185.917661 | BV70: 124951.7827 | CI70: 296763.048 | CJ70: 15348.04363 | CM70: 0 | CN70: 1185.917661 | CO70: 5076.66759 | CP70: 10273.04224 | CQ70: 31 | CR70: -4402.414358 | CS70: 9.094947018e-13 | CT70: -34.5587593 | CU70: 0 | CV70: 0 | CW70: 0 | CX70: 0 | CY70: 0 | CZ70: -19.08970537 | DA70: 0 | DB70: 0 | DC70: -3836.969828 | DD70: -86.48204802 | DE70: -14.03914312 | DF70: -149.6191191 | DG70: -566.0560434 | DH70: 0 | DI70: -281.1992454 | DJ70: -608.492295 | DK70: 0 | DL70: -0.6586402281 | DM70: 1405.944618 | DN70: 0 | DO70: -190.7433339 | DP70: -20.45081566 | DQ70: 0 | DR70: 0 | DS70: 0 | DV70: 116582.9424 | DW70: 0 | DX70: 0 | DY70: 153 | DZ70: 0 | EA70: 0 | EB70: 0 | ED70: 0 | EE70: -38.91135728 | EG70: -38.91135728 | EI70: 0 | EJ70: 0 | EK70: 0 | EL70: 0
A71: 52 | B71: Sistema de Compensação | C71: Convencional | D71: B3 | E71: Comercial | F71: Não se aplica | G71: Não se aplica | H71: Não se aplica | I71: Não se aplica | J71: CATIVO | K71: 2019-08-01 | L71: 0 | M71: 0 | N71: -9.043 | O71: -9.043 | P71: -9.043 | Q71: -9.043 | S71: 309.24 | T71: 207.95 | V71: -4676.94917 | W71: -4676.94917 | X71: -4932.0522 | Y71: 0 | Z71: -130.9185043 | AA71: 0 | AB71: 0 | AC71: -14.85648918 | AD71: -16.9063149 | AE71: -1937.539027 | AF71: -1712.370449 | AG71: -90.30999756 | AH71: 0 | AI71: -0.1606888058 | AJ71: 0 | AK71: -51.86550749 | AL71: -83.56955206 | AM71: 0 | AN71: -7.411811686 | AO71: -61.01339525 | AP71: -186.0161218 | AQ71: 0 | AR71: 0 | AS71: -2.462051323e-12 | AT71: 0 | AU71: 0 | AV71: -22.39595138 | AW71: -7.85264095 | AX71: 0 | AY71: 113.7535805 | AZ71: 0 | BA71: 14.33695392 | BB71: -416.0061632 | BC71: -10.14804833 | BD71: -66.77231506 | BE71: -6.265416434 | BF71: -38.59537866 | BG71: -252.6206055 | BH71: 0 | BI71: -82.78 | BJ71: -381.33 | BK71: -1908.39 | BL71: -1 | BU71: -19.70924479 | BV71: -2076.624165 | CI71: -4930.416 | CJ71: -253.49683 | CM71: 0 | CN71: -19.70924479 | CO71: -84.37119 | CP71: -170.73184 | CQ71: 31 | CR71: 73.16550309 | CS71: -1.421085472e-14 | CT71: 0.5743459849 | CU71: 0 | CV71: 0 | CW71: 0 | CX71: 0 | CY71: 0 | CZ71: 0.3172595271 | DA71: 0 | DB71: 0 | DC71: 63.76815197 | DD71: 1.437280101 | DE71: 0.2333221923 | DF71: 2.486580597 | DG71: 9.40751411 | DH71: 0 | DI71: 4.673363883 | DJ71: 10.11277932 | DK71: 0 | DL71: 0.01094620809 | DM71: -23.36596171 | DN71: 0 | DO71: 3.170040539 | DP71: 0.339880369 | DQ71: 0 | DR71: 0 | DS71: 0 | DV71: -1937.539027 | DW71: 0 | DX71: 0 | DY71: 153 | DZ71: 0 | EA71: 0 | EB71: 0 | ED71: 0 | EE71: -38.91135728 | EG71: -38.91135728 | EI71: 0 | EJ71: 0 | EK71: 0 | EL71: 0
A72: 71 | B72: Regular | C72: Branca | D72: B3 | E72: Comercial | F72: Não se aplica | G72: Não se aplica | H72: Não se aplica | I72: Ponta | J72: CATIVO | K72: 2019-08-01 | L72: 0 | M72: 0 | N72: 3.619 | O72: 3.619 | P72: 3.619 | Q72: 3.619 | S72: 891.66 | T72: 325.85 | V72: 4406.16869 | W72: 4406.16869 | X72: 4586.57584 | Y72: 0 | Z72: 52.39346092 | AA72: 0 | AB72: 0 | AC72: 19.91774032 | AD72: 22.66552027 | AE72: 2597.593424 | AF72: 1111.978418 | AG72: 36.14197514 | AH72: 0 | AI72: 0.06430750727 | AJ72: 0 | AK72: 44.13764116 | AL72: 33.44445526 | AM72: 0 | AN72: 2.966199988 | AO72: 81.7993363 | AP72: 249.3862552 | AQ72: 0 | AR72: 0 | AS72: 9.853105982e-13 | AT72: 0 | AU72: 0 | AV72: 8.962838444 | AW72: 3.14261944 | AX72: 0 | AY72: -45.52407474 | AZ72: 0 | BA72: -5.737635323 | BB72: 251.9631442 | BC72: 13.60520568 | BD72: 26.72221699 | BE72: 2.507413698 | BF72: 15.44583384 | BG72: 101.0985261 | BH72: 0 | BI72: 0 | BJ72: 0 | BK72: 0 | BL72: 0 | BU72: 7.887621023 | BV72: 1257.752409 | CI72: 4587.8432 | CJ72: 181.64451 | CM72: 0 | CN72: 7.887621023 | CO72: 42.48706 | CP72: 137.92009 | CQ72: 31 | CR72: -46.0090714 | CS72: -2.842170943e-14 | CT72: -0.7700084969 | CU72: 0 | CV72: 0 | CW72: 0 | CX72: 0 | CY72: 0 | CZ72: -0.4253352836 | DA72: 0 | DB72: 0 | DC72: -41.40973631 | DD72: -0.5751981294 | DE72: -0.09337531948 | DF72: -0.9951271901 | DG72: -3.7648782 | DH72: 0 | DI72: -1.870275782 | DJ72: -4.047124668 | DK72: 0 | DL72: -0.004380662066 | DM72: 9.351035655 | DN72: 0 | DO72: -1.268647209 | DP72: -0.1360198005 | DQ72: 0 | DR72: 0 | DS72: 0 | DV72: 2597.593424 | DW72: 0 | DX72: 0 | DY72: 153 | DZ72: 0 | EA72: 0 | EB72: 0 | ED72: 0 | EE72: -38.91135728 | EG72: -38.91135728 | EI72: 0 | EJ72: 0 | EK72: 0 | EL72: 0
A73: 72 | B73: Refaturamento - Regular | C73: Branca | D73: B3 | E73: Comercial | F73: Não se aplica | G73: Não se aplica | H73: Não se aplica | I73: Ponta | J73: CATIVO | K73: 2019-08-01 | L73: 0 | M73: 0 | N73: 0.135 | O73: 0.135 | P73: 0.135 | Q73: 0.135 | S73: 891.66 | T73: 325.85 | V73: 164.36385 | W73: 164.36385 | X73: 171.0936 | Y73: 0 | Z73: 1.954439686 | AA73: 0 | AB73: 0 | AC73: 0.7429939053 | AD73: 0.845494677 | AE73: 96.89834545 | AF73: 41.48026706 | AG73: 1.348208523 | AH73: 0 | AI73: 0.002398870815 | AJ73: 0 | AK73: 1.646471831 | AL73: 1.247582608 | AM73: 0 | AN73: 0.1106485212 | AO73: 3.051370655 | AP73: 9.302886004 | AQ73: 0 | AR73: 0 | AS73: 3.675516186e-14 | AT73: 0 | AU73: 0 | AV73: 0.3343418596 | AW73: 0.1172295177 | AX73: 0 | AY73: -1.698190133 | AZ73: 0 | BA73: -0.2140317128 | BB73: 9.39901201 | BC73: 0.507516653 | BD73: 0.9968221313 | BE73: 0.09353436013 | BF73: 0.5761778303 | BG73: 3.771290694 | BH73: 0 | BI73: 0 | BJ73: 0 | BK73: 0 | BL73: 0 | BU73: 0.2942328925 | BV73: 46.91809208 | CI73: 177.4304 | CJ73: 13.03655 | CM73: 0 | CN73: 0.2942328925 | CO73: 1.5849 | CP73: 5.14485 | CQ73: 31 | CR73: -1.716282022 | CS73: -8.881784197e-16 | CT73: -0.02872372122 | CU73: 0 | CV73: 0 | CW73: 0 | CX73: 0 | CY73: 0 | CZ73: -0.01586633415 | DA73: 0 | DB73: 0 | DC73: -1.544712463 | DD73: -0.02145668623 | DE73: -0.003483190972 | DF73: -0.03712135138 | DG73: -0.1404417124 | DH73: 0 | DI73: -0.06976712642 | DJ73: -0.1509703869 | DK73: 0 | DL73: -0.0001634123733 | DM73: 0.3488228277 | DN73: 0 | DO73: -0.04732450214 | DP73: -0.005073963267 | DQ73: 0 | DR73: 0 | DS73: 0 | DV73: 96.89834545 | DW73: 0 | DX73: 0 | DY73: 153 | DZ73: 0 | EA73: 0 | EB73: 0 | ED73: 0 | EE73: -38.91135728 | EG73: -38.91135728 | EI73: 0 | EJ73: 0 | EK73: 0 | EL73: 0
A74: 73 | B74: Sistema de Compensação | C74: Branca | D74: B3 | E74: Comercial | F74: Não se aplica | G74: Não se aplica | H74: Não se aplica | I74: Ponta | J74: CATIVO | K74: 2019-08-01 | L74: 0 | M74: 0 | N74: 1.234 | O74: 1.234 | P74: 1.234 | Q74: 1.234 | S74: 891.66 | T74: 325.85 | V74: 1502.40734 | W74: 1502.40734 | X74: 1563.92224 | Y74: 0 | Z74: 17.86502647 | AA74: 0 | AB74: 0 | AC74: 6.79151466 | AD74: 7.72844764 | AE74: 885.722654 | AF74: 379.1603671 | AG74: 12.32362457 | AH74: 0 | AI74: 0.02192745619 | AJ74: 0 | AK74: 15.04997214 | AL74: 11.40382918 | AM74: 0 | AN74: 1.011409446 | AO74: 27.89178806 | AP74: 85.0352691 | AQ74: 0 | AR74: 0 | AS74: 3.359694054e-13 | AT74: 0 | AU74: 0 | AV74: 3.056132258 | AW74: 1.071564628 | AX74: 0 | AY74: -15.52271573 | AZ74: 0 | BA74: -1.956408397 | BB74: 85.913932 | BC74: 4.639078146 | BD74: 9.111692667 | BE74: 0.8549733363 | BF74: 5.266692167 | BG74: 34.47239049 | BH74: 0 | BI74: 0 | BJ74: 0 | BK74: 0 | BL74: 0 | BU74: 2.689506588 | BV74: 428.8661157 | CI74: 1558.8528 | CJ74: 56.41546 | CM74: 0 | CN74: 2.689506588 | CO74: 14.48716 | CP74: 47.02774 | CQ74: 31 | CR74: -15.688089 | CS74: -1.065814104e-14 | CT74: -0.2625560888 | CU74: 0 | CV74: 0 | CW74: 0 | CX74: 0 | CY74: 0 | CZ74: -0.145030047 | DA74: 0 | DB74: 0 | DC74: -14.11981614 | DD74: -0.196130006 | DE74: -0.03183894563 | DF74: -0.339316649 | DG74: -1.283741282 | DH74: 0 | DI74: -0.6377232148 | DJ74: -1.379981166 | DK74: 0 | DL74: -0.001493710138 | DM74: 3.188499032 | DN74: 0 | DO74: -0.4325810047 | DP74: -0.04637978275 | DQ74: 0 | DR74: 0 | DS74: 0 | DV74: 885.722654 | DW74: 0 | DX74: 0 | DY74: 153 | DZ74: 0 | EA74: 0 | EB74: 0 | ED74: 0 | EE74: -38.91135728 | EG74: -38.91135728 | EI74: 0 | EJ74: 0 | EK74: 0 | EL74: 0
A75: 74 | B75: Regular | C75: Branca | D75: B3 | E75: Comercial | F75: Não se aplica | G75: Não se aplica | H75: Não se aplica | I75: Fora ponta | J75: CATIVO | K75: 2019-08-01 | L75: 0 | M75: 0 | N75: 52.258 | O75: 52.258 | P75: 52.258 | Q75: 52.258 | S75: 227.45 | T75: 197.23 | V75: 22192.92744 | W75: 22192.92744 | X75: 23558.42898 | Y75: 0 | Z75: 756.5563639 | AA75: 0 | AB75: 0 | AC75: 57.52004073 | AD75: 65.4575716 | AE75: 7501.800587 | AF75: 9335.382412 | AG75: 521.8865258 | AH75: 0 | AI75: 0.928594008 | AJ75: 0 | AK75: 252.3116289 | AL75: 482.934607 | AM75: 0 | AN75: 42.83163276 | AO75: 236.2348558 | AP75: 720.2248307 | AQ75: 0 | AR75: 0 | AS75: 1.422778702e-11 | AT75: 0 | AU75: 0 | AV75: 129.4224956 | AW75: 45.3791121 | AX75: 0 | AY75: -657.3631108 | AZ75: 0 | BA75: -82.85088331 | BB75: 2291.822388 | BC75: 39.2916573 | BD75: 385.8661551 | BE75: 36.20680438 | BF75: 223.0363041 | BG75: 1459.85266 | BH75: 0 | BI75: 0 | BJ75: 0 | BK75: 0 | BL75: 0 | BU75: 113.8964629 | BV75: 11440.34434 | CI75: 23559.3306 | CJ75: 1366.37316 | CM75: 0 | CN75: 113.8964629 | CO75: 470.322 | CP75: 895.17954 | CQ75: 31 | CR75: -400.2522186 | CS75: -5.684341886e-14 | CT75: -2.223776282 | CU75: 0 | CV75: 0 | CW75: 0 | CX75: 0 | CY75: 0 | CZ75: -1.228359837 | DA75: 0 | DB75: 0 | DC75: -347.6467867 | DD75: -8.305803771 | DE75: -1.348330325 | DF75: -14.36953763 | DG75: -54.3644667 | DH75: 0 | DI75: -27.00659624 | DJ75: -58.44007762 | DK75: 0 | DL75: -0.06325632447 | DM75: 135.0280247 | DN75: 0 | DO75: -18.3191395 | DP75: -1.964112388 | DQ75: 0 | DR75: 0 | DS75: 0 | DV75: 7501.800587 | DW75: 0 | DX75: 0 | DY75: 153 | DZ75: 0 | EA75: 0 | EB75: 0 | ED75: 0 | EE75: -38.91135728 | EG75: -38.91135728 | EI75: 0 | EJ75: 0 | EK75: 0 | EL75: 0
A76: 75 | B76: Refaturamento - Regular | C76: Branca | D76: B3 | E76: Comercial | F76: Não se aplica | G76: Não se aplica | H76: Não se aplica | I76: Fora ponta | J76: CATIVO | K76: 2019-08-01 | L76: 0 | M76: 0 | N76: -0.42 | O76: -0.42 | P76: -0.42 | Q76: -0.42 | S76: 227.45 | T76: 197.23 | V76: -178.3656 | W76: -178.3656 | X76: -189.3402 | Y76: 0 | Z76: -6.080479024 | AA76: 0 | AB76: 0 | AC76: -0.4622912684 | AD76: -0.5260855768 | AE76: -60.2923236 | AF76: -75.02890683 | AG76: -4.194426515 | AH76: 0 | AI76: -0.007463153648 | AJ76: 0 | AK76: -2.02784041 | AL76: -3.881368115 | AM76: 0 | AN76: -0.3442398439 | AO76: -1.89863063 | AP76: -5.788480786 | AQ76: 0 | AR76: 0 | AS76: -1.143493924e-13 | AT76: 0 | AU76: 0 | AV76: -1.040174674 | AW76: -0.364714055 | AX76: 0 | AY76: 5.283258191 | AZ76: 0 | BA76: 0.6658764398 | BB76: -18.41948415 | BC76: -0.3157888948 | BD76: -3.101224408 | BE76: -0.2909957871 | BF76: -1.79255325 | BG76: -11.73290438 | BH76: 0 | BI76: 0 | BJ76: 0 | BK76: 0 | BL76: 0 | BU76: -0.9153912212 | BV76: -91.94658466 | CI76: -189.3402 | CJ76: -11.0046 | CM76: 0 | CN76: -0.9153912212 | CO76: -3.78 | CP76: -7.1946 | CQ76: 31 | CR76: 3.216845877 | CS76: 6.661338148e-16 | CT76: 0.01787259441 | CU76: 0 | CV76: 0 | CW76: 0 | CX76: 0 | CY76: 0 | CZ76: 0.009872385694 | DA76: 0 | DB76: 0 | DC76: 2.79405355 | DD76: 0.06675413494 | DE76: 0.01083659414 | DF76: 0.1154886488 | DG76: 0.4369297718 | DH76: 0 | DI76: 0.2170532822 | DJ76: 0.4696856481 | DK76: 0 | DL76: 0.0005083940502 | DM76: -1.085226575 | DN76: 0 | DO76: 0.1472317844 | DP76: 0.0157856635 | DQ76: 0 | DR76: 0 | DS76: 0 | DV76: -60.2923236 | DW76: 0 | DX76: 0 | DY76: 153 | DZ76: 0 | EA76: 0 | EB76: 0 | ED76: 0 | EE76: -38.91135728 | EG76: -38.91135728 | EI76: 0 | EJ76: 0 | EK76: 0 | EL76: 0
A77: 86 | B77: Regular | C77: Azul | D77: A3 | E77: Rural | F77: Não se aplica | G77: Não se aplica | H77: Não se aplica | I77: Ponta | J77: CATIVO | K77: 2019-08-01 | L77: 140 | M77: 128.8 | N77: 3.5 | O77: 3.22 | P77: 3.5 | Q77: 3.22 | R77: 19.33 | S77: 29.56 | T77: 325.85 | U77: 2706.2 | V77: 1243.935 | W77: 3950.135 | X77: 4134.83 | Y77: 0 | Z77: 40.02982024 | AA77: 0 | AB77: 0 | AC77: 64.36205143 | AD77: 58.65362489 | AE77: 1550.667336 | AF77: 1075.414331 | AG77: 34.95355429 | AH77: 0 | AI77: 0.06219294707 | AJ77: 0 | AK77: 8.300429508 | AL77: 32.34473429 | AM77: 0 | AN77: 0.3949323389 | AO77: 255.4076459 | AP77: 777.8056586 | AQ77: 0 | AR77: 0 | AS77: 9.529116037e-13 | AT77: 0 | AU77: 0 | AV77: 6.847816606 | AW77: 3.039283791 | AX77: 0 | AY77: -44.02715159 | AZ77: 0 | BA77: -5.548970331 | BB77: 224.4135418 | BC77: 42.44471946 | BD77: 7.294578926 | BE77: 0.5465448047 | BF77: 14.93794375 | BG77: 22.0366006 | BH77: 0 | BI77: 0 | BJ77: 0 | BK77: 0 | BL77: 0 | BR77: 330.7864 | BU77: 7.628260177 | BV77: 1120.229999 | CI77: 3804.0436 | CJ77: 169.8894 | CM77: 0 | CN77: 7.628260177 | CO77: 51.31 | CP77: 133.385 | CQ77: 31 | CR77: -42.76796983 | CS77: 1.250555215e-12 | CT77: -2.401563653 | CU77: 0 | CV77: 0 | CW77: 0 | CX77: 0 | CY77: 0 | CZ77: -1.100678735 | DA77: 0 | DB77: 0 | DC77: -40.04810088 | DD77: -0.5562844578 | DE77: -0.02035316142 | DF77: -0.2716478888 | DG77: -0.8206362684 | DH77: 0 | DI77: -1.428934108 | DJ77: -3.914047068 | DK77: 0 | DL77: -0.004236617085 | DM77: 9.043554792 | DN77: 0 | DO77: -1.226931537 | DP77: -0.01811024818 | DQ77: 0 | DR77: 0 | DS77: 0 | DU77: 1550.667336 | DV77: 0 | DW77: 0 | DX77: 0 | DY77: 153 | DZ77: 0 | EA77: 0 | EB77: 0 | ED77: 0 | EE77: -38.91135728 | EG77: -38.91135728 | EI77: 0 | EJ77: 0 | EK77: 0 | EL77: 0
A78: 87 | B78: Regular | C78: Azul | D78: A3 | E78: Rural | F78: Não se aplica | G78: Não se aplica | H78: Não se aplica | I78: Fora ponta | J78: CATIVO | K78: 2019-08-01 | L78: 700 | M78: 644 | N78: 136.5 | O78: 125.58 | P78: 136.5 | Q78: 125.58 | R78: 7.83 | S78: 29.56 | T78: 197.23 | U78: 5481 | V78: 30956.835 | W78: 36437.835 | X78: 39416.37 | Y78: 0 | Z78: 1561.162989 | AA78: 0 | AB78: 0 | AC78: 250.987925 | AD78: 117.2240532 | AE78: 775.3089637 | AF78: 24384.39472 | AG78: 1363.188617 | AH78: 0 | AI78: 2.425524936 | AJ78: 0 | AK78: 323.7167508 | AL78: 1261.444637 | AM78: 0 | AN78: 15.40236122 | AO78: 1062.125031 | AP78: 3275.797629 | AQ78: 0 | AR78: 0 | AS78: 3.716355254e-11 | AT78: 0 | AU78: 0 | AV78: 267.0648477 | AW78: 118.5320679 | AX78: 0 | AY78: -1717.058912 | AZ78: 0 | BA78: -216.4098429 | BB78: 5235.015003 | BC78: 178.2031934 | BD78: 284.4885781 | BE78: 21.31524738 | BF78: 582.5798062 | BG78: 859.4274232 | BH78: 0 | BI78: 0 | BJ78: 0 | BK78: 0 | BL78: 0 | BR78: 3153.3096 | BU78: 297.5021469 | BV78: 26132.20577 | CI78: 36263.0604 | CJ78: 2740.2222 | CM78: 0 | CN78: 297.5021469 | CO78: 640.29 | CP78: 2338.245 | CQ78: 31 | CR78: -889.8690345 | CS78: 4.092726158e-12 | CT78: -10.11439867 | CU78: 0 | CV78: 0 | CW78: 0 | CX78: 0 | CY78: 0 | CZ78: -2.199796224 | DA78: 0 | DB78: 0 | DC78: -908.0674037 | DD78: -21.69509386 | DE78: -0.7937732954 | DF78: -10.59426766 | DG78: -32.00481447 | DH78: 0 | DI78: -55.7284302 | DJ78: -152.6478356 | DK78: 0 | DL78: -0.1652280663 | DM78: 352.6986369 | DN78: 0 | DO78: -47.85032994 | DP78: -0.706299679 | DQ78: 0 | DR78: 0 | DS78: 0 | DU78: 775.3089637 | DV78: 0 | DW78: 0 | DX78: 0 | DY78: 153 | DZ78: 0 | EA78: 0 | EB78: 0 | ED78: 0 | EE78: -38.91135728 | EG78: -38.91135728 | EI78: 0 | EJ78: 0 | EK78: 0 | EL78: 0
A79: 88 | B79: Regular | C79: Azul | D79: A3 | E79: Rural | F79: Não se aplica | G79: Não se aplica | H79: Não se aplica | I79: Não se aplica | J79: CATIVO | K79: 2019-08-01 | L79: 0 | M79: 0 | N79: 0 | O79: 0 | P79: 0 | Q79: 0 | AA79: 0 | AZ79: 0 | BI79: 668.2 | BJ79: 3077.91 | BK79: 0 | BL79: 1 | CJ79: -0.03 | CO79: 0 | CP79: 0 | CQ79: 31 | DK79: 0 | DY79: 153 | ED79: 0 | EE79: -38.91135728 | EG79: -38.91135728 | EI79: 0 | EJ79: 0 | EK79: 0 | EL79: 0
A80: 89 | B80: Regular | C80: Verde | D80: A4 | E80: Rural | F80: Não se aplica | G80: Não se aplica | H80: Não se aplica | I80: Ponta | J80: CATIVO | K80: 2019-08-01 | L80: 0 | M80: 0 | N80: 35.76 | O80: 32.8992 | P80: 35.76 | Q80: 32.8992 | S80: 1494.48 | T80: 325.85 | V80: 65095.0008 | W80: 65095.0008 | X80: 66889.4376 | Y80: 0 | Z80: 476.2926084 | AA80: 0 | AB80: 0 | AC80: 402.3267479 | AD80: 561.1782866 | AE80: 43970.26529 | AF80: 10987.66185 | AG80: 357.1254576 | AH80: 0 | AI80: 0.6354342249 | AJ80: 0 | AK80: 669.9580857 | AL80: 330.4707709 | AM80: 0 | AN80: 18.83011126 | AO80: 1559.522941 | AP80: 4841.844525 | AQ80: 0 | AR80: 0 | AS80: 9.736033985e-12 | AT80: 0 | AU80: 0 | AV80: 81.47836821 | AW80: 31.05279668 | AX80: 0 | AY80: -449.8316974 | AZ80: 0 | BA80: -56.69462259 | BB80: 2369.571799 | BC80: 262.970139 | BD80: 196.9931441 | BE80: 11.88718477 | BF80: 152.6231053 | BG80: 479.289421 | BH80: 0 | BI80: 0 | BJ80: 0 | BK80: 0 | BL80: 0 | BR80: 5351.155008 | BU80: 77.93902398 | BV80: 11828.45471 | CI80: 61539.779 | CJ80: 1652.348264 | CM80: 0 | CN80: 77.93902398 | CO80: 431.6232 | CP80: 1362.8136 | CQ80: 31 | CR80: -444.0043961 | CS80: 1.818989404e-12 | CT80: -14.94974702 | CU80: 0 | CV80: 0 | CW80: 0 | CX80: 0 | CY80: 0 | CZ80: -10.5309264 | DA80: 0 | DB80: 0 | DC80: -409.1771679 | DD80: -5.683637775 | DE80: -0.4426751263 | DF80: -7.335964456 | DG80: -17.84859149 | DH80: 0 | DI80: -17.00209367 | DJ80: -39.99037804 | DK80: 0 | DL80: -0.04328612199 | DM80: 92.39929125 | DN80: 0 | DO80: -12.53573479 | DP80: -0.8634845883 | DQ80: 0 | DR80: 0 | DS80: 0 | DV80: 43970.26529 | DW80: 0 | DX80: 0 | DY80: 153 | DZ80: 0 | EA80: 0 | EB80: 0 | ED80: 0 | EE80: -38.91135728 | EG80: -38.91135728 | EI80: 0 | EJ80: 0 | EK80: 0 | EL80: 0
A81: 90 | B81: Sistema de Compensação | C81: Verde | D81: A4 | E81: Rural | F81: Não se aplica | G81: Não se aplica | H81: Não se aplica | I81: Ponta | J81: CATIVO | K81: 2019-08-01 | L81: 0 | M81: 0 | N81: 2.706 | O81: 2.48952 | P81: 2.706 | Q81: 2.48952 | S81: 1494.48 | T81: 325.85 | V81: 4925.81298 | W81: 4925.81298 | X81: 5061.60006 | Y81: 0 | Z81: 36.0416051 | AA81: 0 | AB81: 0 | AC81: 30.44452404 | AD81: 42.46500122 | AE81: 3327.280142 | AF81: 831.4489086 | AG81: 27.02409083 | AH81: 0 | AI81: 0.04808403279 | AJ81: 0 | AK81: 50.69649273 | AL81: 25.00710028 | AM81: 0 | AN81: 1.424896003 | AO81: 118.0108802 | AP81: 366.3878995 | AQ81: 0 | AR81: 0 | AS81: 7.367367999e-13 | AT81: 0 | AU81: 0 | AV81: 6.165561084 | AW81: 2.349800554 | AX81: 0 | AY81: -34.03927777 | AZ81: 0 | BA81: -4.290146776 | BB81: 179.3082016 | BC81: 19.89925045 | BD81: 14.90669597 | BE81: 0.8995168343 | BF81: 11.54916451 | BG81: 36.26837733 | BH81: 0 | BI81: 0 | BJ81: 0 | BK81: 0 | BL81: 0 | BR81: 404.9280048 | BU81: 5.897734868 | BV81: 895.0726633 | CI81: 4657.5699 | CJ81: 125.7919584 | CM81: 0 | CN81: 5.897734868 | CO81: 32.66142 | CP81: 103.12566 | CQ81: 31 | CR81: -33.59831923 | CS81: 1.421085472e-13 | CT81: -1.131264414 | CU81: 0 | CV81: 0 | CW81: 0 | CX81: 0 | CY81: 0 | CZ81: -0.7968872157 | DA81: 0 | DB81: 0 | DC81: -30.96290314 | DD81: -0.4300873551 | DE81: -0.03349773188 | DF81: -0.5551208003 | DG81: -1.350623283 | DH81: 0 | DI81: -1.286567826 | DJ81: -3.026117533 | DK81: 0 | DL81: -0.003275510238 | DM81: 6.991959791 | DN81: 0 | DO81: -0.9485933539 | DP81: -0.06534086398 | DQ81: 0 | DR81: 0 | DS81: 0 | DV81: 3327.280142 | DW81: 0 | DX81: 0 | DY81: 153 | DZ81: 0 | EA81: 0 | EB81: 0 | ED81: 0 | EE81: -38.91135728 | EG81: -38.91135728 | EI81: 0 | EJ81: 0 | EK81: 0 | EL81: 0
A82: 91 | B82: Regular | C82: Verde | D82: A4 | E82: Rural | F82: Não se aplica | G82: Não se aplica | H82: Não se aplica | I82: Fora ponta | J82: CATIVO | K82: 2019-08-01 | L82: 0 | M82: 0 | N82: 891.79 | O82: 820.4468 | P82: 891.79 | Q82: 820.4468 | S82: 42.81 | T82: 197.23 | V82: 214065.2716 | W82: 214065.2716 | X82: 234192.9719 | Y82: 0 | Z82: 11877.8799 | AA82: 0 | AB82: 0 | AC82: 0 | AD82: 0 | AE82: 0 | AF82: 159309.5924 | AG82: 8906.065766 | AH82: 0 | AI82: 15.84658522 | AJ82: 0 | AK82: 2335.200665 | AL82: 8241.345884 | AM82: 0 | AN82: 469.5890637 | AO82: 0 | AP82: 0 | AQ82: 0 | AR82: 0 | AS82: 2.42799154e-10 | AT82: 0 | AU82: 0 | AV82: 2031.923769 | AW82: 774.4008264 | AX82: 0 | AY82: -11217.99243 | AZ82: 0 | BA82: -1413.861786 | BB82: 36114.63856 | BC82: 0 | BD82: 4912.654251 | BE82: 296.4449806 | BF82: 3806.145387 | BG82: 11952.61501 | BH82: 0 | BI82: 0 | BJ82: 0 | BK82: 0 | BL82: 0 | BR82: 18735.43775 | BU82: 1943.658898 | BV82: 180277.4521 | CI82: 215458.3745 | CJ82: 18518.29463 | CM82: 0 | CN82: 1943.658898 | CO82: 4851.3376 | CP82: 15276.3627 | CQ82: 31 | CR82: -6165.726757 | CS82: 0 | CT82: 0 | CU82: 0 | CV82: 0 | CW82: 0 | CX82: 0 | CY82: 0 | CZ82: 0 | DA82: 0 | DB82: 0 | DC82: -5932.640512 | DD82: -141.7396905 | DE82: -11.03952044 | DF82: -182.9457422 | DG82: -445.1117284 | DH82: 0 | DI82: -424.0015972 | DJ82: -997.2880098 | DK82: 0 | DL82: -1.079477929 | DM82: 2304.271922 | DN82: 0 | DO82: -312.6186501 | DP82: -21.53375059 | DQ82: 0 | DR82: 0 | DS82: 0 | DV82: 0 | DW82: 0 | DX82: 0 | DY82: 153 | DZ82: 0 | EA82: 0 | EB82: 0 | ED82: 0 | EE82: -38.91135728 | EG82: -38.91135728 | EI82: 0 | EJ82: 0 | EK82: 0 | EL82: 0
A83: 92 | B83: Refaturamento - Regular | C83: Verde | D83: A4 | E83: Rural | F83: Não se aplica | G83: Não se aplica | H83: Não se aplica | I83: Fora ponta | J83: CATIVO | K83: 2019-08-01 | L83: 0 | M83: 0 | N83: -18.89 | O83: -17.3788 | P83: -18.89 | Q83: -17.3788 | S83: 42.81 | T83: 197.23 | V83: -4534.3556 | W83: -4534.3556 | X83: -4960.7029 | Y83: 0 | Z83: -251.5986402 | AA83: 0 | AB83: 0 | AC83: 0 | AD83: 0 | AE83: 0 | AF83: -3374.514405 | AG83: -188.6493259 | AH83: 0 | AI83: -0.33566422 | AJ83: 0 | AK83: -49.4644934 | AL83: -174.5691517 | AM83: 0 | AN83: -9.946890425 | AO83: 0 | AP83: 0 | AQ83: 0 | AR83: 0 | AS83: -5.143000055e-12 | AT83: 0 | AU83: 0 | AV83: -43.04044674 | AW83: -16.40344881 | AX83: 0 | AY83: 237.6208267 | AZ83: 0 | BA83: 29.94858559 | BB83: -764.9844945 | BC83: 0 | BD83: -104.0604165 | BE83: -6.279332224 | BF83: -80.6222164 | BG83: -253.181688 | BH83: 0 | BI83: 0 | BJ83: 0 | BK83: 0 | BL83: 0 | BR83: -396.856232 | BU83: -41.17080992 | BV83: -3818.658058 | CI83: -4564.1618 | CJ83: -392.584648 | CM83: 0 | CN83: -41.17080992 | CO83: -102.7616 | CP83: -323.5857 | CQ83: 31 | CR83: 130.6031447 | CS83: 0 | CT83: 0 | CU83: 0 | CV83: 0 | CW83: 0 | CX83: 0 | CY83: 0 | CZ83: 0 | DA83: 0 | DB83: 0 | DC83: 125.6658847 | DD83: 3.002346688 | DE83: 0.2338404121 | DF83: 3.875178092 | DG83: 9.42840865 | DH83: 0 | DI83: 8.981251383 | DJ83: 21.12467117 | DK83: 0 | DL83: 0.02286562764 | DM83: -48.80935715 | DN83: 0 | DO83: 6.62192478 | DP83: 0.4561304215 | DQ83: 0 | DR83: 0 | DS83: 0 | DV83: 0 | DW83: 0 | DX83: 0 | DY83: 153 | DZ83: 0 | EA83: 0 | EB83: 0 | ED83: 0 | EE83: -38.91135728 | EG83: -38.91135728 | EI83: 0 | EJ83: 0 | EK83: 0 | EL83: 0
A84: 93 | B84: Sistema de Compensação | C84: Verde | D84: A4 | E84: Rural | F84: Não se aplica | G84: Não se aplica | H84: Não se aplica | I84: Fora ponta | J84: CATIVO | K84: 2019-08-01 | L84: 0 | M84: 0 | N84: 22.774 | O84: 20.95208 | P84: 22.774 | Q84: 20.95208 | S84: 42.81 | T84: 197.23 | V84: 5466.67096 | W84: 5466.67096 | X84: 5980.68014 | Y84: 0 | Z84: 303.3301975 | AA84: 0 | AB84: 0 | AC84: 0 | AD84: 0 | AE84: 0 | AF84: 4068.353153 | AG84: 227.4377844 | AH84: 0 | AI84: 0.4046806219 | AJ84: 0 | AK84: 59.63495885 | AL84: 210.4625654 | AM84: 0 | AN84: 11.99208484 | AO84: 0 | AP84: 0 | AQ84: 0 | AR84: 0 | AS84: 6.200459675e-12 | AT84: 0 | AU84: 0 | AV84: 51.89005474 | AW84: 19.77618545 | AX84: 0 | AY84: -286.4783858 | AZ84: 0 | BA84: -36.10635724 | BB84: 922.2740538 | BC84: 0 | BD84: 125.456428 | BE84: 7.570434732 | BF84: 97.19906598 | BG84: 305.2387381 | BH84: 0 | BI84: 0 | BJ84: 0 | BK84: 0 | BL84: 0 | BR84: 478.4544112 | BU84: 49.63599922 | BV84: 4603.817819 | CI84: 5501.6795 | CJ84: 472.3122168 | CM84: 0 | CN84: 49.63599922 | CO84: 123.89056 | CP84: 390.11862 | CQ84: 31 | CR84: -157.4566447 | CS84: 0 | CT84: 0 | CU84: 0 | CV84: 0 | CW84: 0 | CX84: 0 | CY84: 0 | CZ84: 0 | DA84: 0 | DB84: 0 | DC84: -151.5042275 | DD84: -3.619663498 | DE84: -0.2819206747 | DF84: -4.671959019 | DG84: -11.36699728 | DH84: 0 | DI84: -10.82789936 | DJ84: -25.46814512 | DK84: 0 | DL84: -0.02756706214 | DM84: 58.8451191 | DN84: 0 | DO84: -7.983468235 | DP84: -0.5499160519 | DQ84: 0 | DR84: 0 | DS84: 0 | DV84: 0 | DW84: 0 | DX84: 0 | DY84: 153 | DZ84: 0 | EA84: 0 | EB84: 0 | ED84: 0 | EE84: -38.91135728 | EG84: -38.91135728 | EI84: 0 | EJ84: 0 | EK84: 0 | EL84: 0
A85: 94 | B85: Regular | C85: Verde | D85: A4 | E85: Rural | F85: Não se aplica | G85: Não se aplica | H85: Não se aplica | I85: Não se aplica | J85: CATIVO | K85: 2019-08-01 | L85: 4529 | M85: 4166.68 | N85: 0 | O85: 0 | P85: 0 | Q85: 0 | R85: 19.7 | U85: 89221.3 | W85: 89221.3 | X85: 90308.26 | Y85: 0 | Z85: 0 | AA85: 0 | AB85: 0 | AC85: 1627.7861 | AD85: 1124.471522 | AE85: 58359.515 | AI85: 0 | AJ85: 0 | AK85: 0 | AL85: 0 | AM85: 0 | AN85: 0 | AO85: 6880.451734 | AP85: 21244.4641 | AQ85: 0 | AR85: 0 | AU85: 0 | AV85: 0 | AW85: 0 | AZ85: 0 | BB85: 0 | BC85: 1155.380169 | BD85: 0 | BE85: 0 | BG85: 0 | BH85: 0 | BI85: 5680.89 | BJ85: 26168.71 | BK85: 26164.27 | BL85: 65 | BR85: 7224.6608 | BV85: 0 | CI85: 83083.5992 | CJ85: 999.9732 | CO85: 1086.96 | CP85: 0 | CQ85: 31 | CR85: -86.69624649 | CS85: 5.456968211e-12 | CT85: -65.59470512 | CU85: 0 | CV85: 0 | CZ85: -21.10154138 | DA85: 0 | DB85: 0 | DE85: 0 | DF85: 0 | DG85: 0 | DH85: 0 | DI85: 0 | DK85: 0 | DL85: 0 | DN85: 0 | DO85: 0 | DP85: 0 | DQ85: 0 | DR85: 0 | DS85: 0 | DU85: 58359.515 | DW85: 0 | DX85: 0 | DY85: 153 | ED85: 0 | EE85: -38.91135728 | EG85: -38.91135728 | EI85: 0 | EJ85: 0 | EK85: 0 | EL85: 0
A86: 95 | B86: Refaturamento - Regular | C86: Verde | D86: A4 | E86: Rural | F86: Não se aplica | G86: Não se aplica | H86: Não se aplica | I86: Não se aplica | J86: CATIVO | K86: 2019-08-01 | L86: 0 | M86: 0 | N86: 0 | O86: 0 | P86: 0 | Q86: 0 | AA86: 0 | AZ86: 0 | BI86: -181.96 | BJ86: -838.17 | BK86: 0 | BL86: -1 | CJ86: -0.03 | CO86: 0 | CP86: 0 | CQ86: 31 | DK86: 0 | DY86: 153 | ED86: 0 | EE86: -38.91135728 | EG86: -38.91135728 | EI86: 0 | EJ86: 0 | EK86: 0 | EL86: 0
A87: 96 | B87: Sistema de Compensação | C87: Verde | D87: A4 | E87: Rural | F87: Não se aplica | G87: Não se aplica | H87: Não se aplica | I87: Não se aplica | J87: CATIVO | K87: 2019-08-01 | L87: 154 | M87: 141.68 | N87: 0 | O87: 0 | P87: 0 | Q87: 0 | R87: 19.7 | U87: 3033.8 | W87: 3033.8 | X87: 3070.76 | Y87: 0 | Z87: 0 | AA87: 0 | AB87: 0 | AC87: 55.3497592 | AD87: 38.2355077 | AE87: 1984.40391 | AI87: 0 | AJ87: 0 | AK87: 0 | AL87: 0 | AM87: 0 | AN87: 0 | AO87: 233.9566278 | AP87: 722.37745 | AQ87: 0 | AR87: 0 | AU87: 0 | AV87: 0 | AW87: 0 | AZ87: 0 | BB87: 0 | BC87: 39.28649725 | BD87: 0 | BE87: 0 | BG87: 0 | BH87: 0 | BI87: 247.29 | BJ87: 1139.05 | BK87: 5700.39 | BL87: 1 | BR87: 245.6608 | BV87: 0 | CI87: 2825.0992 | CJ87: 33.9732 | CO87: 36.96 | CP87: 0 | CQ87: 31 | CR87: -2.947940375 | CS87: 1.98951966e-13 | CT87: -2.23042274 | CU87: 0 | CV87: 0 | CZ87: -0.7175176356 | DA87: 0 | DB87: 0 | DE87: 0 | DF87: 0 | DG87: 0 | DH87: 0 | DI87: 0 | DK87: 0 | DL87: 0 | DN87: 0 | DO87: 0 | DP87: 0 | DQ87: 0 | DR87: 0 | DS87: 0 | DU87: 1984.40391 | DW87: 0 | DX87: 0 | DY87: 153 | ED87: 0 | EE87: -38.91135728 | EG87: -38.91135728 | EI87: 0 | EJ87: 0 | EK87: 0 | EL87: 0
A88: 83 | B88: Regular | C88: Convencional | D88: B2 | E88: Rural | F88: Não se aplica | G88: Não se aplica | H88: Não se aplica | I88: Não se aplica | J88: CATIVO | K88: 2019-08-01 | L88: 0 | M88: 0 | N88: 13713.922 | O88: 13713.922 | P88: 13713.922 | Q88: 13713.922 | S88: 309.24 | T88: 207.95 | V88: 7092703.319 | W88: 7092703.319 | X88: 7479573.059 | Y88: 0 | Z88: 198540.9882 | AA88: 0 | AB88: 0 | AC88: 22530.21495 | AD88: 25638.82382 | AE88: 2938323.465 | AF88: 2596850.025 | AG88: 136957.2335 | AH88: 0 | AI88: 243.68835 | AJ88: 0 | AK88: 78655.26089 | AL88: 126735.1895 | AM88: 0 | AN88: 11240.18659 | AO88: 92528.24763 | AP88: 282097.8199 | AQ88: 0 | AR88: 0 | AS88: 3.733758687e-09 | AT88: 0 | AU88: 0 | AV88: 33963.98655 | AW88: 11908.71453 | AX88: 0 | AY88: -172509.9779 | AZ88: 0 | BA88: -21742.32752 | BB88: 630883.1221 | BC88: 15389.75376 | BD88: 101261.7849 | BE88: 9501.651252 | BF88: 58530.79869 | BG88: 383105.0846 | BH88: 0 | BI88: 107863.15 | BJ88: 499111.91 | BK88: 1208049.21 | BL88: 124015 | BR88: 1795015.251 | BU88: 29889.53287 | BV88: 3149249.344 | CI88: 5684556.979 | CJ88: 294162.7679 | CM88: 0 | CN88: 29889.53287 | CO88: 127950.8923 | CP88: 258918.8474 | CQ88: 31 | CR88: -110957.2047 | CS88: 2.910383046e-11 | CT88: -871.0091825 | CU88: 0 | CV88: 0 | CW88: 0 | CX88: 0 | CY88: 0 | CZ88: -481.1315281 | DA88: 0 | DB88: 0 | DC88: -96705.90093 | DD88: -2179.669047 | DE88: -353.8385875 | DF88: -3770.957907 | DG88: -14266.71621 | DH88: 0 | DI88: -7087.266147 | DJ88: -15336.26748 | DK88: 0 | DL88: -16.60018179 | DM88: 35435.03001 | DN88: 0 | DO88: -4807.44097 | DP88: -515.4365664 | DQ88: 0 | DR88: 0 | DS88: 0 | DV88: 2938323.465 | DW88: 0 | DX88: 0 | DY88: 153 | DZ88: 0 | EA88: 0 | EB88: 0 | ED88: 0 | EE88: -27.2379501 | EG88: -38.91135728 | EI88: 0 | EJ88: 0 | EK88: 0 | EL88: 0
A89: 84 | B89: Refaturamento - Regular | C89: Convencional | D89: B2 | E89: Rural | F89: Não se aplica | G89: Não se aplica | H89: Não se aplica | I89: Não se aplica | J89: CATIVO | K89: 2019-08-01 | L89: 0 | M89: 0 | N89: -55.812 | O89: -55.812 | P89: -55.812 | Q89: -55.812 | S89: 309.24 | T89: 207.95 | V89: -28865.40828 | W89: -28865.40828 | X89: -30439.8648 | Y89: 0 | Z89: -808.0087983 | AA89: 0 | AB89: 0 | AC89: -91.69195777 | AD89: -104.3431657 | AE89: -11958.19177 | AF89: -10568.48607 | AG89: -557.3793635 | AH89: 0 | AI89: -0.9917465034 | AJ89: 0 | AK89: -320.1059056 | AL89: -515.7783744 | AM89: 0 | AN89: -45.74455754 | AO89: -376.5652566 | AP89: -1148.062788 | AQ89: 0 | AR89: 0 | AS89: -1.519540069e-11 | AT89: 0 | AU89: 0 | AV89: -138.2243546 | AW89: -48.4652877 | AX89: 0 | AY89: 702.0695384 | AZ89: 0 | BA89: 88.48546632 | BB89: -2567.525819 | BC89: -62.63218771 | BD89: -412.1084207 | BE89: -38.66918302 | BF89: -238.204719 | BG89: -1559.135379 | BH89: 0 | BI89: -303.14 | BJ89: -1396.78 | BK89: -4726.71 | BL89: -28 | BR89: -7305.23268 | BU89: -121.6424163 | BV89: -12816.60377 | CI89: -23133.8031 | CJ89: -1196.36838 | CM89: 0 | CN89: -121.6424163 | CO89: -520.72596 | CP89: -1053.73056 | CQ89: 31 | CR89: 451.5661903 | CS89: -5.684341886e-14 | CT89: 3.544774755 | CU89: 0 | CV89: 0 | CW89: 0 | CX89: 0 | CY89: 0 | CZ89: 1.958076825 | DA89: 0 | DB89: 0 | DC89: 393.5671898 | DD89: 8.870670903 | DE89: 1.440028552 | DF89: 15.34679158 | DG89: 58.06172482 | DH89: 0 | DI89: 28.84328044 | DJ89: 62.41451284 | DK89: 0 | DL89: 0.06755830651 | DM89: -144.2111086 | DN89: 0 | DO89: 19.56500084 | DP89: 2.097689169 | DQ89: 0 | DR89: 0 | DS89: 0 | DV89: -11958.19177 | DW89: 0 | DX89: 0 | DY89: 153 | DZ89: 0 | EA89: 0 | EB89: 0 | ED89: 0 | EE89: -27.2379501 | EG89: -38.91135728 | EI89: 0 | EJ89: 0 | EK89: 0 | EL89: 0
A90: 85 | B90: Sistema de Compensação | C90: Convencional | D90: B2 | E90: Rural | F90: Não se aplica | G90: Não se aplica | H90: Não se aplica | I90: Não se aplica | J90: CATIVO | K90: 2019-08-01 | L90: 0 | M90: 0 | N90: 51.742 | O90: 51.742 | P90: 51.742 | Q90: 51.742 | S90: 309.24 | T90: 207.95 | V90: 26760.44498 | W90: 26760.44498 | X90: 28220.0868 | Y90: 0 | Z90: 749.0860611 | AA90: 0 | AB90: 0 | AC90: 85.00546978 | AD90: 96.73410875 | AE90: 11086.15994 | AF90: 9797.796283 | AG90: 516.7333732 | AH90: 0 | AI90: 0.9194249906 | AJ90: 0 | AK90: 296.7626992 | AL90: 478.1660691 | AM90: 0 | AN90: 42.40870953 | AO90: 349.1048432 | AP90: 1064.342162 | AQ90: 0 | AR90: 0 | AS90: 1.408730063e-11 | AT90: 0 | AU90: 0 | AV90: 128.1445667 | AW90: 44.93103484 | AX90: 0 | AY90: -650.8722507 | AZ90: 0 | BA90: -82.03280654 | BB90: 2380.293143 | BC90: 58.06483653 | BD90: 382.0560794 | BE90: 35.84929527 | BF90: 220.8340244 | BG90: 1445.437949 | BH90: 0 | BI90: 381.79 | BJ90: 1760.92 | BK90: 2188.84 | BL90: 124 | BR90: 6772.51038 | BU90: 112.7718394 | BV90: 11881.97363 | CI90: 21446.7474 | CJ90: 1109.00688 | CM90: 0 | CN90: 112.7718394 | CO90: 482.75286 | CP90: 976.88896 | CQ90: 31 | CR90: -418.6364548 | CS90: 5.684341886e-14 | CT90: -3.286277778 | CU90: 0 | CV90: 0 | CW90: 0 | CX90: 0 | CY90: 0 | CZ90: -1.815287233 | DA90: 0 | DB90: 0 | DC90: -364.8669379 | DD90: -8.223791548 | DE90: -1.335016795 | DF90: -14.22765158 | DG90: -53.82766727 | DH90: 0 | DI90: -26.73993078 | DJ90: -57.86303525 | DK90: 0 | DL90: -0.06263172607 | DM90: 133.6947463 | DN90: 0 | DO90: -18.13825474 | DP90: -1.944718573 | DQ90: 0 | DR90: 0 | DS90: 0 | DV90: 11086.15994 | DW90: 0 | DX90: 0 | DY90: 153 | DZ90: 0 | EA90: 0 | EB90: 0 | ED90: 0 | EE90: -27.2379501 | EG90: -38.91135728 | EI90: 0 | EJ90: 0 | EK90: 0 | EL90: 0
A91: 97 | B91: Regular | C91: Branca | D91: B2 | E91: Rural | F91: Não se aplica | G91: Não se aplica | H91: Não se aplica | I91: Ponta | J91: CATIVO | K91: 2019-08-01 | L91: 0 | M91: 0 | N91: 0.26 | O91: 0.26 | P91: 0.26 | Q91: 0.26 | S91: 621.15 | T91: 247.65 | V91: 225.888 | W91: 225.888 | X91: 235.677 | Y91: 0 | Z91: 2.860720608 | AA91: 0 | AB91: 0 | AC91: 0.9901297183 | AD91: 1.126726935 | AE91: 129.1292503 | AF91: 60.71482053 | AG91: 1.973377808 | AH91: 0 | AI91: 0.003511236097 | AJ91: 0 | AK91: 2.246973205 | AL91: 1.826091285 | AM91: 0 | AN91: 0.1619566504 | AO91: 4.066316313 | AP91: 12.39724907 | AQ91: 0 | AR91: 0 | AS91: 5.379866654e-14 | AT91: 0 | AU91: 0 | AV91: 0.4893774182 | AW91: 0.1715892792 | AX91: 0 | AY91: -2.485647187 | AZ91: 0 | BA91: -0.3132790107 | BB91: 13.75736869 | BC91: 0.6763283159 | BD91: 1.459052245 | BE91: 0.1369065893 | BF91: 0.8433536242 | BG91: 5.520052157 | BH91: 0 | BI91: 0 | BJ91: 0 | BK91: 0 | BL91: 0 | BU91: 0.4306697745 | BV91: 68.67418514 | CI91: 235.677 | CJ91: 9.759 | CM91: 0 | CN91: 0.4306697745 | CO91: 2.2594 | CP91: 7.5296 | CQ91: 31 | CR91: -2.506283509 | CS91: 1.33226763e-14 | CT91: -0.03827792 | CU91: 0 | CV91: 0 | CW91: 0 | CX91: 0 | CY91: 0 | CZ91: -0.02114386587 | DA91: 0 | DB91: 0 | DC91: -2.261001353 | DD91: -0.03140623111 | DE91: -0.005098359527 | DF91: -0.05433465951 | DG91: -0.2055650545 | DH91: 0 | DI91: -0.1021184013 | DJ91: -0.2209759144 | DK91: 0 | DL91: -0.000239187296 | DM91: 0.5105732648 | DN91: 0 | DO91: -0.06926904905 | DP91: -0.007426778826 | DQ91: 0 | DR91: 0 | DS91: 0 | DV91: 129.1292503 | DW91: 0 | DX91: 0 | DY91: 153 | DZ91: 0 | EA91: 0 | EB91: 0 | ED91: 0 | EE91: -27.2379501 | EG91: -38.91135728 | EI91: 0 | EJ91: 0 | EK91: 0 | EL91: 0
A92: 98 | B92: Regular | C92: Branca | D92: B2 | E92: Rural | F92: Não se aplica | G92: Não se aplica | H92: Não se aplica | I92: Fora ponta | J92: CATIVO | K92: 2019-08-01 | L92: 0 | M92: 0 | N92: 8.386 | O92: 8.386 | P92: 8.386 | Q92: 8.386 | S92: 161.56 | T92: 149.89 | V92: 2611.8197 | W92: 2611.8197 | X92: 2777.94636 | Y92: 0 | Z92: 92.26924236 | AA92: 0 | AB92: 0 | AC92: 6.387341881 | AD92: 7.268103946 | AE92: 832.9831448 | AF92: 1138.538651 | AG92: 63.64902422 | AH92: 0 | AI92: 0.1132508689 | AJ92: 0 | AK92: 29.72049144 | AL92: 58.89846736 | AM92: 0 | AN92: 5.223724884 | AO92: 26.23054908 | AP92: 79.97165339 | AQ92: 0 | AR92: 0 | AS92: 1.735213914e-12 | AT92: 0 | AU92: 0 | AV92: 15.78430396 | AW92: 5.534414213 | AX92: 0 | AY92: -80.17168196 | AZ92: 0 | BA92: -10.10445301 | BB92: 279.5095322 | BC92: 4.362819053 | BD92: 47.06004666 | BE92: 4.41576407 | BF92: 27.20139805 | BG92: 178.042913 | BH92: 0 | BI92: 0 | BJ92: 0 | BK92: 0 | BL92: 0 | BU92: 13.89075665 | BV92: 1395.258773 | CI92: 2779.2714 | CJ92: 167.4217 | CM92: 0 | CN92: 13.89075665 | CO92: 56.94094 | CP92: 109.18572 | CQ92: 31 | CR92: -48.77685603 | CS92: 0 | CT92: -0.2469215979 | CU92: 0 | CV92: 0 | CW92: 0 | CX92: 0 | CY92: 0 | CZ92: -0.1363913564 | DA92: 0 | DB92: 0 | DC92: -42.39883127 | DD92: -1.012971746 | DE92: -0.1644417038 | DF92: -1.752501749 | DG92: -6.630263644 | DH92: 0 | DI92: -3.293711206 | DJ92: -7.127323148 | DK92: 0 | DL92: -0.007714710248 | DM92: 16.46795153 | DN92: 0 | DO92: -2.234193251 | DP92: -0.2395421817 | DQ92: 0 | DR92: 0 | DS92: 0 | DV92: 832.9831448 | DW92: 0 | DX92: 0 | DY92: 153 | DZ92: 0 | EA92: 0 | EB92: 0 | ED92: 0 | EE92: -27.2379501 | EG92: -38.91135728 | EI92: 0 | EJ92: 0 | EK92: 0 | EL92: 0
A93: 99 | B93: Regular | C93: Branca | D93: B2 | E93: Rural | F93: Não se aplica | G93: Não se aplica | H93: Não se aplica | I93: Não se aplica | J93: CATIVO | K93: 2019-08-01 | L93: 0 | M93: 0 | N93: 0 | O93: 0 | P93: 0 | Q93: 0 | AA93: 0 | AZ93: 0 | BI93: 71.9 | BJ93: 331.3 | BK93: 1479.34 | BL93: 8 | CJ93: -0.03 | CO93: 0 | CP93: 0 | CQ93: 31 | DK93: 0 | DY93: 153 | ED93: 0 | EE93: -27.2379501 | EG93: -38.91135728 | EI93: 0 | EJ93: 0 | EK93: 0 | EL93: 0
A94: 100 | B94: Regular | C94: Branca | D94: B2 | E94: Rural | F94: Não se aplica | G94: Não se aplica | H94: Não se aplica | I94: Intermediário | J94: CATIVO | K94: 2019-08-01 | L94: 0 | M94: 0 | N94: 0.306 | O94: 0.306 | P94: 0.306 | Q94: 0.306 | S94: 391.36 | T94: 149.89 | V94: 165.6225 | W94: 165.6225 | X94: 171.97506 | Y94: 0 | Z94: 3.3668481 | AA94: 0 | AB94: 0 | AC94: 0.6991883524 | AD94: 0.7956536149 | AE94: 91.18510583 | AF94: 41.54457755 | AG94: 2.322513882 | AH94: 0 | AI94: 0.004132454791 | AJ94: 0 | AK94: 1.86449872 | AL94: 2.149168973 | AM94: 0 | AN94: 0.1906105193 | AO94: 2.871439083 | AP94: 8.754375294 | AQ94: 0 | AR94: 0 | AS94: 6.331689216e-14 | AT94: 0 | AU94: 0 | AV94: 0.5759595769 | AW94: 0.2019473824 | AX94: 0 | AY94: -2.925415535 | AZ94: 0 | BA94: -0.3687052972 | BB94: 10.19913151 | BC94: 0.4775920206 | BD94: 1.717192258 | BE94: 0.1611285244 | BF94: 0.9925623423 | BG94: 6.496676769 | BH94: 0 | BI94: 0 | BJ94: 0 | BK94: 0 | BL94: 0 | BU94: 0.5068651962 | BV94: 50.91213745 | CI94: 174.2231 | CJ94: 8.5706 | CM94: 0 | CN94: 0.5068651962 | CO94: 2.36844 | CP94: 3.98412 | CQ94: 31 | CR94: -1.807811887 | CS94: 0 | CT94: -0.02703013186 | CU94: 0 | CV94: 0 | CW94: 0 | CX94: 0 | CY94: 0 | CZ94: -0.01493102969 | DA94: 0 | DB94: 0 | DC94: -1.547107366 | DD94: -0.03696271815 | DE94: -0.006000376982 | DF94: -0.06394771465 | DG94: -0.2419342565 | DH94: 0 | DI94: -0.1201855031 | DJ94: -0.2600716532 | DK94: 0 | DL94: -0.0002815050484 | DM94: 0.6009054578 | DN94: 0 | DO94: -0.08152434235 | DP94: -0.008740747387 | DQ94: 0 | DR94: 0 | DS94: 0 | DV94: 91.18510583 | DW94: 0 | DX94: 0 | DY94: 153 | DZ94: 0 | EA94: 0 | EB94: 0 | ED94: 0 | EE94: -27.2379501 | EG94: -38.91135728 | EI94: 0 | EJ94: 0 | EK94: 0 | EL94: 0
A95: 76 | B95: Sistema de Compensação | C95: Branca | D95: B3 | E95: Comercial | F95: Não se aplica | G95: Não se aplica | H95: Não se aplica | I95: Fora ponta | J95: CATIVO | K95: 2019-08-01 | L95: 0 | M95: 0 | N95: 6.04 | O95: 6.04 | P95: 6.04 | Q95: 6.04 | S95: 227.45 | T95: 197.23 | V95: 2565.0672 | W95: 2565.0672 | X95: 2722.8924 | Y95: 0 | Z95: 87.4430793 | AA95: 0 | AB95: 0 | AC95: 6.648188718 | AD95: 7.565611629 | AE95: 867.0610346 | AF95: 1078.987136 | AG95: 60.31984798 | AH95: 0 | AI95: 0.1073272572 | AJ95: 0 | AK95: 29.16227637 | AL95: 55.81777004 | AM95: 0 | AN95: 4.950496802 | AO95: 27.30411668 | AP95: 83.24386654 | AQ95: 0 | AR95: 0 | AS95: 1.644453167e-12 | AT95: 0 | AU95: 0 | AV95: 14.95870246 | AW95: 5.244935457 | AX95: 0 | AY95: -75.97828446 | AZ95: 0 | BA95: -9.575937372 | BB95: 264.8897245 | BC95: 4.541345059 | BD95: 44.59856054 | BE95: 4.184796557 | BF95: 25.77862293 | BG95: 168.7303392 | BH95: 0 | BI95: 0 | BJ95: 0 | BK95: 0 | BL95: 0 | BU95: 13.16419756 | BV95: 1322.279456 | CI95: 2722.8924 | CJ95: 157.7952 | CM95: 0 | CN95: 13.16419756 | CO95: 54.36 | CP95: 103.4652 | CQ95: 31 | CR95: -46.26130737 | CS95: -7.105427358e-15 | CT95: -0.2570249291 | CU95: 0 | CV95: 0 | CW95: 0 | CX95: 0 | CY95: 0 | CZ95: -0.1419743085 | DA95: 0 | DB95: 0 | DC95: -40.18115105 | DD95: -0.9599880358 | DE95: -0.1558405442 | DF95: -1.660836758 | DG95: -6.283466242 | DH95: 0 | DI95: -3.121432915 | DJ95: -6.75452694 | DK95: 0 | DL95: -0.007311190627 | DM95: 15.6065917 | DN95: 0 | DO95: -2.117333281 | DP95: -0.227012875 | DQ95: 0 | DR95: 0 | DS95: 0 | DV95: 867.0610346 | DW95: 0 | DX95: 0 | DY95: 153 | DZ95: 0 | EA95: 0 | EB95: 0 | ED95: 0 | EE95: -38.91135728 | EG95: -38.91135728 | EI95: 0 | EJ95: 0 | EK95: 0 | EL95: 0
A96: 77 | B96: Regular | C96: Branca | D96: B3 | E96: Comercial | F96: Não se aplica | G96: Não se aplica | H96: Não se aplica | I96: Não se aplica | J96: CATIVO | K96: 2019-08-01 | L96: 0 | M96: 0 | N96: 0 | O96: 0 | P96: 0 | Q96: 0 | AA96: 0 | AZ96: 0 | BI96: 532.56 | BJ96: 2454.22 | BK96: 12283.48 | BL96: 65 | CJ96: -0.03 | CO96: 0 | CP96: 0 | CQ96: 31 | DK96: 0 | DY96: 153 | ED96: 0 | EE96: -38.91135728 | EG96: -38.91135728 | EI96: 0 | EJ96: 0 | EK96: 0 | EL96: 0
A97: 78 | B97: Refaturamento - Regular | C97: Branca | D97: B3 | E97: Comercial | F97: Não se aplica | G97: Não se aplica | H97: Não se aplica | I97: Não se aplica | J97: CATIVO | K97: 2019-08-01 | L97: 0 | M97: 0 | N97: 0 | O97: 0 | P97: 0 | Q97: 0 | AA97: 0 | AZ97: 0 | BI97: 0.63 | BJ97: 2.88 | BK97: 14.43 | BL97: 0 | CJ97: -0.03 | CO97: 0 | CP97: 0 | CQ97: 31 | DK97: 0 | DY97: 153 | ED97: 0 | EE97: -38.91135728 | EG97: -38.91135728 | EI97: 0 | EJ97: 0 | EK97: 0 | EL97: 0
A98: 79 | B98: Sistema de Compensação | C98: Branca | D98: B3 | E98: Comercial | F98: Não se aplica | G98: Não se aplica | H98: Não se aplica | I98: Não se aplica | J98: CATIVO | K98: 2019-08-01 | L98: 0 | M98: 0 | N98: 0 | O98: 0 | P98: 0 | Q98: 0 | AA98: 0 | AZ98: 0 | BI98: 85.98 | BJ98: 396.22 | BK98: 1982.93 | BL98: 5 | CJ98: -0.03 | CO98: 0 | CP98: 0 | CQ98: 31 | DK98: 0 | DY98: 153 | ED98: 0 | EE98: -38.91135728 | EG98: -38.91135728 | EI98: 0 | EJ98: 0 | EK98: 0 | EL98: 0
A99: 80 | B99: Regular | C99: Branca | D99: B3 | E99: Comercial | F99: Não se aplica | G99: Não se aplica | H99: Não se aplica | I99: Intermediário | J99: CATIVO | K99: 2019-08-01 | L99: 0 | M99: 0 | N99: 3.391 | O99: 3.391 | P99: 3.391 | Q99: 3.391 | S99: 559.55 | T99: 197.23 | V99: 2566.24098 | W99: 2566.24098 | X99: 2659.49348 | Y99: 0 | Z99: 49.09262945 | AA99: 0 | AB99: 0 | AC99: 11.19767891 | AD99: 12.74254422 | AE99: 1460.365811 | AF99: 605.7691025 | AG99: 33.86500074 | AH99: 0 | AI99: 0.060256081 | AJ99: 0 | AK99: 28.86466519 | AL99: 31.33742685 | AM99: 0 | AN99: 2.77932693 | AO99: 45.98754618 | AP99: 140.2049028 | AQ99: 0 | AR99: 0 | AS99: 9.232352137e-13 | AT99: 0 | AU99: 0 | AV99: 8.398172193 | AW99: 2.94463181 | AX99: 0 | AY99: -42.6560203 | AZ99: 0 | BA99: -5.376159541 | BB99: 148.7154066 | BC99: 7.648842916 | BD99: 25.03869516 | BE99: 2.349444557 | BF99: 14.4727335 | BG99: 94.72923514 | BH99: 0 | BI99: 0 | BJ99: 0 | BK99: 0 | BL99: 0 | BU99: 7.39069436 | BV99: 742.3592109 | CI99: 2658.7092 | CJ99: 92.43822 | CM99: 0 | CN99: 7.39069436 | CO99: 35.16467 | CP99: 58.08783 | CQ99: 31 | CR99: -26.4202151 | CS99: 1.207922651e-13 | CT99: -0.4328986231 | CU99: 0 | CV99: 0 | CW99: 0 | CX99: 0 | CY99: 0 | CZ99: -0.2391232849 | DA99: 0 | DB99: 0 | DC99: -22.55865616 | DD99: -0.5389601704 | DE99: -0.08749259694 | DF99: -0.9324333522 | DG99: -3.527687753 | DH99: 0 | DI99: -1.752446857 | DJ99: -3.792152459 | DK99: 0 | DL99: -0.004104676725 | DM99: 8.761912657 | DN99: 0 | DO99: -1.188721383 | DP99: -0.1274504403 | DQ99: 0 | DR99: 0 | DS99: 0 | DV99: 1460.365811 | DW99: 0 | DX99: 0 | DY99: 153 | DZ99: 0 | EA99: 0 | EB99: 0 | ED99: 0 | EE99: -38.91135728 | EG99: -38.91135728 | EI99: 0 | EJ99: 0 | EK99: 0 | EL99: 0
A100: 81 | B100: Refaturamento - Regular | C100: Branca | D100: B3 | E100: Comercial | F100: Não se aplica | G100: Não se aplica | H100: Não se aplica | I100: Intermediário | J100: CATIVO | K100: 2019-08-01 | L100: 0 | M100: 0 | N100: 0.09 | O100: 0.09 | P100: 0.09 | Q100: 0.09 | S100: 559.55 | T100: 197.23 | V100: 68.1102 | W100: 68.1102 | X100: 70.5852 | Y100: 0 | Z100: 1.302959791 | AA100: 0 | AB100: 0 | AC100: 0.2971958424 | AD100: 0.3381978708 | AE100: 38.7593403 | AF100: 16.07762289 | AG100: 0.8988056818 | AH100: 0 | AI100: 0.00159924721 | AJ100: 0 | AK100: 0.766092559 | AL100: 0.831721739 | AM100: 0 | AN100: 0.07376568083 | AO100: 1.220548262 | AP100: 3.721156371 | AQ100: 0 | AR100: 0 | AS100: 2.450344124e-14 | AT100: 0 | AU100: 0 | AV100: 0.2228945731 | AW100: 0.07815301178 | AX100: 0 | AY100: -1.132126755 | AZ100: 0 | BA100: -0.1426878085 | BB100: 3.947032318 | BC100: 0.2030067421 | BD100: 0.6645480875 | BE100: 0.06235624008 | BF100: 0.3841185535 | BG100: 2.514193796 | BH100: 0 | BI100: 0 | BJ100: 0 | BK100: 0 | BL100: 0 | BU100: 0.1961552617 | BV100: 19.70283957 | CI100: 70.5852 | CJ100: 2.445 | CM100: 0 | CN100: 0.1961552617 | CO100: 0.9333 | CP100: 1.5417 | CQ100: 31 | CR100: -0.7012147918 | CS100: 3.330669074e-15 | CT100: -0.01148949457 | CU100: 0 | CV100: 0 | CW100: 0 | CX100: 0 | CY100: 0 | CZ100: -0.00634653366 | DA100: 0 | DB100: 0 | DC100: -0.5987257607 | DD100: -0.01430445749 | DE100: -0.002322127315 | DF100: -0.02474756759 | DG100: -0.09362780824 | DH100: 0 | DI100: -0.04651141761 | DJ100: -0.1006469246 | DK100: 0 | DL100: -0.0001089415822 | DM100: 0.2325485518 | DN100: 0 | DO100: -0.03154966809 | DP100: -0.003382642178 | DQ100: 0 | DR100: 0 | DS100: 0 | DV100: 38.7593403 | DW100: 0 | DX100: 0 | DY100: 153 | DZ100: 0 | EA100: 0 | EB100: 0 | ED100: 0 | EE100: -38.91135728 | EG100: -38.91135728 | EI100: 0 | EJ100: 0 | EK100: 0 | EL100: 0
A101: 82 | B101: Sistema de Compensação | C101: Branca | D101: B3 | E101: Comercial | F101: Não se aplica | G101: Não se aplica | H101: Não se aplica | I101: Intermediário | J101: CATIVO | K101: 2019-08-01 | L101: 0 | M101: 0 | N101: 1.169 | O101: 1.169 | P101: 1.169 | Q101: 1.169 | S101: 559.55 | T101: 197.23 | V101: 884.67582 | W101: 884.67582 | X101: 916.82332 | Y101: 0 | Z101: 16.92399995 | AA101: 0 | AB101: 0 | AC101: 3.860243775 | AD101: 4.392814566 | AE101: 503.4407645 | AF101: 208.8304573 | AG101: 11.67448713 | AH101: 0 | AI101: 0.02077244432 | AJ101: 0 | AK101: 9.950691127 | AL101: 10.80314125 | AM101: 0 | AN101: 0.9581342321 | AO101: 15.85356576 | AP101: 48.33368664 | AQ101: 0 | AR101: 0 | AS101: 3.182724756e-13 | AT101: 0 | AU101: 0 | AV101: 2.895152844 | AW101: 1.015120786 | AX101: 0 | AY101: -14.70506863 | AZ101: 0 | BA101: -1.853356091 | BB101: 51.26756422 | BC101: 2.636832017 | BD101: 8.63174127 | BE101: 0.809938274 | BF101: 4.989273212 | BG101: 32.65658386 | BH101: 0 | BI101: 0 | BJ101: 0 | BK101: 0 | BL101: 0 | BU101: 2.547838899 | BV101: 255.917994 | CI101: 917.6076 | CJ101: 32.90178 | CM101: 0 | CN101: 2.547838899 | CO101: 12.12253 | CP101: 20.02497 | CQ101: 31 | CR101: -9.108001018 | CS101: 4.263256415e-14 | CT101: -0.1492357683 | CU101: 0 | CV101: 0 | CW101: 0 | CX101: 0 | CY101: 0 | CZ101: -0.08243442054 | DA101: 0 | DB101: 0 | DC101: -7.77678238 | DD101: -0.1857990089 | DE101: -0.03016185368 | DF101: -0.3214434057 | DG101: -1.216121198 | DH101: 0 | DI101: -0.6041316355 | DJ101: -1.307291721 | DK101: 0 | DL101: -0.001415030107 | DM101: 3.020547301 | DN101: 0 | DO101: -0.4097951333 | DP101: -0.0439367634 | DQ101: 0 | DR101: 0 | DS101: 0 | DV101: 503.4407645 | DW101: 0 | DX101: 0 | DY101: 153 | DZ101: 0 | EA101: 0 | EB101: 0 | ED101: 0 | EE101: -38.91135728 | EG101: -38.91135728 | EI101: 0 | EJ101: 0 | EK101: 0 | EL101: 0
A102: 120 | B102: Regular | C102: Azul | D102: A3 | E102: Serviço público | F102: Água, esgoto e saneamento | G102: Não se aplica | H102: Não se aplica | I102: Ponta | J102: CATIVO | K102: 2019-08-01 | L102: 8670 | M102: 7629.6 | N102: 471 | O102: 414.48 | P102: 471 | Q102: 414.48 | R102: 19.33 | S102: 29.56 | T102: 325.85 | U102: 167591.1 | V102: 167398.11 | W102: 334989.21 | X102: 356996.28 | Y102: 0 | Z102: 5386.870095 | AA102: 0 | AB102: 0 | AC102: 3985.8499 | AD102: 3632.335199 | AE102: 96030.61291 | AF102: 144720.0429 | AG102: 4703.749735 | AH102: 0 | AI102: 8.369393734 | AJ102: 0 | AK102: 1117.000657 | AL102: 4352.677101 | AM102: 0 | AN102: 53.14660904 | AO102: 15817.03064 | AP102: 48168.39328 | AQ102: 0 | AR102: 0 | AS102: 1.282346758e-10 | AT102: 0 | AU102: 0 | AV102: 921.5204633 | AW102: 409.0007616 | AX102: 0 | AY102: -5924.796685 | AZ102: 0 | BA102: -746.7328646 | BB102: 30199.65091 | BC102: 2628.540841 | BD102: 981.6419069 | BE102: 73.54931515 | BF102: 2010.22043 | BG102: 2965.496823 | BH102: 0 | BI102: 0 | BJ102: 0 | BK102: 0 | BL102: 0 | BQ102: 42839.5536 | BU102: 1026.545869 | BV102: 150750.9513 | CI102: 314156.7264 | CJ102: 19366.1916 | CM102: 0 | CN102: 1026.545869 | CO102: 4057.26 | CP102: 17949.81 | CQ102: 31 | CR102: -5500.933904 | CS102: 7.821654435e-11 | CT102: -148.7254062 | CU102: 0 | CV102: 0 | CW102: 0 | CX102: 0 | CY102: 0 | CZ102: -68.16346167 | DA102: 0 | DB102: 0 | DC102: -5389.330147 | DD102: -74.85999418 | DE102: -2.738954008 | DF102: -36.55604447 | DG102: -110.434195 | DH102: 0 | DI102: -192.2937042 | DJ102: -526.7189054 | DK102: 0 | DL102: -0.5701276135 | DM102: 1217.004088 | DN102: 0 | DO102: -165.1099297 | DP102: -2.437121969 | DQ102: 0 | DR102: 0 | DS102: 0 | DU102: 96030.61291 | DV102: 0 | DW102: 0 | DX102: 0 | DY102: 153 | DZ102: 0 | EA102: 0 | EB102: 0 | ED102: 0 | EE102: -38.91135728 | EG102: -38.91135728 | EI102: 0 | EJ102: 0 | EK102: 0 | EL102: 0
A103: 121 | B103: Regular | C103: Azul | D103: A3 | E103: Serviço público | F103: Água, esgoto e saneamento | G103: Não se aplica | H103: Não se aplica | I103: Fora ponta | J103: CATIVO | K103: 2019-08-01 | L103: 10100 | M103: 8888 | N103: 4910 | O103: 4320.8 | P103: 4910 | Q103: 4320.8 | R103: 7.83 | S103: 29.56 | T103: 197.23 | U103: 79083 | V103: 1113538.9 | W103: 1192621.9 | X103: 1296142.8 | Y103: 0 | Z103: 56156.11925 | AA103: 0 | AB103: 0 | AC103: 3621.397204 | AD103: 1691.375624 | AE103: 11186.60076 | AF103: 877123.6489 | AG103: 49034.84331 | AH103: 0 | AI103: 87.24782003 | AJ103: 0 | AK103: 11644.31682 | AL103: 45375.04154 | AM103: 0 | AN103: 554.0336526 | AO103: 15324.94688 | AP103: 47265.08007 | AQ103: 0 | AR103: 0 | AS103: 1.33679885e-09 | AT103: 0 | AU103: 0 | AV103: 9606.508439 | AW103: 4263.680976 | AX103: 0 | AY103: -61763.80409 | AZ103: 0 | BA103: -7784.412665 | BB103: 188307.1331 | BC103: 2571.217505 | BD103: 10233.25215 | BE103: 766.7242832 | BF103: 20955.80109 | BG103: 30914.20255 | BH103: 0 | BI103: 0 | BJ103: 0 | BK103: 0 | BL103: 0 | BQ103: 155537.136 | BU103: 10701.35928 | BV103: 939993.6289 | CI103: 1140605.664 | CJ103: 91098.362 | CM103: 0 | CN103: 10701.35928 | CO103: 19412.6 | CP103: 84108.3 | CQ103: 31 | CR103: -31743.93457 | CS103: 6.002665032e-11 | CT103: -145.9363237 | CU103: 0 | CV103: 0 | CW103: 0 | CX103: 0 | CY103: 0 | CZ103: -31.73991695 | DA103: 0 | DB103: 0 | DC103: -32663.8165 | DD103: -780.3876251 | DE103: -28.55257788 | DF103: -381.0831812 | DG103: -1151.235451 | DH103: 0 | DI103: -2004.59042 | DJ103: -5490.848886 | DK103: 0 | DL103: -5.94336854 | DM103: 12686.81544 | DN103: 0 | DO103: -1721.20967 | DP103: -25.40609102 | DQ103: 0 | DR103: 0 | DS103: 0 | DU103: 11186.60076 | DV103: 0 | DW103: 0 | DX103: 0 | DY103: 153 | DZ103: 0 | EA103: 0 | EB103: 0 | ED103: 0 | EE103: -38.91135728 | EG103: -38.91135728 | EI103: 0 | EJ103: 0 | EK103: 0 | EL103: 0
A104: 122 | B104: Regular | C104: Azul | D104: A3 | E104: Serviço público | F104: Água, esgoto e saneamento | G104: Não se aplica | H104: Não se aplica | I104: Não se aplica | J104: CATIVO | K104: 2019-08-01 | L104: 0 | M104: 0 | N104: 0 | O104: 0 | P104: 0 | Q104: 0 | AA104: 0 | AZ104: 0 | BI104: 24846.79 | BJ104: 114451.14 | BK104: 0 | BL104: 3 | CJ104: -0.03 | CO104: 0 | CP104: 0 | CQ104: 31 | DK104: 0 | DY104: 153 | ED104: 0 | EE104: -38.91135728 | EG104: -38.91135728 | EI104: 0 | EJ104: 0 | EK104: 0 | EL104: 0
A105: 104 | B105: Regular | C105: Azul | D105: A4 | E105: Poder público | F105: Não se aplica | G105: Não se aplica | H105: Não se aplica | I105: Ponta | J105: CATIVO | K105: 2019-08-01 | L105: 6138 | M105: 6138 | N105: 224.385 | O105: 224.385 | P105: 224.385 | Q105: 224.385 | R105: 59.69 | S105: 42.81 | T105: 325.85 | U105: 366377.22 | V105: 82721.7741 | W105: 449098.9941 | X105: 460589.6008 | Y105: 0 | Z105: 2988.616245 | AA105: 0 | AB105: 0 | AC105: 2871.661276 | AD105: 4005.040655 | AE105: 313814.5291 | AF105: 68944.81277 | AG105: 2240.872366 | AH105: 0 | AI105: 3.987189837 | AJ105: 0 | AK105: 587.5643383 | AL105: 2073.620915 | AM105: 0 | AN105: 118.154209 | AO105: 11130.19621 | AP105: 34555.92325 | AQ105: 0 | AR105: 0 | AS105: 6.109116291e-11 | AT105: 0 | AU105: 0 | AV105: 511.2562542 | AW105: 194.8484839 | AX105: 0 | AY105: -2822.580688 | AZ105: 0 | BA105: -355.7444879 | BB105: 14868.46667 | BC105: 1876.7998 | BD105: 1236.082401 | BE105: 74.5890927 | BF105: 957.6715737 | BG105: 3007.42049 | BH105: 0 | BI105: 0 | BJ105: 0 | BK105: 0 | BL105: 0 | BU105: 489.0477599 | BV105: 74220.57633 | CI105: 460591.6619 | CJ105: 11492.6378 | CM105: 0 | CN105: 489.0477599 | CO105: 2939.2944 | CP105: 8551.31235 | CQ105: 31 | CR105: -2807.983935 | CS105: -1.273292582e-11 | CT105: -106.695353 | CU105: 0 | CV105: 0 | CW105: 0 | CX105: 0 | CY105: 0 | CZ105: -75.15755575 | DA105: 0 | DB105: 0 | DC105: -2567.483747 | DD105: -35.66339659 | DE105: -2.777675006 | DF105: -46.03133066 | DG105: -111.9954195 | DH105: 0 | DI105: -106.6838587 | DJ105: -250.9295575 | DK105: 0 | DL105: -0.2716095213 | DM105: 579.7822977 | DN105: 0 | DO105: -78.65858083 | DP105: -5.418148472 | DQ105: 0 | DR105: 0 | DS105: 0 | DU105: 313814.5291 | DV105: 0 | DW105: 0 | DX105: 0 | DY105: 153 | DZ105: 0 | EA105: 0 | EB105: 0 | ED105: 0 | EE105: -38.91135728 | EG105: -38.91135728 | EI105: 0 | EJ105: 0 | EK105: 0 | EL105: 0
A106: 105 | B106: Sistema de Compensação | C106: Azul | D106: A4 | E106: Poder público | F106: Não se aplica | G106: Não se aplica | H106: Não se aplica | I106: Ponta | J106: CATIVO | K106: 2019-08-01 | L106: 407 | M106: 407 | N106: 16.8 | O106: 16.8 | P106: 16.8 | Q106: 16.8 | R106: 59.69 | S106: 42.81 | T106: 325.85 | U106: 24293.83 | V106: 6193.488 | W106: 30487.318 | X106: 31332.918 | Y106: 0 | Z106: 223.7616281 | AA106: 0 | AB106: 0 | AC106: 190.4148158 | AD106: 265.5672119 | AE106: 20808.49028 | AF106: 5161.98879 | AG106: 167.7770606 | AH106: 0 | AI106: 0.2985261459 | AJ106: 0 | AK106: 43.99171462 | AL106: 155.2547246 | AM106: 0 | AN106: 8.846360992 | AO106: 738.0237627 | AP106: 2291.342581 | AQ106: 0 | AR106: 0 | AS106: 4.573975698e-12 | AT106: 0 | AU106: 0 | AV106: 38.27842802 | AW106: 14.5885622 | AX106: 0 | AY106: -211.3303276 | AZ106: 0 | BA106: -26.63505759 | BB106: 1113.221651 | BC106: 124.4472986 | BD106: 92.5471147 | BE106: 5.58458345 | BF106: 71.70212999 | BG106: 225.1695267 | BH106: 0 | BI106: 0 | BJ106: 0 | BK106: 0 | BL106: 0 | BU106: 36.61564885 | BV106: 5556.992145 | CI106: 31332.918 | CJ106: 845.57 | CM106: 0 | CN106: 36.61564885 | CO106: 205.352 | CP106: 640.248 | CQ106: 31 | CR106: -208.6802301 | CS106: -9.094947018e-13 | CT106: -7.074781469 | CU106: 0 | CV106: 0 | CW106: 0 | CX106: 0 | CY106: 0 | CZ106: -4.983565524 | DA106: 0 | DB106: 0 | DC106: -192.2308842 | DD106: -2.670165398 | DE106: -0.2079681802 | DF106: -3.446426254 | DG106: -8.385244326 | DH106: 0 | DI106: -7.987560785 | DJ106: -18.78742592 | DK106: 0 | DL106: -0.02033576201 | DM106: 43.409063 | DN106: 0 | DO106: -5.889271377 | DP106: -0.4056639006 | DQ106: 0 | DR106: 0 | DS106: 0 | DU106: 20808.49028 | DV106: 0 | DW106: 0 | DX106: 0 | DY106: 153 | DZ106: 0 | EA106: 0 | EB106: 0 | ED106: 0 | EE106: -38.91135728 | EG106: -38.91135728 | EI106: 0 | EJ106: 0 | EK106: 0 | EL106: 0
A107: 106 | B107: Regular | C107: Azul | D107: A4 | E107: Poder público | F107: Não se aplica | G107: Não se aplica | H107: Não se aplica | I107: Fora ponta | J107: CATIVO | K107: 2019-08-01 | L107: 8249 | M107: 8249 | N107: 1938.242 | O107: 1938.242 | P107: 1938.242 | Q107: 1938.242 | R107: 19.7 | S107: 42.81 | T107: 197.23 | U107: 162505.3 | V107: 465255.6097 | W107: 627760.9097 | X107: 673486.7916 | Y107: 0 | Z107: 25815.72533 | AA107: 0 | AB107: 0 | AC107: 2964.806257 | AD107: 2048.082487 | AE107: 106294.4666 | AF107: 346248.0439 | AG107: 19356.69914 | AH107: 0 | AI107: 34.44142346 | AJ107: 0 | AK107: 5075.392198 | AL107: 17911.97785 | AM107: 0 | AN107: 1020.618358 | AO107: 12531.87157 | AP107: 38694.1012 | AQ107: 0 | AR107: 0 | AS107: 5.27706655e-10 | AT107: 0 | AU107: 0 | AV107: 4416.241481 | AW107: 1683.104998 | AX107: 0 | AY107: -24381.50696 | AZ107: 0 | BA107: -3072.927815 | BB107: 78492.59272 | BC107: 2104.378674 | BD107: 10677.30385 | BE107: 644.3020354 | BF107: 8272.385705 | BG107: 25978.15677 | BH107: 0 | BI107: 0 | BJ107: 0 | BK107: 0 | BL107: 0 | BU107: 4224.404075 | BV107: 391820.1922 | CI107: 673486.2664 | CJ107: 45725.32672 | CM107: 0 | CN107: 4224.404075 | CO107: 12523.79648 | CP107: 33202.08546 | CQ107: 31 | CR107: -13558.67386 | CS107: 9.094947018e-12 | CT107: -119.4724492 | CU107: 0 | CV107: 0 | CW107: 0 | CX107: 0 | CY107: 0 | CZ107: -38.43378556 | DA107: 0 | DB107: 0 | DC107: -12894.17129 | DD107: -308.0611143 | DE107: -23.9936108 | DF107: -397.6195307 | DG107: -967.4186151 | DH107: 0 | DI107: -921.5372495 | DJ107: -2167.534405 | DK107: 0 | DL107: -2.346168335 | DM107: 5008.170779 | DN107: 0 | DO107: -679.4543531 | DP107: -46.80207202 | DQ107: 0 | DR107: 0 | DS107: 0 | DU107: 106294.4666 | DV107: 0 | DW107: 0 | DX107: 0 | DY107: 153 | DZ107: 0 | EA107: 0 | EB107: 0 | ED107: 0 | EE107: -38.91135728 | EG107: -38.91135728 | EI107: 0 | EJ107: 0 | EK107: 0 | EL107: 0
A108: 107 | B108: Sistema de Compensação | C108: Azul | D108: A4 | E108: Poder público | F108: Não se aplica | G108: Não se aplica | H108: Não se aplica | I108: Fora ponta | J108: CATIVO | K108: 2019-08-01 | L108: 536 | M108: 536 | N108: 101.5 | O108: 101.5 | P108: 101.5 | Q108: 101.5 | R108: 19.7 | S108: 42.81 | T108: 197.23 | U108: 10559.2 | V108: 24364.06 | W108: 34923.26 | X108: 37342.755 | Y108: 0 | Z108: 1351.89317 | AA108: 0 | AB108: 0 | AC108: 192.6459151 | AD108: 133.0794294 | AE108: 6906.756467 | AF108: 18131.98582 | AG108: 1013.653074 | AH108: 0 | AI108: 1.803595465 | AJ108: 0 | AK108: 265.7832758 | AL108: 937.9972945 | AM108: 0 | AN108: 53.44676433 | AO108: 814.2906005 | AP108: 2514.248787 | AQ108: 0 | AR108: 0 | AS108: 2.763443651e-11 | AT108: 0 | AU108: 0 | AV108: 231.2655026 | AW108: 88.13922995 | AX108: 0 | AY108: -1276.787396 | AZ108: 0 | BA108: -160.9201396 | BB108: 4110.424891 | BC108: 136.737419 | BD108: 559.138818 | BE108: 33.74019168 | BF108: 433.2003687 | BG108: 1360.399224 | BH108: 0 | BI108: 0 | BJ108: 0 | BK108: 0 | BL108: 0 | BU108: 221.2195451 | BV108: 20518.46442 | CI108: 37342.755 | CJ108: 2419.465 | CM108: 0 | CN108: 221.2195451 | CO108: 680.8 | CP108: 1738.695 | CQ108: 31 | CR108: -712.0189235 | CS108: 6.821210263e-13 | CT108: -7.763029795 | CU108: 0 | CV108: 0 | CW108: 0 | CX108: 0 | CY108: 0 | CZ108: -2.497334108 | DA108: 0 | DB108: 0 | DC108: -675.2296079 | DD108: -16.13224928 | DE108: -1.256474422 | DF108: -20.82215862 | DG108: -50.66085114 | DH108: 0 | DI108: -48.25817974 | DJ108: -113.507365 | DK108: 0 | DL108: -0.1228618955 | DM108: 262.263089 | DN108: 0 | DO108: -35.58101457 | DP108: -2.450886066 | DQ108: 0 | DR108: 0 | DS108: 0 | DU108: 6906.756467 | DV108: 0 | DW108: 0 | DX108: 0 | DY108: 153 | DZ108: 0 | EA108: 0 | EB108: 0 | ED108: 0 | EE108: -38.91135728 | EG108: -38.91135728 | EI108: 0 | EJ108: 0 | EK108: 0 | EL108: 0
A109: 108 | B109: Regular | C109: Azul | D109: A4 | E109: Poder público | F109: Não se aplica | G109: Não se aplica | H109: Não se aplica | I109: Não se aplica | J109: CATIVO | K109: 2019-08-01 | L109: 0 | M109: 0 | N109: 0 | O109: 0 | P109: 0 | Q109: 0 | AA109: 0 | AZ109: 0 | BI109: 18592.8 | BJ109: 85643.85 | BK109: 333028.63 | BL109: 25 | CJ109: -0.03 | CO109: 0 | CP109: 0 | CQ109: 31 | DK109: 0 | DY109: 153 | ED109: 0 | EE109: -38.91135728 | EG109: -38.91135728 | EI109: 0 | EJ109: 0 | EK109: 0 | EL109: 0
A110: 109 | B110: Sistema de Compensação | C110: Azul | D110: A4 | E110: Poder público | F110: Não se aplica | G110: Não se aplica | H110: Não se aplica | I110: Não se aplica | J110: CATIVO | K110: 2019-08-01 | L110: 0 | M110: 0 | N110: 0 | O110: 0 | P110: 0 | Q110: 0 | AA110: 0 | AZ110: 0 | BI110: 1176.83 | BJ110: 5420.8 | BK110: 25667.45 | BL110: 1 | CJ110: -0.03 | CO110: 0 | CP110: 0 | CQ110: 31 | DK110: 0 | DY110: 153 | ED110: 0 | EE110: -38.91135728 | EG110: -38.91135728 | EI110: 0 | EJ110: 0 | EK110: 0 | EL110: 0
A111: 110 | B111: Regular | C111: Verde | D111: A4 | E111: Poder público | F111: Não se aplica | G111: Não se aplica | H111: Não se aplica | I111: Ponta | J111: CATIVO | K111: 2019-08-01 | L111: 0 | M111: 0 | N111: 795.691 | O111: 795.691 | P111: 795.691 | Q111: 795.691 | S111: 1494.48 | T111: 325.85 | V111: 1448420.198 | W111: 1448420.198 | X111: 1488347.972 | Y111: 0 | Z111: 10597.92343 | AA111: 0 | AB111: 0 | AC111: 8952.118913 | AD111: 12486.70336 | AE111: 978376.5202 | AF111: 244485.0013 | AG111: 7946.351019 | AH111: 0 | AI111: 14.13896236 | AJ111: 0 | AK111: 14907.14819 | AL111: 7353.261135 | AM111: 0 | AN111: 418.9862991 | AO111: 34700.73736 | AP111: 107735.238 | AQ111: 0 | AR111: 0 | AS111: 2.166351962e-10 | AT111: 0 | AU111: 0 | AV111: 1812.964325 | AW111: 690.9516455 | AX111: 0 | AY111: -10009.14522 | AZ111: 0 | BA111: -1261.504501 | BB111: 52725.02669 | BC111: 5851.313559 | BD111: 4383.268229 | BE111: 264.5001661 | BF111: 3395.9964 | BG111: 10664.60511 | BH111: 0 | BI111: 0 | BJ111: 0 | BK111: 0 | BL111: 0 | BU111: 1734.210848 | BV111: 263193.3712 | CI111: 1488346.102 | CJ111: 39925.87387 | CM111: 0 | CN111: 1734.210848 | CO111: 9603.99037 | CP111: 30323.78401 | CQ111: 31 | CR111: -9879.482716 | CS111: 4.365574569e-11 | CT111: -332.644831 | CU111: 0 | CV111: 0 | CW111: 0 | CX111: 0 | CY111: 0 | CZ111: -234.3222415 | DA111: 0 | DB111: 0 | DC111: -9104.546696 | DD111: -126.4658676 | DE111: -9.849905312 | DF111: -163.2315686 | DG111: -397.1466335 | DH111: 0 | DI111: -378.3113231 | DJ111: -889.8205787 | DK111: 0 | DL111: -0.9631537387 | DM111: 2055.96433 | DN111: 0 | DO111: -278.9309661 | DP111: -19.21328064 | DQ111: 0 | DR111: 0 | DS111: 0 | DV111: 978376.5202 | DW111: 0 | DX111: 0 | DY111: 153 | DZ111: 0 | EA111: 0 | EB111: 0 | ED111: 0 | EE111: -38.91135728 | EG111: -38.91135728 | EI111: 0 | EJ111: 0 | EK111: 0 | EL111: 0
A112: 111 | B112: Sistema de Compensação | C112: Verde | D112: A4 | E112: Poder público | F112: Não se aplica | G112: Não se aplica | H112: Não se aplica | I112: Ponta | J112: CATIVO | K112: 2019-08-01 | L112: 0 | M112: 0 | N112: 10.08 | O112: 10.08 | P112: 10.08 | Q112: 10.08 | S112: 1494.48 | T112: 325.85 | V112: 18348.9264 | W112: 18348.9264 | X112: 18854.7408 | Y112: 0 | Z112: 134.2569769 | AA112: 0 | AB112: 0 | AC112: 113.4075397 | AD112: 158.1844835 | AE112: 12394.30297 | AF112: 3097.193274 | AG112: 100.6662364 | AH112: 0 | AI112: 0.1791156876 | AJ112: 0 | AK112: 188.8472456 | AL112: 93.15283476 | AM112: 0 | AN112: 5.307816595 | AO112: 439.5970705 | AP112: 1364.815235 | AQ112: 0 | AR112: 0 | AS112: 2.744385419e-12 | AT112: 0 | AU112: 0 | AV112: 22.96705681 | AW112: 8.753137319 | AX112: 0 | AY112: -126.7981966 | AZ112: 0 | BA112: -15.98103455 | BB112: 667.9329904 | BC112: 74.12581099 | BD112: 55.52826882 | BE112: 3.35075007 | BF112: 43.021278 | BG112: 135.101716 | BH112: 0 | BI112: 0 | BJ112: 0 | BK112: 0 | BL112: 0 | BU112: 21.96938931 | BV112: 3334.195287 | CI112: 18854.7408 | CJ112: 505.7844 | CM112: 0 | CN112: 21.96938931 | CO112: 121.6656 | CP112: 384.1488 | CQ112: 31 | CR112: -125.1556016 | CS112: 5.115907697e-13 | CT112: -4.21402265 | CU112: 0 | CV112: 0 | CW112: 0 | CX112: 0 | CY112: 0 | CZ112: -2.968449052 | DA112: 0 | DB112: 0 | DC112: -115.3385305 | DD112: -1.602099239 | DE112: -0.1247809081 | DF112: -2.067855753 | DG112: -5.031146596 | DH112: 0 | DI112: -4.792536471 | DJ112: -11.27245555 | DK112: 0 | DL112: -0.01220145721 | DM112: 26.0454378 | DN112: 0 | DO112: -3.533562826 | DP112: -0.2433983403 | DQ112: 0 | DR112: 0 | DS112: 0 | DV112: 12394.30297 | DW112: 0 | DX112: 0 | DY112: 153 | DZ112: 0 | EA112: 0 | EB112: 0 | ED112: 0 | EE112: -38.91135728 | EG112: -38.91135728 | EI112: 0 | EJ112: 0 | EK112: 0 | EL112: 0
A113: 112 | B113: Regular | C113: Verde | D113: A4 | E113: Poder público | F113: Não se aplica | G113: Não se aplica | H113: Não se aplica | I113: Fora ponta | J113: CATIVO | K113: 2019-08-01 | L113: 0 | M113: 0 | N113: 7554.904 | O113: 7554.904 | P113: 7554.904 | Q113: 7554.904 | S113: 42.81 | T113: 197.23 | V113: 1813479.156 | W113: 1813479.156 | X113: 1983993.339 | Y113: 0 | Z113: 100624.8583 | AA113: 0 | AB113: 0 | AC113: 0 | AD113: 0 | AE113: 0 | AF113: 1349609.972 | AG113: 75448.7849 | AH113: 0 | AI113: 134.2462127 | AJ113: 0 | AK113: 19782.92742 | AL113: 69817.53214 | AM113: 0 | AN113: 3978.17905 | AO113: 0 | AP113: 0 | AQ113: 0 | AR113: 0 | AS113: 2.056901625e-09 | AT113: 0 | AU113: 0 | AV113: 17213.68148 | AW113: 6560.427792 | AX113: 0 | AY113: -95034.5439 | AZ113: 0 | BA113: -11977.69661 | BB113: 305949.4133 | BC113: 0 | BD113: 41618.12899 | BE113: 2511.368562 | BF113: 32244.20885 | BG113: 101257.9856 | BH113: 0 | BI113: 0 | BJ113: 0 | BK113: 0 | BL113: 0 | BU113: 16465.93523 | BV113: 1527241.664 | CI113: 1983992.289 | CJ113: 170513.1028 | CM113: 0 | CN113: 16465.93523 | CO113: 41098.67776 | CP113: 129415.5055 | CQ113: 31 | CR113: -52233.68028 | CS113: 0 | CT113: 0 | CU113: 0 | CV113: 0 | CW113: 0 | CX113: 0 | CY113: 0 | CZ113: 0 | DA113: 0 | DB113: 0 | DC113: -50259.06271 | DD113: -1200.764479 | DE113: -93.52259739 | DF113: -1549.846399 | DG113: -3770.816423 | DH113: 0 | DI113: -3591.97946 | DJ113: -8448.642814 | DK113: 0 | DL113: -9.14492439 | DM113: 19520.91094 | DN113: 0 | DO113: -2648.385707 | DP113: -182.4257039 | DQ113: 0 | DR113: 0 | DS113: 0 | DV113: 0 | DW113: 0 | DX113: 0 | DY113: 153 | DZ113: 0 | EA113: 0 | EB113: 0 | ED113: 0 | EE113: -38.91135728 | EG113: -38.91135728 | EI113: 0 | EJ113: 0 | EK113: 0 | EL113: 0
A114: 113 | B114: Sistema de Compensação | C114: Verde | D114: A4 | E114: Poder público | F114: Não se aplica | G114: Não se aplica | H114: Não se aplica | I114: Fora ponta | J114: CATIVO | K114: 2019-08-01 | L114: 0 | M114: 0 | N114: 125.3 | O114: 125.3 | P114: 125.3 | Q114: 125.3 | S114: 42.81 | T114: 197.23 | V114: 30077.012 | W114: 30077.012 | X114: 32905.033 | Y114: 0 | Z114: 1668.888809 | AA114: 0 | AB114: 0 | AC114: 0 | AD114: 0 | AE114: 0 | AF114: 22383.62387 | AG114: 1251.337244 | AH114: 0 | AI114: 2.226507505 | AJ114: 0 | AK114: 328.1048715 | AL114: 1157.941488 | AM114: 0 | AN114: 65.97910907 | AO114: 0 | AP114: 0 | AQ114: 0 | AR114: 0 | AS114: 3.411423541e-11 | AT114: 0 | AU114: 0 | AV114: 285.4932756 | AW114: 108.8063597 | AX114: 0 | AY114: -1576.172027 | AZ114: 0 | BA114: -198.6531379 | BB114: 5074.248658 | BC114: 0 | BD114: 690.2472304 | BE114: 41.6516849 | BF114: 534.7783862 | BG114: 1679.389386 | BH114: 0 | BI114: 0 | BJ114: 0 | BK114: 0 | BL114: 0 | BU114: 273.0917143 | BV114: 25329.69056 | CI114: 32905.033 | CJ114: 2827.991 | CM114: 0 | CN114: 273.0917143 | CO114: 681.632 | CP114: 2146.389 | CQ114: 31 | CR114: -866.3088425 | CS114: 0 | CT114: 0 | CU114: 0 | CV114: 0 | CW114: 0 | CX114: 0 | CY114: 0 | CZ114: 0 | DA114: 0 | DB114: 0 | DC114: -833.559309 | DD114: -19.91498359 | DE114: -1.55109601 | DF114: -25.70459581 | DG114: -62.53994727 | DH114: 0 | DI114: -59.57389085 | DJ114: -140.122885 | DK114: 0 | DL114: -0.1516708917 | DM114: 323.7592616 | DN114: 0 | DO114: -43.92414902 | DP114: -3.025576592 | DQ114: 0 | DR114: 0 | DS114: 0 | DV114: 0 | DW114: 0 | DX114: 0 | DY114: 153 | DZ114: 0 | EA114: 0 | EB114: 0 | ED114: 0 | EE114: -38.91135728 | EG114: -38.91135728 | EI114: 0 | EJ114: 0 | EK114: 0 | EL114: 0
A115: 114 | B115: Regular | C115: Verde | D115: A4 | E115: Poder público | F115: Não se aplica | G115: Não se aplica | H115: Não se aplica | I115: Não se aplica | J115: CATIVO | K115: 2019-08-01 | L115: 46517 | M115: 46517 | N115: 0 | O115: 0 | P115: 0 | Q115: 0 | R115: 19.7 | U115: 916384.9 | W115: 916384.9 | X115: 927548.98 | Y115: 0 | Z115: 0 | AA115: 0 | AB115: 0 | AC115: 16718.862 | AD115: 11549.35787 | AE115: 599405.9526 | AI115: 0 | AJ115: 0 | AK115: 0 | AL115: 0 | AM115: 0 | AN115: 0 | AO115: 70668.57437 | AP115: 218200.2068 | AQ115: 0 | AR115: 0 | AU115: 0 | AV115: 0 | AW115: 0 | AZ115: 0 | BB115: 0 | BC115: 11866.81813 | BD115: 0 | BE115: 0 | BG115: 0 | BH115: 0 | BI115: 68165.52 | BJ115: 313994.31 | BK115: 959682.1 | BL115: 328 | BV115: 0 | CI115: 927548.98 | CJ115: 11164.05 | CO115: 11164.08 | CP115: 0 | CQ115: 31 | CR115: -890.4502756 | CS115: 5.820766091e-11 | CT115: -673.7180168 | CU115: 0 | CV115: 0 | CZ115: -216.7322588 | DA115: 0 | DB115: 0 | DE115: 0 | DF115: 0 | DG115: 0 | DH115: 0 | DI115: 0 | DK115: 0 | DL115: 0 | DN115: 0 | DO115: 0 | DP115: 0 | DQ115: 0 | DR115: 0 | DS115: 0 | DU115: 599405.9526 | DW115: 0 | DX115: 0 | DY115: 153 | ED115: 0 | EE115: -38.91135728 | EG115: -38.91135728 | EI115: 0 | EJ115: 0 | EK115: 0 | EL115: 0
A116: 115 | B116: Sistema de Compensação | C116: Verde | D116: A4 | E116: Poder público | F116: Não se aplica | G116: Não se aplica | H116: Não se aplica | I116: Não se aplica | J116: CATIVO | K116: 2019-08-01 | L116: 900 | M116: 900 | N116: 0 | O116: 0 | P116: 0 | Q116: 0 | R116: 19.7 | U116: 17730 | W116: 17730 | X116: 17946 | Y116: 0 | Z116: 0 | AA116: 0 | AB116: 0 | AC116: 323.4726187 | AD116: 223.4542658 | AE116: 11597.16571 | AI116: 0 | AJ116: 0 | AK116: 0 | AL116: 0 | AM116: 0 | AN116: 0 | AO116: 1367.278993 | AP116: 4221.686396 | AQ116: 0 | AR116: 0 | AU116: 0 | AV116: 0 | AW116: 0 | AZ116: 0 | BB116: 0 | BC116: 229.5964125 | BD116: 0 | BE116: 0 | BG116: 0 | BH116: 0 | BI116: 1212.01 | BJ116: 5582.89 | BK116: 26447.9 | BL116: 2 | BV116: 0 | CI116: 17946 | CJ116: 215.97 | CO116: 216 | CP116: 0 | CQ116: 31 | CR116: -17.22822297 | CS116: 1.136868377e-12 | CT116: -13.03493809 | CU116: 0 | CV116: 0 | CZ116: -4.193284884 | DA116: 0 | DB116: 0 | DE116: 0 | DF116: 0 | DG116: 0 | DH116: 0 | DI116: 0 | DK116: 0 | DL116: 0 | DN116: 0 | DO116: 0 | DP116: 0 | DQ116: 0 | DR116: 0 | DS116: 0 | DU116: 11597.16571 | DW116: 0 | DX116: 0 | DY116: 153 | ED116: 0 | EE116: -38.91135728 | EG116: -38.91135728 | EI116: 0 | EJ116: 0 | EK116: 0 | EL116: 0
A117: 123 | B117: Regular | C117: Azul | D117: A4 | E117: Serviço público | F117: Água, esgoto e saneamento | G117: Não se aplica | H117: Não se aplica | I117: Ponta | J117: CATIVO | K117: 2019-08-01 | L117: 15947 | M117: 14033.36 | N117: 672.342 | O117: 591.66096 | P117: 672.342 | Q117: 591.66096 | R117: 59.69 | S117: 42.81 | T117: 325.85 | U117: 951876.43 | V117: 247865.6017 | W117: 1199742.032 | X117: 1233487.686 | Y117: 0 | Z117: 8955.020271 | AA117: 0 | AB117: 0 | AC117: 7460.798692 | AD117: 10405.40621 | AE117: 815314.4827 | AF117: 206584.6349 | AG117: 6714.497886 | AH117: 0 | AI117: 11.94712298 | AJ117: 0 | AK117: 1760.56413 | AL117: 6213.349527 | AM117: 0 | AN117: 354.0345263 | AO117: 28917.11289 | AP117: 89778.9684 | AQ117: 0 | AR117: 0 | AS117: 1.83052141e-10 | AT117: 0 | AU117: 0 | AV117: 1531.91636 | AW117: 583.8394694 | AX117: 0 | AY117: -8457.515187 | AZ117: 0 | BA117: -1065.944517 | BB117: 44551.52804 | BC117: 4876.071427 | BD117: 3703.768583 | BE117: 223.4970242 | BF117: 2869.54485 | BG117: 9011.364875 | BH117: 0 | BI117: 0 | BJ117: 0 | BK117: 0 | BL117: 0 | BQ117: 148018.5223 | BU117: 1465.371344 | BV117: 222392.8103 | CI117: 1085468.768 | CJ117: 29695.74989 | CM117: 0 | CN117: 1465.371344 | CO117: 8122.70048 | CP117: 25622.95362 | CQ117: 31 | CR117: -8341.345944 | CS117: -3.637978807e-11 | CT117: -277.2028012 | CU117: 0 | CV117: 0 | CW117: 0 | CX117: 0 | CY117: 0 | CZ117: -195.2651583 | DA117: 0 | DB117: 0 | DC117: -7693.148641 | DD117: -106.8609728 | DE117: -8.322960844 | DF117: -137.9272096 | DG117: -335.5804727 | DH117: 0 | DI117: -319.6650353 | DJ117: -751.8794953 | DK117: 0 | DL117: -0.8138444584 | DM117: 1737.246205 | DN117: 0 | DO117: -235.6907438 | DP117: -16.23481418 | DQ117: 0 | DR117: 0 | DS117: 0 | DU117: 815314.4827 | DV117: 0 | DW117: 0 | DX117: 0 | DY117: 153 | DZ117: 0 | EA117: 0 | EB117: 0 | ED117: 0 | EE117: -38.91135728 | EG117: -38.91135728 | EI117: 0 | EJ117: 0 | EK117: 0 | EL117: 0
A118: 124 | B118: Regular | C118: Azul | D118: A4 | E118: Serviço público | F118: Água, esgoto e saneamento | G118: Não se aplica | H118: Não se aplica | I118: Fora ponta | J118: CATIVO | K118: 2019-08-01 | L118: 16837 | M118: 14816.56 | N118: 6540.174 | O118: 5755.35312 | P118: 6540.174 | Q118: 5755.35312 | R118: 19.7 | S118: 42.81 | T118: 197.23 | U118: 331688.9 | V118: 1569903.367 | W118: 1901592.267 | X118: 2053244.874 | Y118: 0 | Z118: 87109.52275 | AA118: 0 | AB118: 0 | AC118: 6051.453867 | AD118: 4180.332748 | AE118: 216957.1989 | AF118: 1168338.347 | AG118: 65314.95057 | AH118: 0 | AI118: 116.2150558 | AJ118: 0 | AK118: 17125.80168 | AL118: 60440.05436 | AM118: 0 | AN118: 3443.853581 | AO118: 25578.75157 | AP118: 78978.37095 | AQ118: 0 | AR118: 0 | AS118: 1.78063077e-09 | AT118: 0 | AU118: 0 | AV118: 14901.64165 | AW118: 5679.269952 | AX118: 0 | AY118: -82270.06632 | AZ118: 0 | BA118: -10368.92328 | BB118: 264856.0985 | BC118: 4295.238664 | BD118: 36028.22817 | BE118: 2174.056398 | BF118: 27913.35752 | BG118: 87657.61213 | BH118: 0 | BI118: 0 | BJ118: 0 | BK118: 0 | BL118: 0 | BQ118: 246389.3849 | BU118: 14254.32825 | BV118: 1322111.601 | CI118: 1806854.67 | CJ118: 133453.445 | CM118: 0 | CN118: 14254.32825 | CO118: 39619.42656 | CP118: 112033.1806 | CQ118: 31 | CR118: -45540.2632 | CS118: 1.818989404e-11 | CT118: -243.8547251 | CU118: 0 | CV118: 0 | CW118: 0 | CX118: 0 | CY118: 0 | CZ118: -78.44704176 | DA118: 0 | DB118: 0 | DC118: -43508.56281 | DD118: -1039.484899 | DE118: -80.96119552 | DF118: -1341.680201 | DG118: -3264.342674 | DH118: 0 | DI118: -3109.526034 | DJ118: -7313.871105 | DK118: 0 | DL118: -7.91663226 | DM118: 16898.97769 | DN118: 0 | DO118: -2292.670211 | DP118: -157.9233628 | DQ118: 0 | DR118: 0 | DS118: 0 | DU118: 216957.1989 | DV118: 0 | DW118: 0 | DX118: 0 | DY118: 153 | DZ118: 0 | EA118: 0 | EB118: 0 | ED118: 0 | EE118: -38.91135728 | EG118: -38.91135728 | EI118: 0 | EJ118: 0 | EK118: 0 | EL118: 0
A119: 125 | B119: Regular | C119: Azul | D119: A4 | E119: Serviço público | F119: Água, esgoto e saneamento | G119: Não se aplica | H119: Não se aplica | I119: Não se aplica | J119: CATIVO | K119: 2019-08-01 | L119: 0 | M119: 0 | N119: 0 | O119: 0 | P119: 0 | Q119: 0 | AA119: 0 | AZ119: 0 | BI119: 43856.31 | BJ119: 202015.79 | BK119: 14045.84 | BL119: 72 | CJ119: -0.03 | CO119: 0 | CP119: 0 | CQ119: 31 | DK119: 0 | DY119: 153 | ED119: 0 | EE119: -38.91135728 | EG119: -38.91135728 | EI119: 0 | EJ119: 0 | EK119: 0 | EL119: 0
